Workbook

Sheet ReadMe
B2: Yoo and Sobotka. 2017. "Ultra-Low Fertility in Korea: The Role of Tempo Effect." Demographic Research
B4: To make our analysis replicable, we prepared our work file for the website of Demographic Research.
B5: Please use "Trace Precedents" and "Trace Dependents" if necessary as it contains many functions and references.
B6: Please also refer to the Visual Basic Modules as we used it for some repeated computations.
B7: Please refer to the text for the details on data and methods
B11: * List of data used in this article
B12: Item | C12: Description | D12: Data Source
B13: Births | C13: The number of births by mother's age and year | D13: Vital Registration
B14: Female population | C14: Female population by age and year | D14: Population Estimation and Projections
B15: Parity distribution | C15: Parity distribution by female age | D15: Census 2000
B16: Note: All data are available in KOSIS (kosis.kr) in Korean (last accessed: July 10, 2017)
B19: * List and description of sheets
B20: Sheet | C20: Description | D20: Others | E20: Data source
B21: 1. Num_births | C21: Number of births by mother's age and birth order, 1981-2015 | D21: All birth order & up to 3+ | E21: Birth registration
B22: 2. Female_Pop | C22: Females population by age, observed and projected 1981-2060 | D22: Mid-year, 1st Jan | E22: Population estimations and projections
B23: 3. Comp_ASFR | C23: Computing ASFR by mother' age and birth order and MAC by birth order, 1981-2015 | D23: Use macro "Comp_ASFR"
B24: 4. Comp_MAC | C24: Computing mean age at childbearing by birth order & 'r', 1981-2015
B25: 5. Golden Census | C25: Parity distribution by female age & its transformation to the 1st Jan Population | D25: CTFR for older cohorts | E25: Census 2000 (also Census 1985 & 1990)
B26: 6. Comp_CTFR | C26: Computing observed and expected CTFR based on "Sheet 5"
B27: 7. Comp_ACF | C27: Computing the Average Cohort Fertility index
B28: 8. FerTable_FW | C28: Constructing fertility tables from 2000 forward | D28: Use macro "FerTable_FW"
B29: 9. FerTable_BW | C29: Constructing fertility tables from 2000 backward | D29: Use macro "FerTable_BW"
B30: 10. Summary | C30: Summary of the results
B31: 11. Decomp | C31: A simple decomposition by period
B32: 12. Appendix | C32: Appendix tables
B36: * List and description of macros
B37: Macro | C37: Description
B38: Comp_ASFR | C38: A macro to compute ASFR and Mean Age at Childbearing by birth order
B39: FerTable_FW | C39: A macro to construct fertility tables and compute TFRp* from 2000 forward
B40: FerTable_BW | C40: A macro to construct fertility tables and compute TFRp* from 2000 backward
B41: Note: Results derived by macros listed above will be added under the PURPLE row on the corresponding sheet.

Sheet 1. Num_births
C2: * Number of births by women's age and birth order | Q2: * Number of births by women's age and birth order (up to third birth or higher)
D3: Birth order | R3: Birth order
A4: row_id | B4: Year | C4: Mom's age | D4: 1 | E4: 2 | F4: 3 | G4: 4 | H4: 5 | I4: 6 | J4: 7 | K4: 8+ | L4: Missing | M4: Total | O4: row_id | P4: Year | Q4: Mom's age | R4: 1 | S4: 2 | T4: 3+ | U4: Missing | V4: Total
A5: =B5&C5 -> 1981Total | B5: 1981 | C5: Total | D5: 355314 | E5: 290618 | F5: 142504 | G5: 48233 | H5: 17864 | I5: 7296 | J5: 3367 | K5: 2203 | L5: 10 | M5: 867409 | O5: =P5&Q5 -> 1981Total | P5: 1981 | Q5: Total | R5: 355314 | S5: 290618 | T5: =SUM(F5:K5) -> 221467 | U5: 10 | V5: 867409
A6: =B6&C6 -> 1981<15 | B6: 1981 | C6: <15 | D6: 37 | E6: 20 | F6: 5 | G6: 0 | H6: 0 | I6: 1 | J6: 0 | K6: 0 | L6: 0 | M6: 63 | O6: =P6&Q6 -> 1981<15 | P6: 1981 | Q6: <15 | R6: 37 | S6: 20 | T6: =SUM(F6:K6) -> 6 | U6: 0 | V6: 63
A7: 198115 | B7: 1981 | C7: 15 | D7: 586 | E7: 88 | F7: 20 | G7: 1 | H7: 0 | I7: 1 | J7: 0 | K7: 0 | L7: 0 | M7: 696 | O7: 198115 | P7: 1981 | Q7: 15 | R7: 586 | S7: 88 | T7: 22 | U7: 0 | V7: 696
A8: 198116 | B8: 1981 | C8: 16 | D8: 1728 | E8: 273 | F8: 17 | G8: 4 | H8: 0 | I8: 0 | J8: 0 | K8: 0 | L8: 0 | M8: 2022 | O8: 198116 | P8: 1981 | Q8: 16 | R8: 1728 | S8: 273 | T8: 21 | U8: 0 | V8: 2022
A9: 198117 | B9: 1981 | C9: 17 | D9: 3403 | E9: 460 | F9: 40 | G9: 8 | H9: 0 | I9: 0 | J9: 0 | K9: 0 | L9: 0 | M9: 3911 | O9: 198117 | P9: 1981 | Q9: 17 | R9: 3403 | S9: 460 | T9: 48 | U9: 0 | V9: 3911
A10: 198118 | B10: 1981 | C10: 18 | D10: 7681 | E10: 1376 | F10: 129 | G10: 9 | H10: 0 | I10: 1 | J10: 0 | K10: 0 | L10: 0 | M10: 9196 | O10: 198118 | P10: 1981 | Q10: 18 | R10: 7681 | S10: 1376 | T10: 139 | U10: 0 | V10: 9196
A11: 198119 | B11: 1981 | C11: 19 | D11: 14565 | E11: 3723 | F11: 386 | G11: 36 | H11: 5 | I11: 1 | J11: 0 | K11: 1 | L11: 1 | M11: 18718 | O11: 198119 | P11: 1981 | Q11: 19 | R11: 14565 | S11: 3723 | T11: 429 | U11: 1 | V11: 18718
A12: 198120 | B12: 1981 | C12: 20 | D12: 27267 | E12: 9457 | F12: 1244 | G12: 117 | H12: 4 | I12: 4 | J12: 0 | K12: 1 | L12: 2 | M12: 38096 | O12: 198120 | P12: 1981 | Q12: 20 | R12: 27267 | S12: 9457 | T12: 1370 | U12: 2 | V12: 38096
A13: 198121 | B13: 1981 | C13: 21 | D13: 36055 | E13: 15170 | F13: 2762 | G13: 236 | H13: 23 | I13: 7 | J13: 0 | K13: 2 | L13: 1 | M13: 54256 | O13: 198121 | P13: 1981 | Q13: 21 | R13: 36055 | S13: 15170 | T13: 3030 | U13: 1 | V13: 54256
A14: 198122 | B14: 1981 | C14: 22 | D14: 42578 | E14: 20917 | F14: 4404 | G14: 487 | H14: 47 | I14: 8 | J14: 1 | K14: 2 | L14: 0 | M14: 68444 | O14: 198122 | P14: 1981 | Q14: 22 | R14: 42578 | S14: 20917 | T14: 4949 | U14: 0 | V14: 68444
A15: 198123 | B15: 1981 | C15: 23 | D15: 47500 | E15: 26683 | F15: 6461 | G15: 843 | H15: 82 | I15: 16 | J15: 2 | K15: 3 | L15: 1 | M15: 81591 | O15: 198123 | P15: 1981 | Q15: 23 | R15: 47500 | S15: 26683 | T15: 7407 | U15: 1 | V15: 81591
A16: 198124 | B16: 1981 | C16: 24 | D16: 47801 | E16: 33990 | F16: 9489 | G16: 1478 | H16: 160 | I16: 17 | J16: 5 | K16: 3 | L16: 1 | M16: 92944 | O16: 198124 | P16: 1981 | Q16: 24 | R16: 47801 | S16: 33990 | T16: 11152 | U16: 1 | V16: 92944
A17: 198125 | B17: 1981 | C17: 25 | D17: 40921 | E17: 39798 | F17: 13089 | G17: 2189 | H17: 296 | I17: 37 | J17: 12 | K17: 2 | L17: 0 | M17: 96344 | O17: 198125 | P17: 1981 | Q17: 25 | R17: 40921 | S17: 39798 | T17: 15625 | U17: 0 | V17: 96344
A18: 198126 | B18: 1981 | C18: 26 | D18: 32714 | E18: 40824 | F18: 16756 | G18: 3285 | H18: 444 | I18: 71 | J18: 13 | K18: 6 | L18: 0 | M18: 94113 | O18: 198126 | P18: 1981 | Q18: 26 | R18: 32714 | S18: 40824 | T18: 20575 | U18: 0 | V18: 94113
A19: 198127 | B19: 1981 | C19: 27 | D19: 18016 | E19: 29446 | F19: 15954 | G19: 3765 | H19: 624 | I19: 90 | J19: 13 | K19: 3 | L19: 2 | M19: 67913 | O19: 198127 | P19: 1981 | Q19: 27 | R19: 18016 | S19: 29446 | T19: 20449 | U19: 2 | V19: 67913
A20: 198128 | B20: 1981 | C20: 28 | D20: 11156 | E20: 23648 | F20: 16544 | G20: 4688 | H20: 910 | I20: 133 | J20: 22 | K20: 6 | L20: 0 | M20: 57107 | O20: 198128 | P20: 1981 | Q20: 28 | R20: 11156 | S20: 23648 | T20: 22303 | U20: 0 | V20: 57107
A21: 198129 | B21: 1981 | C21: 29 | D21: 6929 | E21: 16047 | F21: 15249 | G21: 5249 | H21: 1299 | I21: 221 | J21: 28 | K21: 10 | L21: 1 | M21: 45033 | O21: 198129 | P21: 1981 | Q21: 29 | R21: 6929 | S21: 16047 | T21: 22056 | U21: 1 | V21: 45033
A22: 198130 | B22: 1981 | C22: 30 | D22: 4173 | E22: 9045 | F22: 11023 | G22: 4929 | H22: 1395 | I22: 285 | J22: 52 | K22: 15 | L22: 1 | M22: 30918 | O22: 198130 | P22: 1981 | Q22: 30 | R22: 4173 | S22: 9045 | T22: 17699 | U22: 1 | V22: 30918
A23: 198131 | B23: 1981 | C23: 31 | D23: 3077 | E23: 6292 | F23: 9158 | G23: 4837 | H23: 1715 | I23: 451 | J23: 89 | K23: 19 | L23: 0 | M23: 25638 | O23: 198131 | P23: 1981 | Q23: 31 | R23: 3077 | S23: 6292 | T23: 16269 | U23: 0 | V23: 25638
A24: 198132 | B24: 1981 | C24: 32 | D24: 2107 | E24: 3900 | F24: 6373 | G24: 4097 | H24: 1756 | I24: 553 | J24: 124 | K24: 31 | L24: 0 | M24: 18941 | O24: 198132 | P24: 1981 | Q24: 32 | R24: 2107 | S24: 3900 | T24: 12934 | U24: 0 | V24: 18941
A25: 198133 | B25: 1981 | C25: 33 | D25: 1754 | E25: 2856 | F25: 4559 | G25: 3412 | H25: 1745 | I25: 601 | J25: 193 | K25: 40 | L25: 0 | M25: 15160 | O25: 198133 | P25: 1981 | Q25: 33 | R25: 1754 | S25: 2856 | T25: 10550 | U25: 0 | V25: 15160
A26: 198134 | B26: 1981 | C26: 34 | D26: 1261 | E26: 1995 | F26: 3070 | G26: 2580 | H26: 1679 | I26: 687 | J26: 248 | K26: 74 | L26: 0 | M26: 11594 | O26: 198134 | P26: 1981 | Q26: 34 | R26: 1261 | S26: 1995 | T26: 8338 | U26: 0 | V26: 11594
A27: 198135 | B27: 1981 | C27: 35 | D27: 782 | E27: 1107 | F27: 1660 | G27: 1497 | H27: 1195 | I27: 560 | J27: 235 | K27: 74 | L27: 0 | M27: 7110 | O27: 198135 | P27: 1981 | Q27: 35 | R27: 782 | S27: 1107 | T27: 5221 | U27: 0 | V27: 7110
A28: 198136 | B28: 1981 | C28: 36 | D28: 679 | E28: 860 | F28: 1200 | G28: 1252 | H28: 1063 | I28: 633 | J28: 262 | K28: 129 | L28: 0 | M28: 6078 | O28: 198136 | P28: 1981 | Q28: 36 | R28: 679 | S28: 860 | T28: 4539 | U28: 0 | V28: 6078
A29: 198137 | B29: 1981 | C29: 37 | D29: 519 | E29: 608 | F29: 813 | G29: 925 | H29: 830 | I29: 549 | J29: 273 | K29: 151 | L29: 0 | M29: 4668 | O29: 198137 | P29: 1981 | Q29: 37 | R29: 519 | S29: 608 | T29: 3541 | U29: 0 | V29: 4668
A30: 198138 | B30: 1981 | C30: 38 | D30: 433 | E30: 561 | F30: 655 | G30: 677 | H30: 711 | I30: 613 | J30: 361 | K30: 204 | L30: 0 | M30: 4215 | O30: 198138 | P30: 1981 | Q30: 38 | R30: 433 | S30: 561 | T30: 3221 | U30: 0 | V30: 4215
A31: 198139 | B31: 1981 | C31: 39 | D31: 388 | E31: 399 | F31: 458 | G31: 475 | H31: 544 | I31: 496 | J31: 367 | K31: 261 | L31: 0 | M31: 3388 | O31: 198139 | P31: 1981 | Q31: 39 | R31: 388 | S31: 399 | T31: 2601 | U31: 0 | V31: 3388
A32: 198140 | B32: 1981 | C32: 40 | D32: 239 | E32: 309 | F32: 303 | G32: 341 | H32: 373 | I32: 333 | J32: 267 | K32: 223 | L32: 0 | M32: 2388 | O32: 198140 | P32: 1981 | Q32: 40 | R32: 239 | S32: 309 | T32: 1840 | U32: 0 | V32: 2388
A33: 198141 | B33: 1981 | C33: 41 | D33: 194 | E33: 188 | F33: 198 | G33: 251 | H33: 279 | I33: 255 | J33: 220 | K33: 199 | L33: 0 | M33: 1784 | O33: 198141 | P33: 1981 | Q33: 41 | R33: 194 | S33: 188 | T33: 1402 | U33: 0 | V33: 1784
A34: 198142 | B34: 1981 | C34: 42 | D34: 108 | E34: 126 | F34: 109 | G34: 162 | H34: 189 | I34: 178 | J34: 174 | K34: 183 | L34: 0 | M34: 1229 | O34: 198142 | P34: 1981 | Q34: 42 | R34: 108 | S34: 126 | T34: 995 | U34: 0 | V34: 1229
A35: 198143 | B35: 1981 | C35: 43 | D35: 85 | E35: 84 | F35: 85 | G35: 109 | H35: 129 | I35: 141 | J35: 121 | K35: 143 | L35: 0 | M35: 897 | O35: 198143 | P35: 1981 | Q35: 43 | R35: 85 | S35: 84 | T35: 728 | U35: 0 | V35: 897
A36: 198144 | B36: 1981 | C36: 44 | D36: 57 | E36: 46 | F36: 70 | G36: 69 | H36: 96 | I36: 97 | J36: 63 | K36: 87 | L36: 0 | M36: 585 | O36: 198144 | P36: 1981 | Q36: 44 | R36: 57 | S36: 46 | T36: 482 | U36: 0 | V36: 585
A37: 198145 | B37: 1981 | C37: 45 | D37: 35 | E37: 48 | F37: 35 | G37: 36 | H37: 69 | I37: 57 | J37: 66 | K37: 80 | L37: 0 | M37: 426 | O37: 198145 | P37: 1981 | Q37: 45 | R37: 35 | S37: 48 | T37: 343 | U37: 0 | V37: 426
A38: 198146 | B38: 1981 | C38: 46 | D38: 36 | E38: 39 | F38: 34 | G38: 50 | H38: 47 | I38: 51 | J38: 41 | K38: 72 | L38: 0 | M38: 370 | O38: 198146 | P38: 1981 | Q38: 46 | R38: 36 | S38: 39 | T38: 295 | U38: 0 | V38: 370
A39: 198147 | B39: 1981 | C39: 47 | D39: 29 | E39: 25 | F39: 24 | G39: 28 | H39: 43 | I39: 38 | J39: 20 | K39: 42 | L39: 0 | M39: 249 | O39: 198147 | P39: 1981 | Q39: 47 | R39: 29 | S39: 25 | T39: 195 | U39: 0 | V39: 249
A40: 198148 | B40: 1981 | C40: 48 | D40: 16 | E40: 18 | F40: 24 | G40: 17 | H40: 27 | I40: 25 | J40: 18 | K40: 39 | L40: 0 | M40: 184 | O40: 198148 | P40: 1981 | Q40: 48 | R40: 16 | S40: 18 | T40: 150 | U40: 0 | V40: 184
A41: 198149 | B41: 1981 | C41: 49 | D41: 19 | E41: 13 | F41: 17 | G41: 17 | H41: 18 | I41: 17 | J41: 19 | K41: 21 | L41: 0 | M41: 141 | O41: 198149 | P41: 1981 | Q41: 49 | R41: 19 | S41: 13 | T41: 109 | U41: 0 | V41: 141
A42: 198150+ | B42: 1981 | C42: 50+ | D42: 73 | E42: 60 | F42: 59 | G42: 59 | H42: 62 | I42: 65 | J42: 57 | K42: 73 | L42: 0 | M42: 508 | O42: 198150+ | P42: 1981 | Q42: 50+ | R42: 73 | S42: 60 | T42: 375 | U42: 0 | V42: 508
A43: 1981Missing | B43: 1981 | C43: Missing | D43: 313 | E43: 119 | F43: 28 | G43: 18 | H43: 5 | I43: 3 | J43: 1 | K43: 4 | L43: 0 | M43: 491 | O43: 1981Missing | P43: 1981 | Q43: Missing | R43: 313 | S43: 119 | T43: 59 | U43: 0 | V43: 491
A44: 1982Total | B44: 1982 | C44: Total | D44: 355094 | E44: 300907 | F44: 125641 | G44: 41420 | H44: 15030 | I44: 5934 | J44: 2629 | K44: 1654 | L44: 3 | M44: 848312 | O44: 1982Total | P44: 1982 | Q44: Total | R44: 355094 | S44: 300907 | T44: 192308 | U44: 3 | V44: 848312
A45: 1982<15 | B45: 1982 | C45: <15 | D45: 2 | E45: 1 | F45: 0 | G45: 0 | H45: 0 | I45: 0 | J45: 0 | K45: 0 | L45: 0 | M45: 3 | O45: 1982<15 | P45: 1982 | Q45: <15 | R45: 2 | S45: 1 | T45: 0 | U45: 0 | V45: 3
A46: 198215 | B46: 1982 | C46: 15 | D46: 580 | E46: 75 | F46: 14 | G46: 1 | H46: 0 | I46: 0 | J46: 0 | K46: 0 | L46: 0 | M46: 670 | O46: 198215 | P46: 1982 | Q46: 15 | R46: 580 | S46: 75 | T46: 15 | U46: 0 | V46: 670
A47: 198216 | B47: 1982 | C47: 16 | D47: 1575 | E47: 205 | F47: 24 | G47: 2 | H47: 0 | I47: 0 | J47: 0 | K47: 0 | L47: 0 | M47: 1806 | O47: 198216 | P47: 1982 | Q47: 16 | R47: 1575 | S47: 205 | T47: 26 | U47: 0 | V47: 1806
A48: 198217 | B48: 1982 | C48: 17 | D48: 3855 | E48: 596 | F48: 46 | G48: 4 | H48: 0 | I48: 0 | J48: 0 | K48: 0 | L48: 0 | M48: 4501 | O48: 198217 | P48: 1982 | Q48: 17 | R48: 3855 | S48: 596 | T48: 50 | U48: 0 | V48: 4501
A49: 198218 | B49: 1982 | C49: 18 | D49: 6343 | E49: 1325 | F49: 95 | G49: 13 | H49: 0 | I49: 0 | J49: 0 | K49: 0 | L49: 0 | M49: 7776 | O49: 198218 | P49: 1982 | Q49: 18 | R49: 6343 | S49: 1325 | T49: 108 | U49: 0 | V49: 7776
A50: 198219 | B50: 1982 | C50: 19 | D50: 12535 | E50: 3318 | F50: 270 | G50: 20 | H50: 1 | I50: 1 | J50: 0 | K50: 0 | L50: 0 | M50: 16145 | O50: 198219 | P50: 1982 | Q50: 19 | R50: 12535 | S50: 3318 | T50: 292 | U50: 0 | V50: 16145
A51: 198220 | B51: 1982 | C51: 20 | D51: 21024 | E51: 7432 | F51: 868 | G51: 78 | H51: 10 | I51: 1 | J51: 0 | K51: 0 | L51: 0 | M51: 29413 | O51: 198220 | P51: 1982 | Q51: 20 | R51: 21024 | S51: 7432 | T51: 957 | U51: 0 | V51: 29413
A52: 198221 | B52: 1982 | C52: 21 | D52: 36120 | E52: 15322 | F52: 2254 | G52: 183 | H52: 26 | I52: 5 | J52: 0 | K52: 0 | L52: 0 | M52: 53910 | O52: 198221 | P52: 1982 | Q52: 21 | R52: 36120 | S52: 15322 | T52: 2468 | U52: 0 | V52: 53910
A53: 198222 | B53: 1982 | C53: 22 | D53: 45751 | E53: 23109 | F53: 4334 | G53: 502 | H53: 62 | I53: 4 | J53: 0 | K53: 0 | L53: 1 | M53: 73763 | O53: 198222 | P53: 1982 | Q53: 22 | R53: 45751 | S53: 23109 | T53: 4902 | U53: 1 | V53: 73763
A54: 198223 | B54: 1982 | C54: 23 | D54: 49414 | E54: 28616 | F54: 6039 | G54: 801 | H54: 84 | I54: 8 | J54: 0 | K54: 0 | L54: 0 | M54: 84962 | O54: 198223 | P54: 1982 | Q54: 23 | R54: 49414 | S54: 28616 | T54: 6932 | U54: 0 | V54: 84962
A55: 198224 | B55: 1982 | C55: 24 | D55: 48440 | E55: 34978 | F55: 8517 | G55: 1277 | H55: 135 | I55: 16 | J55: 0 | K55: 0 | L55: 0 | M55: 93363 | O55: 198224 | P55: 1982 | Q55: 24 | R55: 48440 | S55: 34978 | T55: 9945 | U55: 0 | V55: 93363
A56: 198225 | B56: 1982 | C56: 25 | D56: 42071 | E56: 39840 | F56: 11195 | G56: 1968 | H56: 258 | I56: 26 | J56: 2 | K56: 0 | L56: 0 | M56: 95360 | O56: 198225 | P56: 1982 | Q56: 25 | R56: 42071 | S56: 39840 | T56: 13449 | U56: 0 | V56: 95360
A57: 198226 | B57: 1982 | C57: 26 | D57: 31635 | E57: 40435 | F57: 14194 | G57: 2738 | H57: 358 | I57: 48 | J57: 10 | K57: 3 | L57: 1 | M57: 89422 | O57: 198226 | P57: 1982 | Q57: 26 | R57: 31635 | S57: 40435 | T57: 17351 | U57: 1 | V57: 89422
A58: 198227 | B58: 1982 | C58: 27 | D58: 22113 | E58: 37147 | F58: 16508 | G58: 3780 | H58: 668 | I58: 84 | J58: 10 | K58: 0 | L58: 0 | M58: 80310 | O58: 198227 | P58: 1982 | Q58: 27 | R58: 22113 | S58: 37147 | T58: 21050 | U58: 0 | V58: 80310
A59: 198228 | B59: 1982 | C59: 28 | D59: 11085 | E59: 23463 | F59: 14167 | G59: 3894 | H59: 822 | I59: 136 | J59: 16 | K59: 5 | L59: 0 | M59: 53588 | O59: 198228 | P59: 1982 | Q59: 28 | R59: 11085 | S59: 23463 | T59: 19040 | U59: 0 | V59: 53588
A60: 198229 | B60: 1982 | C60: 29 | D60: 6892 | E60: 16465 | F60: 12944 | G60: 4360 | H60: 1087 | I60: 196 | J60: 41 | K60: 7 | L60: 0 | M60: 41992 | O60: 198229 | P60: 1982 | Q60: 29 | R60: 6892 | S60: 16465 | T60: 18635 | U60: 0 | V60: 41992
A61: 198230 | B61: 1982 | C61: 30 | D61: 4404 | E61: 10167 | F61: 10592 | G61: 4622 | H61: 1302 | I61: 300 | J61: 51 | K61: 11 | L61: 0 | M61: 31449 | O61: 198230 | P61: 1982 | Q61: 30 | R61: 4404 | S61: 10167 | T61: 16878 | U61: 0 | V61: 31449
A62: 198231 | B62: 1982 | C62: 31 | D62: 2688 | E62: 5657 | F62: 6931 | G62: 3788 | H62: 1325 | I62: 332 | J62: 76 | K62: 23 | L62: 0 | M62: 20820 | O62: 198231 | P62: 1982 | Q62: 31 | R62: 2688 | S62: 5657 | T62: 12475 | U62: 0 | V62: 20820
A63: 198232 | B63: 1982 | C63: 32 | D63: 2135 | E63: 4057 | F63: 5456 | G63: 3421 | H63: 1481 | I63: 474 | J63: 113 | K63: 25 | L63: 0 | M63: 17162 | O63: 198232 | P63: 1982 | Q63: 32 | R63: 2135 | S63: 4057 | T63: 10970 | U63: 0 | V63: 17162
A64: 198233 | B64: 1982 | C64: 33 | D64: 1490 | E64: 2634 | F64: 3545 | G64: 2679 | H64: 1370 | I64: 509 | J64: 152 | K64: 25 | L64: 0 | M64: 12404 | O64: 198233 | P64: 1982 | Q64: 33 | R64: 1490 | S64: 2634 | T64: 8280 | U64: 0 | V64: 12404
A65: 198234 | B65: 1982 | C65: 34 | D65: 1218 | E65: 1778 | F65: 2525 | G65: 2111 | H65: 1423 | I65: 587 | J65: 192 | K65: 39 | L65: 0 | M65: 9873 | O65: 198234 | P65: 1982 | Q65: 34 | R65: 1218 | S65: 1778 | T65: 6877 | U65: 0 | V65: 9873
A66: 198235 | B66: 1982 | C66: 35 | D66: 941 | E66: 1326 | F66: 1765 | G66: 1529 | H66: 1184 | I66: 543 | J66: 194 | K66: 75 | L66: 0 | M66: 7557 | O66: 198235 | P66: 1982 | Q66: 35 | R66: 941 | S66: 1326 | T66: 5290 | U66: 0 | V66: 7557
A67: 198236 | B67: 1982 | C67: 36 | D67: 587 | E67: 768 | F67: 951 | G67: 938 | H67: 715 | I67: 462 | J67: 175 | K67: 80 | L67: 0 | M67: 4676 | O67: 198236 | P67: 1982 | Q67: 36 | R67: 587 | S67: 768 | T67: 3321 | U67: 0 | V67: 4676
A68: 198237 | B68: 1982 | C68: 37 | D68: 430 | E68: 565 | F68: 718 | G68: 739 | H68: 643 | I68: 419 | J68: 228 | K68: 104 | L68: 0 | M68: 3846 | O68: 198237 | P68: 1982 | Q68: 37 | R68: 430 | S68: 565 | T68: 2851 | U68: 0 | V68: 3846
A69: 198238 | B69: 1982 | C69: 38 | D69: 367 | E69: 419 | F69: 480 | G69: 531 | H69: 484 | I69: 392 | J69: 237 | K69: 131 | L69: 0 | M69: 3041 | O69: 198238 | P69: 1982 | Q69: 38 | R69: 367 | S69: 419 | T69: 2255 | U69: 0 | V69: 3041
A70: =B70&C70 -> 198239 | B70: 1982 | C70: 39 | D70: 304 | E70: 342 | F70: 359 | G70: 442 | H70: 427 | I70: 348 | J70: 290 | K70: 179 | L70: 0 | M70: 2691 | O70: =P70&Q70 -> 198239 | P70: 1982 | Q70: 39 | R70: 304 | S70: 342 | T70: =SUM(F70:K70) -> 2045 | U70: 0 | V70: 2691
A71: 198240 | B71: 1982 | C71: 40 | D71: 233 | E71: 250 | F71: 273 | G71: 305 | H71: 343 | I71: 277 | J71: 209 | K71: 172 | L71: 0 | M71: 2062 | O71: 198240 | P71: 1982 | Q71: 40 | R71: 233 | S71: 250 | T71: 1579 | U71: 0 | V71: 2062
A72: 198241 | B72: 1982 | C72: 41 | D72: 156 | E72: 177 | F72: 165 | G72: 208 | H72: 231 | I72: 202 | J72: 155 | K72: 149 | L72: 0 | M72: 1443 | O72: 198241 | P72: 1982 | Q72: 41 | R72: 156 | S72: 177 | T72: 1110 | U72: 0 | V72: 1443
A73: 198242 | B73: 1982 | C73: 42 | D73: 132 | E73: 101 | F73: 96 | G73: 147 | H73: 154 | I73: 166 | J73: 126 | K73: 142 | L73: 0 | M73: 1064 | O73: 198242 | P73: 1982 | Q73: 42 | R73: 132 | S73: 101 | T73: 831 | U73: 0 | V73: 1064
A74: 198243 | B74: 1982 | C74: 43 | D74: 74 | E74: 73 | F74: 72 | G74: 96 | H74: 116 | I74: 119 | J74: 93 | K74: 109 | L74: 0 | M74: 752 | O74: 198243 | P74: 1982 | Q74: 43 | R74: 74 | S74: 73 | T74: 605 | U74: 0 | V74: 752
A75: 198244 | B75: 1982 | C75: 44 | D75: 52 | E75: 51 | F75: 56 | G75: 59 | H75: 76 | I75: 61 | J75: 75 | K75: 91 | L75: 0 | M75: 521 | O75: 198244 | P75: 1982 | Q75: 44 | R75: 52 | S75: 51 | T75: 418 | U75: 0 | V75: 521
A76: 198245 | B76: 1982 | C76: 45 | D76: 37 | E76: 37 | F76: 47 | G76: 40 | H76: 58 | I76: 57 | J76: 48 | K76: 71 | L76: 0 | M76: 395 | O76: 198245 | P76: 1982 | Q76: 45 | R76: 37 | S76: 37 | T76: 321 | U76: 0 | V76: 395
A77: 198246 | B77: 1982 | C77: 46 | D77: 33 | E77: 29 | F77: 29 | G77: 40 | H77: 43 | I77: 42 | J77: 42 | K77: 55 | L77: 0 | M77: 313 | O77: 198246 | P77: 1982 | Q77: 46 | R77: 33 | S77: 29 | T77: 251 | U77: 0 | V77: 313
A78: 198247 | B78: 1982 | C78: 47 | D78: 21 | E78: 23 | F78: 25 | G78: 27 | H78: 36 | I78: 26 | J78: 26 | K78: 38 | L78: 0 | M78: 222 | O78: 198247 | P78: 1982 | Q78: 47 | R78: 21 | S78: 23 | T78: 178 | U78: 0 | V78: 222
A79: 198248 | B79: 1982 | C79: 48 | D79: 18 | E79: 14 | F79: 24 | G79: 18 | H79: 27 | I79: 19 | J79: 13 | K79: 23 | L79: 0 | M79: 156 | O79: 198248 | P79: 1982 | Q79: 48 | R79: 18 | S79: 14 | T79: 124 | U79: 0 | V79: 156
A80: 198249 | B80: 1982 | C80: 49 | D80: 16 | E80: 16 | F80: 13 | G80: 15 | H80: 20 | I80: 16 | J80: 13 | K80: 13 | L80: 0 | M80: 122 | O80: 198249 | P80: 1982 | Q80: 49 | R80: 16 | S80: 16 | T80: 90 | U80: 0 | V80: 122
A81: 198250+ | B81: 1982 | C81: 50+ | D81: 26 | E81: 30 | F81: 37 | G81: 38 | H81: 57 | I81: 55 | J81: 39 | K81: 82 | L81: 0 | M81: 364 | O81: 198250+ | P81: 1982 | Q81: 50+ | R81: 26 | S81: 30 | T81: 308 | U81: 0 | V81: 364
A82: 1982Missing | B82: 1982 | C82: Missing | D82: 297 | E82: 66 | F82: 13 | G82: 6 | H82: 4 | I82: 3 | J82: 3 | K82: 2 | L82: 1 | M82: 395 | O82: 1982Missing | P82: 1982 | Q82: Missing | R82: 297 | S82: 66 | T82: 31 | U82: 1 | V82: 395
A83: 1983Total | B83: 1983 | C83: Total | D83: 344208 | E83: 294027 | F83: 86146 | G83: 28125 | H83: 10021 | I83: 3962 | J83: 1587 | K83: 1073 | L83: 6 | M83: 769155 | O83: 1983Total | P83: 1983 | Q83: Total | R83: 344208 | S83: 294027 | T83: 130914 | U83: 6 | V83: 769155
A84: 1983<15 | B84: 1983 | C84: <15 | D84: 1 | E84: 0 | F84: 0 | G84: 0 | H84: 0 | I84: 0 | J84: 0 | K84: 0 | L84: 0 | M84: 1 | O84: 1983<15 | P84: 1983 | Q84: <15 | R84: 1 | S84: 0 | T84: 0 | U84: 0 | V84: 1
A85: 198315 | B85: 1983 | C85: 15 | D85: 420 | E85: 72 | F85: 6 | G85: 0 | H85: 0 | I85: 0 | J85: 0 | K85: 0 | L85: 0 | M85: 498 | O85: 198315 | P85: 1983 | Q85: 15 | R85: 420 | S85: 72 | T85: 6 | U85: 0 | V85: 498
A86: 198316 | B86: 1983 | C86: 16 | D86: 1337 | E86: 191 | F86: 12 | G86: 1 | H86: 0 | I86: 0 | J86: 0 | K86: 0 | L86: 0 | M86: 1541 | O86: 198316 | P86: 1983 | Q86: 16 | R86: 1337 | S86: 191 | T86: 13 | U86: 0 | V86: 1541
A87: 198317 | B87: 1983 | C87: 17 | D87: 3215 | E87: 561 | F87: 40 | G87: 1 | H87: 0 | I87: 0 | J87: 0 | K87: 0 | L87: 0 | M87: 3817 | O87: 198317 | P87: 1983 | Q87: 17 | R87: 3215 | S87: 561 | T87: 41 | U87: 0 | V87: 3817
A88: 198318 | B88: 1983 | C88: 18 | D88: 6495 | E88: 1468 | F88: 93 | G88: 9 | H88: 0 | I88: 0 | J88: 0 | K88: 0 | L88: 0 | M88: 8065 | O88: 198318 | P88: 1983 | Q88: 18 | R88: 6495 | S88: 1468 | T88: 102 | U88: 0 | V88: 8065
A89: 198319 | B89: 1983 | C89: 19 | D89: 9849 | E89: 2747 | F89: 178 | G89: 14 | H89: 1 | I89: 0 | J89: 0 | K89: 0 | L89: 0 | M89: 12789 | O89: 198319 | P89: 1983 | Q89: 19 | R89: 9849 | S89: 2747 | T89: 193 | U89: 0 | V89: 12789
A90: 198320 | B90: 1983 | C90: 20 | D90: 17096 | E90: 5965 | F90: 477 | G90: 32 | H90: 3 | I90: 2 | J90: 0 | K90: 0 | L90: 1 | M90: 23576 | O90: 198320 | P90: 1983 | Q90: 20 | R90: 17096 | S90: 5965 | T90: 514 | U90: 1 | V90: 23576
A91: 198321 | B91: 1983 | C91: 21 | D91: 27294 | E91: 11253 | F91: 1250 | G91: 101 | H91: 8 | I91: 1 | J91: 0 | K91: 0 | L91: 0 | M91: 39907 | O91: 198321 | P91: 1983 | Q91: 21 | R91: 27294 | S91: 11253 | T91: 1360 | U91: 0 | V91: 39907
A92: 198322 | B92: 1983 | C92: 22 | D92: 44700 | E92: 21495 | F92: 2936 | G92: 321 | H92: 17 | I92: 3 | J92: 0 | K92: 0 | L92: 0 | M92: 69472 | O92: 198322 | P92: 1983 | Q92: 22 | R92: 44700 | S92: 21495 | T92: 3277 | U92: 0 | V92: 69472
A93: 198323 | B93: 1983 | C93: 23 | D93: 52378 | E93: 29801 | F93: 4739 | G93: 630 | H93: 61 | I93: 13 | J93: 0 | K93: 0 | L93: 2 | M93: 87624 | O93: 198323 | P93: 1983 | Q93: 23 | R93: 52378 | S93: 29801 | T93: 5443 | U93: 2 | V93: 87624
A94: 198324 | B94: 1983 | C94: 24 | D94: 49035 | E94: 34843 | F94: 6115 | G94: 946 | H94: 107 | I94: 14 | J94: 2 | K94: 0 | L94: 0 | M94: 91062 | O94: 198324 | P94: 1983 | Q94: 24 | R94: 49035 | S94: 34843 | T94: 7184 | U94: 0 | V94: 91062
A95: 198325 | B95: 1983 | C95: 25 | D95: 42954 | E95: 39438 | F95: 7729 | G95: 1361 | H95: 178 | I95: 25 | J95: 4 | K95: 1 | L95: 1 | M95: 91691 | O95: 198325 | P95: 1983 | Q95: 25 | R95: 42954 | S95: 39438 | T95: 9298 | U95: 1 | V95: 91691
A96: 198326 | B96: 1983 | C96: 26 | D96: 32585 | E96: 39151 | F96: 9428 | G96: 1930 | H96: 284 | I96: 29 | J96: 2 | K96: 3 | L96: 1 | M96: 83413 | O96: 198326 | P96: 1983 | Q96: 26 | R96: 32585 | S96: 39151 | T96: 11676 | U96: 1 | V96: 83413
A97: 198327 | B97: 1983 | C97: 27 | D97: 20850 | E97: 34422 | F97: 10644 | G97: 2411 | H97: 432 | I97: 58 | J97: 10 | K97: 3 | L97: 0 | M97: 68830 | O97: 198327 | P97: 1983 | Q97: 27 | R97: 20850 | S97: 34422 | T97: 13558 | U97: 0 | V97: 68830
A98: 198328 | B98: 1983 | C98: 28 | D98: 13805 | E98: 28535 | F98: 11127 | G98: 3074 | H98: 602 | I98: 104 | J98: 11 | K98: 2 | L98: 0 | M98: 57260 | O98: 198328 | P98: 1983 | Q98: 28 | R98: 13805 | S98: 28535 | T98: 14920 | U98: 0 | V98: 57260
A99: 198329 | B99: 1983 | C99: 29 | D99: 6882 | E99: 16070 | F99: 8293 | G99: 2822 | H99: 670 | I99: 125 | J99: 19 | K99: 4 | L99: 0 | M99: 34885 | O99: 198329 | P99: 1983 | Q99: 29 | R99: 6882 | S99: 16070 | T99: 11933 | U99: 0 | V99: 34885
A100: 198330 | B100: 1983 | C100: 30 | D100: 4446 | E100: 10301 | F100: 6847 | G100: 2936 | H100: 910 | I100: 172 | J100: 31 | K100: 8 | L100: 0 | M100: 25651 | O100: 198330 | P100: 1983 | Q100: 30 | R100: 4446 | S100: 10301 | T100: 10904 | U100: 0 | V100: 25651
A101: 198331 | B101: 1983 | C101: 31 | D101: 2947 | E101: 6220 | F101: 5068 | G101: 2650 | H101: 954 | I101: 248 | J101: 54 | K101: 9 | L101: 0 | M101: 18150 | O101: 198331 | P101: 1983 | Q101: 31 | R101: 2947 | S101: 6220 | T101: 8983 | U101: 0 | V101: 18150
A102: 198332 | B102: 1983 | C102: 32 | D102: 1859 | E102: 3497 | F102: 3256 | G102: 2160 | H102: 974 | I102: 297 | J102: 59 | K102: 13 | L102: 0 | M102: 12115 | O102: 198332 | P102: 1983 | Q102: 32 | R102: 1859 | S102: 3497 | T102: 6759 | U102: 0 | V102: 12115
A103: 198333 | B103: 1983 | C103: 33 | D103: 1420 | E103: 2519 | F103: 2480 | G103: 1805 | H103: 966 | I103: 326 | J103: 83 | K103: 23 | L103: 0 | M103: 9622 | O103: 198333 | P103: 1983 | Q103: 33 | R103: 1420 | S103: 2519 | T103: 5683 | U103: 0 | V103: 9622
A104: 198334 | B104: 1983 | C104: 34 | D104: 1100 | E104: 1603 | F104: 1670 | G104: 1337 | H104: 821 | I104: 352 | J104: 133 | K104: 31 | L104: 0 | M104: 7047 | O104: 198334 | P104: 1983 | Q104: 34 | R104: 1100 | S104: 1603 | T104: 4344 | U104: 0 | V104: 7047
A105: 198335 | B105: 1983 | C105: 35 | D105: 877 | E105: 1213 | F105: 1214 | G105: 1037 | H105: 731 | I105: 371 | J105: 122 | K105: 44 | L105: 0 | M105: 5609 | O105: 198335 | P105: 1983 | Q105: 35 | R105: 877 | S105: 1213 | T105: 3519 | U105: 0 | V105: 5609
A106: 198336 | B106: 1983 | C106: 36 | D106: 676 | E106: 862 | F106: 810 | G106: 753 | H106: 585 | I106: 373 | J106: 154 | K106: 68 | L106: 0 | M106: 4281 | O106: 198336 | P106: 1983 | Q106: 36 | R106: 676 | S106: 862 | T106: 2743 | U106: 0 | V106: 4281
A107: 198337 | B107: 1983 | C107: 37 | D107: 412 | E107: 430 | F107: 462 | G107: 452 | H107: 351 | I107: 243 | J107: 116 | K107: 62 | L107: 0 | M107: 2528 | O107: 198337 | P107: 1983 | Q107: 37 | R107: 412 | S107: 430 | T107: 1686 | U107: 0 | V107: 2528
A108: 198338 | B108: 1983 | C108: 38 | D108: 304 | E108: 356 | F108: 353 | G108: 354 | H108: 361 | I108: 246 | J108: 120 | K108: 109 | L108: 0 | M108: 2203 | O108: 198338 | P108: 1983 | Q108: 38 | R108: 304 | S108: 356 | T108: 1543 | U108: 0 | V108: 2203
A109: 198339 | B109: 1983 | C109: 39 | D109: 240 | E109: 255 | F109: 277 | G109: 243 | H109: 235 | I109: 210 | J109: 114 | K109: 96 | L109: 1 | M109: 1671 | O109: 198339 | P109: 1983 | Q109: 39 | R109: 240 | S109: 255 | T109: 1175 | U109: 1 | V109: 1671
A110: 198340 | B110: 1983 | C110: 40 | D110: 230 | E110: 212 | F110: 181 | G110: 216 | H110: 227 | I110: 198 | J110: 139 | K110: 128 | L110: 0 | M110: 1531 | O110: 198340 | P110: 1983 | Q110: 40 | R110: 230 | S110: 212 | T110: 1089 | U110: 0 | V110: 1531
A111: 198341 | B111: 1983 | C111: 41 | D111: 147 | E111: 157 | F111: 145 | G111: 146 | H111: 144 | I111: 164 | J111: 115 | K111: 118 | L111: 0 | M111: 1136 | O111: 198341 | P111: 1983 | Q111: 41 | R111: 147 | S111: 157 | T111: 832 | U111: 0 | V111: 1136
A112: 198342 | B112: 1983 | C112: 42 | D112: 112 | E112: 112 | F112: 84 | G112: 115 | H112: 116 | I112: 105 | J112: 79 | K112: 74 | L112: 0 | M112: 797 | O112: 198342 | P112: 1983 | Q112: 42 | R112: 112 | S112: 112 | T112: 573 | U112: 0 | V112: 797
A113: 198343 | B113: 1983 | C113: 43 | D113: 66 | E113: 59 | F113: 59 | G113: 76 | H113: 85 | I113: 75 | J113: 53 | K113: 84 | L113: 0 | M113: 557 | O113: 198343 | P113: 1983 | Q113: 43 | R113: 66 | S113: 59 | T113: 432 | U113: 0 | V113: 557
A114: 198344 | B114: 1983 | C114: 44 | D114: 53 | E114: 44 | F114: 43 | G114: 47 | H114: 46 | I114: 51 | J114: 47 | K114: 50 | L114: 0 | M114: 381 | O114: 198344 | P114: 1983 | Q114: 44 | R114: 53 | S114: 44 | T114: 284 | U114: 0 | V114: 381
A115: 198345 | B115: 1983 | C115: 45 | D115: 37 | E115: 24 | F115: 17 | G115: 34 | H115: 34 | I115: 34 | J115: 25 | K115: 36 | L115: 0 | M115: 241 | O115: 198345 | P115: 1983 | Q115: 45 | R115: 37 | S115: 24 | T115: 180 | U115: 0 | V115: 241
A116: 198346 | B116: 1983 | C116: 46 | D116: 27 | E116: 23 | F116: 20 | G116: 25 | H116: 30 | I116: 29 | J116: 19 | K116: 22 | L116: 0 | M116: 195 | O116: 198346 | P116: 1983 | Q116: 46 | R116: 27 | S116: 23 | T116: 145 | U116: 0 | V116: 195
A117: 198347 | B117: 1983 | C117: 47 | D117: 15 | E117: 27 | F117: 21 | G117: 25 | H117: 20 | I117: 28 | J117: 16 | K117: 20 | L117: 0 | M117: 172 | O117: 198347 | P117: 1983 | Q117: 47 | R117: 15 | S117: 27 | T117: 130 | U117: 0 | V117: 172
A118: 198348 | B118: 1983 | C118: 48 | D118: 8 | E118: 11 | F118: 17 | G118: 15 | H118: 19 | I118: 17 | J118: 12 | K118: 13 | L118: 0 | M118: 112 | O118: 198348 | P118: 1983 | Q118: 48 | R118: 8 | S118: 11 | T118: 93 | U118: 0 | V118: 112
A119: 198349 | B119: 1983 | C119: 49 | D119: 16 | E119: 7 | F119: 10 | G119: 11 | H119: 12 | I119: 9 | J119: 17 | K119: 11 | L119: 0 | M119: 93 | O119: 198349 | P119: 1983 | Q119: 49 | R119: 16 | S119: 7 | T119: 70 | U119: 0 | V119: 93
A120: 198350+ | B120: 1983 | C120: 50+ | D120: 34 | E120: 24 | F120: 27 | G120: 30 | H120: 33 | I120: 36 | J120: 30 | K120: 41 | L120: 0 | M120: 255 | O120: 198350+ | P120: 1983 | Q120: 50+ | R120: 34 | S120: 24 | T120: 197 | U120: 0 | V120: 255
A121: 1983Missing | B121: 1983 | C121: Missing | D121: 286 | E121: 59 | F121: 18 | G121: 5 | H121: 4 | I121: 4 | J121: 1 | K121: 0 | L121: 0 | M121: 377 | O121: 1983Missing | P121: 1983 | Q121: Missing | R121: 286 | S121: 59 | T121: 32 | U121: 0 | V121: 377
A122: 1984Total | B122: 1984 | C122: Total | D122: 333587 | E122: 254940 | F122: 57479 | G122: 18163 | H122: 6362 | I122: 2535 | J122: 1043 | K122: 679 | L122: 5 | M122: 674793 | O122: 1984Total | P122: 1984 | Q122: Total | R122: 333587 | S122: 254940 | T122: 86261 | U122: 5 | V122: 674793
A123: 1984<15 | B123: 1984 | C123: <15 | D123: 3 | E123: 1 | F123: 0 | G123: 0 | H123: 0 | I123: 0 | J123: 0 | K123: 0 | L123: 0 | M123: 4 | O123: 1984<15 | P123: 1984 | Q123: <15 | R123: 3 | S123: 1 | T123: 0 | U123: 0 | V123: 4
A124: 198415 | B124: 1984 | C124: 15 | D124: 309 | E124: 58 | F124: 6 | G124: 0 | H124: 0 | I124: 0 | J124: 0 | K124: 0 | L124: 0 | M124: 373 | O124: 198415 | P124: 1984 | Q124: 15 | R124: 309 | S124: 58 | T124: 6 | U124: 0 | V124: 373
A125: 198416 | B125: 1984 | C125: 16 | D125: 1070 | E125: 153 | F125: 9 | G125: 2 | H125: 0 | I125: 0 | J125: 0 | K125: 0 | L125: 0 | M125: 1234 | O125: 198416 | P125: 1984 | Q125: 16 | R125: 1070 | S125: 153 | T125: 11 | U125: 0 | V125: 1234
A126: 198417 | B126: 1984 | C126: 17 | D126: 2661 | E126: 456 | F126: 30 | G126: 3 | H126: 0 | I126: 0 | J126: 0 | K126: 0 | L126: 0 | M126: 3150 | O126: 198417 | P126: 1984 | Q126: 17 | R126: 2661 | S126: 456 | T126: 33 | U126: 0 | V126: 3150
A127: 198418 | B127: 1984 | C127: 18 | D127: 5479 | E127: 1238 | F127: 75 | G127: 10 | H127: 1 | I127: 0 | J127: 0 | K127: 0 | L127: 0 | M127: 6803 | O127: 198418 | P127: 1984 | Q127: 18 | R127: 5479 | S127: 1238 | T127: 86 | U127: 0 | V127: 6803
A128: 198419 | B128: 1984 | C128: 19 | D128: 9936 | E128: 2673 | F128: 195 | G128: 14 | H128: 0 | I128: 0 | J128: 0 | K128: 0 | L128: 0 | M128: 12818 | O128: 198419 | P128: 1984 | Q128: 19 | R128: 9936 | S128: 2673 | T128: 209 | U128: 0 | V128: 12818
A129: 198420 | B129: 1984 | C129: 20 | D129: 13756 | E129: 4170 | F129: 335 | G129: 20 | H129: 3 | I129: 0 | J129: 1 | K129: 0 | L129: 0 | M129: 18285 | O129: 198420 | P129: 1984 | Q129: 20 | R129: 13756 | S129: 4170 | T129: 359 | U129: 0 | V129: 18285
A130: 198421 | B130: 1984 | C130: 21 | D130: 22692 | E130: 8281 | F130: 758 | G130: 65 | H130: 9 | I130: 1 | J130: 0 | K130: 0 | L130: 0 | M130: 31806 | O130: 198421 | P130: 1984 | Q130: 21 | R130: 22692 | S130: 8281 | T130: 833 | U130: 0 | V130: 31806
A131: 198422 | B131: 1984 | C131: 22 | D131: 34461 | E131: 14527 | F131: 1686 | G131: 143 | H131: 15 | I131: 2 | J131: 0 | K131: 0 | L131: 0 | M131: 50834 | O131: 198422 | P131: 1984 | Q131: 22 | R131: 34461 | S131: 14527 | T131: 1846 | U131: 0 | V131: 50834
A132: 198423 | B132: 1984 | C132: 23 | D132: 51979 | E132: 25488 | F132: 3157 | G132: 354 | H132: 34 | I132: 5 | J132: 0 | K132: 0 | L132: 1 | M132: 81018 | O132: 198423 | P132: 1984 | Q132: 23 | R132: 51979 | S132: 25488 | T132: 3550 | U132: 1 | V132: 81018
A133: 198424 | B133: 1984 | C133: 24 | D133: 53311 | E133: 32728 | F133: 4511 | G133: 601 | H133: 77 | I133: 11 | J133: 1 | K133: 0 | L133: 1 | M133: 91241 | O133: 198424 | P133: 1984 | Q133: 24 | R133: 53311 | S133: 32728 | T133: 5201 | U133: 1 | V133: 91241
A134: =B134&C134 -> 198425 | B134: 1984 | C134: 25 | D134: 43545 | E134: 34757 | F134: 5240 | G134: 899 | H134: 128 | I134: 27 | J134: 3 | K134: 1 | L134: 0 | M134: 84600 | O134: =P134&Q134 -> 198425 | P134: 1984 | Q134: 25 | R134: 43545 | S134: 34757 | T134: =SUM(F134:K134) -> 6298 | U134: 0 | V134: 84600
A135: 198426 | B135: 1984 | C135: 26 | D135: 33667 | E135: 34558 | F135: 6034 | G135: 1151 | H135: 167 | I135: 17 | J135: 7 | K135: 0 | L135: 0 | M135: 75601 | O135: 198426 | P135: 1984 | Q135: 26 | R135: 33667 | S135: 34558 | T135: 7376 | U135: 0 | V135: 75601
A136: 198427 | B136: 1984 | C136: 27 | D136: 22847 | E136: 30255 | F136: 6745 | G136: 1473 | H136: 235 | I136: 43 | J136: 4 | K136: 0 | L136: 0 | M136: 61602 | O136: 198427 | P136: 1984 | Q136: 27 | R136: 22847 | S136: 30255 | T136: 8500 | U136: 0 | V136: 61602
A137: 198428 | B137: 1984 | C137: 28 | D137: 13877 | E137: 23622 | F137: 6772 | G137: 1866 | H137: 386 | I137: 51 | J137: 8 | K137: 4 | L137: 1 | M137: 46587 | O137: 198428 | P137: 1984 | Q137: 28 | R137: 13877 | S137: 23622 | T137: 9087 | U137: 1 | V137: 46587
A138: 198429 | B138: 1984 | C138: 29 | D138: 8651 | E138: 17210 | F138: 6361 | G138: 2120 | H138: 537 | I138: 103 | J138: 13 | K138: 2 | L138: 0 | M138: 34997 | O138: 198429 | P138: 1984 | Q138: 29 | R138: 8651 | S138: 17210 | T138: 9136 | U138: 0 | V138: 34997
A139: 198430 | B139: 1984 | C139: 30 | D139: 4609 | E139: 9260 | F139: 4433 | G139: 1753 | H139: 491 | I139: 110 | J139: 21 | K139: 9 | L139: 1 | M139: 20687 | O139: 198430 | P139: 1984 | Q139: 30 | R139: 4609 | S139: 9260 | T139: 6817 | U139: 1 | V139: 20687
A140: 198431 | B140: 1984 | C140: 31 | D140: 2998 | E140: 5660 | F140: 3402 | G140: 1638 | H140: 617 | I140: 159 | J140: 25 | K140: 9 | L140: 0 | M140: 14508 | O140: 198431 | P140: 1984 | Q140: 31 | R140: 2998 | S140: 5660 | T140: 5850 | U140: 0 | V140: 14508
A141: 198432 | B141: 1984 | C141: 32 | D141: 2003 | E141: 3422 | F141: 2450 | G141: 1490 | H141: 661 | I141: 218 | J141: 44 | K141: 13 | L141: 0 | M141: 10301 | O141: 198432 | P141: 1984 | Q141: 32 | R141: 2003 | S141: 3422 | T141: 4876 | U141: 0 | V141: 10301
A142: 198433 | B142: 1984 | C142: 33 | D142: 1366 | E142: 1930 | F142: 1508 | G142: 1142 | H142: 542 | I142: 218 | J142: 81 | K142: 14 | L142: 0 | M142: 6801 | O142: 198433 | P142: 1984 | Q142: 33 | R142: 1366 | S142: 1930 | T142: 3505 | U142: 0 | V142: 6801
A143: 198434 | B143: 1984 | C143: 34 | D143: 1101 | E143: 1398 | F143: 1160 | G143: 864 | H143: 499 | I143: 211 | J143: 73 | K143: 21 | L143: 0 | M143: 5327 | O143: 198434 | P143: 1984 | Q143: 34 | R143: 1101 | S143: 1398 | T143: 2828 | U143: 0 | V143: 5327
A144: 198435 | B144: 1984 | C144: 35 | D144: 788 | E144: 889 | F144: 760 | G144: 664 | H144: 394 | I144: 214 | J144: 78 | K144: 27 | L144: 0 | M144: 3814 | O144: 198435 | P144: 1984 | Q144: 35 | R144: 788 | S144: 889 | T144: 2137 | U144: 0 | V144: 3814
A145: 198436 | B145: 1984 | C145: 36 | D145: 650 | E145: 659 | F145: 559 | G145: 544 | H145: 385 | I145: 222 | J145: 110 | K145: 44 | L145: 0 | M145: 3173 | O145: 198436 | P145: 1984 | Q145: 36 | R145: 650 | S145: 659 | T145: 1864 | U145: 0 | V145: 3173
A146: 198437 | B146: 1984 | C146: 37 | D146: 457 | E146: 485 | F146: 409 | G146: 397 | H146: 301 | I146: 188 | J146: 84 | K146: 42 | L146: 0 | M146: 2363 | O146: 198437 | P146: 1984 | Q146: 37 | R146: 457 | S146: 485 | T146: 1421 | U146: 0 | V146: 2363
A147: 198438 | B147: 1984 | C147: 38 | D147: 267 | E147: 267 | F147: 241 | G147: 236 | H147: 184 | I147: 134 | J147: 72 | K147: 66 | L147: 0 | M147: 1467 | O147: 198438 | P147: 1984 | Q147: 38 | R147: 267 | S147: 267 | T147: 933 | U147: 0 | V147: 1467
A148: 198439 | B148: 1984 | C148: 39 | D148: 210 | E148: 204 | F148: 165 | G148: 187 | H148: 174 | I148: 142 | J148: 77 | K148: 51 | L148: 0 | M148: 1210 | O148: 198439 | P148: 1984 | Q148: 39 | R148: 210 | S148: 204 | T148: 796 | U148: 0 | V148: 1210
A149: 198440 | B149: 1984 | C149: 40 | D149: 180 | E149: 150 | F149: 122 | G149: 131 | H149: 122 | I149: 99 | J149: 69 | K149: 65 | L149: 0 | M149: 938 | O149: 198440 | P149: 1984 | Q149: 40 | R149: 180 | S149: 150 | T149: 608 | U149: 0 | V149: 938
A150: 198441 | B150: 1984 | C150: 41 | D150: 139 | E150: 114 | F150: 96 | G150: 92 | H150: 116 | I150: 105 | J150: 62 | K150: 71 | L150: 0 | M150: 795 | O150: 198441 | P150: 1984 | Q150: 41 | R150: 139 | S150: 114 | T150: 542 | U150: 0 | V150: 795
A151: 198442 | B151: 1984 | C151: 42 | D151: 86 | E151: 81 | F151: 72 | G151: 95 | H151: 78 | I151: 74 | J151: 63 | K151: 57 | L151: 0 | M151: 606 | O151: 198442 | P151: 1984 | Q151: 42 | R151: 86 | S151: 81 | T151: 439 | U151: 0 | V151: 606
A152: 198443 | B152: 1984 | C152: 43 | D152: 67 | E152: 55 | F152: 56 | G152: 57 | H152: 53 | I152: 41 | J152: 49 | K152: 39 | L152: 0 | M152: 417 | O152: 198443 | P152: 1984 | Q152: 43 | R152: 67 | S152: 55 | T152: 295 | U152: 0 | V152: 417
A153: 198444 | B153: 1984 | C153: 44 | D153: 40 | E153: 40 | F153: 35 | G153: 36 | H153: 29 | I153: 36 | J153: 16 | K153: 34 | L153: 0 | M153: 266 | O153: 198444 | P153: 1984 | Q153: 44 | R153: 40 | S153: 40 | T153: 186 | U153: 0 | V153: 266
A154: 198445 | B154: 1984 | C154: 45 | D154: 21 | E154: 19 | F154: 19 | G154: 31 | H154: 35 | I154: 26 | J154: 20 | K154: 33 | L154: 0 | M154: 204 | O154: 198445 | P154: 1984 | Q154: 45 | R154: 21 | S154: 19 | T154: 164 | U154: 0 | V154: 204
A155: 198446 | B155: 1984 | C155: 46 | D155: 26 | E155: 20 | F155: 21 | G155: 19 | H155: 22 | I155: 17 | J155: 12 | K155: 15 | L155: 0 | M155: 152 | O155: 198446 | P155: 1984 | Q155: 46 | R155: 26 | S155: 20 | T155: 106 | U155: 0 | V155: 152
A156: 198447 | B156: 1984 | C156: 47 | D156: 10 | E156: 14 | F156: 15 | G156: 9 | H156: 17 | I156: 15 | J156: 14 | K156: 12 | L156: 0 | M156: 106 | O156: 198447 | P156: 1984 | Q156: 47 | R156: 10 | S156: 14 | T156: 82 | U156: 0 | V156: 106
A157: 198448 | B157: 1984 | C157: 48 | D157: 11 | E157: 20 | F157: 11 | G157: 14 | H157: 15 | I157: 7 | J157: 8 | K157: 12 | L157: 0 | M157: 98 | O157: 198448 | P157: 1984 | Q157: 48 | R157: 11 | S157: 20 | T157: 67 | U157: 0 | V157: 98
A158: 198449 | B158: 1984 | C158: 49 | D158: 15 | E158: 8 | F158: 3 | G158: 10 | H158: 7 | I158: 9 | J158: 9 | K158: 5 | L158: 0 | M158: 66 | O158: 198449 | P158: 1984 | Q158: 49 | R158: 15 | S158: 8 | T158: 43 | U158: 0 | V158: 66
A159: 198450+ | B159: 1984 | C159: 50+ | D159: 26 | E159: 16 | F159: 21 | G159: 29 | H159: 25 | I159: 30 | J159: 18 | K159: 32 | L159: 0 | M159: 197 | O159: 198450+ | P159: 1984 | Q159: 50+ | R159: 26 | S159: 16 | T159: 155 | U159: 0 | V159: 197
A160: 1984Missing | B160: 1984 | C160: Missing | D160: 273 | E160: 54 | F160: 7 | G160: 4 | H160: 3 | I160: 0 | J160: 1 | K160: 1 | L160: 1 | M160: 344 | O160: 1984Missing | P160: 1984 | Q160: Missing | R160: 273 | S160: 54 | T160: 16 | U160: 1 | V160: 344
A161: 1985Total | B161: 1985 | C161: Total | D161: 337643 | E161: 246541 | F161: 49467 | G161: 13783 | H161: 4898 | I161: 1940 | J161: 770 | K161: 436 | L161: 11 | M161: 655489 | O161: 1985Total | P161: 1985 | Q161: Total | R161: 337643 | S161: 246541 | T161: 71294 | U161: 11 | V161: 655489
A162: 1985<15 | B162: 1985 | C162: <15 | D162: 3 | E162: 0 | F162: 0 | G162: 0 | H162: 0 | I162: 0 | J162: 0 | K162: 0 | L162: 0 | M162: 3 | O162: 1985<15 | P162: 1985 | Q162: <15 | R162: 3 | S162: 0 | T162: 0 | U162: 0 | V162: 3
A163: 198515 | B163: 1985 | C163: 15 | D163: 220 | E163: 30 | F163: 5 | G163: 0 | H163: 0 | I163: 0 | J163: 0 | K163: 0 | L163: 0 | M163: 255 | O163: 198515 | P163: 1985 | Q163: 15 | R163: 220 | S163: 30 | T163: 5 | U163: 0 | V163: 255
A164: 198516 | B164: 1985 | C164: 16 | D164: 910 | E164: 128 | F164: 10 | G164: 1 | H164: 0 | I164: 0 | J164: 0 | K164: 0 | L164: 0 | M164: 1049 | O164: 198516 | P164: 1985 | Q164: 16 | R164: 910 | S164: 128 | T164: 11 | U164: 0 | V164: 1049
A165: 198517 | B165: 1985 | C165: 17 | D165: 2325 | E165: 341 | F165: 22 | G165: 2 | H165: 1 | I165: 0 | J165: 0 | K165: 0 | L165: 0 | M165: 2691 | O165: 198517 | P165: 1985 | Q165: 17 | R165: 2325 | S165: 341 | T165: 25 | U165: 0 | V165: 2691
A166: 198518 | B166: 1985 | C166: 18 | D166: 4891 | E166: 955 | F166: 63 | G166: 7 | H166: 1 | I166: 0 | J166: 0 | K166: 0 | L166: 0 | M166: 5917 | O166: 198518 | P166: 1985 | Q166: 18 | R166: 4891 | S166: 955 | T166: 71 | U166: 0 | V166: 5917
A167: 198519 | B167: 1985 | C167: 19 | D167: 9138 | E167: 2137 | F167: 163 | G167: 8 | H167: 0 | I167: 0 | J167: 0 | K167: 0 | L167: 0 | M167: 11446 | O167: 198519 | P167: 1985 | Q167: 19 | R167: 9138 | S167: 2137 | T167: 171 | U167: 0 | V167: 11446
A168: 198520 | B168: 1985 | C168: 20 | D168: 15192 | E168: 4199 | F168: 306 | G168: 17 | H168: 1 | I168: 0 | J168: 1 | K168: 0 | L168: 0 | M168: 19716 | O168: 198520 | P168: 1985 | Q168: 20 | R168: 15192 | S168: 4199 | T168: 325 | U168: 0 | V168: 19716
A169: 198521 | B169: 1985 | C169: 21 | D169: 19750 | E169: 6233 | F169: 506 | G169: 30 | H169: 4 | I169: 1 | J169: 0 | K169: 0 | L169: 1 | M169: 26525 | O169: 198521 | P169: 1985 | Q169: 21 | R169: 19750 | S169: 6233 | T169: 541 | U169: 1 | V169: 26525
A170: 198522 | B170: 1985 | C170: 22 | D170: 31456 | E170: 11240 | F170: 1160 | G170: 88 | H170: 15 | I170: 1 | J170: 0 | K170: 0 | L170: 1 | M170: 43961 | O170: 198522 | P170: 1985 | Q170: 22 | R170: 31456 | S170: 11240 | T170: 1264 | U170: 1 | V170: 43961
A171: 198523 | B171: 1985 | C171: 23 | D171: 43881 | E171: 18701 | F171: 1954 | G171: 200 | H171: 17 | I171: 2 | J171: 0 | K171: 1 | L171: 0 | M171: 64756 | O171: 198523 | P171: 1985 | Q171: 23 | R171: 43881 | S171: 18701 | T171: 2174 | U171: 0 | V171: 64756
A172: 198524 | B172: 1985 | C172: 24 | D172: 55471 | E172: 30870 | F172: 3656 | G172: 431 | H172: 41 | I172: 8 | J172: 1 | K172: 0 | L172: 4 | M172: 90482 | O172: 198524 | P172: 1985 | Q172: 24 | R172: 55471 | S172: 30870 | T172: 4137 | U172: 4 | V172: 90482
A173: 198525 | B173: 1985 | C173: 25 | D173: 49994 | E173: 36891 | F173: 4736 | G173: 707 | H173: 92 | I173: 13 | J173: 3 | K173: 1 | L173: 3 | M173: 92440 | O173: 198525 | P173: 1985 | Q173: 25 | R173: 49994 | S173: 36891 | T173: 5552 | U173: 3 | V173: 92440
A174: 198526 | B174: 1985 | C174: 26 | D174: 37169 | E174: 35000 | F174: 5418 | G174: 873 | H174: 137 | I174: 27 | J174: 0 | K174: 1 | L174: 1 | M174: 78626 | O174: 198526 | P174: 1985 | Q174: 26 | R174: 37169 | S174: 35000 | T174: 6456 | U174: 1 | V174: 78626
A175: 198527 | B175: 1985 | C175: 27 | D175: 25247 | E175: 31213 | F175: 5847 | G175: 1051 | H175: 177 | I175: 27 | J175: 5 | K175: 0 | L175: 0 | M175: 63567 | O175: 198527 | P175: 1985 | Q175: 27 | R175: 25247 | S175: 31213 | T175: 7107 | U175: 0 | V175: 63567
A176: 198528 | B176: 1985 | C176: 28 | D176: 15813 | E176: 24375 | F176: 5813 | G176: 1302 | H176: 287 | I176: 63 | J176: 6 | K176: 2 | L176: 1 | M176: 47662 | O176: 198528 | P176: 1985 | Q176: 28 | R176: 15813 | S176: 24375 | T176: 7473 | U176: 1 | V176: 47662
A177: 198529 | B177: 1985 | C177: 29 | D177: 9049 | E177: 16872 | F177: 5290 | G177: 1481 | H177: 331 | I177: 67 | J177: 11 | K177: 1 | L177: 0 | M177: 33102 | O177: 198529 | P177: 1985 | Q177: 29 | R177: 9049 | S177: 16872 | T177: 7181 | U177: 0 | V177: 33102
A178: 198530 | B178: 1985 | C178: 30 | D178: 5977 | E178: 11542 | F178: 4670 | G178: 1497 | H178: 442 | I178: 113 | J178: 20 | K178: 1 | L178: 0 | M178: 24262 | O178: 198530 | P178: 1985 | Q178: 30 | R178: 5977 | S178: 11542 | T178: 6743 | U178: 0 | V178: 24262
A179: 198531 | B179: 1985 | C179: 31 | D179: 3225 | E179: 5774 | F179: 2908 | G179: 1332 | H179: 413 | I179: 121 | J179: 21 | K179: 7 | L179: 0 | M179: 13801 | O179: 198531 | P179: 1985 | Q179: 31 | R179: 3225 | S179: 5774 | T179: 4802 | U179: 0 | V179: 13801
A180: 198532 | B180: 1985 | C180: 32 | D180: 2175 | E180: 3607 | F180: 2171 | G180: 1093 | H180: 479 | I180: 162 | J180: 36 | K180: 10 | L180: 0 | M180: 9733 | O180: 198532 | P180: 1985 | Q180: 32 | R180: 2175 | S180: 3607 | T180: 3951 | U180: 0 | V180: 9733
A181: 198533 | B181: 1985 | C181: 33 | D181: 1554 | E181: 2207 | F181: 1551 | G181: 972 | H181: 442 | I181: 172 | J181: 42 | K181: 14 | L181: 0 | M181: 6954 | O181: 198533 | P181: 1985 | Q181: 33 | R181: 1554 | S181: 2207 | T181: 3193 | U181: 0 | V181: 6954
A182: 198534 | B182: 1985 | C182: 34 | D182: 980 | E182: 1311 | F182: 893 | G182: 615 | H182: 388 | I182: 169 | J182: 51 | K182: 8 | L182: 0 | M182: 4415 | O182: 198534 | P182: 1985 | Q182: 34 | R182: 980 | S182: 1311 | T182: 2124 | U182: 0 | V182: 4415
A183: 198535 | B183: 1985 | C183: 35 | D183: 790 | E183: 901 | F183: 717 | G183: 527 | H183: 316 | I183: 162 | J183: 65 | K183: 14 | L183: 0 | M183: 3492 | O183: 198535 | P183: 1985 | Q183: 35 | R183: 790 | S183: 901 | T183: 1801 | U183: 0 | V183: 3492
A184: 198536 | B184: 1985 | C184: 36 | D184: 580 | E184: 574 | F184: 479 | G184: 400 | H184: 327 | I184: 163 | J184: 62 | K184: 32 | L184: 0 | M184: 2617 | O184: 198536 | P184: 1985 | Q184: 36 | R184: 580 | S184: 574 | T184: 1463 | U184: 0 | V184: 2617
A185: 198537 | B185: 1985 | C185: 37 | D185: 419 | E185: 435 | F185: 343 | G185: 326 | H185: 225 | I185: 134 | J185: 66 | K185: 42 | L185: 0 | M185: 1990 | O185: 198537 | P185: 1985 | Q185: 37 | R185: 419 | S185: 435 | T185: 1136 | U185: 0 | V185: 1990
A186: 198538 | B186: 1985 | C186: 38 | D186: 364 | E186: 317 | F186: 242 | G186: 247 | H186: 207 | I186: 131 | J186: 72 | K186: 41 | L186: 0 | M186: 1621 | O186: 198538 | P186: 1985 | Q186: 38 | R186: 364 | S186: 317 | T186: 940 | U186: 0 | V186: 1621
A187: 198539 | B187: 1985 | C187: 39 | D187: 210 | E187: 172 | F187: 151 | G187: 132 | H187: 111 | I187: 85 | J187: 68 | K187: 19 | L187: 0 | M187: 948 | O187: 198539 | P187: 1985 | Q187: 39 | R187: 210 | S187: 172 | T187: 566 | U187: 0 | V187: 948
A188: 198540 | B188: 1985 | C188: 40 | D188: 160 | E188: 118 | F188: 119 | G188: 120 | H188: 104 | I188: 82 | J188: 52 | K188: 43 | L188: 0 | M188: 798 | O188: 198540 | P188: 1985 | Q188: 40 | R188: 160 | S188: 118 | T188: 520 | U188: 0 | V188: 798
A189: 198541 | B189: 1985 | C189: 41 | D189: 89 | E189: 92 | F189: 76 | G189: 82 | H189: 77 | I189: 59 | J189: 41 | K189: 32 | L189: 0 | M189: 548 | O189: 198541 | P189: 1985 | Q189: 41 | R189: 89 | S189: 92 | T189: 367 | U189: 0 | V189: 548
A190: 198542 | B190: 1985 | C190: 42 | D190: 86 | E190: 86 | F190: 53 | G190: 68 | H190: 71 | I190: 37 | J190: 31 | K190: 30 | L190: 0 | M190: 462 | O190: 198542 | P190: 1985 | Q190: 42 | R190: 86 | S190: 86 | T190: 290 | U190: 0 | V190: 462
A191: 198543 | B191: 1985 | C191: 43 | D191: 58 | E191: 37 | F191: 54 | G191: 52 | H191: 44 | I191: 37 | J191: 35 | K191: 40 | L191: 0 | M191: 357 | O191: 198543 | P191: 1985 | Q191: 43 | R191: 58 | S191: 37 | T191: 262 | U191: 0 | V191: 357
A192: 198544 | B192: 1985 | C192: 44 | D192: 41 | E192: 33 | F192: 14 | G192: 39 | H192: 44 | I192: 23 | J192: 24 | K192: 26 | L192: 0 | M192: 244 | O192: 198544 | P192: 1985 | Q192: 44 | R192: 41 | S192: 33 | T192: 170 | U192: 0 | V192: 244
A193: 198545 | B193: 1985 | C193: 45 | D193: 27 | E193: 26 | F193: 18 | G193: 14 | H193: 23 | I193: 14 | J193: 19 | K193: 23 | L193: 0 | M193: 164 | O193: 198545 | P193: 1985 | Q193: 45 | R193: 27 | S193: 26 | T193: 111 | U193: 0 | V193: 164
A194: 198546 | B194: 1985 | C194: 46 | D194: 12 | E194: 25 | F194: 11 | G194: 13 | H194: 17 | I194: 22 | J194: 5 | K194: 11 | L194: 0 | M194: 116 | O194: 198546 | P194: 1985 | Q194: 46 | R194: 12 | S194: 25 | T194: 79 | U194: 0 | V194: 116
A195: 198547 | B195: 1985 | C195: 47 | D195: 14 | E195: 18 | F195: 15 | G195: 15 | H195: 19 | I195: 12 | J195: 11 | K195: 12 | L195: 0 | M195: 116 | O195: 198547 | P195: 1985 | Q195: 47 | R195: 14 | S195: 18 | T195: 84 | U195: 0 | V195: 116
A196: 198548 | B196: 1985 | C196: 48 | D196: 14 | E196: 11 | F196: 7 | G196: 8 | H196: 12 | I196: 13 | J196: 7 | K196: 5 | L196: 0 | M196: 77 | O196: 198548 | P196: 1985 | Q196: 48 | R196: 14 | S196: 11 | T196: 52 | U196: 0 | V196: 77
A197: 198549 | B197: 1985 | C197: 49 | D197: 14 | E197: 9 | F197: 8 | G197: 6 | H197: 11 | I197: 7 | J197: 6 | K197: 6 | L197: 0 | M197: 67 | O197: 198549 | P197: 1985 | Q197: 49 | R197: 14 | S197: 9 | T197: 44 | U197: 0 | V197: 67
A198: =B198&C198 -> 198550+ | B198: 1985 | C198: 50+ | D198: 24 | E198: 16 | F198: 7 | G198: 25 | H198: 21 | I198: 11 | J198: 9 | K198: 14 | L198: 0 | M198: 127 | O198: =P198&Q198 -> 198550+ | P198: 1985 | Q198: 50+ | R198: 24 | S198: 16 | T198: =SUM(F198:K198) -> 87 | U198: 0 | V198: 127
A199: 1985Missing | B199: 1985 | C199: Missing | D199: 321 | E199: 45 | F199: 11 | G199: 2 | H199: 1 | I199: 2 | J199: 0 | K199: 0 | L199: 0 | M199: 382 | O199: 1985Missing | P199: 1985 | Q199: Missing | R199: 321 | S199: 45 | T199: 16 | U199: 0 | V199: 382
A200: 1986Total | B200: 1986 | C200: Total | D200: 337701 | E200: 235935 | F200: 44568 | G200: 11367 | H200: 3976 | I200: 1539 | J200: 575 | K200: 344 | L200: 14 | M200: 636019 | O200: 1986Total | P200: 1986 | Q200: Total | R200: 337701 | S200: 235935 | T200: 62369 | U200: 14 | V200: 636019
A201: 1986<15 | B201: 1986 | C201: <15 | D201: 5 | E201: 0 | F201: 0 | G201: 0 | H201: 0 | I201: 0 | J201: 0 | K201: 0 | L201: 0 | M201: 5 | O201: 1986<15 | P201: 1986 | Q201: <15 | R201: 5 | S201: 0 | T201: 0 | U201: 0 | V201: 5
... 1168 more rows

Sheet 2. Female_Pop
B2: * Number of female population from population estimations (Mid-year population)
A4: Age_national | B4: 1980 | C4: 1981 | D4: 1982 | E4: 1983 | F4: 1984 | G4: 1985 | H4: 1986 | I4: 1987 | J4: 1988 | K4: 1989 | L4: 1990 | M4: 1991 | N4: 1992 | O4: 1993 | P4: 1994 | Q4: 1995 | R4: 1996 | S4: 1997 | T4: 1998 | U4: 1999 | V4: 2000 | W4: 2001 | X4: 2002 | Y4: 2003 | Z4: 2004 | AA4: 2005 | AB4: 2006 | AC4: 2007 | AD4: 2008 | AE4: 2009 | AF4: 2010 | AG4: 2011 | AH4: 2012 | AI4: 2013 | AJ4: 2014 | AK4: 2015 | AL4: 2016 | AM4: 2017 | AN4: 2018 | AO4: 2019 | AP4: 2020 | AQ4: 2021 | AR4: 2022 | AS4: 2023 | AT4: 2024 | AU4: 2025 | AV4: 2026 | AW4: 2027 | AX4: 2028 | AY4: 2029 | AZ4: 2030 | BA4: 2031 | BB4: 2032 | BC4: 2033 | BD4: 2034 | BE4: 2035 | BF4: 2036 | BG4: 2037 | BH4: 2038 | BI4: 2039 | BJ4: 2040 | BK4: 2041 | BL4: 2042 | BM4: 2043 | BN4: 2044 | BO4: 2045 | BP4: 2046 | BQ4: 2047 | BR4: 2048 | BS4: 2049 | BT4: 2050 | BU4: 2051 | BV4: 2052 | BW4: 2053 | BX4: 2054 | BY4: 2055 | BZ4: 2056 | CA4: 2057 | CB4: 2058 | CC4: 2059 | CD4: 2060
A5: 0 | B5: 419795 | C5: 406778 | D5: 403624 | E5: 391170 | F5: 350988 | G5: 320013 | H5: 314142 | I5: 310555 | J5: 307705 | K5: 310294 | L5: 306938 | M5: 320349 | N5: 332431 | O5: 336294 | P5: 335836 | Q5: 335108 | R5: 327772 | S5: 322051 | T5: 311011 | U5: 297086 | V5: 296242 | W5: 285285 | X5: 254712 | Y5: 236532 | Z5: 230532 | AA5: 218571 | AB5: 212543 | AC5: 223759 | AD5: 237740 | AE5: 221122 | AF5: 217674 | AG5: 233900 | AH5: 220586 | AI5: 220188 | AJ5: 220551 | AK5: 219085 | AL5: 220390 | AM5: 221008 | AN5: 220313 | AO5: 219653 | AP5: 219105 | AQ5: 218698 | AR5: 218437 | AS5: 218016 | AT5: 218002 | AU5: 217123 | AV5: 214594 | AW5: 211111 | AX5: 209067 | AY5: 206351 | AZ5: 202917 | BA5: 198812 | BB5: 194175 | BC5: 189178 | BD5: 184022 | BE5: 178949 | BF5: 174174 | BG5: 169842 | BH5: 166039 | BI5: 162814 | BJ5: 160147 | BK5: 157965 | BL5: 156196 | BM5: 154776 | BN5: 153632 | BO5: 152699 | BP5: 151929 | BQ5: 151277 | BR5: 150708 | BS5: 150189 | BT5: 149689 | BU5: 149183 | BV5: 148655 | BW5: 148083 | BX5: 147423 | BY5: 146649 | BZ5: 145739 | CA5: 144660 | CB5: 143389 | CC5: 141926 | CD5: 140271
A6: 1 | B6: 396440 | C6: 412851 | D6: 402302 | E6: 399522 | F6: 386951 | G6: 347845 | H6: 318946 | I6: 313236 | J6: 309675 | K6: 306843 | L6: 300246 | M6: 306367 | N6: 319706 | O6: 331602 | P6: 335415 | Q6: 334986 | R6: 333217 | S6: 326738 | T6: 319512 | U6: 308841 | V6: 295159 | W6: 294413 | X6: 284498 | Y6: 253807 | Z6: 236083 | AA6: 229743 | AB6: 217088 | AC6: 211136 | AD6: 222576 | AE6: 236540 | AF6: 219972 | AG6: 216309 | AH6: 233226 | AI6: 219947 | AJ6: 219546 | AK6: 219905 | AL6: 218440 | AM6: 219737 | AN6: 220350 | AO6: 219654 | AP6: 218993 | AQ6: 218444 | AR6: 218035 | AS6: 217771 | AT6: 217349 | AU6: 217332 | AV6: 216453 | AW6: 213929 | AX6: 210454 | AY6: 208414 | AZ6: 205704 | BA6: 202279 | BB6: 198184 | BC6: 193560 | BD6: 188577 | BE6: 183435 | BF6: 178376 | BG6: 173615 | BH6: 169295 | BI6: 165503 | BJ6: 162286 | BK6: 159627 | BL6: 157450 | BM6: 155685 | BN6: 154269 | BO6: 153127 | BP6: 152196 | BQ6: 151427 | BR6: 150776 | BS6: 150208 | BT6: 149689 | BU6: 149189 | BV6: 148684 | BW6: 148157 | BX6: 147585 | BY6: 146926 | BZ6: 146154 | CA6: 145246 | CB6: 144170 | CC6: 142902 | CD6: 141443
A7: 2 | B7: 377879 | C7: 393801 | D7: 408187 | E7: 400061 | F7: 396917 | G7: 375609 | H7: 345847 | I7: 318017 | J7: 312941 | K7: 309325 | L7: 299461 | M7: 299770 | N7: 305753 | O7: 318909 | P7: 330735 | Q7: 334566 | R7: 334730 | S7: 332566 | T7: 326496 | U7: 318916 | V7: 308212 | W7: 294996 | X7: 294799 | Y7: 283749 | Z7: 253472 | AA7: 235618 | AB7: 229710 | AC7: 216117 | AD7: 210622 | AE7: 222199 | AF7: 236166 | AG7: 219456 | AH7: 216293 | AI7: 233208 | AJ7: 219930 | AK7: 219529 | AL7: 219887 | AM7: 218422 | AN7: 219719 | AO7: 220332 | AP7: 219635 | AQ7: 218974 | AR7: 218424 | AS7: 218015 | AT7: 217751 | AU7: 217328 | AV7: 217311 | AW7: 216431 | AX7: 213907 | AY7: 210432 | AZ7: 208392 | BA7: 205682 | BB7: 202257 | BC7: 198161 | BD7: 193538 | BE7: 188555 | BF7: 183413 | BG7: 178354 | BH7: 173593 | BI7: 169273 | BJ7: 165481 | BK7: 162264 | BL7: 159605 | BM7: 157428 | BN7: 155663 | BO7: 154247 | BP7: 153105 | BQ7: 152173 | BR7: 151404 | BS7: 150753 | BT7: 150185 | BU7: 149665 | BV7: 149165 | BW7: 148660 | BX7: 148132 | BY7: 147560 | BZ7: 146901 | CA7: 146129 | CB7: 145220 | CC7: 144144 | CD7: 142876
A8: 3 | B8: 374433 | C8: 377489 | D8: 391392 | E8: 403671 | F8: 398612 | G8: 399470 | H8: 376263 | I8: 344005 | J8: 316988 | K8: 312614 | L8: 301771 | M8: 299087 | N8: 299251 | O8: 304990 | P8: 318075 | Q8: 329898 | R8: 336191 | S8: 334295 | T8: 332278 | U8: 326043 | V8: 318379 | W8: 307861 | X8: 294912 | Y8: 295358 | Z8: 283454 | AA8: 253013 | AB8: 234113 | AC8: 229677 | AD8: 215458 | AE8: 210452 | AF8: 222080 | AG8: 236118 | AH8: 219294 | AI8: 216128 | AJ8: 233026 | AK8: 219754 | AL8: 219350 | AM8: 219704 | AN8: 218237 | AO8: 219530 | AP8: 220139 | AQ8: 219440 | AR8: 218776 | AS8: 218224 | AT8: 217813 | AU8: 217547 | AV8: 217122 | AW8: 217102 | AX8: 216221 | AY8: 213698 | AZ8: 210224 | BA8: 208184 | BB8: 205475 | BC8: 202051 | BD8: 197958 | BE8: 193338 | BF8: 188358 | BG8: 183220 | BH8: 178165 | BI8: 173408 | BJ8: 169091 | BK8: 165302 | BL8: 162087 | BM8: 159430 | BN8: 157254 | BO8: 155490 | BP8: 154074 | BQ8: 152933 | BR8: 152001 | BS8: 151232 | BT8: 150580 | BU8: 150012 | BV8: 149492 | BW8: 148991 | BX8: 148486 | BY8: 147958 | BZ8: 147386 | CA8: 146727 | CB8: 145955 | CC8: 145046 | CD8: 143971
A9: 4 | B9: 377769 | C9: 375007 | D9: 377305 | E9: 389088 | F9: 395421 | G9: 407547 | H9: 400820 | I9: 377076 | J9: 342062 | K9: 315877 | L9: 307640 | M9: 301404 | N9: 298669 | O9: 298586 | P9: 304193 | Q9: 317270 | R9: 331756 | S9: 335598 | T9: 334013 | U9: 331701 | V9: 325643 | W9: 318277 | X9: 307391 | Y9: 294844 | Z9: 296102 | AA9: 282869 | AB9: 251166 | AC9: 232468 | AD9: 229643 | AE9: 215015 | AF9: 210332 | AG9: 221866 | AH9: 235851 | AI9: 219038 | AJ9: 215869 | AK9: 232741 | AL9: 219479 | AM9: 219070 | AN9: 219418 | AO9: 217949 | AP9: 219235 | AQ9: 219839 | AR9: 219137 | AS9: 218469 | AT9: 217915 | AU9: 217501 | AV9: 217231 | AW9: 216804 | AX9: 216780 | AY9: 215898 | AZ9: 213375 | BA9: 209904 | BB9: 207864 | BC9: 205156 | BD9: 201735 | BE9: 197646 | BF9: 193031 | BG9: 188057 | BH9: 182925 | BI9: 177877 | BJ9: 173125 | BK9: 168814 | BL9: 165029 | BM9: 161818 | BN9: 159164 | BO9: 156990 | BP9: 155228 | BQ9: 153813 | BR9: 152672 | BS9: 151740 | BT9: 150972 | BU9: 150319 | BV9: 149751 | BW9: 149231 | BX9: 148730 | BY9: 148225 | BZ9: 147696 | CA9: 147124 | CB9: 146465 | CC9: 145694 | CD9: 144786
A10: 5 | B10: 395348 | C10: 379573 | D10: 375786 | E10: 377210 | F10: 386812 | G10: 394393 | H10: 408866 | I10: 402344 | J10: 377769 | K10: 340039 | L10: 319500 | M10: 307369 | N10: 300994 | O10: 298106 | P10: 297887 | Q10: 303423 | R10: 317126 | S10: 331281 | T10: 335339 | U10: 333523 | V10: 331183 | W10: 325317 | X10: 318031 | Y10: 306646 | Z10: 294836 | AA10: 296691 | AB10: 282662 | AC10: 249076 | AD10: 230882 | AE10: 229609 | AF10: 214298 | AG10: 210104 | AH10: 221569 | AI10: 235526 | AJ10: 218728 | AK10: 215556 | AL10: 232396 | AM10: 219148 | AN10: 218733 | AO10: 219075 | AP10: 217603 | AQ10: 218882 | AR10: 219480 | AS10: 218774 | AT10: 218103 | AU10: 217546 | AV10: 217129 | AW10: 216855 | AX10: 216425 | AY10: 216398 | AZ10: 215514 | BA10: 212992 | BB10: 209524 | BC10: 207485 | BD10: 204779 | BE10: 201361 | BF10: 197277 | BG10: 192669 | BH10: 187702 | BI10: 182577 | BJ10: 177537 | BK10: 172792 | BL10: 168487 | BM10: 164708 | BN10: 161501 | BO10: 158851 | BP10: 156680 | BQ10: 154920 | BR10: 153506 | BS10: 152366 | BT10: 151434 | BU10: 150666 | BV10: 150013 | BW10: 149445 | BX10: 148925 | BY10: 148424 | BZ10: 147919 | CA10: 147390 | CB10: 146818 | CC10: 146159 | CD10: 145389
A11: 6 | B11: 421315 | C11: 396996 | D11: 381594 | E11: 376654 | F11: 377127 | G11: 384138 | H11: 397526 | I11: 410361 | J11: 403742 | K11: 378362 | L11: 344558 | M11: 319572 | N11: 307053 | O11: 300437 | P11: 297508 | Q11: 297215 | R11: 302071 | S11: 316707 | T11: 331068 | U11: 335022 | V11: 332944 | W11: 330543 | X11: 324808 | Y11: 317835 | Z11: 306412 | AA11: 294667 | AB11: 294823 | AC11: 282265 | AD11: 247283 | AE11: 229623 | AF11: 229579 | AG11: 213949 | AH11: 209805 | AI11: 221245 | AJ11: 235173 | AK11: 218392 | AL11: 215218 | AM11: 232025 | AN11: 218792 | AO11: 218371 | AP11: 218707 | AQ11: 217232 | AR11: 218504 | AS11: 219096 | AT11: 218387 | AU11: 217713 | AV11: 217153 | AW11: 216733 | AX11: 216455 | AY11: 216022 | AZ11: 215992 | BA11: 215106 | BB11: 212586 | BC11: 209121 | BD11: 207083 | BE11: 204380 | BF11: 200966 | BG11: 196887 | BH11: 192286 | BI11: 187326 | BJ11: 182210 | BK11: 177178 | BL11: 172440 | BM11: 168142 | BN11: 164369 | BO11: 161167 | BP11: 158521 | BQ11: 156353 | BR11: 154595 | BS11: 153183 | BT11: 152044 | BU11: 151113 | BV11: 150345 | BW11: 149692 | BX11: 149124 | BY11: 148604 | BZ11: 148103 | CA11: 147598 | CB11: 147069 | CC11: 146497 | CD11: 145839
A12: 7 | B12: 417030 | C12: 421459 | D12: 398867 | E12: 383714 | F12: 377537 | G12: 376641 | H12: 385667 | I12: 400852 | J12: 411730 | K12: 405038 | L12: 378599 | M12: 344709 | N12: 319598 | O12: 306587 | P12: 299845 | Q12: 296936 | R12: 291315 | S12: 301589 | T12: 316450 | U12: 330693 | V12: 334493 | W12: 332419 | X12: 329776 | Y12: 324300 | Z12: 317640 | AA12: 306044 | AB12: 294356 | AC12: 292775 | AD12: 282152 | AE12: 245774 | AF12: 228380 | AG12: 229469 | AH12: 213647 | AI12: 209501 | AJ12: 220916 | AK12: 234815 | AL12: 218053 | AM12: 214877 | AN12: 231652 | AO12: 218434 | AP12: 218008 | AQ12: 218339 | AR12: 216861 | AS12: 218126 | AT12: 218713 | AU12: 218001 | AV12: 217324 | AW12: 216762 | AX12: 216339 | AY12: 216058 | AZ12: 215622 | BA12: 215589 | BB12: 214701 | BC12: 212183 | BD12: 208722 | BE12: 206685 | BF12: 203985 | BG12: 200575 | BH12: 196501 | BI12: 191907 | BJ12: 186955 | BK12: 181847 | BL12: 176823 | BM12: 172093 | BN12: 167802 | BO12: 164035 | BP12: 160838 | BQ12: 158196 | BR12: 156031 | BS12: 154275 | BT12: 152865 | BU12: 151727 | BV12: 150797 | BW12: 150029 | BX12: 149376 | BY12: 148808 | BZ12: 148288 | CA12: 147787 | CB12: 147282 | CC12: 146753 | CD12: 146182
A13: 8 | B13: 455407 | C13: 435344 | D13: 421833 | E13: 400841 | F13: 385860 | G13: 378020 | H13: 374678 | I13: 387366 | J13: 404076 | K13: 412992 | L13: 402322 | M13: 378506 | N13: 344809 | O13: 319466 | P13: 306085 | Q13: 299279 | R13: 293222 | S13: 290894 | T13: 301402 | U13: 316116 | V13: 330128 | W13: 333676 | X13: 331600 | Y13: 328677 | Z13: 323797 | AA13: 317365 | AB13: 305164 | AC13: 293773 | AD13: 290887 | AE13: 282409 | AF13: 244245 | AG13: 228152 | AH13: 229176 | AI13: 213368 | AJ13: 209221 | AK13: 220615 | AL13: 234489 | AM13: 217745 | AN13: 214569 | AO13: 231315 | AP13: 218112 | AQ13: 217682 | AR13: 218009 | AS13: 216529 | AT13: 217788 | AU13: 218371 | AV13: 217656 | AW13: 216977 | AX13: 216413 | AY13: 215988 | AZ13: 215704 | BA13: 215266 | BB13: 215230 | BC13: 214341 | BD13: 211825 | BE13: 208367 | BF13: 206331 | BG13: 203634 | BH13: 200227 | BI13: 196159 | BJ13: 191571 | BK13: 186625 | BL13: 181525 | BM13: 176508 | BN13: 171785 | BO13: 167500 | BP13: 163739 | BQ13: 160546 | BR13: 157908 | BS13: 155745 | BT13: 153991 | BU13: 152583 | BV13: 151446 | BW13: 150517 | BX13: 149749 | BY13: 149096 | BZ13: 148528 | CA13: 148008 | CB13: 147507 | CC13: 147002 | CD13: 146474
A14: 9 | B14: 454891 | C14: 453710 | D14: 436530 | E14: 422306 | F14: 402837 | G14: 387605 | H14: 376582 | I14: 372881 | J14: 388946 | K14: 407217 | L14: 407161 | M14: 402082 | N14: 378359 | O14: 344740 | P14: 319297 | Q14: 305609 | R14: 295063 | S14: 292772 | T14: 290697 | U14: 301080 | V14: 315508 | W14: 329278 | X14: 332613 | Y14: 330665 | Z14: 328081 | AA14: 323257 | AB14: 316139 | AC14: 303936 | AD14: 293425 | AE14: 289443 | AF14: 282651 | AG14: 244014 | AH14: 227844 | AI14: 228864 | AJ14: 213076 | AK14: 208933 | AL14: 220309 | AM14: 234161 | AN14: 217439 | AO14: 214266 | AP14: 230986 | AQ14: 217800 | AR14: 217370 | AS14: 217694 | AT14: 216215 | AU14: 217471 | AV14: 218052 | AW14: 217337 | AX14: 216658 | AY14: 216094 | AZ14: 215668 | BA14: 215384 | BB14: 214946 | BC14: 214909 | BD14: 214020 | BE14: 211507 | BF14: 208054 | BG14: 206020 | BH14: 203327 | BI14: 199924 | BJ14: 195862 | BK14: 191280 | BL14: 186341 | BM14: 181249 | BN14: 176239 | BO14: 171523 | BP14: 167244 | BQ14: 163488 | BR14: 160300 | BS14: 157666 | BT14: 155506 | BU14: 153754 | BV14: 152348 | BW14: 151213 | BX14: 150285 | BY14: 149518 | BZ14: 148866 | CA14: 148298 | CB14: 147779 | CC14: 147279 | CD14: 146774
A15: 10 | B15: 452265 | C15: 454126 | D15: 453262 | E15: 437821 | F15: 422794 | G15: 404412 | H15: 385711 | I15: 375307 | J15: 370974 | K15: 390428 | L15: 397805 | M15: 406793 | N15: 401784 | O15: 378025 | P15: 344630 | Q15: 319154 | R15: 305771 | S15: 294619 | T15: 292550 | U15: 290362 | V15: 300490 | W15: 314816 | X15: 328070 | Y15: 331397 | Z15: 329743 | AA15: 327141 | AB15: 322011 | AC15: 314363 | AD15: 302924 | AE15: 293422 | AF15: 287911 | AG15: 282310 | AH15: 243492 | AI15: 227346 | AJ15: 228353 | AK15: 212589 | AL15: 208445 | AM15: 219784 | AN15: 233592 | AO15: 216900 | AP15: 213725 | AQ15: 230393 | AR15: 217232 | AS15: 216794 | AT15: 217109 | AU15: 215626 | AV15: 216870 | AW15: 217442 | AX15: 216722 | AY15: 216038 | AZ15: 215468 | BA15: 215037 | BB15: 214748 | BC15: 214305 | BD15: 214262 | BE15: 213370 | BF15: 210859 | BG15: 207412 | BH15: 205379 | BI15: 202690 | BJ15: 199293 | BK15: 195240 | BL15: 190668 | BM15: 185741 | BN15: 180662 | BO15: 175665 | BP15: 170961 | BQ15: 166693 | BR15: 162946 | BS15: 159766 | BT15: 157138 | BU15: 154983 | BV15: 153234 | BW15: 151830 | BX15: 150697 | BY15: 149770 | BZ15: 149003 | CA15: 148352 | CB15: 147783 | CC15: 147264 | CD15: 146764
A16: 11 | B16: 445441 | C16: 450848 | D16: 454609 | E16: 452919 | F16: 439131 | G16: 422829 | H16: 404661 | I16: 383988 | J16: 373915 | K16: 368978 | L16: 380449 | M16: 397221 | N16: 406367 | O16: 401289 | P16: 377647 | Q16: 344549 | R16: 322053 | S16: 305219 | T16: 294387 | U16: 292221 | V16: 289595 | W16: 299830 | X16: 313922 | Y16: 326738 | Z16: 330065 | AA16: 328543 | AB16: 325864 | AC16: 320671 | AD16: 313570 | AE16: 302854 | AF16: 293751 | AG16: 287383 | AH16: 281684 | AI16: 242938 | AJ16: 226814 | AK16: 227803 | AL16: 212062 | AM16: 207914 | AN16: 219209 | AO16: 232964 | AP16: 216302 | AQ16: 213122 | AR16: 229728 | AS16: 216591 | AT16: 216141 | AU16: 216442 | AV16: 214951 | AW16: 216178 | AX16: 216736 | AY16: 216007 | AZ16: 215314 | BA16: 214735 | BB16: 214294 | BC16: 213996 | BD16: 213544 | BE16: 213492 | BF16: 212593 | BG16: 210082 | BH16: 206639 | BI16: 204605 | BJ16: 201918 | BK16: 198525 | BL16: 194480 | BM16: 189919 | BN16: 185004 | BO16: 179939 | BP16: 174955 | BQ16: 170264 | BR16: 166008 | BS16: 162271 | BT16: 159099 | BU16: 156477 | BV16: 154326 | BW16: 152579 | BX16: 151177 | BY16: 150044 | BZ16: 149117 | CA16: 148349 | CB16: 147696 | CC16: 147126 | CD16: 146605
A17: 12 | B17: 428014 | C17: 443927 | D17: 450876 | E17: 455197 | F17: 452592 | G17: 439975 | H17: 423954 | I17: 405081 | J17: 382149 | K17: 372429 | L17: 367851 | M17: 379904 | N17: 396581 | O17: 405741 | P17: 400747 | Q17: 377301 | R17: 347893 | S17: 321517 | T17: 304906 | U17: 294077 | V17: 291553 | W17: 290352 | X17: 298860 | Y17: 313000 | Z17: 325814 | AA17: 329060 | AB17: 327871 | AC17: 325033 | AD17: 320783 | AE17: 313770 | AF17: 303170 | AG17: 293974 | AH17: 287065 | AI17: 281376 | AJ17: 242672 | AK17: 226563 | AL17: 227547 | AM17: 211820 | AN17: 207672 | AO17: 218948 | AP17: 232681 | AQ17: 216033 | AR17: 212852 | AS17: 229430 | AT17: 216305 | AU17: 215850 | AV17: 216145 | AW17: 214651 | AX17: 215871 | AY17: 216423 | AZ17: 215690 | BA17: 214993 | BB17: 214410 | BC17: 213965 | BD17: 213663 | BE17: 213207 | BF17: 213151 | BG17: 212249 | BH17: 209738 | BI17: 206297 | BJ17: 204263 | BK17: 201576 | BL17: 198186 | BM17: 194144 | BN17: 189588 | BO17: 184679 | BP17: 179620 | BQ17: 174642 | BR17: 169957 | BS17: 165706 | BT17: 161974 | BU17: 158805 | BV17: 156186 | BW17: 154037 | BX17: 152291 | BY17: 150890 | BZ17: 149757 | CA17: 148830 | CB17: 148062 | CC17: 147408 | CD17: 146838
A18: 13 | B18: 414801 | C18: 427113 | D18: 442660 | E18: 451010 | F18: 455803 | G18: 451782 | H18: 439853 | I18: 425261 | J18: 405370 | K18: 380217 | L18: 370743 | M18: 367771 | N18: 379304 | O18: 395747 | P18: 405068 | Q18: 400239 | R18: 378258 | S18: 347057 | T18: 321059 | U18: 304451 | V18: 293353 | W18: 292201 | X18: 290967 | Y18: 298143 | Z18: 312344 | AA18: 324862 | AB18: 328761 | AC18: 327080 | AD18: 324643 | AE18: 320975 | AF18: 313616 | AG18: 303407 | AH18: 294012 | AI18: 287123 | AJ18: 281449 | AK18: 242746 | AL18: 226640 | AM18: 227631 | AN18: 211903 | AO18: 207757 | AP18: 219041 | AQ18: 232783 | AR18: 216130 | AS18: 212950 | AT18: 229537 | AU18: 216408 | AV18: 215954 | AW18: 216250 | AX18: 214757 | AY18: 215978 | AZ18: 216531 | BA18: 215799 | BB18: 215102 | BC18: 214519 | BD18: 214075 | BE18: 213773 | BF18: 213317 | BG18: 213262 | BH18: 212360 | BI18: 209848 | BJ18: 206406 | BK18: 204371 | BL18: 201683 | BM18: 198291 | BN18: 194248 | BO18: 189689 | BP18: 184778 | BQ18: 179717 | BR18: 174736 | BS18: 170049 | BT18: 165796 | BU18: 162062 | BV18: 158892 | BW18: 156272 | BX18: 154122 | BY18: 152375 | BZ18: 150973 | CA18: 149840 | CB18: 148913 | CC18: 148145 | CD18: 147490
A19: 14 | B19: 412296 | C19: 413975 | D19: 426445 | E19: 441498 | F19: 451159 | G19: 455922 | H19: 450562 | I19: 439916 | J19: 426435 | K19: 405551 | L19: 381004 | M19: 370625 | N19: 367638 | O19: 378519 | P19: 394867 | Q19: 404430 | R19: 402492 | S19: 377228 | T19: 346593 | U19: 320559 | V19: 303722 | W19: 294616 | X19: 292426 | Y19: 291471 | Z19: 297301 | AA19: 311440 | AB19: 324700 | AC19: 328093 | AD19: 326371 | AE19: 324426 | AF19: 320715 | AG19: 313244 | AH19: 303653 | AI19: 294276 | AJ19: 287401 | AK19: 281737 | AL19: 243005 | AM19: 226890 | AN19: 227889 | AO19: 212148 | AP19: 208001 | AQ19: 219302 | AR19: 233063 | AS19: 216392 | AT19: 213210 | AU19: 229818 | AV19: 216674 | AW19: 216220 | AX19: 216516 | AY19: 215021 | AZ19: 216243 | BA19: 216796 | BB19: 216062 | BC19: 215363 | BD19: 214778 | BE19: 214332 | BF19: 214028 | BG19: 213570 | BH19: 213513 | BI19: 212608 | BJ19: 210091 | BK19: 206643 | BL19: 204603 | BM19: 201910 | BN19: 198511 | BO19: 194462 | BP19: 189895 | BQ19: 184976 | BR19: 179907 | BS19: 174919 | BT19: 170224 | BU19: 165965 | BV19: 162224 | BW19: 159049 | BX19: 156424 | BY19: 154269 | BZ19: 152518 | CA19: 151112 | CB19: 149976 | CC19: 149045 | CD19: 148274
A20: 15 | B20: 417030 | C20: 410505 | D20: 413875 | E20: 425878 | F20: 440355 | G20: 450826 | H20: 454394 | I20: 449533 | J20: 439838 | K20: 427498 | L20: 399907 | M20: 380944 | N20: 370454 | O20: 367324 | P20: 377690 | Q20: 394023 | R20: 415861 | S20: 401235 | T20: 376615 | U20: 346029 | V20: 319696 | W20: 304577 | X20: 295512 | Y20: 292744 | Z20: 291892 | AA20: 296324 | AB20: 311443 | AC20: 324058 | AD20: 327393 | AE20: 325989 | AF20: 323804 | AG20: 320335 | AH20: 312718 | AI20: 303124 | AJ20: 293741 | AK20: 286856 | AL20: 281179 | AM20: 242502 | AN20: 226401 | AO20: 227378 | AP20: 211653 | AQ20: 207497 | AR20: 218752 | AS20: 232458 | AT20: 215812 | AU20: 212620 | AV20: 229163 | AW20: 216038 | AX20: 215568 | AY20: 215845 | AZ20: 214338 | BA20: 215539 | BB20: 216073 | BC20: 215325 | BD20: 214612 | BE20: 214013 | BF20: 213553 | BG20: 213234 | BH20: 212763 | BI20: 212691 | BJ20: 211774 | BK20: 209253 | BL20: 205804 | BM20: 203759 | BN20: 201064 | BO20: 197666 | BP20: 193621 | BQ20: 189062 | BR20: 184153 | BS20: 179095 | BT20: 174119 | BU20: 169435 | BV20: 165186 | BW20: 161453 | BX20: 158283 | BY20: 155662 | BZ20: 153508 | CA20: 151757 | CB20: 150350 | CC20: 149211 | CD20: 148276
A21: 16 | B21: 428725 | C21: 414203 | D21: 409938 | E21: 413872 | F21: 425326 | G21: 438746 | H21: 449284 | I21: 453062 | J21: 448363 | K21: 439641 | L21: 420522 | M21: 399436 | N21: 380829 | O21: 370100 | P21: 366966 | Q21: 376895 | R21: 399372 | S21: 414909 | T21: 400978 | U21: 376212 | V21: 344950 | W21: 319106 | X21: 304999 | Y21: 296223 | Z21: 292760 | AA21: 291582 | AB21: 296949 | AC21: 311481 | AD21: 324058 | AE21: 327668 | AF21: 325750 | AG21: 322963 | AH21: 318825 | AI21: 311215 | AJ21: 301639 | AK21: 292275 | AL21: 285399 | AM21: 279726 | AN21: 241229 | AO21: 225194 | AP21: 226148 | AQ21: 210492 | AR21: 206344 | AS21: 217521 | AT21: 231134 | AU21: 214569 | AV21: 211382 | AW21: 227814 | AX21: 214753 | AY21: 214274 | AZ21: 214537 | BA21: 213027 | BB21: 214209 | BC21: 214729 | BD21: 213975 | BE21: 213256 | BF21: 212650 | BG21: 212183 | BH21: 211856 | BI21: 211379 | BJ21: 211298 | BK21: 210378 | BL21: 207865 | BM21: 204431 | BN21: 202391 | BO21: 199707 | BP21: 196324 | BQ21: 192299 | BR21: 187764 | BS21: 182883 | BT21: 177853 | BU21: 172906 | BV21: 168249 | BW21: 164024 | BX21: 160312 | BY21: 157159 | BZ21: 154552 | CA21: 152409 | CB21: 150666 | CC21: 149264 | CD21: 148129
A22: 17 | B22: 439482 | C22: 424153 | D22: 412608 | E22: 409467 | F22: 413883 | G22: 424321 | H22: 438066 | I22: 447934 | J22: 451588 | K22: 447075 | L22: 436328 | M22: 419790 | N22: 398908 | O22: 380527 | P22: 369703 | Q22: 366640 | R22: 381273 | S22: 399109 | T22: 414999 | U22: 400985 | V22: 375424 | W22: 344255 | X22: 318747 | Y22: 306182 | Z22: 297755 | AA22: 293474 | AB22: 292701 | AC22: 298700 | AD22: 313190 | AE22: 325824 | AF22: 328867 | AG22: 325727 | AH22: 322211 | AI22: 318065 | AJ22: 310457 | AK22: 300888 | AL22: 291533 | AM22: 284660 | AN22: 278989 | AO22: 240582 | AP22: 224580 | AQ22: 225523 | AR22: 209901 | AS22: 205757 | AT22: 216894 | AU22: 230460 | AV22: 213936 | AW22: 210752 | AX22: 227127 | AY22: 214099 | AZ22: 213616 | BA22: 213872 | BB22: 212361 | BC22: 213533 | BD22: 214046 | BE22: 213289 | BF22: 212567 | BG22: 211958 | BH22: 211488 | BI22: 211157 | BJ22: 210677 | BK22: 210592 | BL22: 209671 | BM22: 207162 | BN22: 203736 | BO22: 201699 | BP22: 199021 | BQ22: 195646 | BR22: 191631 | BS22: 187109 | BT22: 182242 | BU22: 177227 | BV22: 172294 | BW22: 167651 | BX22: 163439 | BY22: 159738 | BZ22: 156594 | CA22: 153994 | CB22: 151857 | CC22: 150118 | CD22: 148719
A23: 18 | B23: 444414 | C23: 435609 | D23: 420839 | E23: 411116 | F23: 409012 | G23: 413451 | H23: 421654 | I23: 437570 | J23: 446444 | K23: 449998 | L23: 446543 | M23: 435620 | N23: 418998 | O23: 398184 | P23: 380179 | Q23: 369337 | R23: 365490 | S23: 380941 | T23: 399072 | U23: 414834 | V23: 400732 | W23: 374742 | X23: 344093 | Y23: 319549 | Z23: 308290 | AA23: 300279 | AB23: 294500 | AC23: 294912 | AD23: 301588 | AE23: 316257 | AF23: 328230 | AG23: 329769 | AH23: 326125 | AI23: 322617 | AJ23: 318476 | AK23: 310866 | AL23: 301291 | AM23: 291929 | AN23: 285052 | AO23: 279377 | AP23: 240920 | AQ23: 224899 | AR23: 225846 | AS23: 210204 | AT23: 206056 | AU23: 217211 | AV23: 230800 | AW23: 214253 | AX23: 211066 | AY23: 227467 | AZ23: 214421 | BA23: 213939 | BB23: 214197 | BC23: 212685 | BD23: 213861 | BE23: 214376 | BF23: 213619 | BG23: 212897 | BH23: 212288 | BI23: 211819 | BJ23: 211488 | BK23: 211008 | BL23: 210925 | BM23: 210003 | BN23: 207491 | BO23: 204061 | BP23: 202021 | BQ23: 199340 | BR23: 195960 | BS23: 191940 | BT23: 187411 | BU23: 182537 | BV23: 177515 | BW23: 172575 | BX23: 167925 | BY23: 163707 | BZ23: 160000 | CA23: 156851 | CB23: 154248 | CC23: 152108 | CD23: 150367
A24: 19 | B24: 446061 | C24: 441266 | D24: 431025 | E24: 417649 | F24: 409643 | G24: 408120 | H24: 410093 | I24: 419181 | J24: 436934 | K24: 444841 | L24: 449332 | M24: 445909 | N24: 434849 | O24: 418002 | P24: 397415 | Q24: 379864 | R24: 360715 | S24: 364709 | T24: 380487 | U24: 398539 | V24: 414609 | W24: 398522 | X24: 373079 | Y24: 343878 | Z24: 319924 | AA24: 310188 | AB24: 300223 | AC24: 296030 | AD24: 297300 | AE24: 305189 | AF24: 318986 | AG24: 330176 | AH24: 331868 | AI24: 328269 | AJ24: 324799 | AK24: 320685 | AL24: 313071 | AM24: 303473 | AN24: 294084 | AO24: 287193 | AP24: 281509 | AQ24: 242786 | AR24: 226666 | AS24: 227643 | AT24: 211898 | AU24: 207736 | AV24: 219002 | AW24: 232723 | AX24: 216056 | AY24: 212859 | AZ24: 229417 | BA24: 216275 | BB24: 215804 | BC24: 216079 | BD24: 214568 | BE24: 215768 | BF24: 216302 | BG24: 215551 | BH24: 214835 | BI24: 214233 | BJ24: 213771 | BK24: 213449 | BL24: 212976 | BM24: 212903 | BN24: 211983 | BO24: 209458 | BP24: 206005 | BQ24: 203955 | BR24: 201258 | BS24: 197854 | BT24: 193804 | BU24: 189239 | BV24: 184326 | BW24: 179262 | BX24: 174280 | BY24: 169591 | BZ24: 165338 | CA24: 161600 | CB24: 158426 | CC24: 155802 | CD24: 153646
A25: 20 | B25: 440200 | C25: 442421 | D25: 436904 | E25: 426588 | F25: 414497 | G25: 407739 | H25: 405946 | I25: 406932 | J25: 416588 | K25: 436182 | L25: 444752 | M25: 448692 | N25: 445210 | O25: 433866 | P25: 416959 | Q25: 396680 | R25: 369751 | S25: 358648 | T25: 363978 | U25: 379147 | V25: 398232 | W25: 411072 | X25: 396047 | Y25: 372141 | Z25: 343130 | AA25: 319848 | AB25: 307280 | AC25: 298568 | AD25: 295911 | AE25: 299306 | AF25: 306843 | AG25: 319936 | AH25: 330111 | AI25: 331836 | AJ25: 328266 | AK25: 324823 | AL25: 320733 | AM25: 313139 | AN25: 303559 | AO25: 294185 | AP25: 287307 | AQ25: 281636 | AR25: 242908 | AS25: 226790 | AT25: 227779 | AU25: 212033 | AV25: 207877 | AW25: 219160 | AX25: 232899 | AY25: 216228 | AZ25: 213036 | BA25: 229615 | BB25: 216469 | BC25: 216004 | BD25: 216286 | BE25: 214780 | BF25: 215987 | BG25: 216528 | BH25: 215782 | BI25: 215071 | BJ25: 214473 | BK25: 214016 | BL25: 213699 | BM25: 213230 | BN25: 213162 | BO25: 212246 | BP25: 209722 | BQ25: 206269 | BR25: 204221 | BS25: 201524 | BT25: 198120 | BU25: 194068 | BV25: 189500 | BW25: 184584 | BX25: 179516 | BY25: 174530 | BZ25: 169837 | CA25: 165581 | CB25: 161840 | CC25: 158664 | CD25: 156039
A26: 21 | B26: 423298 | C26: 439089 | D26: 439049 | E26: 432686 | F26: 422212 | G26: 410930 | H26: 405079 | I26: 403953 | J26: 403666 | K26: 413899 | L26: 434063 | M26: 444171 | N26: 447988 | O26: 444295 | P26: 432834 | Q26: 415953 | R26: 393343 | S26: 367930 | T26: 358998 | U26: 362626 | V26: 377766 | W26: 395080 | X26: 405448 | Y26: 392431 | Z26: 367966 | AA26: 339735 | AB26: 316560 | AC26: 303881 | AD26: 296895 | AE26: 297236 | AF26: 299591 | AG26: 306961 | AH26: 318900 | AI26: 329015 | AJ26: 330709 | AK26: 327128 | AL26: 323675 | AM26: 319578 | AN26: 311994 | AO26: 302431 | AP26: 293075 | AQ26: 286209 | AR26: 280545 | AS26: 241955 | AT26: 225890 | AU26: 226865 | AV26: 211173 | AW26: 207025 | AX26: 218253 | AY26: 231927 | AZ26: 215317 | BA26: 212131 | BB26: 228632 | BC26: 215534 | BD26: 215064 | BE26: 215338 | BF26: 213832 | BG26: 215027 | BH26: 215559 | BI26: 214810 | BJ26: 214096 | BK26: 213495 | BL26: 213034 | BM26: 212713 | BN26: 212241 | BO26: 212168 | BP26: 211251 | BQ26: 208733 | BR26: 205292 | BS26: 203249 | BT26: 200560 | BU26: 197168 | BV26: 193131 | BW26: 188581 | BX26: 183685 | BY26: 178638 | BZ26: 173673 | CA26: 168999 | CB26: 164761 | CC26: 161035 | CD26: 157872
A27: 22 | B27: 398968 | C27: 422283 | D27: 436238 | E27: 435804 | F27: 428524 | G27: 417434 | H27: 410760 | I27: 402606 | J27: 401841 | K27: 400319 | L27: 416331 | M27: 433419 | N27: 443525 | O27: 447065 | P27: 443328 | Q27: 431841 | R27: 418563 | S27: 393705 | T27: 369545 | U27: 358412 | V27: 361128 | W27: 376053 | X27: 392375 | Y27: 402295 | Z27: 388336 | AA27: 364643 | AB27: 339464 | AC27: 316522 | AD27: 304568 | AE27: 300090 | AF27: 298920 | AG27: 302017 | AH27: 306908 | AI27: 318750 | AJ27: 328768 | AK27: 330376 | AL27: 326718 | AM27: 323195 | AN27: 319036 | AO27: 311400 | AP27: 301797 | AQ27: 292406 | AR27: 285505 | AS27: 279807 | AT27: 241279 | AU27: 225224 | AV27: 226162 | AW27: 210488 | AX27: 206325 | AY27: 217486 | AZ27: 231082 | BA27: 214505 | BB27: 211306 | BC27: 227715 | BD27: 214645 | BE27: 214153 | BF27: 214402 | BG27: 212881 | BH27: 214048 | BI27: 214556 | BJ27: 213790 | BK27: 213059 | BL27: 212441 | BM27: 211963 | BN27: 211624 | BO27: 211137 | BP27: 211046 | BQ27: 210116 | BR27: 207595 | BS27: 204156 | BT27: 202109 | BU27: 199420 | BV27: 196032 | BW27: 192004 | BX27: 187467 | BY27: 182587 | BZ27: 177558 | CA27: 172611 | CB27: 167954 | CC27: 163731 | CD27: 160018
A28: 23 | B28: 378636 | C28: 399790 | D28: 421500 | E28: 433505 | F28: 432599 | G28: 423948 | H28: 419567 | I28: 410762 | J28: 400019 | K28: 399633 | L28: 404960 | M28: 415960 | N28: 432714 | O28: 442663 | P28: 446091 | Q28: 442401 | R28: 427442 | S28: 418554 | T28: 393482 | U28: 368639 | V28: 358797 | W28: 362932 | X28: 377296 | Y28: 394536 | Z28: 400256 | AA28: 387435 | AB28: 366732 | AC28: 341240 | AD28: 319339 | AE28: 308168 | AF28: 302609 | AG28: 304866 | AH28: 304616 | AI28: 309539 | AJ28: 321471 | AK28: 331564 | AL28: 333174 | AM28: 329475 | AN28: 325913 | AO28: 321709 | AP28: 314001 | AQ28: 304310 | AR28: 294833 | AS28: 287867 | AT28: 282115 | AU28: 243264 | AV28: 227072 | AW28: 228012 | AX28: 212205 | AY28: 208004 | AZ28: 219251 | BA28: 232953 | BB28: 216238 | BC28: 213009 | BD28: 229546 | BE28: 216367 | BF28: 215868 | BG28: 216115 | BH28: 214578 | BI28: 215751 | BJ28: 216260 | BK28: 215484 | BL28: 214744 | BM28: 214118 | BN28: 213633 | BO28: 213289 | BP28: 212795 | BQ28: 212700 | BR28: 211760 | BS28: 209216 | BT28: 205748 | BU28: 203682 | BV28: 200970 | BW28: 197553 | BX28: 193491 | BY28: 188917 | BZ28: 183997 | CA28: 178927 | CB28: 173940 | CC28: 169245 | CD28: 164988
A29: 24 | B29: 374215 | C29: 380125 | D29: 400831 | E29: 420816 | F29: 430806 | G29: 428958 | H29: 424770 | I29: 421889 | J29: 410632 | K29: 397342 | L29: 404767 | M29: 404763 | N29: 415528 | O29: 431797 | P29: 441750 | Q29: 445156 | R29: 444229 | S29: 427234 | T29: 417813 | U29: 392442 | V29: 368607 | W29: 360266 | X29: 363950 | Y29: 378488 | Z29: 393576 | AA29: 397744 | AB29: 389141 | AC29: 368079 | AD29: 342727 | AE29: 321403 | AF29: 308971 | AG29: 307842 | AH29: 307031 | AI29: 306803 | AJ29: 311784 | AK29: 323825 | AL29: 334012 | AM29: 335654 | AN29: 331946 | AO29: 328374 | AP29: 324154 | AQ29: 316403 | AR29: 306652 | AS29: 297114 | AT29: 290106 | AU29: 284321 | AV29: 245175 | AW29: 228864 | AX29: 229820 | AY29: 213895 | AZ29: 209667 | BA29: 221011 | BB29: 234831 | BC29: 217987 | BD29: 214738 | BE29: 231415 | BF29: 218135 | BG29: 217638 | BH29: 217892 | BI29: 216348 | BJ29: 217536 | BK29: 218054 | BL29: 217277 | BM29: 216535 | BN29: 215909 | BO29: 215424 | BP29: 215082 | BQ29: 214588 | BR29: 214497 | BS29: 213553 | BT29: 210992 | BU29: 207498 | BV29: 205418 | BW29: 202686 | BX29: 199244 | BY29: 195150 | BZ29: 190540 | CA29: 185581 | CB29: 180470 | CC29: 175443 | CD29: 170710
A30: 25 | B30: 356659 | C30: 372729 | D30: 381827 | E30: 401970 | F30: 420149 | G30: 427665 | H30: 430095 | I30: 425774 | J30: 424087 | K30: 410391 | L30: 407651 | M30: 404617 | N30: 404507 | O30: 414893 | P30: 430831 | Q30: 440876 | R30: 446897 | S30: 443721 | T30: 426373 | U30: 416753 | V30: 392035 | W30: 369682 | X30: 361043 | Y30: 364697 | Z30: 377514 | AA30: 391540 | AB30: 398858 | AC30: 390152 | AD30: 369254 | AE30: 343546 | AF30: 321517 | AG30: 311699 | AH30: 308959 | AI30: 308169 | AJ30: 307962 | AK30: 312983 | AL30: 325091 | AM30: 335338 | AN30: 337007 | AO30: 333301 | AP30: 329732 | AQ30: 325511 | AR30: 317743 | AS30: 307964 | AT30: 298399 | AU30: 291373 | AV30: 285575 | AW30: 246266 | AX30: 229891 | AY30: 230860 | AZ30: 214871 | BA30: 210631 | BB30: 222035 | BC30: 235926 | BD30: 219011 | BE30: 215753 | BF30: 232516 | BG30: 219179 | BH30: 218686 | BI30: 218948 | BJ30: 217402 | BK30: 218601 | BL30: 219128 | BM30: 218352 | BN30: 217612 | BO30: 216988 | BP30: 216506 | BQ30: 216167 | BR30: 215676 | BS30: 215589 | BT30: 214645 | BU30: 212075 | BV30: 208567 | BW30: 206481 | BX30: 203739 | BY30: 200283 | BZ30: 196171 | CA30: 191541 | CB30: 186559 | CC30: 181425 | CD30: 176374
A31: 26 | B31: 311891 | C31: 354006 | D31: 371452 | E31: 383626 | F31: 403125 | G31: 419033 | H31: 428051 | I31: 431416 | J31: 426641 | K31: 426181 | L31: 414325 | M31: 407760 | N31: 404408 | O31: 404053 | P31: 414209 | Q31: 429903 | R31: 439362 | S31: 446640 | T31: 442860 | U31: 425238 | V31: 416663 | W31: 391876 | X31: 370759 | Y31: 361993 | Z31: 364325 | AA31: 375807 | AB31: 392727 | AC31: 400264 | AD31: 391975 | AE31: 370300 | AF31: 343653 | AG31: 323915 | AH31: 312138 | AI31: 309408 | AJ31: 308630 | AK31: 308436 | AL31: 313477 | AM31: 325617 | AN31: 335894 | AO31: 337577 | AP31: 333877 | AQ31: 330313 | AR31: 326095 | AS31: 318323 | AT31: 308536 | AU31: 298962 | AV31: 291931 | AW31: 286130 | AX31: 246751 | AY31: 230350 | AZ31: 231327 | BA31: 215311 | BB31: 211068 | BC31: 222500 | BD31: 236426 | BE31: 219480 | BF31: 216220 | BG31: 233024 | BH31: 219662 | BI31: 219173 | BJ31: 219440 | BK31: 217894 | BL31: 219100 | BM31: 219632 | BN31: 218858 | BO31: 218121 | BP31: 217499 | BQ31: 217019 | BR31: 216683 | BS31: 216195 | BT31: 216111 | BU31: 215168 | BV31: 212595 | BW31: 209081 | BX31: 206993 | BY31: 204247 | BZ31: 200786 | CA31: 196666 | CB31: 192027 | CC31: 187035 | CD31: 181890
A32: 27 | B32: 288979 | C32: 312884 | D32: 351564 | E32: 370265 | F32: 385447 | G32: 403853 | H32: 418796 | I32: 428617 | J32: 432602 | K32: 427396 | L32: 421973 | M32: 414163 | N32: 407809 | O32: 404000 | P32: 403551 | Q32: 413561 | R32: 428331 | S32: 439145 | T32: 445591 | U32: 441968 | V32: 425007 | W32: 415619 | X32: 391852 | Y32: 371742 | Z32: 362160 | AA32: 363246 | AB32: 376744 | AC32: 394201 | AD32: 402298 | AE32: 393314 | AF32: 370966 | AG32: 346228 | AH32: 323968 | AI32: 312193 | AJ32: 309467 | AK32: 308694 | AL32: 308504 | AM32: 313552 | AN32: 325700 | AO32: 335985 | AP32: 337673 | AQ32: 333978 | AR32: 330418 | AS32: 326203 | AT32: 318434 | AU32: 308648 | AV32: 299075 | AW32: 292046 | AX32: 286246 | AY32: 246855 | AZ32: 230450 | BA32: 231430 | BB32: 215411 | BC32: 211168 | BD32: 222608 | BE32: 236544 | BF32: 219592 | BG32: 216333 | BH32: 233148 | BI32: 219782 | BJ32: 219295 | BK32: 219564 | BL32: 218019 | BM32: 219228 | BN32: 219763 | BO32: 218991 | BP32: 218255 | BQ32: 217635 | BR32: 217157 | BS32: 216822 | BT32: 216336 | BU32: 216254 | BV32: 215312 | BW32: 212739 | BX32: 209224 | BY32: 207137 | BZ32: 204390 | CA32: 200928 | CB32: 196807 | CC32: 192166 | CD32: 187172
A33: 28 | B33: 278826 | C33: 289680 | D33: 314051 | E33: 349220 | F33: 369095 | G33: 386863 | H33: 402964 | I33: 418735 | J33: 429046 | K33: 433675 | L33: 427066 | M33: 421422 | N33: 413941 | O33: 407658 | P33: 403545 | Q33: 403084 | R33: 408301 | S33: 428184 | T33: 438011 | U33: 444886 | V33: 442161 | W33: 425160 | X33: 414635 | Y33: 391834 | Z33: 372068 | AA33: 361711 | AB33: 364003 | AC33: 377657 | AD33: 396265 | AE33: 403977 | AF33: 394599 | AG33: 372970 | AH33: 346028 | AI33: 323777 | AJ33: 312005 | AK33: 309279 | AL33: 308505 | AM33: 308314 | AN33: 313358 | AO33: 325498 | AP33: 335776 | AQ33: 337464 | AR33: 333771 | AS33: 330213 | AT33: 326002 | AU33: 318238 | AV33: 308459 | AW33: 298893 | AX33: 291869 | AY33: 286074 | AZ33: 246707 | BA33: 230312 | BB33: 231293 | BC33: 215283 | BD33: 211044 | BE33: 222478 | BF33: 236406 | BG33: 219465 | BH33: 216209 | BI33: 233015 | BJ33: 219657 | BK33: 219171 | BL33: 219440 | BM33: 217897 | BN33: 219105 | BO33: 219641 | BP33: 218870 | BQ33: 218135 | BR33: 217516 | BS33: 217039 | BT33: 216705 | BU33: 216219 | BV33: 216138 | BW33: 215197 | BX33: 212626 | BY33: 209113 | BZ33: 207028 | CA33: 204283 | CB33: 200823 | CC33: 196704 | CD33: 192066
A34: 29 | B34: 252065 | C34: 277907 | D34: 290541 | E34: 315295 | F34: 346904 | G34: 367535 | H34: 385809 | I34: 402246 | J34: 418539 | K34: 429360 | L34: 433119 | M34: 426655 | N34: 420810 | O34: 413515 | P34: 407458 | Q34: 403124 | R34: 399430 | S34: 408321 | T34: 427062 | U34: 437330 | V34: 444889 | W34: 440489 | X34: 425464 | Y34: 413832 | Z34: 391495 | AA34: 371682 | AB34: 362739 | AC34: 364636 | AD34: 379362 | AE34: 397910 | AF34: 405728 | AG34: 396352 | AH34: 372581 | AI34: 345654 | AJ34: 323418 | AK34: 311651 | AL34: 308922 | AM34: 308143 | AN34: 307947 | AO34: 312980 | AP34: 325101 | AQ34: 335363 | AR34: 337045 | AS34: 333353 | AT34: 329797 | AU34: 325588 | AV34: 317832 | AW34: 308063 | AX34: 298508 | AY34: 291491 | AZ34: 285702 | BA34: 246385 | BB34: 230011 | BC34: 230989 | BD34: 214999 | BE34: 210765 | BF34: 222183 | BG34: 236092 | BH34: 219172 | BI34: 215920 | BJ34: 232703 | BK34: 219362 | BL34: 218876 | BM34: 219144 | BN34: 217602 | BO34: 218808 | BP34: 219342 | BQ34: 218572 | BR34: 217838 | BS34: 217219 | BT34: 216742 | BU34: 216408 | BV34: 215922 | BW34: 215840 | BX34: 214900 | BY34: 212332 | BZ34: 208824 | CA34: 206741 | CB34: 203999 | CC34: 200544 | CD34: 196430
A35: 30 | B35: 242267 | C35: 253715 | D35: 277141 | E35: 291472 | F35: 316556 | G35: 353801 | H35: 369860 | I35: 384921 | J35: 401400 | K35: 418232 | L35: 432853 | M35: 432660 | N35: 426183 | O35: 419993 | P35: 413041 | Q35: 407293 | R35: 402414 | S35: 399490 | T35: 407452 | U35: 426509 | V35: 437603 | W35: 443353 | X35: 438709 | Y35: 425581 | Z35: 412260 | AA35: 390288 | AB35: 372360 | AC35: 363686 | AD35: 365819 | AE35: 380308 | AF35: 399499 | AG35: 407112 | AH35: 395825 | AI35: 372066 | AJ35: 345161 | AK35: 322945 | AL35: 311184 | AM35: 308450 | AN35: 307664 | AO35: 307460 | AP35: 312477 | AQ35: 324573 | AR35: 334811 | AS35: 336483 | AT35: 332792 | AU35: 329237 | AV35: 325030 | AW35: 317283 | AX35: 307527 | AY35: 297985 | AZ35: 290976 | BA35: 285194 | BB35: 245945 | BC35: 229597 | BD35: 230572 | BE35: 214608 | BF35: 210380 | BG35: 221775 | BH35: 235656 | BI35: 218766 | BJ35: 215518 | BK35: 232268 | BL35: 218950 | BM35: 218463 | BN35: 218729 | BO35: 217189 | BP35: 218391 | BQ35: 218922 | BR35: 218152 | BS35: 217418 | BT35: 216799 | BU35: 216321 | BV35: 215987 | BW35: 215500 | BX35: 215417 | BY35: 214478 | BZ35: 211914 | CA35: 208411 | CB35: 206331 | CC35: 203593 | CD35: 200144
A36: 31 | B36: 250720 | C36: 244677 | D36: 255515 | E36: 276442 | F36: 292416 | G36: 325072 | H36: 356216 | I36: 372355 | J36: 383911 | K36: 400448 | L36: 421712 | M36: 432549 | N36: 432139 | O36: 425502 | P36: 419128 | Q36: 412602 | R36: 399337 | S36: 402555 | T36: 398603 | U36: 407054 | V36: 426528 | W36: 437178 | X36: 441824 | Y36: 437199 | Z36: 425299 | AA36: 410090 | AB36: 389967 | AC36: 373203 | AD36: 365125 | AE36: 366343 | AF36: 381320 | AG36: 400445 | AH36: 406512 | AI36: 395217 | AJ36: 371474 | AK36: 344595 | AL36: 322401 | AM36: 310648 | AN36: 307908 | AO36: 307112 | AP36: 306899 | AQ36: 311899 | AR36: 323963 | AS36: 334173 | AT36: 335834 | AU36: 332143 | AV36: 328588 | AW36: 324383 | AX36: 316645 | AY36: 306904 | AZ36: 297376 | BA36: 290376 | BB36: 284603 | BC36: 245430 | BD36: 229114 | BE36: 230083 | BF36: 214150 | BG36: 209929 | BH36: 221296 | BI36: 235145 | BJ36: 218288 | BK36: 215045 | BL36: 231756 | BM36: 218465 | BN36: 217976 | BO36: 218239 | BP36: 216700 | BQ36: 217897 | BR36: 218425 | BS36: 217655 | BT36: 216921 | BU36: 216301 | BV36: 215822 | BW36: 215486 | BX36: 214999 | BY36: 214914 | BZ36: 213976 | CA36: 211416 | CB36: 207919 | CC36: 205842 | CD36: 203109
A37: 32 | B37: 252281 | C37: 251156 | D37: 247245 | E37: 257387 | F37: 275755 | G37: 293050 | H37: 321262 | I37: 358798 | J37: 374747 | K37: 382801 | L37: 402162 | M37: 421427 | N37: 432182 | O37: 431407 | P37: 424771 | Q37: 418299 | R37: 407686 | S37: 399370 | T37: 401895 | U37: 397960 | V37: 407138 | W37: 427423 | X37: 436857 | Y37: 439958 | Z37: 435122 | AA37: 424017 | AB37: 409247 | AC37: 389654 | AD37: 374433 | AE37: 365974 | AF37: 367089 | AG37: 382572 | AH37: 399843 | AI37: 405872 | AJ37: 394569 | AK37: 370845 | AL37: 343993 | AM37: 321823 | AN37: 310079 | AO37: 307331 | AP37: 306525 | AQ37: 306303 | AR37: 311283 | AS37: 323313 | AT37: 333493 | AU37: 335142 | AV37: 331451 | AW37: 327895 | AX37: 323691 | AY37: 315963 | AZ37: 306237 | BA37: 296723 | BB37: 289734 | BC37: 283968 | BD37: 244879 | BE37: 228595 | BF37: 229558 | BG37: 213658 | BH37: 209443 | BI37: 220781 | BJ37: 234594 | BK37: 217773 | BL37: 214535 | BM37: 231203 | BN37: 217940 | BO37: 217450 | BP37: 217710 | BQ37: 216172 | BR37: 217363 | BS37: 217887 | BT37: 217117 | BU37: 216382 | BV37: 215761 | BW37: 215280 | BX37: 214943 | BY37: 214455 | BZ37: 214368 | CA37: 213430 | CB37: 210875 | CC37: 207384 | CD37: 205311
A38: 33 | B38: 240658 | C38: 251922 | D38: 251729 | E38: 249898 | F38: 259282 | G38: 284775 | H38: 288915 | I38: 317632 | J38: 361283 | K38: 377053 | L38: 383185 | M38: 401823 | N38: 421080 | O38: 431604 | P38: 430624 | Q38: 424077 | R38: 430872 | S38: 407778 | T38: 398683 | U38: 401595 | V38: 398044 | W38: 409216 | X38: 427789 | Y38: 436316 | Z38: 437785 | AA38: 431899 | AB38: 423419 | AC38: 408204 | AD38: 389773 | AE38: 375029 | AF38: 366956 | AG38: 367710 | AH38: 382016 | AI38: 399231 | AJ38: 405223 | AK38: 393914 | AL38: 370208 | AM38: 343385 | AN38: 321241 | AO38: 309503 | AP38: 306749 | AQ38: 305933 | AR38: 305701 | AS38: 310660 | AT38: 322656 | AU38: 332806 | AV38: 334443 | AW38: 330751 | AX38: 327193 | AY38: 322991 | AZ38: 315272 | BA38: 305561 | BB38: 296062 | BC38: 289082 | BD38: 283324 | BE38: 244319 | BF38: 228068 | BG38: 229024 | BH38: 213157 | BI38: 208949 | BJ38: 220256 | BK38: 234033 | BL38: 217249 | BM38: 214015 | BN38: 230639 | BO38: 217405 | BP38: 216913 | BQ38: 217170 | BR38: 215633 | BS38: 216818 | BT38: 217338 | BU38: 216566 | BV38: 215831 | BW38: 215208 | BX38: 214726 | BY38: 214387 | BZ38: 213898 | CA38: 213809 | CB38: 212871 | CC38: 210320 | CD38: 206836
A39: 34 | B39: 219172 | C39: 240507 | D39: 251700 | E39: 252363 | F39: 252589 | G39: 205913 | H39: 281615 | I39: 284958 | J39: 313941 | K39: 363687 | L39: 371207 | M39: 382776 | N39: 401426 | O39: 420527 | P39: 430975 | Q39: 429879 | R39: 430152 | S39: 430644 | T39: 407359 | U39: 398415 | V39: 401766 | W39: 399067 | X39: 411001 | Y39: 428189 | Z39: 435424 | AA39: 434802 | AB39: 431760 | AC39: 422687 | AD39: 407804 | AE39: 389260 | AF39: 375696 | AG39: 367265 | AH39: 367214 | AI39: 381470 | AJ39: 398632 | AK39: 404591 | AL39: 393276 | AM39: 369589 | AN39: 342796 | AO39: 320674 | AP39: 308945 | AQ39: 306184 | AR39: 305358 | AS39: 305115 | AT39: 310055 | AU39: 322019 | AV39: 332139 | AW39: 333764 | AX39: 330070 | AY39: 326512 | AZ39: 322310 | BA39: 314600 | BB39: 304904 | BC39: 295418 | BD39: 288448 | BE39: 282697 | BF39: 243773 | BG39: 227554 | BH39: 228504 | BI39: 212669 | BJ39: 208467 | BK39: 219744 | BL39: 233485 | BM39: 216737 | BN39: 213507 | BO39: 230088 | BP39: 216882 | BQ39: 216388 | BR39: 216642 | BS39: 215105 | BT39: 216285 | BU39: 216800 | BV39: 216027 | BW39: 215291 | BX39: 214667 | BY39: 214183 | BZ39: 213843 | CA39: 213352 | CB39: 213261 | CC39: 212322 | CD39: 209775
A40: 35 | B40: 205918 | C40: 220149 | D40: 240487 | E40: 251537 | F40: 253007 | G40: 255035 | H40: 213945 | I40: 278608 | J40: 280965 | K40: 310209 | L40: 351405 | M40: 370426 | N40: 382312 | O40: 400833 | P40: 419925 | Q40: 430383 | R40: 431468 | S40: 429696 | T40: 429748 | U40: 407004 | V40: 398710 | W40: 401255 | X40: 399869 | Y40: 412435 | Z40: 428339 | AA40: 433438 | AB40: 435001 | AC40: 431249 | AD40: 422659 | AE40: 406726 | AF40: 388854 | AG40: 375891 | AH40: 366824 | AI40: 366745 | AJ40: 380956 | AK40: 398070 | AL40: 403997 | AM40: 392678 | AN40: 369011 | AO40: 342243 | AP40: 320144 | AQ40: 308423 | AR40: 305655 | AS40: 304819 | AT40: 304567 | AU40: 309490 | AV40: 321423 | AW40: 331515 | AX40: 333128 | AY40: 329433 | AZ40: 325873 | BA40: 321672 | BB40: 313972 | BC40: 304287 | BD40: 294815 | BE40: 287853 | BF40: 282108 | BG40: 243261 | BH40: 227071 | BI40: 228016 | BJ40: 212210 | BK40: 208014 | BL40: 219263 | BM40: 232970 | BN40: 216255 | BO40: 213029 | BP40: 229569 | BQ40: 216390 | BR40: 215894 | BS40: 216144 | BT40: 214608 | BU40: 215782 | BV40: 216293 | BW40: 215518 | BX40: 214781 | BY40: 214156 | BZ40: 213671 | CA40: 213329 | CB40: 212836 | CC40: 212743 | CD40: 211804
A41: 36 | B41: 210836 | C41: 207342 | D41: 221251 | E41: 240523 | F41: 251382 | G41: 254903 | H41: 254419 | I41: 222384 | J41: 275544 | K41: 276953 | L41: 313245 | M41: 350373 | N41: 369593 | O41: 381662 | P41: 400192 | Q41: 419358 | R41: 434110 | S41: 430994 | T41: 428955 | U41: 429377 | V41: 407140 | W41: 399858 | X41: 400604 | Y41: 400256 | Z41: 413630 | AA41: 427550 | AB41: 433981 | AC41: 434671 | AD41: 431583 | AE41: 421840 | AF41: 405687 | AG41: 389141 | AH41: 375511 | AI41: 366426 | AJ41: 366322 | AK41: 380494 | AL41: 397564 | AM41: 403463 | AN41: 392142 | AO41: 368490 | AP41: 341747 | AQ41: 319668 | AR41: 307953 | AS41: 305178 | AT41: 304335 | AU41: 304075 | AV41: 308981 | AW41: 320886 | AX41: 330952 | AY41: 332555 | AZ41: 328858 | BA41: 325297 | BB41: 321097 | BC41: 313403 | BD41: 303731 | BE41: 294269 | BF41: 287315 | BG41: 281576 | BH41: 242797 | BI41: 226635 | BJ41: 227573 | BK41: 211795 | BL41: 207604 | BM41: 218826 | BN41: 232502 | BO41: 215818 | BP41: 212595 | BQ41: 229098 | BR41: 215943 | BS41: 215445 | BT41: 215692 | BU41: 214156 | BV41: 215324 | BW41: 215831 | BX41: 215055 | BY41: 214317 | BZ41: 213691 | CA41: 213204 | CB41: 212860 | CC41: 212366 | CD41: 212270
A42: 37 | B42: 226224 | C42: 211179 | D42: 208890 | E42: 222410 | F42: 240568 | G42: 255388 | H42: 255144 | I42: 253911 | J42: 231080 | K42: 272442 | L42: 287472 | M42: 313007 | N42: 349292 | O42: 368581 | P42: 380966 | Q42: 399586 | R42: 427134 | S42: 433488 | T42: 430033 | U42: 428278 | V42: 429564 | W42: 407695 | X42: 400601 | Y42: 399531 | Z42: 400513 | AA42: 414017 | AB42: 427924 | AC42: 433985 | AD42: 435322 | AE42: 431026 | AF42: 421129 | AG42: 405886 | AH42: 388835 | AI42: 375189 | AJ42: 366087 | AK42: 365963 | AL42: 380100 | AM42: 397132 | AN42: 403009 | AO42: 391683 | AP42: 368045 | AQ42: 341323 | AR42: 319260 | AS42: 307549 | AT42: 304769 | AU42: 303919 | AV42: 303652 | AW42: 308543 | AX42: 320423 | AY42: 330468 | AZ42: 332060 | BA42: 328361 | BB42: 324800 | BC42: 320598 | BD42: 312912 | BE42: 303248 | BF42: 293796 | BG42: 286849 | BH42: 281114 | BI42: 242395 | BJ42: 226255 | BK42: 227188 | BL42: 211434 | BM42: 207246 | BN42: 218445 | BO42: 232095 | BP42: 215437 | BQ42: 212216 | BR42: 228687 | BS42: 215553 | BT42: 215053 | BU42: 215296 | BV42: 213760 | BW42: 214923 | BX42: 215427 | BY42: 214650 | BZ42: 213911 | CA42: 213283 | CB42: 212795 | CC42: 212448 | CD42: 211953
A43: 38 | B43: 237179 | C43: 224901 | D43: 211637 | E43: 210499 | F43: 223583 | G43: 245285 | H43: 254779 | I43: 255493 | J43: 253322 | K43: 240054 | L43: 273478 | M43: 287553 | N43: 312724 | O43: 348044 | P43: 367527 | Q43: 380304 | R43: 394289 | S43: 426579 | T43: 432587 | U43: 429461 | V43: 428105 | W43: 427161 | X43: 407926 | Y43: 400850 | Z43: 398496 | AA43: 399987 | AB43: 413951 | AC43: 427690 | AD43: 435210 | AE43: 435017 | AF43: 430690 | AG43: 421446 | AH43: 405669 | AI43: 388601 | AJ43: 374940 | AK43: 365824 | AL43: 365681 | AM43: 379789 | AN43: 396793 | AO43: 402648 | AP43: 391318 | AQ43: 367690 | AR43: 340983 | AS43: 318931 | AT43: 307225 | AU43: 304440 | AV43: 303584 | AW43: 303309 | AX43: 308188 | AY43: 320048 | AZ43: 330074 | BA43: 331657 | BB43: 327957 | BC43: 324393 | BD43: 320192 | BE43: 312509 | BF43: 302852 | BG43: 293408 | BH43: 286465 | BI43: 280734 | BJ43: 242063 | BK43: 225942 | BL43: 226871 | BM43: 211135 | BN43: 206950 | BO43: 218130 | BP43: 231758 | BQ43: 215121 | BR43: 211902 | BS43: 228346 | BT43: 215229 | BU43: 214726 | BV43: 214967 | BW43: 213430 | BX43: 214589 | BY43: 215090 | BZ43: 214312 | CA43: 213571 | CB43: 212942 | CC43: 212452 | CD43: 212103
A44: 39 | B44: 230562 | C44: 234740 | D44: 223709 | E44: 212145 | F44: 212127 | G44: 226986 | H44: 244651 | I44: 254279 | J44: 255759 | K44: 252666 | L44: 253945 | M44: 273203 | N44: 287593 | O44: 312288 | P44: 346759 | Q44: 366507 | R44: 368374 | S44: 393696 | T44: 425723 | U44: 431711 | V44: 428988 | W44: 427970 | X44: 424546 | Y44: 407689 | Z44: 401168 | AA44: 396691 | AB44: 400237 | AC44: 413441 | AD44: 428790 | AE44: 435404 | AF44: 434944 | AG44: 430946 | AH44: 421335 | AI44: 405537 | AJ44: 388452 | AK44: 374777 | AL44: 365648 | AM44: 365488 | AN44: 379576 | AO44: 396556 | AP44: 402394 | AQ44: 391059 | AR44: 367436 | AS44: 340737 | AT44: 318693 | AU44: 306989 | AV44: 304200 | AW44: 303337 | AX44: 303056 | AY44: 307926 | AZ44: 319769 | BA44: 329780 | BB44: 331357 | BC44: 327653 | BD44: 324088 | BE44: 319885 | BF44: 312204 | BG44: 302553 | BH44: 293113 | BI44: 286174 | BJ44: 280444 | BK44: 241810 | BL44: 225703 | BM44: 226627 | BN44: 210905 | BO44: 206722 | BP44: 217888 | BQ44: 231497 | BR44: 214877 | BS44: 211659 | BT44: 228081 | BU44: 214977 | BV44: 214472 | BW44: 214710 | BX44: 213173 | BY44: 214328 | BZ44: 214826 | CA44: 214047 | CB44: 213305 | CC44: 212674 | CD44: 212182
A45: 40 | B45: 221114 | C45: 229298 | D45: 232452 | E45: 222574 | F45: 212663 | G45: 213540 | H45: 224939 | I45: 244120 | J45: 253698 | K45: 255956 | L45: 248543 | M45: 253711 | N45: 272889 | O45: 287491 | P45: 311815 | Q45: 345508 | R45: 364564 | S45: 367595 | T45: 392806 | U45: 425001 | V45: 431205 | W45: 429407 | X45: 427674 | Y45: 421497 | Z45: 407619 | AA45: 401017 | AB45: 397423 | AC45: 400112 | AD45: 414089 | AE45: 428944 | AF45: 435865 | AG45: 435532 | AH45: 430955 | AI45: 421319 | AJ45: 405500 | AK45: 388399 | AL45: 374710 | AM45: 365567 | AN45: 365396 | AO45: 379468 | AP45: 396431 | AQ45: 402256 | AR45: 390914 | AS45: 367290 | AT45: 340594 | AU45: 318553 | AV45: 306848 | AW45: 304054 | AX45: 303186 | AY45: 302900 | AZ45: 307762 | BA45: 319593 | BB45: 329594 | BC45: 331163 | BD45: 327458 | BE45: 323890 | BF45: 319685 | BG45: 312005 | BH45: 302355 | BI45: 292919 | BJ45: 285980 | BK45: 280250 | BL45: 241640 | BM45: 225541 | BN45: 226461 | BO45: 210749 | BP45: 206567 | BQ45: 217722 | BR45: 231318 | BS45: 214709 | BT45: 211491 | BU45: 227897 | BV45: 214802 | BW45: 214295 | BX45: 214530 | BY45: 212993 | BZ45: 214145 | CA45: 214640 | CB45: 213860 | CC45: 213116 | CD45: 212483
A46: 41 | B46: 219646 | C46: 220640 | D46: 228165 | E46: 230240 | F46: 221453 | G46: 212954 | H46: 211719 | I46: 223004 | J46: 243513 | K46: 253049 | L46: 252538 | M46: 248019 | N46: 253440 | O46: 272441 | P46: 287355 | Q46: 311369 | R46: 352198 | S46: 363907 | T46: 366726 | U46: 392073 | V46: 424553 | W46: 430079 | X46: 429709 | Y46: 426963 | Z46: 418698 | AA46: 406869 | AB46: 401649 | AC46: 397602 | AD46: 401286 | AE46: 413937 | AF46: 429351 | AG46: 436483 | AH46: 435666 | AI46: 431065 | AJ46: 421407 | AK46: 405568 | AL46: 388449 | AM46: 374744 | AN46: 365590 | AO46: 365408 | AP46: 379470 | AQ46: 396424 | AR46: 402239 | AS46: 390887 | AT46: 367258 | AU46: 340558 | AV46: 318514 | AW46: 306805 | AX46: 304006 | AY46: 303134 | AZ46: 302843 | BA46: 307699 | BB46: 319525 | BC46: 329517 | BD46: 331083 | BE46: 327374 | BF46: 323802 | BG46: 319595 | BH46: 311913 | BI46: 302264 | BJ46: 292826 | BK46: 285886 | BL46: 280155 | BM46: 241555 | BN46: 225459 | BO46: 226377 | BP46: 210669 | BQ46: 206486 | BR46: 217635 | BS46: 231223 | BT46: 214619 | BU46: 211400 | BV46: 227797 | BW46: 214705 | BX46: 214196 | BY46: 214430 | BZ46: 212891 | CA46: 214041 | CB46: 214534 | CC46: 213752 | CD46: 213006
A47: 42 | B47: 214079 | C47: 218450 | D47: 220287 | E47: 227090 | F47: 228058 | G47: 220102 | H47: 211664 | I47: 210002 | J47: 221015 | K47: 242840 | L47: 251752 | M47: 251964 | N47: 247461 | O47: 253046 | P47: 271961 | Q47: 287243 | R47: 299937 | S47: 351610 | T47: 363097 | U47: 366174 | V47: 391546 | W47: 421814 | X47: 429071 | Y47: 429952 | Z47: 426379 | AA47: 415413 | AB47: 407244 | AC47: 401640 | AD47: 399364 | AE47: 401555 | AF47: 414076 | AG47: 430091 | AH47: 436738 | AI47: 435901 | AJ47: 431279 | AK47: 421601 | AL47: 405740 | AM47: 388601 | AN47: 374882 | AO47: 365715 | AP47: 365524 | AQ47: 379583 | AR47: 396533 | AS47: 402340 | AT47: 390980 | AU47: 367340 | AV47: 340629 | AW47: 318575 | AX47: 306859 | AY47: 304056 | AZ47: 303180 | BA47: 302884 | BB47: 307738 | BC47: 319560 | BD47: 329551 | BE47: 331113 | BF47: 327400 | BG47: 323825 | BH47: 319614 | BI47: 311929 | BJ47: 302276 | BK47: 292834 | BL47: 285892 | BM47: 280158 | BN47: 241554 | BO47: 225457 | BP47: 226373 | BQ47: 210663 | BR47: 206479 | BS47: 217625 | BT47: 231211 | BU47: 214606 | BV47: 211385 | BW47: 227779 | BX47: 214686 | BY47: 214176 | BZ47: 214408 | CA47: 212867 | CB47: 214016 | CC47: 214507 | CD47: 213723
A48: 43 | B48: 207721 | C48: 213113 | D48: 217379 | E48: 219985 | F48: 226029 | G48: 225655 | H48: 219247 | I48: 210471 | J48: 208232 | K48: 218985 | L48: 239454 | M48: 251254 | N48: 251354 | O48: 246782 | P48: 252621 | Q48: 271505 | R48: 280528 | S48: 299471 | T48: 350667 | U48: 362519 | V48: 365779 | W48: 390952 | X48: 418935 | Y48: 427913 | Z48: 430403 | AA48: 425229 | AB48: 416275 | AC48: 406948 | AD48: 403225 | AE48: 399945 | AF48: 402143 | AG48: 415072 | AH48: 430450 | AI48: 437085 | AJ48: 436231 | AK48: 431592 | AL48: 421895 | AM48: 406011 | AN48: 388853 | AO48: 375117 | AP48: 365936 | AQ48: 365739 | AR48: 379799 | AS48: 396751 | AT48: 402557 | AU48: 391186 | AV48: 367529 | AW48: 340800 | AX48: 318731 | AY48: 307007 | AZ48: 304198 | BA48: 303318 | BB48: 303020 | BC48: 307872 | BD48: 319698 | BE48: 329689 | BF48: 331248 | BG48: 327532 | BH48: 323952 | BI48: 319738 | BJ48: 312046 | BK48: 302387 | BL48: 292940 | BM48: 285992 | BN48: 280254 | BO48: 241635 | BP48: 225531 | BQ48: 226446 | BR48: 210729 | BS48: 206542 | BT48: 217691 | BU48: 231278 | BV48: 214667 | BW48: 211444 | BX48: 227841 | BY48: 214743 | BZ48: 214231 | CA48: 214461 | CB48: 212919 | CC48: 214066 | CD48: 214556
A49: 44 | B49: 205119 | C49: 207025 | D49: 212268 | E49: 216363 | F49: 219691 | G49: 224732 | H49: 226464 | I49: 218485 | J49: 209216 | K49: 206424 | L49: 216664 | M49: 238860 | N49: 250721 | O49: 250623 | P49: 246076 | Q49: 252219 | R49: 278566 | S49: 280012 | T49: 298759 | U49: 350151 | V49: 362197 | W49: 366306 | X49: 390403 | Y49: 415926 | Z49: 427065 | AA49: 430478 | AB49: 426649 | AC49: 416375 | AD49: 408366 | AE49: 403475 | AF49: 400789 | AG49: 402863 | AH49: 415506 | AI49: 430886 | AJ49: 437514 | AK49: 436648 | AL49: 431994 | AM49: 422278 | AN49: 406374 | AO49: 389193 | AP49: 375439 | AQ49: 366246 | AR49: 366043 | AS49: 380108 | AT49: 397072 | AU49: 402879 | AV49: 391495 | AW49: 367816 | AX49: 341063 | AY49: 318975 | AZ49: 307239 | BA49: 304425 | BB49: 303544 | BC49: 303241 | BD49: 308096 | BE49: 319928 | BF49: 329923 | BG49: 331482 | BH49: 327761 | BI49: 324177 | BJ49: 319957 | BK49: 312258 | BL49: 302591 | BM49: 293135 | BN49: 286180 | BO49: 280438 | BP49: 241792 | BQ49: 225676 | BR49: 226591 | BS49: 210862 | BT49: 206672 | BU49: 217826 | BV49: 231420 | BW49: 214798 | BX49: 211571 | BY49: 227978 | BZ49: 214871 | CA49: 214356 | CB49: 214586 | CC49: 213041 | CD49: 214188
A50: 45 | B50: 197637 | C50: 203575 | D50: 206443 | E50: 211475 | F50: 215360 | G50: 219164 | H50: 224526 | I50: 227370 | J50: 217657 | K50: 207914 | L50: 202955 | M50: 216173 | N50: 238233 | O50: 250066 | P50: 249864 | Q50: 245392 | R50: 236984 | S50: 278085 | T50: 279341 | U50: 298251 | V50: 349733 | W50: 360651 | X50: 366976 | Y50: 389724 | Z50: 413347 | AA50: 426040 | AB50: 431008 | AC50: 427493 | AD50: 418191 | AE50: 408141 | AF50: 403855 | AG50: 401772 | AH50: 403353 | AI50: 416001 | AJ50: 431389 | AK50: 438016 | AL50: 437141 | AM50: 432473 | AN50: 422743 | AO50: 406816 | AP50: 389611 | AQ50: 375840 | AR50: 366633 | AS50: 366425 | AT50: 380504 | AU50: 397483 | AV50: 403294 | AW50: 391895 | AX50: 368190 | AY50: 341410 | AZ50: 319296 | BA50: 307547 | BB50: 304730 | BC50: 303844 | BD50: 303542 | BE50: 308399 | BF50: 320241 | BG50: 330246 | BH50: 331804 | BI50: 328079 | BJ50: 324489 | BK50: 320264 | BL50: 312557 | BM50: 302879 | BN50: 293412 | BO50: 286450 | BP50: 280701 | BQ50: 242018 | BR50: 225886 | BS50: 226801 | BT50: 211057 | BU50: 206862 | BV50: 218025 | BW50: 231631 | BX50: 214992 | BY50: 211762 | BZ50: 228183 | CA50: 215062 | CB50: 214547 | CC50: 214776 | CD50: 213228
A51: 46 | B51: 184371 | C51: 196057 | D51: 202153 | E51: 205911 | F51: 210692 | G51: 214132 | H51: 217947 | I51: 224413 | J51: 228207 | K51: 216772 | L51: 204541 | M51: 202404 | N51: 215652 | O51: 237490 | P51: 249383 | Q51: 249128 | R51: 244388 | S51: 236638 | T51: 277556 | U51: 278787 | V51: 297896 | W51: 346408 | X51: 359100 | Y51: 367642 | Z51: 389410 | AA51: 410459 | AB51: 425075 | AC51: 431093 | AD51: 429704 | AE51: 418259 | AF51: 408023 | AG51: 405153 | AH51: 402314 | AI51: 403889 | AJ51: 416547 | AK51: 431949 | AL51: 438579 | AM51: 437696 | AN51: 433021 | AO51: 423276 | AP51: 407325 | AQ51: 390097 | AR51: 376307 | AS51: 367084 | AT51: 366877 | AU51: 380973 | AV51: 397973 | AW51: 403788 | AX51: 392375 | AY51: 368642 | AZ51: 341827 | BA51: 319685 | BB51: 307923 | BC51: 305099 | BD51: 304214 | BE51: 303910 | BF51: 308772 | BG51: 320629 | BH51: 330645 | BI51: 332205 | BJ51: 328474 | BK51: 324879 | BL51: 320649 | BM51: 312931 | BN51: 303240 | BO51: 293762 | BP51: 286791 | BQ51: 281035 | BR51: 242305 | BS51: 226154 | BT51: 227069 | BU51: 211306 | BV51: 207105 | BW51: 218281 | BX51: 231902 | BY51: 215244 | BZ51: 212009 | CA51: 228448 | CB51: 215311 | CC51: 214795 | CD51: 215023
A52: 47 | B52: 177098 | C52: 183928 | D52: 194596 | E52: 200788 | F52: 205388 | G52: 209688 | H52: 213251 | I52: 216829 | J52: 224230 | K52: 228987 | L52: 215146 | M52: 203900 | N52: 201824 | O52: 215027 | P52: 236722 | Q52: 248722 | R52: 247679 | S52: 244134 | T52: 235974 | U52: 277102 | V52: 278462 | W52: 298882 | X52: 343169 | Y52: 357520 | Z52: 368387 | AA52: 388833 | AB52: 409097 | AC52: 423535 | AD52: 432644 | AE52: 430601 | AF52: 418591 | AG52: 409460 | AH52: 405737 | AI52: 402889 | AJ52: 404461 | AK52: 417134 | AL52: 432554 | AM52: 439189 | AN52: 438306 | AO52: 433623 | AP52: 423863 | AQ52: 407890 | AR52: 390638 | AS52: 376825 | AT52: 367593 | AU52: 367386 | AV52: 381503 | AW52: 398526 | AX52: 404349 | AY52: 392923 | AZ52: 369156 | BA52: 342303 | BB52: 320133 | BC52: 308352 | BD52: 305526 | BE52: 304639 | BF52: 304334 | BG52: 309205 | BH52: 321078 | BI52: 331109 | BJ52: 332670 | BK52: 328934 | BL52: 325335 | BM52: 321098 | BN52: 313368 | BO52: 303665 | BP52: 294174 | BQ52: 287193 | BR52: 281428 | BS52: 242644 | BT52: 226471 | BU52: 227386 | BV52: 211601 | BW52: 207394 | BX52: 218585 | BY52: 232226 | BZ52: 215544 | CA52: 212303 | CB52: 228765 | CC52: 215610 | CD52: 215092
A53: 48 | B53: 173434 | C53: 176505 | D53: 183585 | E53: 193191 | F53: 199439 | G53: 204647 | H53: 208383 | I53: 212463 | J53: 215646 | K53: 223985 | L53: 224076 | M53: 214453 | N53: 203232 | O53: 201148 | P53: 214377 | Q53: 235976 | R53: 246242 | S53: 247328 | T53: 243481 | U53: 235571 | V53: 276927 | W53: 279089 | X53: 299895 | Y53: 339803 | Z53: 355952 | AA53: 369017 | AB53: 388261 | AC53: 407118 | AD53: 423651 | AE53: 432843 | AF53: 431742 | AG53: 420471 | AH53: 410072 | AI53: 406340 | AJ53: 403485 | AK53: 405059 | AL53: 417750 | AM53: 433191 | AN53: 439839 | AO53: 438955 | AP53: 434266 | AQ53: 424493 | AR53: 408498 | AS53: 391217 | AT53: 377389 | AU53: 368145 | AV53: 367940 | AW53: 382079 | AX53: 399129 | AY53: 404965 | AZ53: 393521 | BA53: 369719 | BB53: 342829 | BC53: 320623 | BD53: 308828 | BE53: 305997 | BF53: 305109 | BG53: 304806 | BH53: 309685 | BI53: 321578 | BJ53: 331624 | BK53: 333189 | BL53: 329449 | BM53: 325843 | BN53: 321599 | BO53: 313859 | BP53: 304141 | BQ53: 294636 | BR53: 287644 | BS53: 281870 | BT53: 243026 | BU53: 226827 | BV53: 227744 | BW53: 211934 | BX53: 207720 | BY53: 218930 | BZ53: 232592 | CA53: 215883 | CB53: 212638 | CC53: 229125 | CD53: 215949
A54: 49 | B54: 163881 | C54: 172029 | D54: 176009 | E54: 183287 | F54: 191803 | G54: 197887 | H54: 203342 | I54: 207174 | J54: 211609 | K54: 214413 | L54: 219651 | M54: 223107 | N54: 213731 | O54: 202466 | P54: 200450 | Q54: 213748 | R54: 236603 | S54: 245815 | T54: 246540 | U54: 242948 | V54: 235303 | W54: 274433 | X54: 279652 | Y54: 300845 | Z54: 336613 | AA54: 354264 | AB54: 368960 | AC54: 387168 | AD54: 406595 | AE54: 422045 | AF54: 433015 | AG54: 433195 | AH54: 421101 | AI54: 410686 | AJ54: 406948 | AK54: 404091 | AL54: 405669 | AM54: 418379 | AN54: 433849 | AO54: 440510 | AP54: 439627 | AQ54: 434934 | AR54: 425150 | AS54: 409128 | AT54: 391828 | AU54: 377981 | AV54: 368727 | AW54: 368522 | AX54: 382687 | AY54: 399769 | AZ54: 405616 | BA54: 394155 | BB54: 370320 | BC54: 343385 | BD54: 321148 | BE54: 309334 | BF54: 306499 | BG54: 305614 | BH54: 305311 | BI54: 310201 | BJ54: 322113 | BK54: 332178 | BL54: 333748 | BM54: 330002 | BN54: 326390 | BO54: 322141 | BP54: 314389 | BQ54: 304656 | BR54: 295135 | BS54: 288132 | BT54: 282350 | BU54: 243439 | BV54: 227214 | BW54: 228133 | BX54: 212296 | BY54: 208076 | BZ54: 219305 | CA54: 232990 | CB54: 216253 | CC54: 213002 | CD54: 229518
A55: 50 | B55: 155979 | C55: 162838 | D55: 170728 | E55: 175556 | F55: 182995 | G55: 190221 | H55: 197095 | I55: 202130 | J55: 205905 | K55: 210703 | L55: 212487 | M55: 218729 | N55: 222110 | O55: 212907 | P55: 201679 | Q55: 199771 | R55: 207033 | S55: 236134 | T55: 245060 | U55: 245959 | V55: 242772 | W55: 237110 | X55: 271940 | Y55: 280207 | Z55: 301697 | AA55: 333251 | AB55: 353819 | AC55: 368300 | AD55: 387473 | AE55: 404502 | AF55: 420513 | AG55: 433817 | AH55: 433823 | AI55: 421714 | AJ55: 411286 | AK55: 407547 | AL55: 404689 | AM55: 406273 | AN55: 419009 | AO55: 434508 | AP55: 441183 | AQ55: 440304 | AR55: 435609 | AS55: 425809 | AT55: 409772 | AU55: 392449 | AV55: 378586 | AW55: 369319 | AX55: 369118 | AY55: 383312 | AZ55: 400424 | BA55: 406284 | BB55: 394811 | BC55: 370936 | BD55: 343963 | BE55: 321690 | BF55: 309857 | BG55: 307022 | BH55: 306137 | BI55: 305837 | BJ55: 310736 | BK55: 322670 | BL55: 332756 | BM55: 334329 | BN55: 330578 | BO55: 326962 | BP55: 322708 | BQ55: 314944 | BR55: 305195 | BS55: 295658 | BT55: 288645 | BU55: 282852 | BV55: 243874 | BW55: 227620 | BX55: 228542 | BY55: 212678 | BZ55: 208450 | CA55: 219699 | CB55: 233410 | CC55: 216643 | CD55: 213386
A56: 51 | B56: 151377 | C56: 155135 | D56: 161891 | E56: 169477 | F56: 175110 | G56: 182058 | H56: 189521 | I56: 196389 | J56: 200861 | K56: 204588 | L56: 209732 | M56: 211665 | N56: 217778 | O56: 221010 | P56: 212061 | Q56: 200912 | R56: 192341 | S56: 206570 | T56: 235352 | U56: 244349 | V56: 245886 | W56: 242630 | X56: 239386 | Y56: 269347 | Z56: 280771 | AA56: 302528 | AB56: 333234 | AC56: 352656 | AD56: 369041 | AE56: 386267 | AF56: 402554 | AG56: 421838 | AH56: 434402 | AI56: 434414 | AJ56: 422294 | AK56: 411858 | AL56: 408119 | AM56: 405262 | AN56: 406857 | AO56: 419620 | AP56: 435147 | AQ56: 441839 | AR56: 440966 | AS56: 436266 | AT56: 426462 | AU56: 410407 | AV56: 393064 | AW56: 379183 | AX56: 369907 | AY56: 369712 | AZ56: 383933 | BA56: 401077 | BB56: 406955 | BC56: 395463 | BD56: 371557 | BE56: 344542 | BF56: 322233 | BG56: 310385 | BH56: 307548 | BI56: 306665 | BJ56: 306366 | BK56: 311276 | BL56: 323235 | BM56: 333340 | BN56: 334917 | BO56: 331163 | BP56: 327544 | BQ56: 323285 | BR56: 315508 | BS56: 305743 | BT56: 296192 | BU56: 289166 | BV56: 283365 | BW56: 244318 | BX56: 228035 | BY56: 228961 | BZ56: 213068 | CA56: 208832 | CB56: 220103 | CC56: 233840 | CD56: 217042
A57: 52 | B57: 144278 | C57: 150125 | D57: 154378 | E57: 160987 | F57: 168240 | G57: 174479 | H57: 181177 | I57: 188904 | J57: 195623 | K57: 199546 | L57: 204831 | M57: 208859 | N57: 210816 | O57: 216726 | P57: 219888 | Q57: 211236 | R57: 198119 | S57: 191875 | T57: 205829 | U57: 234637 | V57: 244065 | W57: 245603 | X57: 241954 | Y57: 240955 | Z57: 266735 | AA57: 281125 | AB57: 302875 | AC57: 332564 | AD57: 352900 | AE57: 368155 | AF57: 385018 | AG57: 403656 | AH57: 422344 | AI57: 434932 | AJ57: 434951 | AK57: 422826 | AL57: 412384 | AM57: 408648 | AN57: 405798 | AO57: 407405 | AP57: 420193 | AQ57: 435750 | AR57: 442460 | AS57: 441590 | AT57: 436895 | AU57: 427086 | AV57: 411017 | AW57: 393652 | AX57: 379758 | AY57: 370476 | AZ57: 370285 | BA57: 384533 | BB57: 401714 | BC57: 407602 | BD57: 396102 | BE57: 372162 | BF57: 345105 | BG57: 322766 | BH57: 310902 | BI57: 308065 | BJ57: 307183 | BK57: 306886 | BL57: 311809 | BM57: 323790 | BN57: 333915 | BO57: 335498 | BP57: 331742 | BQ57: 328120 | BR57: 323855 | BS57: 316067 | BT57: 306288 | BU57: 296720 | BV57: 289685 | BW57: 283875 | BX57: 244759 | BY57: 228449 | BZ57: 229377 | CA57: 213456 | CB57: 209214 | CC57: 220506 | CD57: 234269
A58: 53 | B58: 136309 | C58: 143101 | D58: 148964 | E58: 153662 | F58: 160093 | G58: 166835 | H58: 174030 | I58: 180376 | J58: 188227 | K58: 194808 | L58: 199018 | M58: 203975 | N58: 207960 | O58: 209867 | P58: 215652 | Q58: 218790 | R58: 211073 | S58: 197515 | T58: 191162 | U58: 205089 | V58: 234286 | W58: 243356 | X58: 244728 | Y58: 240593 | Z58: 242434 | AA58: 263934 | AB58: 280158 | AC58: 302538 | AD58: 333221 | AE58: 351527 | AF58: 367344 | AG58: 385912 | AH58: 404062 | AI58: 422780 | AJ58: 435391 | AK58: 435423 | AL58: 423294 | AM58: 412850 | AN58: 409122 | AO58: 406281 | AP58: 407899 | AQ58: 420714 | AR58: 436300 | AS58: 443024 | AT58: 442167 | AU58: 437476 | AV58: 427666 | AW58: 411580 | AX58: 394201 | AY58: 380297 | AZ58: 371008 | BA58: 370822 | BB58: 385101 | BC58: 402309 | BD58: 408219 | BE58: 396707 | BF58: 372734 | BG58: 345643 | BH58: 323273 | BI58: 311396 | BJ58: 308558 | BK58: 307678 | BL58: 307386 | BM58: 312318 | BN58: 324322 | BO58: 334468 | BP58: 336059 | BQ58: 332301 | BR58: 328674 | BS58: 324405 | BT58: 316608 | BU58: 306813 | BV58: 297233 | BW58: 290187 | BX58: 284369 | BY58: 245188 | BZ58: 228850 | CA58: 229781 | CB58: 213834 | CC58: 209585 | CD58: 220898
A59: 54 | B59: 129843 | C59: 135357 | D59: 142011 | E59: 147847 | F59: 152954 | G59: 159034 | H59: 166590 | I59: 173656 | J59: 179521 | K59: 187502 | L59: 194204 | M59: 198096 | N59: 203093 | O59: 206962 | P59: 208897 | Q59: 214602 | R59: 226059 | S59: 210373 | T59: 196701 | U59: 190416 | V59: 204750 | W59: 232839 | X59: 242378 | Y59: 243273 | Z59: 239223 | AA59: 243866 | AB59: 263310 | AC59: 278661 | AD59: 303302 | AE59: 332310 | AF59: 350248 | AG59: 368357 | AH59: 386213 | AI59: 404389 | AJ59: 423135 | AK59: 435772 | AL59: 435816 | AM59: 423687 | AN59: 413248 | AO59: 409531 | AP59: 406697 | AQ59: 408330 | AR59: 421169 | AS59: 436779 | AT59: 443527 | AU59: 442681 | AV59: 437998 | AW59: 428183 | AX59: 412089 | AY59: 394699 | AZ59: 380784 | BA59: 371491 | BB59: 371316 | BC59: 385616 | BD59: 402861 | BE59: 408786 | BF59: 397262 | BG59: 373265 | BH59: 346140 | BI59: 323745 | BJ59: 311854 | BK59: 309016 | BL59: 308141 | BM59: 307851 | BN59: 312793 | BO59: 324821 | BP59: 334988 | BQ59: 336587 | BR59: 332825 | BS59: 329196 | BT59: 324925 | BU59: 317117 | BV59: 307311 | BW59: 297717 | BX59: 290662 | BY59: 284838 | BZ59: 245594 | CA59: 229230 | CB59: 230165 | CC59: 214192 | CD59: 209937
A60: 55 | B60: 126877 | C60: 128970 | D60: 134485 | E60: 140962 | F60: 146743 | G60: 152087 | H60: 157900 | I60: 166415 | J60: 173226 | K60: 178622 | L60: 187320 | M60: 193187 | N60: 197149 | O60: 202115 | P60: 205945 | Q60: 207949 | R60: 213338 | S60: 225228 | T60: 209593 | U60: 195969 | V60: 190043 | W60: 204943 | X60: 231087 | Y60: 240902 | Z60: 241631 | AA60: 237309 | AB60: 245053 | AC60: 262241 | AD60: 277978 | AE60: 302768 | AF60: 331432 | AG60: 351004 | AH60: 368550 | AI60: 386429 | AJ60: 404630 | AK60: 423404 | AL60: 436063 | AM60: 436121 | AN60: 423999 | AO60: 413569 | AP60: 409860 | AQ60: 407039 | AR60: 408686 | AS60: 421543 | AT60: 437185 | AU60: 443953 | AV60: 443122 | AW60: 438442 | AX60: 428630 | AY60: 412532 | AZ60: 395131 | BA60: 381209 | BB60: 371918 | BC60: 371746 | BD60: 386077 | BE60: 403351 | BF60: 409288 | BG60: 397761 | BH60: 373740 | BI60: 346588 | BJ60: 324169 | BK60: 312267 | BL60: 309433 | BM60: 308559 | BN60: 308272 | BO60: 313226 | BP60: 325277 | BQ60: 335464 | BR60: 337068 | BS60: 333305 | BT60: 329676 | BU60: 325400 | BV60: 317587 | BW60: 307769 | BX60: 298163 | BY60: 291102 | BZ60: 285271 | CA60: 245969 | CB60: 229583 | CC60: 230520 | CD60: 214524
A61: 56 | B61: 126164 | C61: 125688 | D61: 128172 | E61: 133650 | F61: 139925 | G61: 145492 | H61: 150549 | I61: 156840 | J61: 166188 | K61: 172751 | L61: 177226 | M61: 186237 | N61: 192148 | O61: 196110 | P61: 201118 | Q61: 204950 | R61: 202198 | S61: 212604 | T61: 224055 | U61: 208617 | V61: 195553 | W61: 190703 | X61: 204909 | Y61: 228985 | Z61: 239243 | AA61: 239583 | AB61: 238382 | AC61: 245643 | AD61: 261843 | AE61: 276264 | AF61: 302213 | AG61: 331907 | AH61: 351086 | AI61: 368651 | AJ61: 386550 | AK61: 404775 | AL61: 423571 | AM61: 436251 | AN61: 436327 | AO61: 424219 | AP61: 413796 | AQ61: 410101 | AR61: 407293 | AS61: 408949 | AT61: 421834 | AU61: 437501 | AV61: 444291 | AW61: 443469 | AX61: 438800 | AY61: 428995 | AZ61: 412893 | BA61: 395486 | BB61: 381566 | BC61: 372270 | BD61: 372112 | BE61: 386467 | BF61: 403763 | BG61: 409719 | BH61: 398188 | BI61: 374150 | BJ61: 346975 | BK61: 324536 | BL61: 312629 | BM61: 309794 | BN61: 308923 | BO61: 308642 | BP61: 313608 | BQ61: 325681 | BR61: 335884 | BS61: 337494 | BT61: 333733 | BU61: 330101 | BV61: 325826 | BW61: 318006 | BX61: 308178 | BY61: 298565 | BZ61: 291497 | CA61: 285659 | CB61: 246307 | CC61: 229900 | CD61: 230840
A62: 57 | B62: 122696 | C62: 124357 | D62: 124578 | E62: 127409 | F62: 132825 | G62: 138748 | H62: 144116 | I62: 149090 | J62: 155736 | K62: 165916 | L62: 169599 | M62: 176061 | N62: 185134 | O62: 191020 | P62: 195054 | Q62: 200143 | R62: 205945 | S62: 201278 | T62: 211420 | U62: 222893 | V62: 208043 | W62: 196033 | X62: 191093 | Y62: 204466 | Z62: 226702 | AA62: 237394 | AB62: 239542 | AC62: 238899 | AD62: 246759 | AE62: 260509 | AF62: 274432 | AG62: 302352 | AH62: 331873 | AI62: 351066 | AJ62: 368646 | AK62: 386565 | AL62: 404807 | AM62: 423623 | AN62: 436324 | AO62: 436424 | AP62: 424327 | AQ62: 413919 | AR62: 410240 | AS62: 407440 | AT62: 409119 | AU62: 422024 | AV62: 437716 | AW62: 444521 | AX62: 443715 | AY62: 439061 | AZ62: 429261 | BA62: 413160 | BB62: 395758 | BC62: 381833 | BD62: 372547 | BE62: 372400 | BF62: 386772 | BG62: 404095 | BH62: 410065 | BI62: 398536 | BJ62: 374484 | BK62: 347292 | BL62: 324841 | BM62: 312926 | BN62: 310093 | BO62: 309229 | BP62: 308955 | BQ62: 313933 | BR62: 326022 | BS62: 336240 | BT62: 337860 | BU62: 334097 | BV62: 330469 | BW62: 326193 | BX62: 318368 | BY62: 308535 | BZ62: 298913 | CA62: 291839 | CB62: 285999 | CC62: 246602 | CD62: 230177
A63: 58 | B63: 117289 | C63: 120786 | D63: 122644 | E63: 123506 | F63: 126655 | G63: 131863 | H63: 137196 | I63: 142813 | J63: 147597 | K63: 154599 | L63: 163096 | M63: 168309 | N63: 174879 | O63: 183946 | P63: 189876 | Q63: 194019 | R63: 198014 | S63: 204949 | T63: 200017 | U63: 210314 | V63: 222101 | W63: 208430 | X63: 196313 | Y63: 191253 | Z63: 203878 | AA63: 224405 | AB63: 236517 | AC63: 239312 | AD63: 240396 | AE63: 247082 | AF63: 259025 | AG63: 274547 | AH63: 302207 | AI63: 331730 | AJ63: 350934 | AK63: 368529 | AL63: 386461 | AM63: 404717 | AN63: 423551 | AO63: 436276 | AP63: 436393 | AQ63: 424318 | AR63: 413929 | AS63: 410261 | AT63: 407485 | AU63: 409181 | AV63: 422108 | AW63: 437815 | AX63: 444640 | AY63: 443855 | AZ63: 439212 | BA63: 429421 | BB63: 413333 | BC63: 395930 | BD63: 382017 | BE63: 372740 | BF63: 372600 | BG63: 386994 | BH63: 404337 | BI63: 410323 | BJ63: 398796 | BK63: 374738 | BL63: 347538 | BM63: 325075 | BN63: 313157 | BO63: 310330 | BP63: 309474 | BQ63: 309207 | BR63: 314194 | BS63: 326298 | BT63: 336532 | BU63: 338157 | BV63: 334400 | BW63: 330773 | BX63: 326497 | BY63: 318672 | BZ63: 308834 | CA63: 299205 | CB63: 292129 | CC63: 286286 | CD63: 246852
A64: 59 | B64: 109604 | C64: 115333 | D64: 118970 | E64: 120982 | F64: 122449 | G64: 125771 | H64: 130522 | I64: 135718 | J64: 141476 | K64: 146079 | L64: 153063 | M64: 161740 | N64: 167005 | O64: 173619 | P64: 182745 | Q64: 188755 | R64: 194594 | S64: 196954 | T64: 203611 | U64: 198772 | V64: 209493 | W64: 220557 | X64: 208526 | Y64: 196311 | Z64: 191357 | AA64: 203318 | AB64: 223593 | AC64: 235630 | AD64: 240438 | AE64: 240469 | AF64: 247344 | AG64: 258925 | AH64: 274304 | AI64: 301957 | AJ64: 331475 | AK64: 350689 | AL64: 368292 | AM64: 386233 | AN64: 404503 | AO64: 423357 | AP64: 436095 | AQ64: 436236 | AR64: 424187 | AS64: 413815 | AT64: 410176 | AU64: 407418 | AV64: 409136 | AW64: 422074 | AX64: 437802 | AY64: 444651 | AZ64: 443880 | BA64: 439251 | BB64: 429482 | BC64: 413399 | BD64: 396015 | BE64: 382114 | BF64: 372843 | BG64: 372719 | BH64: 387127 | BI64: 404491 | BJ64: 410491 | BK64: 398970 | BL64: 374914 | BM64: 347707 | BN64: 325239 | BO64: 313325 | BP64: 310506 | BQ64: 309658 | BR64: 309396 | BS64: 314392 | BT64: 326512 | BU64: 336756 | BV64: 338393 | BW64: 334639 | BX64: 331014 | BY64: 326743 | BZ64: 318917 | CA64: 309074 | CB64: 299444 | CC64: 292365 | CD64: 286520
A65: 60 | B65: 97977 | C65: 107670 | D65: 113472 | E65: 117210 | F65: 119347 | G65: 121270 | H65: 124499 | I65: 129248 | J65: 134213 | K65: 140114 | L65: 145965 | M65: 151730 | N65: 160373 | O65: 165629 | P65: 172348 | Q65: 181566 | R65: 189425 | S65: 193342 | T65: 195501 | U65: 202261 | V65: 197742 | W65: 208786 | X65: 218777 | Y65: 208318 | Z65: 196293 | AA65: 191494 | AB65: 203444 | AC65: 223013 | AD65: 235891 | AE65: 239560 | AF65: 240569 | AG65: 246953 | AH65: 258585 | AI65: 273962 | AJ65: 301601 | AK65: 331110 | AL65: 350326 | AM65: 367934 | AN65: 385884 | AO65: 404169 | AP65: 423028 | AQ65: 435783 | AR65: 435951 | AS65: 423925 | AT65: 413591 | AU65: 409975 | AV65: 407244 | AW65: 408975 | AX65: 421931 | AY65: 437680 | AZ65: 444545 | BA65: 443790 | BB65: 439189 | BC65: 429430 | BD65: 413373 | BE65: 396009 | BF65: 382118 | BG65: 372864 | BH65: 372752 | BI65: 387178 | BJ65: 404555 | BK65: 410569 | BL65: 399061 | BM65: 375008 | BN65: 347801 | BO65: 325338 | BP65: 313431 | BQ65: 310622 | BR65: 309780 | BS65: 309524 | BT65: 314531 | BU65: 326661 | BV65: 336922 | BW65: 338566 | BX65: 334815 | BY65: 331198 | BZ65: 326930 | CA65: 319103 | CB65: 309262 | CC65: 299629 | CD65: 292549
A66: 61 | B66: 89923 | C66: 96669 | D66: 105828 | E66: 111667 | F66: 115479 | G66: 117607 | H66: 119842 | I66: 123292 | J66: 127947 | K66: 132689 | L66: 141128 | M66: 144566 | N66: 150387 | O66: 158938 | P66: 164245 | Q66: 171100 | R66: 183972 | S66: 188072 | T66: 191869 | U66: 194165 | V66: 201170 | W66: 197461 | X66: 207822 | Y66: 216659 | Z66: 208171 | AA66: 196408 | AB66: 191611 | AC66: 203532 | AD66: 222961 | AE66: 234311 | AF66: 238657 | AG66: 240116 | AH66: 246520 | AI66: 258151 | AJ66: 273524 | AK66: 301145 | AL66: 330633 | AM66: 349847 | AN66: 367459 | AO66: 385421 | AP66: 403704 | AQ66: 422573 | AR66: 435345 | AS66: 435530 | AT66: 423552 | AU66: 413251 | AV66: 409668 | AW66: 406955 | AX66: 408709 | AY66: 421685 | AZ66: 437444 | BA66: 444324 | BB66: 443600 | BC66: 439012 | BD66: 429284 | BE66: 413255 | BF66: 395907 | BG66: 382040 | BH66: 372801 | BI66: 372708 | BJ66: 387144 | BK66: 404533 | BL66: 410565 | BM66: 399068 | BN66: 375023 | BO66: 347829 | BP66: 325376 | BQ66: 313480 | BR66: 310678 | BS66: 309843 | BT66: 309596 | BU66: 314610 | BV66: 326757 | BW66: 337028 | BX66: 338678 | BY66: 334937 | BZ66: 331325 | CA66: 327060 | CB66: 319239 | CC66: 309397 | CD66: 299764
A67: 62 | B67: 89491 | C67: 88787 | D67: 95431 | E67: 104042 | F67: 109894 | G67: 113652 | H67: 116085 | I67: 118480 | J67: 122057 | K67: 126623 | L67: 133022 | M67: 139625 | N67: 143159 | O67: 148982 | P67: 157498 | Q67: 162886 | R67: 172826 | S67: 182552 | T67: 186593 | U67: 190415 | V67: 192992 | W67: 199332 | X67: 197067 | Y67: 206671 | Z67: 214497 | AA67: 208168 | AB67: 195856 | AC67: 191138 | AD67: 203636 | AE67: 221538 | AF67: 232672 | AG67: 237705 | AH67: 239590 | AI67: 246001 | AJ67: 257630 | AK67: 272998 | AL67: 300591 | AM67: 330051 | AN67: 349261 | AO67: 366880 | AP67: 384836 | AQ67: 403126 | AR67: 421999 | AS67: 434772 | AT67: 435001 | AU67: 423065 | AV67: 412810 | AW67: 409249 | AX67: 406565 | AY67: 408347 | AZ67: 421333 | BA67: 437101 | BB67: 444009 | BC67: 443298 | BD67: 438744 | BE67: 429048 | BF67: 413042 | BG67: 395727 | BH67: 381880 | BI67: 372667 | BJ67: 372587 | BK67: 387032 | BL67: 404438 | BM67: 410479 | BN67: 398995 | BO67: 374973 | BP67: 347797 | BQ67: 325360 | BR67: 313473 | BS67: 310680 | BT67: 309855 | BU67: 309614 | BV67: 314644 | BW67: 326800 | BX67: 337079 | BY67: 338741 | BZ67: 335007 | CA67: 331400 | CB67: 327144 | CC67: 319326 | CD67: 309486
A68: 63 | B68: 90244 | C68: 87550 | D68: 87714 | E68: 94230 | F68: 102289 | G68: 108034 | H68: 111805 | I68: 114629 | J68: 117096 | K68: 120802 | L68: 125176 | M68: 131450 | N68: 138119 | O68: 141697 | P68: 147573 | Q68: 156084 | R68: 161534 | S68: 171375 | T68: 180810 | U68: 185070 | V68: 189236 | W68: 191693 | X68: 197304 | Y68: 196377 | Z68: 205407 | AA68: 212563 | AB68: 207582 | AC68: 194862 | AD68: 190853 | AE68: 202965 | AF68: 220064 | AG68: 231733 | AH68: 237081 | AI68: 238983 | AJ68: 245402 | AK68: 257030 | AL68: 272387 | AM68: 299945 | AN68: 329372 | AO68: 348581 | AP68: 366191 | AQ68: 384149 | AR68: 402440 | AS68: 421299 | AT68: 434100 | AU68: 434360 | AV68: 422482 | AW68: 412259 | AX68: 408734 | AY68: 406084 | AZ68: 407890 | BA68: 420884 | BB68: 436672 | BC68: 443587 | BD68: 442911 | BE68: 438390 | BF68: 428719 | BG68: 412752 | BH68: 395467 | BI68: 381653 | BJ68: 372461 | BK68: 372396 | BL68: 386857 | BM68: 404268 | BN68: 410318 | BO68: 398861 | BP68: 374864 | BQ68: 347713 | BR68: 325292 | BS68: 313416 | BT68: 310635 | BU68: 309818 | BV68: 309594 | BW68: 314632 | BX68: 326794 | BY68: 337087 | BZ68: 338758 | CA68: 335031 | CB68: 331435 | CC68: 327185 | CD68: 319371
A69: 64 | B69: 86033 | C69: 87545 | D69: 85698 | E69: 86673 | F69: 93048 | G69: 100459 | H69: 106591 | I69: 110034 | J69: 113156 | K69: 115697 | L69: 118337 | M69: 123469 | N69: 129878 | O69: 136561 | P69: 140233 | Q69: 146189 | R69: 159932 | S69: 159907 | T69: 169577 | U69: 179058 | V69: 183613 | W69: 187585 | X69: 190250 | Y69: 195003 | Z69: 195595 | AA69: 204324 | AB69: 212236 | AC69: 206524 | AD69: 194122 | AE69: 190017 | AF69: 202289 | AG69: 219088 | AH69: 231023 | AI69: 236379 | AJ69: 238301 | AK69: 244730 | AL69: 256351 | AM69: 271696 | AN69: 299211 | AO69: 328607 | AP69: 347799 | AQ69: 365407 | AR69: 383362 | AS69: 401633 | AT69: 420507 | AU69: 433320 | AV69: 433623 | AW69: 421786 | AX69: 411615 | AY69: 408130 | AZ69: 405513 | BA69: 407340 | BB69: 420355 | BC69: 436139 | BD69: 443084 | BE69: 442441 | BF69: 437945 | BG69: 428315 | BH69: 412384 | BI69: 395140 | BJ69: 381357 | BK69: 372189 | BL69: 372148 | BM69: 386615 | BN69: 404027 | BO69: 410098 | BP69: 398669 | BQ69: 374705 | BR69: 347577 | BS69: 325175 | BT69: 313315 | BU69: 310545 | BV69: 309748 | BW69: 309533 | BX69: 314577 | BY69: 326752 | BZ69: 337055 | CA69: 338734 | CB69: 335020 | CC69: 331431 | CD69: 327187
A70: 65 | B70: 78790 | C70: 83534 | D70: 84973 | E70: 83905 | F70: 85648 | G70: 91782 | H70: 99131 | I70: 105212 | J70: 108257 | K70: 111671 | L70: 112773 | M70: 116522 | N70: 121768 | O70: 128261 | P70: 135005 | Q70: 138795 | R70: 142600 | S70: 158302 | T70: 158193 | U70: 167804 | V70: 177467 | W70: 182066 | X70: 185581 | Y70: 188528 | Z70: 192614 | AA70: 195014 | AB70: 204503 | AC70: 211317 | AD70: 205784 | AE70: 192896 | AF70: 189277 | AG70: 201268 | AH70: 218309 | AI70: 230226 | AJ70: 235592 | AK70: 237536 | AL70: 243973 | AM70: 255587 | AN70: 270911 | AO70: 298389 | AP70: 327733 | AQ70: 346913 | AR70: 364513 | AS70: 382443 | AT70: 400725 | AU70: 419595 | AV70: 432429 | AW70: 432755 | AX70: 420982 | AY70: 410868 | AZ70: 407423 | BA70: 404837 | BB70: 406703 | BC70: 419714 | BD70: 435515 | BE70: 442487 | BF70: 441868 | BG70: 437414 | BH70: 427819 | BI70: 411936 | BJ70: 394736 | BK70: 380984 | BL70: 371852 | BM70: 371830 | BN70: 386296 | BO70: 403721 | BP70: 409813 | BQ70: 398419 | BR70: 374484 | BS70: 347385 | BT70: 325008 | BU70: 313166 | BV70: 310419 | BW70: 309633 | BX70: 309426 | BY70: 314486 | BZ70: 326670 | CA70: 336979 | CB70: 338672 | CC70: 334968 | CD70: 331385
A71: 66 | B71: 74118 | C71: 76810 | D71: 81151 | E71: 82496 | F71: 82152 | G71: 84545 | H71: 89534 | I71: 97860 | J71: 103817 | K71: 106479 | L71: 110185 | M71: 110859 | N71: 114718 | O71: 120031 | P71: 126650 | Q71: 133478 | R71: 136639 | S71: 140869 | T71: 156550 | U71: 156416 | V71: 166154 | W71: 175498 | X71: 180241 | Y71: 183693 | Z71: 186955 | AA71: 190702 | AB71: 195233 | AC71: 204163 | AD71: 210713 | AE71: 204612 | AF71: 191748 | AG71: 188262 | AH71: 200430 | AI71: 217427 | AJ71: 229326 | AK71: 234702 | AL71: 236669 | AM71: 243113 | AN71: 254711 | AO71: 270025 | AP71: 297443 | AQ71: 326734 | AR71: 345895 | AS71: 363464 | AT71: 381399 | AU71: 399674 | AV71: 418545 | AW71: 431374 | AX71: 431746 | AY71: 420043 | AZ71: 409991 | BA71: 406584 | BB71: 404050 | BC71: 405931 | BD71: 418961 | BE71: 434773 | BF71: 441762 | BG71: 441184 | BH71: 436765 | BI71: 427219 | BJ71: 411387 | BK71: 394231 | BL71: 380529 | BM71: 371430 | BN71: 371417 | BO71: 385900 | BP71: 403335 | BQ71: 409454 | BR71: 398087 | BS71: 374190 | BT71: 347125 | BU71: 324780 | BV71: 312972 | BW71: 310239 | BX71: 309463 | BY71: 309275 | BZ71: 314347 | CA71: 326537 | CB71: 336856 | CC71: 338561 | CD71: 334864
A72: 67 | B72: 72201 | C72: 72170 | D72: 74921 | E72: 78855 | F72: 80094 | G72: 80350 | H72: 81636 | I72: 87378 | J72: 96576 | K72: 102413 | L72: 107276 | M72: 108137 | N72: 108962 | O72: 112887 | P72: 118305 | Q72: 125069 | R72: 135377 | S72: 134778 | T72: 139013 | U72: 154679 | V72: 154711 | W72: 164519 | X72: 173481 | Y72: 178513 | Z72: 181656 | AA72: 185299 | AB72: 189905 | AC72: 195084 | AD72: 204060 | AE72: 209776 | AF72: 203388 | AG72: 190495 | AH72: 187342 | AI72: 199478 | AJ72: 216424 | AK72: 228302 | AL72: 233689 | AM72: 235679 | AN72: 242123 | AO72: 253717 | AP72: 269003 | AQ72: 296357 | AR72: 325582 | AS72: 344698 | AT72: 362266 | AU72: 380189 | AV72: 398460 | AW72: 417304 | AX72: 430146 | AY72: 430567 | AZ72: 418942 | BA72: 408952 | BB72: 405608 | BC72: 403102 | BD72: 405023 | BE72: 418067 | BF72: 433879 | BG72: 440899 | BH72: 440355 | BI72: 435985 | BJ72: 426490 | BK72: 410712 | BL72: 393623 | BM72: 379967 | BN72: 370892 | BO72: 370916 | BP72: 385409 | BQ72: 402861 | BR72: 408993 | BS72: 397661 | BT72: 373805 | BU72: 346788 | BV72: 324496 | BW72: 312712 | BX72: 309992 | BY72: 309239 | BZ72: 309068 | CA72: 314149 | CB72: 326347 | CC72: 336675 | CD72: 338387
A73: 68 | B73: 69605 | C73: 69864 | D73: 70311 | E73: 73095 | F73: 76626 | G73: 77679 | H73: 78460 | I73: 78861 | J73: 85246 | K73: 95282 | L73: 101720 | M73: 104959 | N73: 106111 | O73: 107045 | P73: 111071 | Q73: 116613 | R73: 121661 | S73: 133351 | T73: 132810 | U73: 137058 | V73: 152779 | W73: 153665 | X73: 162774 | Y73: 171222 | Z73: 176384 | AA73: 179507 | AB73: 183694 | AC73: 188956 | AD73: 195043 | AE73: 203752 | AF73: 208686 | AG73: 201931 | AH73: 189409 | AI73: 186302 | AJ73: 198401 | AK73: 215290 | AL73: 227145 | AM73: 232538 | AN73: 234548 | AO73: 241006 | AP73: 252580 | AQ73: 267839 | AR73: 295115 | AS73: 324240 | AT73: 343343 | AU73: 360892 | AV73: 378804 | AW73: 397044 | AX73: 415874 | AY73: 428727 | AZ73: 429201 | BA73: 417654 | BB73: 407758 | BC73: 404449 | BD73: 402000 | BE73: 403962 | BF73: 417010 | BG73: 432831 | BH73: 439871 | BI73: 439378 | BJ73: 435057 | BK73: 425614 | BL73: 409913 | BM73: 392889 | BN73: 379271 | BO73: 370254 | BP73: 370312 | BQ73: 384824 | BR73: 402271 | BS73: 408423 | BT73: 397124 | BU73: 373326 | BV73: 346382 | BW73: 324133 | BX73: 312374 | BY73: 309684 | BZ73: 308952 | CA73: 308795 | CB73: 313889 | CC73: 326095 | CD73: 336423
A74: 69 | B74: 65789 | C74: 67183 | D74: 67639 | E74: 68516 | F74: 71316 | G74: 74381 | H74: 76373 | I74: 76648 | J74: 76155 | K74: 83144 | L74: 93429 | M74: 99140 | N74: 102676 | O74: 104072 | P74: 105149 | Q74: 109294 | R74: 114319 | S74: 119512 | T74: 131182 | U74: 130713 | V74: 135015 | W74: 150363 | X74: 152341 | Y74: 160765 | Z74: 168742 | AA74: 174242 | AB74: 177411 | AC74: 181946 | AD74: 187990 | AE74: 194783 | AF74: 203252 | AG74: 206919 | AH74: 200607 | AI74: 188200 | AJ74: 185143 | AK74: 197201 | AL74: 214029 | AM74: 225850 | AN74: 231245 | AO74: 233291 | AP74: 239750 | AQ74: 251308 | AR74: 266528 | AS74: 293692 | AT74: 322747 | AU74: 341815 | AV74: 359345 | AW74: 377220 | AX74: 395437 | AY74: 414250 | AZ74: 427115 | BA74: 427633 | BB74: 416202 | BC74: 406369 | BD74: 403127 | BE74: 400737 | BF74: 402737 | BG74: 415794 | BH74: 431613 | BI74: 438688 | BJ74: 438243 | BK74: 433970 | BL74: 424601 | BM74: 408976 | BN74: 392004 | BO74: 378465 | BP74: 369507 | BQ74: 369611 | BR74: 384119 | BS74: 401569 | BT74: 407728 | BU74: 396481 | BV74: 372768 | BW74: 345885 | BX74: 323681 | BY74: 311970 | BZ74: 309307 | CA74: 308593 | CB74: 308455 | CC74: 313564 | CD74: 325766
A75: 70 | B75: 62537 | C75: 63460 | D75: 64880 | E75: 65500 | F75: 66769 | G75: 69506 | H75: 72900 | I75: 75120 | J75: 74852 | K75: 73523 | L75: 82343 | M75: 90865 | N75: 96611 | O75: 100394 | P75: 102061 | Q75: 103295 | R75: 107321 | S75: 112088 | T75: 117269 | U75: 128884 | V75: 128508 | W75: 133870 | X75: 147915 | Y75: 150989 | Z75: 158718 | AA75: 166424 | AB75: 171644 | AC75: 175110 | AD75: 180241 | AE75: 186713 | AF75: 194370 | AG75: 201411 | AH75: 205376 | AI75: 199148 | AJ75: 186864 | AK75: 183863 | AL75: 195879 | AM75: 212631 | AN75: 224408 | AO75: 229820 | AP75: 231891 | AQ75: 238359 | AR75: 249886 | AS75: 265043 | AT75: 292124 | AU75: 321080 | AV75: 340109 | AW75: 357595 | AX75: 375438 | AY75: 393632 | AZ75: 412426 | BA75: 425284 | BB75: 425886 | BC75: 414533 | BD75: 404799 | BE75: 401628 | BF75: 399298 | BG75: 401339 | BH75: 414401 | BI75: 430226 | BJ75: 437330 | BK75: 436930 | BL75: 432725 | BM75: 423427 | BN75: 407861 | BO75: 390993 | BP75: 377534 | BQ75: 368650 | BR75: 368779 | BS75: 383292 | BT75: 400723 | BU75: 406909 | BV75: 395740 | BW75: 372097 | BX75: 345277 | BY75: 323150 | BZ75: 311485 | CA75: 308847 | CB75: 308155 | CC75: 308040 | CD75: 313151
A76: 71 | B76: 58542 | C76: 60023 | D76: 61246 | E76: 62670 | F76: 63431 | G76: 64997 | H76: 67130 | I76: 71480 | J76: 73864 | K76: 73078 | L76: 73088 | M76: 79826 | N76: 88358 | O76: 94100 | P76: 98151 | Q76: 100096 | R76: 100735 | S76: 105111 | T76: 109627 | U76: 114803 | V76: 126436 | W76: 126540 | X76: 132731 | Y76: 145046 | Z76: 149495 | AA76: 156597 | AB76: 163866 | AC76: 168885 | AD76: 172833 | AE76: 178259 | AF76: 185324 | AG76: 192439 | AH76: 199697 | AI76: 203671 | AJ76: 197533 | AK76: 185384 | AL76: 182450 | AM76: 194409 | AN76: 211069 | AO76: 222813 | AP76: 228228 | AQ76: 230335 | AR76: 236796 | AS76: 248271 | AT76: 263398 | AU76: 290365 | AV76: 319211 | AW76: 338173 | AX76: 355618 | AY76: 373429 | AZ76: 391596 | BA76: 410345 | BB76: 423234 | BC76: 423871 | BD76: 412635 | BE76: 403012 | BF76: 399916 | BG76: 397646 | BH76: 399730 | BI76: 412804 | BJ76: 428626 | BK76: 435753 | BL76: 435416 | BM76: 431278 | BN76: 422029 | BO76: 406580 | BP76: 389819 | BQ76: 376459 | BR76: 367628 | BS76: 367799 | BT76: 382293 | BU76: 399724 | BV76: 405959 | BW76: 394847 | BX76: 371274 | BY76: 344560 | BZ76: 322511 | CA76: 310894 | CB76: 308283 | CC76: 307619 | CD76: 307514
A77: 72 | B77: 51847 | C77: 55777 | D77: 57642 | E77: 59124 | F77: 60539 | G77: 61362 | H77: 62239 | I77: 64862 | J77: 70063 | K77: 72609 | L77: 70488 | M77: 70462 | N77: 77375 | O77: 85878 | P77: 91644 | Q77: 95966 | R77: 98413 | S77: 98421 | T77: 102675 | U77: 107134 | V77: 112245 | W77: 123087 | X77: 124486 | Y77: 131324 | Z77: 142229 | AA77: 147884 | AB77: 154365 | AC77: 161023 | AD77: 166014 | AE77: 170301 | AF77: 176109 | AG77: 183237 | AH77: 190551 | AI77: 197783 | AJ77: 201762 | AK77: 195721 | AL77: 183731 | AM77: 180859 | AN77: 192746 | AO77: 209320 | AP77: 221011 | AQ77: 226435 | AR77: 228563 | AS77: 234999 | AT77: 246458 | AU77: 261526 | AV77: 288372 | AW77: 317064 | AX77: 335960 | AY77: 353359 | AZ77: 371132 | BA77: 389242 | BB77: 407980 | BC77: 420839 | BD77: 421544 | BE77: 410446 | BF77: 400944 | BG77: 397917 | BH77: 395710 | BI77: 397858 | BJ77: 410938 | BK77: 426743 | BL77: 433908 | BM77: 433635 | BN77: 429531 | BO77: 420394 | BP77: 405072 | BQ77: 388441 | BR77: 375157 | BS77: 366408 | BT77: 366600 | BU77: 381098 | BV77: 398546 | BW77: 404797 | BX77: 393740 | BY77: 370289 | BZ77: 343685 | CA77: 321723 | CB77: 310157 | CC77: 307584 | CD77: 306934
A78: 73 | B78: 46633 | C78: 49426 | D78: 53172 | E78: 55368 | F78: 57077 | G78: 58417 | H78: 58505 | I78: 59623 | J78: 62650 | K78: 68657 | L78: 70865 | M78: 67515 | N78: 67921 | O78: 74963 | P78: 83457 | Q78: 89259 | R78: 91354 | S78: 95903 | T78: 95854 | U78: 99993 | V78: 104410 | W78: 109739 | X78: 119662 | Y78: 122330 | Z78: 129702 | AA78: 139228 | AB78: 145904 | AC78: 151851 | AD78: 158117 | AE78: 162923 | AF78: 167625 | AG78: 173799 | AH78: 181139 | AI78: 188417 | AJ78: 195612 | AK78: 199591 | AL78: 193672 | AM78: 181846 | AN78: 179037 | AO78: 190862 | AP78: 207320 | AQ78: 218953 | AR78: 224370 | AS78: 226506 | AT78: 232957 | AU78: 244370 | AV78: 259382 | AW78: 286054 | AX78: 314581 | AY78: 333399 | AZ78: 350746 | BA78: 368443 | BB78: 386530 | BC78: 405191 | BD78: 418040 | BE78: 418829 | BF78: 407883 | BG78: 398496 | BH78: 395545 | BI78: 393439 | BJ78: 395652 | BK78: 408719 | BL78: 424515 | BM78: 431714 | BN78: 431459 | BO78: 427462 | BP78: 418451 | BQ78: 403278 | BR78: 386759 | BS78: 373592 | BT78: 364905 | BU78: 365151 | BV78: 379672 | BW78: 397091 | BX78: 403350 | BY78: 392399 | BZ78: 369078 | CA78: 342599 | CB78: 320734 | CC78: 309239 | CD78: 306689
A79: 74 | B79: 44036 | C79: 44148 | D79: 47144 | E79: 50700 | F79: 53186 | G79: 55042 | H79: 55285 | I79: 55804 | J79: 57099 | K79: 60499 | L79: 67776 | M79: 67664 | N79: 64658 | O79: 65439 | P79: 72617 | Q79: 81112 | R79: 85065 | S79: 88364 | T79: 93238 | U79: 93151 | V79: 97203 | W79: 101523 | X79: 107083 | Y79: 116009 | Z79: 119988 | AA79: 128017 | AB79: 137038 | AC79: 143660 | AD79: 149300 | AE79: 155066 | AF79: 159774 | AG79: 165081 | AH79: 171462 | AI79: 178753 | AJ79: 185982 | AK79: 193129 | AL79: 197124 | AM79: 191322 | AN79: 179675 | AO79: 176962 | AP79: 188697 | AQ79: 205021 | AR79: 216576 | AS79: 221964 | AT79: 224157 | AU79: 230597 | AV79: 241967 | AW79: 256882 | AX79: 283363 | AY79: 311695 | AZ79: 330427 | BA79: 347675 | BB79: 365333 | BC79: 383332 | BD79: 401918 | BE79: 414766 | BF79: 415642 | BG79: 404842 | BH79: 395591 | BI79: 392763 | BJ79: 390761 | BK79: 393025 | BL79: 406086 | BM79: 421859 | BN79: 429033 | BO79: 428879 | BP79: 425003 | BQ79: 416137 | BR79: 401098 | BS79: 384736 | BT79: 371669 | BU79: 363087 | BV79: 363423 | BW79: 377916 | BX79: 395287 | BY79: 401596 | BZ79: 390755 | CA79: 367579 | CB79: 341243 | CC79: 319508 | CD79: 308075
A80: 75 | B80: 38393 | C80: 41094 | D80: 41820 | E80: 44977 | F80: 48344 | G80: 51035 | H80: 51910 | I80: 52341 | J80: 53210 | K80: 54666 | L80: 61810 | M80: 64515 | N80: 64597 | O80: 61892 | P80: 63041 | Q80: 70350 | R80: 79130 | S80: 81821 | T80: 85215 | U80: 90400 | V80: 90242 | W80: 94156 | X80: 98488 | Y80: 104085 | Z80: 112224 | AA80: 117597 | AB80: 125410 | AC80: 134540 | AD80: 141304 | AE80: 146622 | AF80: 151814 | AG80: 156935 | AH80: 162468 | AI80: 168797 | AJ80: 176024 | AK80: 183190 | AL80: 190303 | AM80: 194287 | AN80: 188609 | AO80: 177198 | AP80: 174571 | AQ80: 186200 | AR80: 202362 | AS80: 213796 | AT80: 219208 | AU80: 221432 | AV80: 227873 | AW80: 239158 | AX80: 253969 | AY80: 280225 | AZ80: 308334 | BA80: 326926 | BB80: 344112 | BC80: 361657 | BD80: 379561 | BE80: 398078 | BF80: 410908 | BG80: 411846 | BH80: 401224 | BI80: 392172 | BJ80: 389470 | BK80: 387560 | BL80: 389893 | BM80: 402937 | BN80: 418606 | BO80: 425843 | BP80: 425800 | BQ80: 422063 | BR80: 413316 | BS80: 398458 | BT80: 382243 | BU80: 369334 | BV80: 360912 | BW80: 361287 | BX80: 375729 | BY80: 393091 | BZ80: 399439 | CA80: 388717 | CB80: 365705 | CC80: 339556 | CD80: 317950
A81: 76 | B81: 31715 | C81: 35838 | D81: 38370 | E81: 39622 | F81: 42912 | G81: 46049 | H81: 47503 | I81: 48978 | J81: 49539 | K81: 50723 | L81: 55502 | M81: 58836 | N81: 61401 | O81: 61640 | P81: 59237 | Q81: 60735 | R81: 65249 | S81: 76032 | T81: 78429 | U81: 81918 | V81: 87403 | W81: 86991 | X81: 90951 | Y81: 95146 | Z81: 100928 | AA81: 108318 | AB81: 114625 | AC81: 122566 | AD81: 131920 | AE81: 138838 | AF81: 143585 | AG81: 148751 | AH81: 154016 | AI81: 159497 | AJ81: 165758 | AK81: 172906 | AL81: 180022 | AM81: 187060 | AN81: 191024 | AO81: 185520 | AP81: 174353 | AQ81: 171820 | AR81: 183319 | AS81: 199262 | AT81: 210623 | AU81: 216018 | AV81: 218295 | AW81: 224696 | AX81: 235897 | AY81: 250582 | AZ81: 276579 | BA81: 304387 | BB81: 322872 | BC81: 339911 | BD81: 357335 | BE81: 375145 | BF81: 393567 | BG81: 406322 | BH81: 407342 | BI81: 396977 | BJ81: 388133 | BK81: 385544 | BL81: 383753 | BM81: 386161 | BN81: 399097 | BO81: 414754 | BP81: 422041 | BQ81: 422131 | BR81: 418490 | BS81: 409908 | BT81: 395224 | BU81: 379229 | BV81: 366547 | BW81: 358234 | BX81: 358645 | BY81: 373082 | BZ81: 390404 | CA81: 396783 | CB81: 386181 | CC81: 363388 | CD81: 337431
A82: 77 | B82: 28991 | C82: 29445 | D82: 34254 | E82: 35834 | F82: 37542 | G82: 40898 | H82: 42289 | I82: 43747 | J82: 45316 | K82: 46874 | L82: 51575 | M82: 52831 | N82: 55996 | O82: 58410 | P82: 58811 | Q82: 56700 | R82: 58287 | S82: 62247 | T82: 72767 | U82: 74748 | V82: 78366 | W82: 83453 | X82: 83597 | Y82: 87397 | Z82: 91734 | AA82: 97697 | AB82: 105006 | AC82: 111476 | AD82: 119596 | AE82: 129162 | AF82: 136062 | AG82: 140167 | AH82: 145511 | AI82: 150714 | AJ82: 156125 | AK82: 162305 | AL82: 169386 | AM82: 176406 | AN82: 183348 | AO82: 187324 | AP82: 181992 | AQ82: 171095 | AR82: 168661 | AS82: 179983 | AT82: 195741 | AU82: 206969 | AV82: 212362 | AW82: 214660 | AX82: 221026 | AY82: 232125 | AZ82: 246671 | BA82: 272324 | BB82: 299840 | BC82: 318116 | BD82: 335000 | BE82: 352303 | BF82: 369997 | BG82: 388236 | BH82: 400919 | BI82: 402092 | BJ82: 391989 | BK82: 383351 | BL82: 380905 | BM82: 379243 | BN82: 381649 | BO82: 394588 | BP82: 410188 | BQ82: 417553 | BR82: 417705 | BS82: 414211 | BT82: 405780 | BU82: 391347 | BV82: 375659 | BW82: 363149 | BX82: 354960 | BY82: 355481 | BZ82: 369873 | CA82: 387132 | CB82: 393513 | CC82: 383086 | CD82: 360507
A83: 78 | B83: 28428 | C83: 26763 | D83: 29428 | E83: 32223 | F83: 33468 | G83: 35533 | H83: 37143 | I83: 38842 | J83: 40606 | K83: 42480 | L83: 47475 | M83: 49093 | N83: 50282 | O83: 53268 | P83: 55557 | Q83: 56116 | R83: 55464 | S83: 55222 | T83: 59038 | U83: 69306 | V83: 70966 | W83: 75283 | X83: 79511 | Y83: 79902 | Z83: 83777 | AA83: 88190 | AB83: 94353 | AC83: 101488 | AD83: 108147 | AE83: 116484 | AF83: 126202 | AG83: 132319 | AH83: 136594 | AI83: 141853 | AJ83: 146976 | AK83: 152304 | AL83: 158417 | AM83: 165378 | AN83: 172275 | AO83: 179152 | AP83: 183109 | AQ83: 177967 | AR83: 167365 | AS83: 165017 | AT83: 176199 | AU83: 191694 | AV83: 202789 | AW83: 208141 | AX83: 210464 | AY83: 216793 | AZ83: 227787 | BA83: 242120 | BB83: 267426 | BC83: 294519 | BD83: 312569 | BE83: 329303 | BF83: 346457 | BG83: 363927 | BH83: 381980 | BI83: 394640 | BJ83: 395942 | BK83: 386106 | BL83: 377718 | BM83: 375425 | BN83: 373831 | BO83: 376361 | BP83: 389254 | BQ83: 404818 | BR83: 412150 | BS83: 412432 | BT83: 409056 | BU83: 400844 | BV83: 386769 | BW83: 371326 | BX83: 359016 | BY83: 351049 | BZ83: 351658 | CA83: 365990 | CB83: 383123 | CC83: 389546 | CD83: 379264
A84: 79 | B84: 26486 | C84: 26078 | D84: 26422 | E84: 28159 | F84: 29973 | G84: 31224 | H84: 32983 | I84: 34856 | J84: 36823 | K84: 38892 | L84: 44402 | M84: 45191 | N84: 46724 | O84: 47832 | P84: 50667 | Q84: 52848 | R84: 54619 | S84: 52334 | T84: 51982 | U84: 55623 | V84: 65687 | W84: 67753 | X84: 72041 | Y84: 75202 | Z84: 76161 | AA84: 80100 | AB84: 84647 | AC84: 90811 | AD84: 97781 | AE84: 104803 | AF84: 113183 | AG84: 122177 | AH84: 128383 | AI84: 132583 | AJ84: 137736 | AK84: 142766 | AL84: 148024 | AM84: 154014 | AN84: 160828 | AO84: 167630 | AP84: 174402 | AQ84: 178331 | AR84: 173384 | AS84: 163091 | AT84: 160905 | AU84: 171878 | AV84: 187093 | AW84: 197994 | AX84: 203296 | AY84: 205656 | AZ84: 211957 | BA84: 222766 | BB84: 236899 | BC84: 261737 | BD84: 288352 | BE84: 306174 | BF84: 322733 | BG84: 339602 | BH84: 356856 | BI84: 374754 | BJ84: 387332 | BK84: 388746 | BL84: 379220 | BM84: 371112 | BN84: 368912 | BO84: 367513 | BP84: 370149 | BQ84: 383022 | BR84: 398404 | BS84: 405769 | BT84: 406125 | BU84: 402931 | BV84: 395061 | BW84: 381265 | BX84: 366099 | BY84: 354109 | BZ84: 346370 | CA84: 347071 | CB84: 361271 | CC84: 378309 | CD84: 384699
A85: 80 | V85: 52208 | W85: 61810 | X85: 64557 | Y85: 68288 | Z85: 70959 | AA85: 72329 | AB85: 76241 | AC85: 80976 | AD85: 87042 | AE85: 94112 | AF85: 101214 | AG85: 109044 | AH85: 117964 | AI85: 124009 | AJ85: 128109 | AK85: 133145 | AL85: 138092 | AM85: 143231 | AN85: 149067 | AO85: 155754 | AP85: 162426 | AQ85: 169067 | AR85: 172943 | AS85: 168187 | AT85: 158313 | AU85: 156262 | AV85: 167014 | AW85: 181870 | AX85: 192547 | AY85: 197800 | AZ85: 200221 | BA85: 206415 | BB85: 217057 | BC85: 230907 | BD85: 255212 | BE85: 281316 | BF85: 298888 | BG85: 315102 | BH85: 331709 | BI85: 348758 | BJ85: 366426 | BK85: 378877 | BL85: 380410 | BM85: 371233 | BN85: 363354 | BO85: 361380 | BP85: 360177 | BQ85: 362975 | BR85: 375662 | BS85: 390915 | BT85: 398219 | BU85: 398728 | BV85: 395846 | BW85: 388197 | BX85: 374708 | BY85: 359971 | BZ85: 348322 | CA85: 340821 | CB85: 341567 | CC85: 355687 | CD85: 372507
A86: 81 | V86: 45127 | W86: 48948 | X86: 57772 | Y86: 60946 | Z86: 64645 | AA86: 66598 | AB86: 68471 | AC86: 72279 | AD86: 77113 | AE86: 83319 | AF86: 90273 | AG86: 96992 | AH86: 104707 | AI86: 113323 | AJ86: 119170 | AK86: 123167 | AL86: 128094 | AM86: 132907 | AN86: 137886 | AO86: 143596 | AP86: 150122 | AQ86: 156634 | AR86: 163103 | AS86: 166889 | AT86: 162427 | AU86: 152966 | AV86: 151080 | AW86: 161538 | AX86: 175988 | AY86: 186426 | AZ86: 191643 | BA86: 194052 | BB86: 200168 | BC86: 210567 | BD86: 224096 | BE86: 247836 | BF86: 273374 | BG86: 290497 | BH86: 306401 | BI86: 322736 | BJ86: 339520 | BK86: 356888 | BL86: 369172 | BM86: 370828 | BN86: 361953 | BO86: 354452 | BP86: 352721 | BQ86: 351783 | BR86: 354574 | BS86: 367157 | BT86: 382136 | BU86: 389460 | BV86: 390246 | BW86: 387521 | BX86: 380102 | BY86: 367092 | BZ86: 352813 | CA86: 341527 | CB86: 334228 | CC86: 335124 | CD86: 349022
A87: 82 | V87: 42044 | W87: 41602 | X87: 45695 | Y87: 53430 | Z87: 57203 | AA87: 61087 | AB87: 62575 | AC87: 64560 | AD87: 68239 | AE87: 73271 | AF87: 79448 | AG87: 85960 | AH87: 92541 | AI87: 99950 | AJ87: 108213 | AK87: 113849 | AL87: 117754 | AM87: 122513 | AN87: 127145 | AO87: 132002 | AP87: 137553 | AQ87: 143881 | AR87: 150188 | AS87: 156436 | AT87: 160206 | AU87: 156006 | AV87: 147021 | AW87: 145271 | AX87: 155397 | AY87: 169414 | AZ87: 179591 | BA87: 184693 | BB87: 187126 | BC87: 193108 | BD87: 203223 | BE87: 216435 | BF87: 239544 | BG87: 264264 | BH87: 280984 | BI87: 296541 | BJ87: 312551 | BK87: 328989 | BL87: 345978 | BM87: 358073 | BN87: 359763 | BO87: 351333 | BP87: 344279 | BQ87: 342862 | BR87: 341996 | BS87: 344926 | BT87: 357235 | BU87: 371992 | BV87: 379448 | BW87: 380334 | BX87: 377744 | BY87: 370731 | BZ87: 358227 | CA87: 344449 | CB87: 333492 | CC87: 326547 | CD87: 327468
A88: 83 | V88: 40234 | W88: 38295 | X88: 38159 | Y88: 42208 | Z88: 49017 | AA88: 53439 | AB88: 56769 | AC88: 58473 | AD88: 60547 | AE88: 64192 | AF88: 69278 | AG88: 75079 | AH88: 81419 | AI88: 87695 | AJ88: 94750 | AK88: 102635 | AL88: 108064 | AM88: 111815 | AN88: 116361 | AO88: 120852 | AP88: 125551 | AQ88: 130899 | AR88: 136989 | AS88: 143039 | AT88: 149129 | AU88: 152811 | AV88: 148919 | AW88: 140417 | AX88: 138805 | AY88: 148590 | AZ88: 162117 | BA88: 171939 | BB88: 176945 | BC88: 179361 | BD88: 185163 | BE88: 195028 | BF88: 207877 | BG88: 230112 | BH88: 254030 | BI88: 270266 | BJ88: 285429 | BK88: 301029 | BL88: 317025 | BM88: 333604 | BN88: 345347 | BO88: 347187 | BP88: 339294 | BQ88: 332781 | BR88: 331430 | BS88: 330847 | BT88: 333759 | BU88: 345854 | BV88: 360482 | BW88: 367842 | BX88: 368778 | BY88: 366501 | BZ88: 359902 | CA88: 347961 | CB88: 334647 | CC88: 324195 | CD88: 317502
A89: 84 | V89: 34589 | W89: 35043 | X89: 34469 | Y89: 34419 | Z89: 38817 | AA89: 44673 | AB89: 49173 | AC89: 52305 | AD89: 54274 | AE89: 56649 | AF89: 60056 | AG89: 64969 | AH89: 70542 | AI89: 76534 | AJ89: 82460 | AK89: 89145 | AL89: 96643 | AM89: 101791 | AN89: 105353 | AO89: 109722 | AP89: 114038 | AQ89: 118533 | AR89: 123646 | AS89: 129446 | AT89: 135288 | AU89: 141142 | AV89: 144748 | AW89: 141145 | AX89: 133150 | AY89: 131720 | AZ89: 141125 | BA89: 154048 | BB89: 163512 | BC89: 168351 | BD89: 170724 | BE89: 176411 | BF89: 185970 | BG89: 198271 | BH89: 219632 | BI89: 242629 | BJ89: 258325 | BK89: 273007 | BL89: 288099 | BM89: 303620 | BN89: 319568 | BO89: 331055 | BP89: 333082 | BQ89: 325861 | BR89: 319591 | BS89: 318586 | BT89: 318098 | BU89: 321109 | BV89: 333081 | BW89: 347310 | BX89: 354481 | BY89: 355634 | BZ89: 353671 | CA89: 347532 | CB89: 336079 | CC89: 323419 | CD89: 313395
A90: 85 | V90: 27690 | W90: 29100 | X90: 30564 | Y90: 32099 | Z90: 33722 | AA90: 35424 | AB90: 40695 | AC90: 44826 | AD90: 47822 | AE90: 50313 | AF90: 52600 | AG90: 55845 | AH90: 60504 | AI90: 65722 | AJ90: 71326 | AK90: 76893 | AL90: 83204 | AM90: 90227 | AN90: 95055 | AO90: 98463 | AP90: 102623 | AQ90: 106717 | AR90: 110988 | AS90: 115816 | AT90: 121359 | AU90: 126926 | AV90: 132545 | AW90: 136010 | AX90: 132701 | AY90: 125288 | AZ90: 124050 | BA90: 132975 | BB90: 145276 | BC90: 154277 | BD90: 158918 | BE90: 161328 | BF90: 166858 | BG90: 175935 | BH90: 187714 | BI90: 208110 | BJ90: 230069 | BK90: 245154 | BL90: 259263 | BM90: 273783 | BN90: 288605 | BO90: 304010 | BP90: 315220 | BQ90: 317545 | BR90: 310622 | BS90: 304967 | BT90: 304056 | BU90: 303842 | BV90: 307066 | BW90: 318664 | BX90: 332334 | BY90: 339457 | BZ90: 340829 | CA90: 339206 | CB90: 333382 | CC90: 322617 | CD90: 310550
A91: 86 | V91: 22522 | W91: 23491 | X91: 24486 | Y91: 25522 | Z91: 26611 | AA91: 27743 | AB91: 31993 | AC91: 36826 | AD91: 40525 | AE91: 43669 | AF91: 46332 | AG91: 48489 | AH91: 51500 | AI91: 55822 | AJ91: 60653 | AK91: 65859 | AL91: 71069 | AM91: 76923 | AN91: 83429 | AO91: 87969 | AP91: 91187 | AQ91: 95096 | AR91: 98954 | AS91: 102946 | AT91: 107527 | AU91: 112749 | AV91: 118052 | AW91: 123348 | AX91: 126660 | AY91: 123687 | AZ91: 116879 | BA91: 115785 | BB91: 124230 | BC91: 135799 | BD91: 144276 | BE91: 148785 | BF91: 151203 | BG91: 156410 | BH91: 165043 | BI91: 176268 | BJ91: 195566 | BK91: 216421 | BL91: 230772 | BM91: 244216 | BN91: 257978 | BO91: 272196 | BP91: 286987 | BQ91: 297990 | BR91: 300127 | BS91: 293934 | BT91: 288622 | BU91: 288041 | BV91: 288208 | BW91: 291403 | BX91: 302464 | BY91: 315698 | BZ91: 322760 | CA91: 324342 | CB91: 322869 | CC91: 317538 | CD91: 307395
A92: 87 | V92: 18768 | W92: 19617 | X92: 20492 | Y92: 21406 | Z92: 22366 | AA92: 23368 | AB92: 24825 | AC92: 28681 | AD92: 32994 | AE92: 36614 | AF92: 39622 | AG92: 42184 | AH92: 44180 | AI92: 46949 | AJ92: 50898 | AK92: 55329 | AL92: 60135 | AM92: 64912 | AN92: 70266 | AO92: 76274 | AP92: 80482 | AQ92: 83480 | AR92: 87114 | AS92: 90673 | AT92: 94432 | AU92: 98698 | AV92: 103615 | AW92: 108548 | AX92: 113510 | AY92: 116661 | AZ92: 114031 | BA92: 107806 | BB92: 106903 | BC92: 114774 | BD92: 125521 | BE92: 133506 | BF92: 137834 | BG92: 140104 | BH92: 145040 | BI92: 153215 | BJ92: 163775 | BK92: 181911 | BL92: 201459 | BM92: 214963 | BN92: 227585 | BO92: 240646 | BP92: 254144 | BQ92: 268394 | BR92: 278605 | BS92: 280958 | BT92: 275213 | BU92: 270541 | BV92: 270372 | BW92: 270640 | BX92: 273716 | BY92: 284353 | BZ92: 297107 | CA92: 304029 | CB92: 305619 | CC92: 304417 | CD92: 299528
A93: 88 | V93: 15381 | W93: 16317 | X93: 17299 | Y93: 18339 | Z93: 19448 | AA93: 20622 | AB93: 20521 | AC93: 22028 | AD93: 25463 | AE93: 29565 | AF93: 32760 | AG93: 35660 | AH93: 37989 | AI93: 39808 | AJ93: 42304 | AK93: 45884 | AL93: 49923 | AM93: 54275 | AN93: 58588 | AO93: 63475 | AP93: 68948 | AQ93: 72803 | AR93: 75560 | AS93: 78874 | AT93: 82186 | AU93: 85653 | AV93: 89631 | AW93: 94147 | AX93: 98714 | AY93: 103318 | AZ93: 106300 | BA93: 103955 | BB93: 98371 | BC93: 97620 | BD93: 104861 | BE93: 114816 | BF93: 122260 | BG93: 126246 | BH93: 128446 | BI93: 133121 | BJ93: 140759 | BK93: 150643 | BL93: 167461 | BM93: 185581 | BN93: 198124 | BO93: 209976 | BP93: 222246 | BQ93: 235123 | BR93: 248238 | BS93: 258013 | BT93: 260267 | BU93: 255254 | BV93: 251299 | BW93: 251241 | BX93: 251579 | BY93: 254660 | BZ93: 264881 | CA93: 277021 | CB93: 283596 | CC93: 285251 | CD93: 284261
A94: 89 | V94: 12244 | W94: 13084 | X94: 13973 | Y94: 14922 | Z94: 15941 | AA94: 17027 | AB94: 17759 | AC94: 17912 | AD94: 19383 | AE94: 22568 | AF94: 26208 | AG94: 29116 | AH94: 31708 | AI94: 33794 | AJ94: 35410 | AK94: 37646 | AL94: 40866 | AM94: 44476 | AN94: 48353 | AO94: 52238 | AP94: 56624 | AQ94: 61555 | AR94: 65035 | AS94: 67520 | AT94: 70551 | AU94: 73573 | AV94: 76772 | AW94: 80379 | AX94: 84501 | AY94: 88680 | AZ94: 92919 | BA94: 95660 | BB94: 93630 | BC94: 88672 | BD94: 88038 | BE94: 94687 | BF94: 103807 | BG94: 110549 | BH94: 114275 | BI94: 116395 | BJ94: 120755 | BK94: 127862 | BL94: 136951 | BM94: 152342 | BN94: 168925 | BO94: 180549 | BP94: 191559 | BQ94: 203130 | BR94: 214821 | BS94: 227115 | BT94: 236135 | BU94: 238518 | BV94: 234291 | BW94: 230762 | BX94: 230806 | BY94: 231325 | BZ94: 234470 | CA94: 244123 | CB94: 255443 | CC94: 261648 | CD94: 263289
A95: 90 | V95: 9629 | W95: 10216 | X95: 10831 | Y95: 11484 | Z95: 12179 | AA95: 12915 | AB95: 14494 | AC95: 15151 | AD95: 15482 | AE95: 17047 | AF95: 19854 | AG95: 22977 | AH95: 25534 | AI95: 27816 | AJ95: 29644 | AK95: 31071 | AL95: 33058 | AM95: 35893 | AN95: 39060 | AO95: 42494 | AP95: 45939 | AQ95: 49829 | AR95: 54199 | AS95: 57281 | AT95: 59527 | AU95: 62248 | AV95: 64998 | AW95: 67857 | AX95: 71113 | AY95: 74827 | AZ95: 78616 | BA95: 82430 | BB95: 84924 | BC95: 83197 | BD95: 78824 | BE95: 78367 | BF95: 84400 | BG95: 92528 | BH95: 98654 | BI95: 102095 | BJ95: 104108 | BK95: 108180 | BL95: 114615 | BM95: 122854 | BN95: 136754 | BO95: 151820 | BP95: 162460 | BQ95: 172720 | BR95: 183056 | BS95: 193891 | BT95: 205049 | BU95: 213508 | BV95: 216004 | BW95: 212283 | BX95: 209171 | BY95: 209442 | BZ95: 210180 | CA95: 213290 | CB95: 222200 | CC95: 232597 | CD95: 238382
A96: 91 | V96: 7499 | W96: 7977 | X96: 8480 | Y96: 9015 | Z96: 9586 | AA96: 10193 | AB96: 10822 | AC96: 12219 | AD96: 12757 | AE96: 13415 | AF96: 14959 | AG96: 17153 | AH96: 19853 | AI96: 22065 | AJ96: 24034 | AK96: 25618 | AL96: 26868 | AM96: 28589 | AN96: 31033 | AO96: 33791 | AP96: 36795 | AQ96: 39798 | AR96: 43190 | AS96: 46987 | AT96: 49705 | AU96: 51698 | AV96: 54122 | AW96: 56543 | AX96: 59092 | AY96: 61985 | AZ96: 65301 | BA96: 68649 | BB96: 72023 | BC96: 74281 | BD96: 72791 | BE96: 69069 | BF96: 68764 | BG96: 74049 | BH96: 81281 | BI96: 86774 | BJ96: 89911 | BK96: 91839 | BL96: 95475 | BM96: 101238 | BN96: 108596 | BO96: 121028 | BP96: 134511 | BQ96: 144271 | BR96: 153264 | BS96: 162730 | BT96: 172423 | BU96: 182613 | BV96: 190477 | BW96: 192806 | BX96: 189535 | BY96: 187005 | BZ96: 187486 | CA96: 188391 | CB96: 191313 | CC96: 199361 | CD96: 208848
A97: 92 | V97: 5643 | W97: 6082 | X97: 6551 | Y97: 7056 | Z97: 7601 | AA97: 8189 | AB97: 8331 | AC97: 8967 | AD97: 10034 | AE97: 10721 | AF97: 11586 | AG97: 12722 | AH97: 14585 | AI97: 16879 | AJ97: 18757 | AK97: 20430 | AL97: 21789 | AM97: 22850 | AN97: 24303 | AO97: 26399 | AP97: 28769 | AQ97: 31341 | AR97: 33914 | AS97: 36801 | AT97: 40074 | AU97: 42432 | AV97: 44177 | AW97: 46275 | AX97: 48396 | AY97: 50620 | AZ97: 53174 | BA97: 56045 | BB97: 58947 | BC97: 61913 | BD97: 63862 | BE97: 62683 | BF97: 59571 | BG97: 59299 | BH97: 63931 | BI97: 70277 | BJ97: 75116 | BK97: 77958 | BL97: 79672 | BM97: 82894 | BN97: 87976 | BO97: 94482 | BP97: 105407 | BQ97: 117443 | BR97: 125824 | BS97: 133949 | BT97: 142302 | BU97: 150995 | BV97: 160238 | BW97: 167221 | BX97: 169277 | BY97: 166637 | BZ97: 164649 | CA97: 165291 | CB97: 166214 | CC97: 168857 | CD97: 176095
A98: 93 | V98: 4148 | W98: 4534 | X98: 4954 | Y98: 5412 | Z98: 5914 | AA98: 6462 | AB98: 6530 | AC98: 6729 | AD98: 7254 | AE98: 8269 | AF98: 8987 | AG98: 9689 | AH98: 10632 | AI98: 12188 | AJ98: 14099 | AK98: 15666 | AL98: 17068 | AM98: 18201 | AN98: 19074 | AO98: 20306 | AP98: 22068 | AQ98: 24058 | AR98: 26220 | AS98: 28364 | AT98: 30805 | AU98: 33573 | AV98: 35592 | AW98: 37069 | AX98: 38879 | AY98: 40680 | AZ98: 42621 | BA98: 44782 | BB98: 47222 | BC98: 49721 | BD98: 52215 | BE98: 53963 | BF98: 53061 | BG98: 50404 | BH98: 50230 | BI98: 54242 | BJ98: 59693 | BK98: 63904 | BL98: 66354 | BM98: 67869 | BN98: 70693 | BO98: 75124 | BP98: 80763 | BQ98: 90322 | BR98: 100504 | BS98: 107922 | BT98: 114973 | BU98: 122316 | BV98: 130100 | BW98: 138106 | BX98: 144105 | BY98: 146095 | BZ98: 144026 | CA98: 142533 | CB98: 143179 | CC98: 144058 | CD98: 146454
A99: 94 | V99: 3105 | W99: 3717 | X99: 4447 | Y99: 5321 | Z99: 6368 | AA99: 7620 | AB99: 5045 | AC99: 5191 | AD99: 5369 | AE99: 5929 | AF99: 6797 | AG99: 7382 | AH99: 7951 | AI99: 8723 | AJ99: 9993 | AK99: 11556 | AL99: 12840 | AM99: 13987 | AN99: 14899 | AO99: 15631 | AP99: 16645 | AQ99: 18093 | AR99: 19732 | AS99: 21494 | AT99: 23269 | AU99: 25288 | AV99: 27606 | AW99: 29262 | AX99: 30522 | AY99: 32025 | AZ99: 33562 | BA99: 35170 | BB99: 36969 | BC99: 39028 | BD99: 41061 | BE99: 43225 | BF99: 44758 | BG99: 43973 | BH99: 41815 | BI99: 41741 | BJ99: 45125 | BK99: 49748 | BL99: 53278 | BM99: 55371 | BN99: 56694 | BO99: 59141 | BP99: 62905 | BQ99: 67801 | BR99: 75723 | BS99: 84438 | BT99: 90744 | BU99: 96800 | BV99: 103292 | BW99: 109868 | BX99: 116577 | BY99: 121874 | BZ99: 123709 | CA99: 122200 | CB99: 120978 | CC99: 121612 | CD99: 122434
A100: 95 | AB100: 5962 | AC100: 3906 | AD100: 4043 | AE100: 4316 | AF100: 4837 | AG100: 5479 | AH100: 5941 | AI100: 6396 | AJ100: 7013 | AK100: 8027 | AL100: 9282 | AM100: 10310 | AN100: 11213 | AO100: 11957 | AP100: 12547 | AQ100: 13364 | AR100: 14526 | AS100: 15830 | AT100: 17259 | AU100: 18690 | AV100: 20355 | AW100: 22204 | AX100: 23573 | AY100: 24602 | AZ100: 25848 | BA100: 27095 | BB100: 28397 | BC100: 29890 | BD100: 31511 | BE100: 33244 | BF100: 35071 | BG100: 36268 | BH100: 35671 | BI100: 33975 | BJ100: 33954 | BK100: 36779 | BL100: 40554 | BM100: 43477 | BN100: 45220 | BO100: 46378 | BP100: 48411 | BQ100: 51648 | BR100: 55575 | BS100: 62201 | BT100: 69408 | BU100: 74689 | BV100: 79954 | BW100: 85304 | BX100: 90670 | BY100: 96422 | BZ100: 100915 | CA100: 102659 | CB100: 101413 | CC100: 100493 | CD100: 101074
A101: 96 | AB101: 2817 | AC101: 4499 | AD101: 2911 | AE101: 3172 | AF101: 3464 | AG101: 3822 | AH101: 4320 | AI101: 4681 | AJ101: 5035 | AK101: 5516 | AL101: 6311 | AM101: 7295 | AN101: 8085 | AO101: 8802 | AP101: 9388 | AQ101: 9852 | AR101: 10487 | AS101: 11391 | AT101: 12424 | AU101: 13545 | AV101: 14705 | AW101: 15998 | AX101: 17477 | AY101: 18564 | AZ101: 19397 | BA101: 20380 | BB101: 21359 | BC101: 22422 | BD101: 23557 | BE101: 24910 | BF101: 26344 | BG101: 27741 | BH101: 28721 | BI101: 28291 | BJ101: 26978 | BK101: 27014 | BL101: 29264 | BM101: 32298 | BN101: 34651 | BO101: 36109 | BP101: 37046 | BQ101: 38806 | BR101: 41308 | BS101: 44561 | BT101: 49885 | BU101: 55748 | BV101: 60221 | BW101: 64456 | BX101: 68692 | BY101: 73186 | BZ101: 77913 | CA101: 81735 | CB101: 83115 | CC101: 82205 | CD101: 81505
A102: 97 | AB102: 1793 | AC102: 2089 | AD102: 3144 | AE102: 2150 | AF102: 2468 | AG102: 2681 | AH102: 2950 | AI102: 3331 | AJ102: 3605 | AK102: 3873 | AL102: 4240 | AM102: 4849 | AN102: 5589 | AO102: 6202 | AP102: 6751 | AQ102: 7198 | AR102: 7550 | AS102: 8029 | AT102: 8725 | AU102: 9515 | AV102: 10402 | AW102: 11279 | AX102: 12288 | AY102: 13428 | AZ102: 14276 | BA102: 14914 | BB102: 15664 | BC102: 16445 | BD102: 17221 | BE102: 18150 | BF102: 19246 | BG102: 20307 | BH102: 21407 | BI102: 22196 | BJ102: 21892 | BK102: 20913 | BL102: 20943 | BM102: 22707 | BN102: 25080 | BO102: 26960 | BP102: 28102 | BQ102: 28934 | BR102: 30226 | BS102: 32265 | BT102: 34804 | BU102: 39025 | BV102: 43790 | BW102: 47301 | BX102: 50538 | BY102: 53990 | BZ102: 57579 | CA102: 61468 | CB102: 64428 | CC102: 65615 | CD102: 64913
A103: 98 | AB103: 1234 | AC103: 1315 | AD103: 1479 | AE103: 1966 | AF103: 1556 | AG103: 1869 | AH103: 2024 | AI103: 2224 | AJ103: 2507 | AK103: 2709 | AL103: 2908 | AM103: 3181 | AN103: 3626 | AO103: 4186 | AP103: 4642 | AQ103: 5049 | AR103: 5381 | AS103: 5638 | AT103: 5995 | AU103: 6513 | AV103: 7124 | AW103: 7775 | AX103: 8444 | AY103: 9200 | AZ103: 10058 | BA103: 10688 | BB103: 11160 | BC103: 11744 | BD103: 12291 | BE103: 12913 | BF103: 13647 | BG103: 14433 | BH103: 15243 | BI103: 16092 | BJ103: 16711 | BK103: 16509 | BL103: 15770 | BM103: 15805 | BN103: 17153 | BO103: 18976 | BP103: 20408 | BQ103: 21342 | BR103: 21905 | BS103: 22946 | BT103: 24498 | BU103: 26468 | BV103: 29800 | BW103: 33440 | BX103: 36041 | BY103: 38600 | BZ103: 41280 | CA103: 44161 | CB103: 47081 | CC103: 49444 | CD103: 50335
A104: 99 | AB104: 724 | AC104: 885 | AD104: 918 | AE104: 995 | AF104: 942 | AG104: 1152 | AH104: 1379 | AI104: 1491 | AJ104: 1635 | AK104: 1839 | AL104: 1985 | AM104: 2129 | AN104: 2319 | AO104: 2648 | AP104: 3055 | AQ104: 3384 | AR104: 3677 | AS104: 3914 | AT104: 4100 | AU104: 4357 | AV104: 4748 | AW104: 5183 | AX104: 5665 | AY104: 6151 | AZ104: 6704 | BA104: 7323 | BB104: 7775 | BC104: 8137 | BD104: 8531 | BE104: 8957 | BF104: 9435 | BG104: 9944 | BH104: 10523 | BI104: 11128 | BJ104: 11768 | BK104: 12240 | BL104: 12091 | BM104: 11555 | BN104: 11594 | BO104: 12601 | BP104: 13948 | BQ104: 15049 | BR104: 15680 | BS104: 16130 | BT104: 16908 | BU104: 18077 | BV104: 19609 | BW104: 22081 | BX104: 24715 | BY104: 26696 | BZ104: 28637 | CA104: 30714 | CB104: 32791 | CC104: 35053 | CD104: 36773
B108: * Transform it the Female Population on 1st January, each year: for fertility tables
A109: Age_national | B109: 1980 | C109: 1981 | D109: 1982 | E109: 1983 | F109: 1984 | G109: 1985 | H109: 1986 | I109: 1987 | J109: 1988 | K109: 1989 | L109: 1990 | M109: 1991 | N109: 1992 | O109: 1993 | P109: 1994 | Q109: 1995 | R109: 1996 | S109: 1997 | T109: 1998 | U109: 1999 | V109: 2000 | W109: 2001 | X109: 2002 | Y109: 2003 | Z109: 2004 | AA109: 2005 | AB109: 2006 | AC109: 2007 | AD109: 2008 | AE109: 2009 | AF109: 2010 | AG109: 2011 | AH109: 2012 | AI109: 2013 | AJ109: 2014 | AK109: 2015 | AL109: 2016 | AM109: 2017 | AN109: 2018 | AO109: 2019 | AP109: 2020 | AQ109: 2021 | AR109: 2022 | AS109: 2023 | AT109: 2024 | AU109: 2025 | AV109: 2026 | AW109: 2027 | AX109: 2028 | AY109: 2029 | AZ109: 2030 | BA109: 2031 | BB109: 2032 | BC109: 2033 | BD109: 2034 | BE109: 2035 | BF109: 2036 | BG109: 2037 | BH109: 2038 | BI109: 2039 | BJ109: 2040 | BK109: 2041 | BL109: 2042 | BM109: 2043 | BN109: 2044 | BO109: 2045 | BP109: 2046 | BQ109: 2047 | BR109: 2048 | BS109: 2049 | BT109: 2050 | BU109: 2051 | BV109: 2052 | BW109: 2053 | BX109: 2054 | BY109: 2055 | BZ109: 2056 | CA109: 2057 | CB109: 2058 | CC109: 2059 | CD109: 2060
A110: 14 | B110: =ROUND((B19+B20)/2, 0) -> 414663 | C110: =ROUND((C19+C20)/2, 0) -> 412240 | D110: =ROUND((D19+D20)/2, 0) -> 420160 | E110: 433688 | F110: 445757 | G110: 453374 | H110: 452478 | I110: 444725 | J110: 433137 | K110: 416525 | L110: 390456 | M110: 375785 | N110: 369046 | O110: 372922 | P110: 386279 | Q110: 399227 | R110: 409177 | S110: 389232 | T110: 361604 | U110: 333294 | V110: 311709 | W110: 299597 | X110: 293969 | Y110: 292108 | Z110: 294597 | AA110: 303882 | AB110: 318072 | AC110: 326076 | AD110: 326882 | AE110: 325208 | AF110: 322260 | AG110: 316790 | AH110: 308186 | AI110: 298700 | AJ110: 290571 | AK110: 284297
A111: 15 | B111: =ROUND((B20+B21)/2, 0) -> 422878 | C111: 412354 | D111: =ROUND((D20+D21)/2, 0) -> 411907 | E111: 419875 | F111: 432841 | G111: 444786 | H111: 451839 | I111: 451298 | J111: 444101 | K111: 433570 | L111: 410215 | M111: 390190 | N111: 375642 | O111: 368712 | P111: 372328 | Q111: 385459 | R111: 407617 | S111: 408072 | T111: 388797 | U111: 361121 | V111: 332323 | W111: 311842 | X111: 300256 | Y111: 294484 | Z111: 292326 | AA111: 293953 | AB111: 304196 | AC111: 317770 | AD111: 325726 | AE111: 326829 | AF111: 324777 | AG111: 321649 | AH111: 315772 | AI111: 307170 | AJ111: 297690 | AK111: 289566
A112: 16 | B112: 434104 | C112: 419178 | D112: =ROUND((D21+D22)/2, 0) -> 411273 | E112: 411670 | F112: 419605 | G112: 431534 | H112: 443675 | I112: 450498 | J112: 449976 | K112: 443358 | L112: 428425 | M112: 409613 | N112: 389869 | O112: 375314 | P112: 368335 | Q112: 371768 | R112: 390323 | S112: 407009 | T112: 407989 | U112: 388599 | V112: 360187 | W112: 331681 | X112: 311873 | Y112: 301203 | Z112: 295258 | AA112: 292528 | AB112: 294825 | AC112: 305091 | AD112: 318624 | AE112: 326746 | AF112: 327309 | AG112: 324345 | AH112: 320518 | AI112: 314640 | AJ112: 306048 | AK112: 296582
A113: 17 | B113: 441948 | C113: 429881 | D113: =ROUND((D22+D23)/2, 0) -> 416724 | E113: 410292 | F113: 411448 | G113: 418886 | H113: 429860 | I113: 442752 | J113: 449016 | K113: 448537 | L113: 441436 | M113: 427705 | N113: 408953 | O113: 389356 | P113: 374941 | Q113: 367989 | R113: 373382 | S113: 390025 | T113: 407036 | U113: 407910 | V113: 388078 | W113: 359499 | X113: 331420 | Y113: 312866 | Z113: 303023 | AA113: 296877 | AB113: 293601 | AC113: 296806 | AD113: 307389 | AE113: 321041 | AF113: 328549 | AG113: 327748 | AH113: 324168 | AI113: 320341 | AJ113: 314467 | AK113: 305877
A114: 18 | B114: 445238 | C114: 438438 | D114: =ROUND((D23+D24)/2, 0) -> 425932 | E114: 414383 | F114: 409328 | G114: 410786 | H114: 415874 | I114: 428376 | J114: 441689 | K114: 447420 | L114: 447938 | M114: 440765 | N114: 426924 | O114: 408093 | P114: 388797 | Q114: 374601 | R114: 363103 | S114: 372825 | T114: 389780 | U114: 406687 | V114: 407671 | W114: 386632 | X114: 358586 | Y114: 331714 | Z114: 314107 | AA114: 305234 | AB114: 297362 | AC114: 295471 | AD114: 299444 | AE114: 310723 | AF114: 323608 | AG114: 329973 | AH114: 328997 | AI114: 325443 | AJ114: 321638 | AK114: 315776
A115: 19 | B115: 443131 | C115: 441844 | D115: =ROUND((D24+D25)/2, 0) -> 433965 | E115: 422119 | F115: 412070 | G115: 407930 | H115: 408020 | I115: 413057 | J115: 426761 | K115: 440512 | L115: 447042 | M115: 447301 | N115: 440030 | O115: 425934 | P115: 407187 | Q115: 388272 | R115: 365233 | S115: 361679 | T115: 372233 | U115: 388843 | V115: 406421 | W115: 404797 | X115: 384563 | Y115: 358010 | Z115: 331527 | AA115: 315018 | AB115: 303752 | AC115: 297299 | AD115: 296606 | AE115: 302248 | AF115: 312915 | AG115: 325056 | AH115: 330990 | AI115: 330053 | AJ115: 326533 | AK115: 322754
A116: 20 | B116: 431749 | C116: 440755 | D116: =ROUND((D25+D26)/2, 0) -> 437977 | E116: 429637 | F116: 418355 | G116: 409335 | H116: 405513 | I116: 405443 | J116: 410127 | K116: 425041 | L116: 439408 | M116: 446432 | N116: 446599 | O116: 439081 | P116: 424897 | Q116: 406317 | R116: 381547 | S116: 363289 | T116: 361488 | U116: 370887 | V116: 387999 | W116: 403076 | X116: 400748 | Y116: 382286 | Z116: 355548 | AA116: 329792 | AB116: 311920 | AC116: 301225 | AD116: 296403 | AE116: 298271 | AF116: 303217 | AG116: 313449 | AH116: 324506 | AI116: 330426 | AJ116: 329488 | AK116: 325976
A117: 21 | B117: 411133 | C117: 430686 | D117: =ROUND((D26+D27)/2, 0) -> 437644 | E117: 434245 | F117: 425368 | G117: 414182 | H117: 407920 | I117: 403280 | J117: 402754 | K117: 407109 | L117: 425197 | M117: 438795 | N117: 445757 | O117: 445680 | P117: 438081 | Q117: 423897 | R117: 405953 | S117: 380818 | T117: 364272 | U117: 360519 | V117: 369447 | W117: 385567 | X117: 398912 | Y117: 397363 | Z117: 378151 | AA117: 352189 | AB117: 328012 | AC117: 310202 | AD117: 300732 | AE117: 298663 | AF117: 299256 | AG117: 304489 | AH117: 312904 | AI117: 323883 | AJ117: 329739 | AK117: 328752
A118: 22 | B118: 388802 | C118: 411037 | D118: =ROUND((D27+D28)/2, 0) -> 428869 | E118: 434655 | F118: 430562 | G118: 420691 | H118: 415164 | I118: 406684 | J118: 400930 | K118: 399976 | L118: 410646 | M118: 424690 | N118: 438120 | O118: 444864 | P118: 444710 | Q118: 437121 | R118: 423003 | S118: 406130 | T118: 381514 | U118: 363526 | V118: 359963 | W118: 369493 | X118: 384836 | Y118: 398416 | Z118: 394296 | AA118: 376039 | AB118: 353098 | AC118: 328881 | AD118: 311954 | AE118: 304129 | AF118: 300765 | AG118: 303442 | AH118: 305762 | AI118: 314145 | AJ118: 325120 | AK118: 330970
A119: 23 | B119: 376426 | C119: 389958 | D119: =ROUND((D28+D29)/2, 0) -> 411166 | E119: 427161 | F119: 431703 | G119: 426453 | H119: 422169 | I119: 416326 | J119: 405326 | K119: 398488 | L119: 404864 | M119: 410362 | N119: 424121 | O119: 437230 | P119: 443921 | Q119: 443779 | R119: 435836 | S119: 422894 | T119: 405648 | U119: 380541 | V119: 363702 | W119: 361599 | X119: 370623 | Y119: 386512 | Z119: 396916 | AA119: 392590 | AB119: 377937 | AC119: 354660 | AD119: 331033 | AE119: 314786 | AF119: 305790 | AG119: 306354 | AH119: 305824 | AI119: 308171 | AJ119: 316628 | AK119: 327695
A120: 24 | B120: 365437 | C120: 376427 | D120: =ROUND((D29+D30)/2, 0) -> 391329 | E120: 411393 | F120: 425478 | G120: 428312 | H120: 427433 | I120: 423832 | J120: 417360 | K120: 403867 | L120: 406209 | M120: 404690 | N120: 410018 | O120: 423345 | P120: 436291 | Q120: 443016 | R120: 445563 | S120: 435478 | T120: 422093 | U120: 404598 | V120: 380321 | W120: 364974 | X120: 362497 | Y120: 371593 | Z120: 385545 | AA120: 394642 | AB120: 394000 | AC120: 379116 | AD120: 355991 | AE120: 332475 | AF120: 315244 | AG120: 309771 | AH120: 307995 | AI120: 307486 | AJ120: 309873 | AK120: 318404
A121: 25 | B121: 334275 | C121: 363368 | D121: =ROUND((D30+D31)/2, 0) -> 376640 | E121: 392798 | F121: 411637 | G121: 423349 | H121: 429073 | I121: 428595 | J121: 425364 | K121: 418286 | L121: 410988 | M121: 406189 | N121: 404458 | O121: 409473 | P121: 422520 | Q121: 435390 | R121: 443130 | S121: 445181 | T121: 434617 | U121: 420996 | V121: 404349 | W121: 380779 | X121: 365901 | Y121: 363345 | Z121: 370920 | AA121: 383674 | AB121: 395793 | AC121: 395208 | AD121: 380615 | AE121: 356923 | AF121: 332585 | AG121: 317807 | AH121: 310549 | AI121: 308789 | AJ121: 308296 | AK121: 310710
A122: 26 | B122: 300435 | C122: 333445 | D122: =ROUND((D31+D32)/2, 0) -> 361508 | E122: 376946 | F122: 394286 | G122: 411443 | H122: 423424 | I122: 430017 | J122: 429622 | K122: 426789 | L122: 418149 | M122: 410962 | N122: 406109 | O122: 404027 | P122: 408880 | Q122: 421732 | R122: 433847 | S122: 442893 | T122: 444226 | U122: 433603 | V122: 420835 | W122: 403748 | X122: 381306 | Y122: 366868 | Z122: 363243 | AA122: 369527 | AB122: 384736 | AC122: 397233 | AD122: 397137 | AE122: 381807 | AF122: 357310 | AG122: 335072 | AH122: 318053 | AI122: 310801 | AJ122: 309049 | AK122: 308565
A123: 27 | B123: 283903 | C123: 301282 | D123: =ROUND((D32+D33)/2, 0) -> 332808 | E123: 359743 | F123: 377271 | G123: 395358 | H123: 410880 | I123: 423676 | J123: 430824 | K123: 430536 | L123: 424520 | M123: 417793 | N123: 410875 | O123: 405829 | P123: 403548 | Q123: 408323 | R123: 418316 | S123: 433665 | T123: 441801 | U123: 443427 | V123: 433584 | W123: 420390 | X123: 403244 | Y123: 381788 | Z123: 367114 | AA123: 362479 | AB123: 370374 | AC123: 385929 | AD123: 399282 | AE123: 398646 | AF123: 382783 | AG123: 359599 | AH123: 334998 | AI123: 317985 | AJ123: 310736 | AK123: 308987
A124: 28 | B124: 265446 | C124: 283794 | D124: =ROUND((D33+D34)/2, 0) -> 302296 | E124: 332258 | F124: 358000 | G124: 377199 | H124: 394387 | I124: 410491 | J124: 423793 | K124: 431518 | L124: 430093 | M124: 424039 | N124: 417376 | O124: 410587 | P124: 405502 | Q124: 403104 | R124: 403866 | S124: 418253 | T124: 432537 | U124: 441108 | V124: 443525 | W124: 432825 | X124: 420050 | Y124: 402833 | Z124: 381782 | AA124: 366697 | AB124: 363371 | AC124: 371147 | AD124: 387814 | AE124: 400944 | AF124: 400164 | AG124: 384661 | AH124: 359305 | AI124: 334716 | AJ124: 317712 | AK124: 310465
A125: 29 | B125: 247166 | C125: 265811 | D125: =ROUND((D34+D35)/2, 0) -> 283841 | E125: 303384 | F125: 331730 | G125: 360668 | H125: 377835 | I125: 393584 | J125: 409970 | K125: 423796 | L125: 432986 | M125: 429658 | N125: 423497 | O125: 416754 | P125: 410250 | Q125: 405209 | R125: 400922 | S125: 403906 | T125: 417257 | U125: 431920 | V125: 441246 | W125: 441921 | X125: 432087 | Y125: 419707 | Z125: 401878 | AA125: 380985 | AB125: 367550 | AC125: 364161 | AD125: 372591 | AE125: 389109 | AF125: 402614 | AG125: 401732 | AH125: 384203 | AI125: 358860 | AJ125: 334290 | AK125: 317298
A126: 30 | B126: 246494 | C126: 249196 | D126: =ROUND((D35+D36)/2, 0) -> 266328 | E126: 283957 | F126: 304486 | G126: 339437 | H126: 363038 | I126: 378638 | J126: 392656 | K126: 409340 | L126: 427283 | M126: 432605 | N126: 429161 | O126: 422748 | P126: 416085 | Q126: 409948 | R126: 400876 | S126: 401023 | T126: 403028 | U126: 416782 | V126: 432066 | W126: 440266 | X126: 440267 | Y126: 431390 | Z126: 418780 | AA126: 400189 | AB126: 381164 | AC126: 368445 | AD126: 365472 | AE126: 373326 | AF126: 390410 | AG126: 403779 | AH126: 401169 | AI126: 383642 | AJ126: 358318 | AK126: 333770
A127: 31 | B127: 251501 | C127: 247917 | D127: =ROUND((D36+D37)/2, 0) -> 251380 | E127: 266915 | F127: 284086 | G127: 309061 | H127: 338739 | I127: 365577 | J127: 379329 | K127: 391625 | L127: 411937 | M127: 426988 | N127: 432161 | O127: 428455 | P127: 421950 | Q127: 415451 | R127: 403512 | S127: 400963 | T127: 400249 | U127: 402507 | V127: 416833 | W127: 432301 | X127: 439341 | Y127: 438579 | Z127: 430211 | AA127: 417054 | AB127: 399607 | AC127: 381429 | AD127: 369779 | AE127: 366159 | AF127: 374205 | AG127: 391509 | AH127: 403178 | AI127: 400545 | AJ127: 383022 | AK127: 357720
A128: 32 | B128: 246470 | C128: 251539 | D128: =ROUND((D37+D38)/2, 0) -> 249487 | E128: 253643 | F128: 267519 | G128: 288913 | H128: 305089 | I128: 338215 | J128: 368015 | K128: 379927 | L128: 392674 | M128: 411625 | N128: 426631 | O128: 431506 | P128: 427698 | Q128: 421188 | R128: 419279 | S128: 403574 | T128: 400289 | U128: 399778 | V128: 402591 | W128: 418320 | X128: 432323 | Y128: 438137 | Z128: 436454 | AA128: 427958 | AB128: 416333 | AC128: 398929 | AD128: 382103 | AE128: 370502 | AF128: 367023 | AG128: 375141 | AH128: 390930 | AI128: 402552 | AJ128: 399896 | AK128: 382380
A129: 33 | B129: 229915 | C129: 246215 | D129: =ROUND((D38+D39)/2, 0) -> 251715 | E129: 251131 | F129: 255936 | G129: 245344 | H129: 285265 | I129: 301295 | J129: 337612 | K129: 370370 | L129: 377196 | M129: 392300 | N129: 411253 | O129: 426066 | P129: 430800 | Q129: 426978 | R129: 430512 | S129: 419211 | T129: 403021 | U129: 400005 | V129: 399905 | W129: 404142 | X129: 419395 | Y129: 432253 | Z129: 436605 | AA129: 433351 | AB129: 427590 | AC129: 415446 | AD129: 398789 | AE129: 382145 | AF129: 371326 | AG129: 367488 | AH129: 374615 | AI129: 390351 | AJ129: 401928 | AK129: 399253
A130: 34 | B130: 212545 | C130: 230328 | D130: =ROUND((D39+D40)/2, 0) -> 246094 | E130: 251950 | F130: 252798 | G130: 230474 | H130: 247780 | I130: 281783 | J130: 297453 | K130: 336948 | L130: 361306 | M130: 376601 | N130: 391869 | O130: 410680 | P130: 425450 | Q130: 430131 | R130: 430810 | S130: 430170 | T130: 418554 | U130: 402710 | V130: 400238 | W130: 400161 | X130: 405435 | Y130: 420312 | Z130: 431882 | AA130: 434120 | AB130: 433381 | AC130: 426968 | AD130: 415232 | AE130: 397993 | AF130: 382275 | AG130: 371578 | AH130: 367019 | AI130: 374108 | AJ130: 389794 | AK130: 401331
A131: 35 | B131: 208377 | C131: 213746 | D131: =ROUND((D40+D41)/2, 0) -> 230869 | E131: 246030 | F131: 252195 | G131: 254969 | H131: 234182 | I131: 250496 | J131: 278255 | K131: 293581 | L131: 332325 | M131: 360400 | N131: 375953 | O131: 391248 | P131: 410059 | Q131: 424871 | R131: 432789 | S131: 430345 | T131: 429352 | U131: 418191 | V131: 402925 | W131: 400557 | X131: 400237 | Y131: 406346 | Z131: 420985 | AA131: 430494 | AB131: 434491 | AC131: 432960 | AD131: 427121 | AE131: 414283 | AF131: 397271 | AG131: 382516 | AH131: 371168 | AI131: 366586 | AJ131: 373639 | AK131: 389282
A132: 36 | B132: 218530 | C132: 209261 | D132: =ROUND((D41+D42)/2, 0) -> 215071 | E132: 231467 | F132: 245975 | G132: 255146 | H132: 254782 | I132: 238148 | J132: 253312 | K132: 274698 | L132: 300359 | M132: 331690 | N132: 359443 | O132: 375122 | P132: 390579 | Q132: 409472 | R132: 430622 | S132: 432241 | T132: 429494 | U132: 428828 | V132: 418352 | W132: 403777 | X132: 400603 | Y132: 399894 | Z132: 407072 | AA132: 420784 | AB132: 430953 | AC132: 434328 | AD132: 433453 | AE132: 426433 | AF132: 413408 | AG132: 397514 | AH132: 382173 | AI132: 370808 | AJ132: 366205 | AK132: 373229
A133: 37 | B133: 231702 | C133: 218040 | D133: =ROUND((D42+D43)/2, 0) -> 210264 | E133: 216455 | F133: 232076 | G133: 250337 | H133: 254962 | I133: 254702 | J133: 242201 | K133: 256248 | L133: 280475 | M133: 300280 | N133: 331008 | O133: 358313 | P133: 374247 | Q133: 389945 | R133: 410712 | S133: 430034 | T133: 431310 | U133: 428870 | V133: 428835 | W133: 417428 | X133: 404264 | Y133: 400191 | Z133: 399505 | AA133: 407002 | AB133: 420938 | AC133: 430838 | AD133: 435266 | AE133: 433022 | AF133: 425910 | AG133: 413666 | AH133: 397252 | AI133: 381895 | AJ133: 370514 | AK133: 365894
A134: 38 | B134: 233871 | C134: 229821 | D134: =ROUND((D43+D44)/2, 0) -> 217673 | E134: 211322 | F134: 217855 | G134: 236136 | H134: 249715 | I134: 254886 | J134: 254541 | K134: 246360 | L134: 263712 | M134: 280378 | N134: 300159 | O134: 330166 | P134: 357143 | Q134: 373406 | R134: 381332 | S134: 410138 | T134: 429155 | U134: 430586 | V134: 428547 | W134: 427566 | X134: 416236 | Y134: 404270 | Z134: 399832 | AA134: 398339 | AB134: 407094 | AC134: 420566 | AD134: 432000 | AE134: 435211 | AF134: 432817 | AG134: 426196 | AH134: 413502 | AI134: 397069 | AJ134: 381696 | AK134: 370301
A135: 39 | B135: 225838 | C135: 232019 | D135: =ROUND((D44+D45)/2, 0) -> 228081 | E135: 217360 | F135: 212395 | G135: 220263 | H135: 234795 | I135: 249200 | J135: 254729 | K135: 254311 | L135: 251244 | M135: 263457 | N135: 280241 | O135: 299890 | P135: 329287 | Q135: 356008 | R135: 366469 | S135: 380646 | T135: 409265 | U135: 428356 | V135: 430097 | W135: 428689 | X135: 426110 | Y135: 414593 | Z135: 404394 | AA135: 398854 | AB135: 398830 | AC135: 406777 | AD135: 421440 | AE135: 432174 | AF135: 435405 | AG135: 433239 | AH135: 426145 | AI135: 413428 | AJ135: 396976 | AK135: 381588
A136: 40 | B136: 220380 | C136: 224969 | D136: =ROUND((D45+D46)/2, 0) -> 230309 | E136: 226407 | F136: 217058 | G136: 213247 | H136: 218329 | I136: 233562 | J136: 248606 | K136: 254503 | L136: 250541 | M136: 250865 | N136: 263165 | O136: 279966 | P136: 299585 | Q136: 328439 | R136: 358381 | S136: 365751 | T136: 379766 | U136: 408537 | V136: 427879 | W136: 429743 | X136: 428692 | Y136: 424230 | Z136: 413159 | AA136: 403943 | AB136: 399536 | AC136: 398857 | AD136: 407688 | AE136: 421441 | AF136: 432608 | AG136: 436008 | AH136: 433311 | AI136: 426192 | AJ136: 413454 | AK136: 396984
A137: 41 | B137: 216863 | C137: 219545 | D137: =ROUND((D46+D47)/2, 0) -> 224226 | E137: 228665 | F137: 224756 | G137: 216528 | H137: 211692 | I137: 216503 | J137: 232264 | K137: 247945 | L137: 252145 | M137: 249992 | N137: 250451 | O137: 262744 | P137: 279658 | Q137: 299306 | R137: 326068 | S137: 357759 | T137: 364912 | U137: 379124 | V137: 408050 | W137: 425947 | X137: 429390 | Y137: 428458 | Z137: 422539 | AA137: 411141 | AB137: 404447 | AC137: 399621 | AD137: 400325 | AE137: 407746 | AF137: 421714 | AG137: 433287 | AH137: 436202 | AI137: 433483 | AJ137: 426343 | AK137: 413585
A138: 42 | B138: 210900 | C138: 215782 | D138: =ROUND((D47+D48)/2, 0) -> 218833 | E138: 223538 | F138: 227044 | G138: 222879 | H138: 215456 | I138: 210237 | J138: 214624 | K138: 230913 | L138: 245603 | M138: 251609 | N138: 249408 | O138: 249914 | P138: 262291 | Q138: 279374 | R138: 290233 | S138: 325541 | T138: 356882 | U138: 364347 | V138: 378663 | W138: 406383 | X138: 424003 | Y138: 428933 | Z138: 428391 | AA138: 420321 | AB138: 411760 | AC138: 404294 | AD138: 401295 | AE138: 400750 | AF138: 408110 | AG138: 422582 | AH138: 433594 | AI138: 436493 | AJ138: 433755 | AK138: 426597
A139: 43 | B139: 206420 | C139: 210069 | D139: =ROUND((D48+D49)/2, 0) -> 214824 | E139: 218174 | F139: 222860 | G139: 225194 | H139: 222856 | I139: 214478 | J139: 208724 | K139: 212705 | L139: 228059 | M139: 245057 | N139: 251038 | O139: 248703 | P139: 249349 | Q139: 261862 | R139: 279547 | S139: 289742 | T139: 324713 | U139: 356335 | V139: 363988 | W139: 378629 | X139: 404669 | Y139: 421920 | Z139: 428734 | AA139: 427854 | AB139: 421462 | AC139: 411662 | AD139: 405796 | AE139: 401710 | AF139: 401466 | AG139: 408968 | AH139: 422978 | AI139: 433986 | AJ139: 436873 | AK139: 434120
A140: 44 | B140: 201378 | C140: 205300 | D140: =ROUND((D49+D50)/2, 0) -> 209356 | E140: 213919 | F140: 217526 | G140: 221948 | H140: 225495 | I140: 222928 | J140: 213437 | K140: 207169 | L140: 209810 | M140: 227517 | N140: 244477 | O140: 250345 | P140: 247970 | Q140: 248806 | R140: 257775 | S140: 279049 | T140: 289050 | U140: 324201 | V140: 355965 | W140: 363479 | X140: 378690 | Y140: 402825 | Z140: 420206 | AA140: 428259 | AB140: 428829 | AC140: 421934 | AD140: 413279 | AE140: 405808 | AF140: 402322 | AG140: 402318 | AH140: 409430 | AI140: 423444 | AJ140: 434452 | AK140: 437332
A141: 45 | B141: 191004 | C141: 199816 | D141: =ROUND((D50+D51)/2, 0) -> 204298 | E141: 208693 | F141: 213026 | G141: 216648 | H141: 221237 | I141: 225892 | J141: 222932 | K141: 212343 | L141: 203748 | M141: 209289 | N141: 226943 | O141: 243778 | P141: 249624 | Q141: 247260 | R141: 240686 | S141: 257362 | T141: 278449 | U141: 288519 | V141: 323815 | W141: 353530 | X141: 363038 | Y141: 378683 | Z141: 401379 | AA141: 418250 | AB141: 428042 | AC141: 429293 | AD141: 423948 | AE141: 413200 | AF141: 405939 | AG141: 403463 | AH141: 402834 | AI141: 409945 | AJ141: 423968 | AK141: 434983
A142: 46 | B142: 180735 | C142: 189993 | D142: =ROUND((D51+D52)/2, 0) -> 198375 | E142: 203350 | F142: 208040 | G142: 211910 | H142: 215599 | I142: 220621 | J142: 226219 | K142: 222880 | L142: 209844 | M142: 203152 | N142: 208738 | O142: 226259 | P142: 243053 | Q142: 248925 | R142: 246034 | S142: 240386 | T142: 256765 | U142: 277945 | V142: 288179 | W142: 322645 | X142: 351135 | Y142: 362581 | Z142: 378899 | AA142: 399646 | AB142: 417086 | AC142: 427314 | AD142: 431174 | AE142: 424430 | AF142: 413307 | AG142: 407307 | AH142: 404026 | AI142: 403389 | AJ142: 410504 | AK142: 424542
A143: 47 | B143: 175266 | C143: 180217 | D143: =ROUND((D52+D53)/2, 0) -> 189091 | E143: 196990 | F143: 202414 | G143: 207168 | H143: 210817 | I143: 214646 | J143: 219938 | K143: 226486 | L143: 219611 | M143: 209177 | N143: 202528 | O143: 208088 | P143: 225550 | Q143: 242349 | R143: 246961 | S143: 245731 | T143: 239728 | U143: 256337 | V143: 277695 | W143: 288986 | X143: 321532 | Y143: 348662 | Z143: 362170 | AA143: 378925 | AB143: 398679 | AC143: 415327 | AD143: 428148 | AE143: 431722 | AF143: 425167 | AG143: 414966 | AH143: 407905 | AI143: 404615 | AJ143: 403973 | AK143: 411097
A144: 48 | B144: 168658 | C144: 174267 | D144: =ROUND((D53+D54)/2, 0) -> 179797 | E144: 188239 | F144: 195621 | G144: 201267 | H144: 205863 | I144: 209819 | J144: 213628 | K144: 219199 | L144: 221864 | M144: 218780 | N144: 208482 | O144: 201807 | P144: 207414 | Q144: 224862 | R144: 241423 | S144: 246572 | T144: 245011 | U144: 239260 | V144: 256115 | W144: 276761 | X144: 289774 | Y144: 320324 | Z144: 346283 | AA144: 361641 | AB144: 378611 | AC144: 397143 | AD144: 415123 | AE144: 427444 | AF144: 432379 | AG144: 426833 | AH144: 415587 | AI144: 408513 | AJ144: 405217 | AK144: 404575
A145: 49 | B145: 159930 | C145: 167434 | D145: =ROUND((D54+D55)/2, 0) -> 173369 | E145: 179422 | F145: 187399 | G145: 194054 | H145: 200219 | I145: 204652 | J145: 208757 | K145: 212558 | L145: 216069 | M145: 220918 | N145: 217921 | O145: 207687 | P145: 201065 | Q145: 206760 | R145: 221818 | S145: 240975 | T145: 245800 | U145: 244454 | V145: 239038 | W145: 255772 | X145: 275796 | Y145: 290526 | Z145: 319155 | AA145: 343758 | AB145: 361390 | AC145: 377734 | AD145: 397034 | AE145: 413274 | AF145: 426764 | AG145: 433506 | AH145: 427462 | AI145: 416200 | AJ145: 409117 | AK145: 405819
A146: 50 | B146: 153678 | C146: 158987 | D146: =ROUND((D55+D56)/2, 0) -> 166310 | E146: 172517 | F146: 179053 | G146: 186140 | H146: 193308 | I146: 199260 | J146: 203383 | K146: 207646 | L146: 211110 | M146: 215197 | N146: 219944 | O146: 216959 | P146: 206870 | Q146: 200342 | R146: 199687 | S146: 221352 | T146: 240206 | U146: 245154 | V146: 244329 | W146: 239870 | X146: 255663 | Y146: 274777 | Z146: 291234 | AA146: 317890 | AB146: 343527 | AC146: 360478 | AD146: 378257 | AE146: 395385 | AF146: 411534 | AG146: 427828 | AH146: 434113 | AI146: 428064 | AJ146: 416790 | AK146: 409703
A147: 51 | B147: 147828 | C147: 152630 | D147: =ROUND((D56+D57)/2, 0) -> 158135 | E147: 165232 | F147: 171675 | G147: 178269 | H147: 185349 | I147: 192647 | J147: 198242 | K147: 202067 | L147: 207282 | M147: 210262 | N147: 214297 | O147: 218868 | P147: 215975 | Q147: 206074 | R147: 195230 | S147: 199223 | T147: 220591 | U147: 239493 | V147: 244976 | W147: 244117 | X147: 240670 | Y147: 255151 | Z147: 273753 | AA147: 291827 | AB147: 318055 | AC147: 342610 | AD147: 360971 | AE147: 377211 | AF147: 393786 | AG147: 412747 | AH147: 428373 | AI147: 434673 | AJ147: 428623 | AK147: 417342
A148: 52 | B148: 140294 | C148: 146613 | D148: =ROUND((D57+D58)/2, 0) -> 151671 | E148: 157325 | F148: 164167 | G148: 170657 | H148: 177604 | I148: 184640 | J148: 191925 | K148: 197177 | L148: 201925 | M148: 206417 | N148: 209388 | O148: 213297 | P148: 217770 | Q148: 215013 | R148: 204596 | S148: 194695 | T148: 198496 | U148: 219863 | V148: 239176 | W148: 244480 | X148: 243341 | Y148: 240774 | Z148: 254585 | AA148: 272530 | AB148: 291517 | AC148: 317551 | AD148: 343061 | AE148: 359841 | AF148: 376181 | AG148: 394784 | AH148: 413203 | AI148: 428856 | AJ148: 435171 | AK148: 429125
A149: 53 | B149: 133076 | C149: 139229 | D149: =ROUND((D58+D59)/2, 0) -> 145488 | E149: 150755 | F149: 156524 | G149: 162935 | H149: 170310 | I149: 177016 | J149: 183874 | K149: 191155 | L149: 196611 | M149: 201036 | N149: 205527 | O149: 208415 | P149: 212275 | Q149: 216696 | R149: 218566 | S149: 203944 | T149: 193932 | U149: 197753 | V149: 219518 | W149: 238098 | X149: 243553 | Y149: 241933 | Z149: 240829 | AA149: 253900 | AB149: 271734 | AC149: 290600 | AD149: 318262 | AE149: 341919 | AF149: 358796 | AG149: 377135 | AH149: 395138 | AI149: 413585 | AJ149: 429263 | AK149: 435598
A150: 54 | B150: 128360 | C150: 132164 | D150: =ROUND((D59+D60)/2, 0) -> 138248 | E150: 144405 | F150: 149849 | G150: 155561 | H150: 162245 | I150: 170036 | J150: 176374 | K150: 183062 | L150: 190762 | M150: 195642 | N150: 200121 | O150: 204539 | P150: 207421 | Q150: 211276 | R150: 219699 | S150: 217801 | T150: 203147 | U150: 193193 | V150: 197397 | W150: 218891 | X150: 236733 | Y150: 242088 | Z150: 240427 | AA150: 240588 | AB150: 254182 | AC150: 270451 | AD150: 290640 | AE150: 317539 | AF150: 340840 | AG150: 359681 | AH150: 377382 | AI150: 395409 | AJ150: 413883 | AK150: 429588
A151: 55 | B151: 126521 | C151: 127329 | D151: =ROUND((D60+D61)/2, 0) -> 131329 | E151: 137306 | F151: 143334 | G151: 148790 | H151: 154225 | I151: 161628 | J151: 169707 | K151: 175687 | L151: 182273 | M151: 189712 | N151: 194649 | O151: 199113 | P151: 203532 | Q151: 206450 | R151: 207768 | S151: 218916 | T151: 216824 | U151: 202293 | V151: 192798 | W151: 197823 | X151: 217998 | Y151: 234944 | Z151: 240437 | AA151: 238446 | AB151: 241718 | AC151: 253942 | AD151: 269911 | AE151: 289516 | AF151: 316823 | AG151: 341456 | AH151: 359818 | AI151: 377540 | AJ151: 395590 | AK151: 414090
A152: 56 | B152: 124430 | C152: 125023 | D152: =ROUND((D61+D62)/2, 0) -> 126375 | E152: 130530 | F152: 136375 | G152: 142120 | H152: 147333 | I152: 152965 | J152: 160962 | K152: 169334 | L152: 173413 | M152: 181149 | N152: 188641 | O152: 193565 | P152: 198086 | Q152: 202547 | R152: 204072 | S152: 206941 | T152: 217738 | U152: 215755 | V152: 201798 | W152: 193368 | X152: 198001 | Y152: 216726 | Z152: 232973 | AA152: 238489 | AB152: 238962 | AC152: 242271 | AD152: 254301 | AE152: 268387 | AF152: 288323 | AG152: 317130 | AH152: 341480 | AI152: 359859 | AJ152: 377598 | AK152: 395670
A153: 57 | B153: 119993 | C153: 122572 | D153: =ROUND((D62+D63)/2, 0) -> 123611 | E153: 125458 | F153: 129740 | G153: 135306 | H153: 140656 | I153: 145952 | J153: 151667 | K153: 160258 | L153: 166348 | M153: 172185 | N153: 180007 | O153: 187483 | P153: 192465 | Q153: 197081 | R153: 201980 | S153: 203114 | T153: 205719 | U153: 216604 | V153: 215072 | W153: 202232 | X153: 193703 | Y153: 197860 | Z153: 215290 | AA153: 230900 | AB153: 238030 | AC153: 239106 | AD153: 243578 | AE153: 253796 | AF153: 266729 | AG153: 288450 | AH153: 317040 | AI153: 341398 | AJ153: 359790 | AK153: 377547
A154: 58 | B154: 113447 | C154: 118060 | D154: =ROUND((D63+D64)/2, 0) -> 120807 | E154: 122244 | F154: 124552 | G154: 128817 | H154: 133859 | I154: 139266 | J154: 144537 | K154: 150339 | L154: 158080 | M154: 165025 | N154: 170942 | O154: 178783 | P154: 186311 | Q154: 191387 | R154: 196304 | S154: 200952 | T154: 201814 | U154: 204543 | V154: 215797 | W154: 214494 | X154: 202420 | Y154: 193782 | Z154: 197618 | AA154: 213862 | AB154: 230055 | AC154: 237471 | AD154: 240417 | AE154: 243776 | AF154: 253185 | AG154: 266736 | AH154: 288256 | AI154: 316844 | AJ154: 341205 | AK154: 359609
A155: 59 | B155: 103791 | C155: 111502 | D155: =ROUND((D64+D65)/2, 0) -> 116221 | E155: 119096 | F155: 120898 | G155: 123521 | H155: 127511 | I155: 132483 | J155: 137845 | K155: 143097 | L155: 149514 | M155: 156735 | N155: 163689 | O155: 169624 | P155: 177547 | Q155: 185161 | R155: 192010 | S155: 195148 | T155: 199556 | U155: 200517 | V155: 203618 | W155: 214672 | X155: 213652 | Y155: 202315 | Z155: 193825 | AA155: 197406 | AB155: 213519 | AC155: 229322 | AD155: 238165 | AE155: 240015 | AF155: 243957 | AG155: 252939 | AH155: 266445 | AI155: 287960 | AJ155: 316538 | AK155: 340900
A156: 60 | B156: 93950 | C156: 102170 | D156: =ROUND((D65+D66)/2, 0) -> 109650 | E156: 114439 | F156: 117413 | G156: 119439 | H156: 122171 | I156: 126270 | J156: 131080 | K156: 136402 | L156: 143547 | M156: 148148 | N156: 155380 | O156: 162284 | P156: 168297 | Q156: 176333 | R156: 186699 | S156: 190707 | T156: 193685 | U156: 198213 | V156: 199456 | W156: 203124 | X156: 213300 | Y156: 212489 | Z156: 202232 | AA156: 193951 | AB156: 197528 | AC156: 213273 | AD156: 229426 | AE156: 236936 | AF156: 239613 | AG156: 243535 | AH156: 252553 | AI156: 266057 | AJ156: 287563 | AK156: 316128
A157: 61 | B157: 89707 | C157: 92728 | D157: =ROUND((D66+D67)/2, 0) -> 100630 | E157: 107855 | F157: 112687 | G157: 115630 | H157: 117964 | I157: 120886 | J157: 125002 | K157: 129656 | L157: 137075 | M157: 142096 | N157: 146773 | O157: 153960 | P157: 160872 | Q157: 166993 | R157: 178399 | S157: 185312 | T157: 189231 | U157: 192290 | V157: 197081 | W157: 198397 | X157: 202445 | Y157: 211665 | Z157: 211334 | AA157: 202288 | AB157: 193734 | AC157: 197335 | AD157: 213299 | AE157: 227925 | AF157: 235665 | AG157: 238911 | AH157: 243055 | AI157: 252076 | AJ157: 265577 | AK157: 287072
A158: 62 | B158: 89868 | C158: 88169 | D158: =ROUND((D67+D68)/2, 0) -> 91573 | E158: 99136 | F158: 106092 | G158: 110843 | H158: 113945 | I158: 116555 | J158: 119577 | K158: 123713 | L158: 129099 | M158: 135538 | N158: 140639 | O158: 145340 | P158: 152536 | Q158: 159485 | R158: 167180 | S158: 176964 | T158: 183702 | U158: 187743 | V158: 191114 | W158: 195513 | X158: 197186 | Y158: 201524 | Z158: 209952 | AA158: 210366 | AB158: 201719 | AC158: 193000 | AD158: 197245 | AE158: 212252 | AF158: 226368 | AG158: 234719 | AH158: 238336 | AI158: 242492 | AJ158: 251516 | AK158: 265014
A159: 63 | B159: 88139 | C159: 87548 | D159: =ROUND((D68+D69)/2, 0) -> 86706 | E159: 90452 | F159: 97669 | G159: 104247 | H159: 109198 | I159: 112332 | J159: 115126 | K159: 118250 | L159: 121757 | M159: 127460 | N159: 133999 | O159: 139129 | P159: 143903 | Q159: 151137 | R159: 160733 | S159: 165641 | T159: 175194 | U159: 182064 | V159: 186425 | W159: 189639 | X159: 193777 | Y159: 195690 | Z159: 200501 | AA159: 208444 | AB159: 209909 | AC159: 200693 | AD159: 192488 | AE159: 196491 | AF159: 211177 | AG159: 225411 | AH159: 234052 | AI159: 237681 | AJ159: 241852 | AK159: 250880
A160: 64 | B160: 82412 | C160: 85540 | D160: =ROUND((D69+D70)/2, 0) -> 85336 | E160: 85289 | F160: 89348 | G160: 96121 | H160: 102861 | I160: 107623 | J160: 110707 | K160: 113684 | L160: 115555 | M160: 119996 | N160: 125823 | O160: 132411 | P160: 137619 | Q160: 142492 | R160: 151266 | S160: 159105 | T160: 163885 | U160: 173431 | V160: 180540 | W160: 184826 | X160: 187916 | Y160: 191766 | Z160: 194105 | AA160: 199669 | AB160: 208370 | AC160: 208921 | AD160: 199953 | AE160: 191457 | AF160: 195783 | AG160: 210178 | AH160: 224666 | AI160: 233303 | AJ160: 236947 | AK160: 241133
A161: 65 | B161: 76454 | C161: 80172 | D161: =ROUND((D70+D71)/2, 0) -> 83062 | E161: 83201 | F161: 83900 | G161: 88164 | H161: 94333 | I161: 101536 | J161: 106037 | K161: 109075 | L161: 111479 | M161: 113691 | N161: 118243 | O161: 124146 | P161: 130828 | Q161: 136137 | R161: 139620 | S161: 149586 | T161: 157372 | U161: 162110 | V161: 171811 | W161: 178782 | X161: 182911 | Y161: 186111 | Z161: 189785 | AA161: 192858 | AB161: 199868 | AC161: 207740 | AD161: 208249 | AE161: 198754 | AF161: 190513 | AG161: 194765 | AH161: 209370 | AI161: 223827 | AJ161: 232459 | AK161: 236119
A162: 66 | B162: 73160 | C162: 74490 | D162: =ROUND((D71+D72)/2, 0) -> 78036 | E162: 80676 | F162: 81123 | G162: 82448 | H162: 85585 | I162: 92619 | J162: 100197 | K162: 104446 | L162: 108731 | M162: 109498 | N162: 111840 | O162: 116459 | P162: 122478 | Q162: 129274 | R162: 136008 | S162: 137824 | T162: 147782 | U162: 155548 | V162: 160433 | W162: 170009 | X162: 176861 | Y162: 181103 | Z162: 184306 | AA162: 188001 | AB162: 192569 | AC162: 199624 | AD162: 207387 | AE162: 207194 | AF162: 197568 | AG162: 189379 | AH162: 193886 | AI162: 208453 | AJ162: 222875 | AK162: 231502
A163: 67 | B163: 70903 | C163: 71017 | D163: =ROUND((D72+D73)/2, 0) -> 72616 | E163: 75975 | F163: 78360 | G163: 79015 | H163: 80048 | I163: 83120 | J163: 90911 | K163: 98848 | L163: 104498 | M163: 106548 | N163: 107537 | O163: 109966 | P163: 114688 | Q163: 120841 | R163: 128519 | S163: 134065 | T163: 135912 | U163: 145869 | V163: 153745 | W163: 159092 | X163: 168128 | Y163: 174868 | Z163: 179020 | AA163: 182403 | AB163: 186800 | AC163: 192020 | AD163: 199552 | AE163: 206764 | AF163: 206037 | AG163: 196213 | AH163: 188376 | AI163: 192890 | AJ163: 207413 | AK163: 221796
A164: 68 | B164: 67697 | C164: 68524 | D164: =ROUND((D73+D74)/2, 0) -> 68975 | E164: 70806 | F164: 73971 | G164: 76030 | H164: 77417 | I164: 77755 | J164: 80701 | K164: 89213 | L164: 97575 | M164: 102050 | N164: 104394 | O164: 105559 | P164: 108110 | Q164: 112954 | R164: 117990 | S164: 126432 | T164: 131996 | U164: 133886 | V164: 143897 | W164: 152014 | X164: 157558 | Y164: 165994 | Z164: 172563 | AA164: 176875 | AB164: 180553 | AC164: 185451 | AD164: 191517 | AE164: 199268 | AF164: 205969 | AG164: 204425 | AH164: 195008 | AI164: 187251 | AJ164: 191772 | AK164: 206246
A165: 69 | B165: 64163 | C165: 65322 | D165: =ROUND((D74+D75)/2, 0) -> 66260 | E165: 67008 | F165: 69043 | G165: 71944 | H165: 74637 | I165: 75884 | J165: 75504 | K165: 78334 | L165: 87886 | M165: 95003 | N165: 99644 | O165: 102233 | P165: 103605 | Q165: 106295 | R165: 110820 | S165: 115800 | T165: 124226 | U165: 129799 | V165: 131762 | W165: 142117 | X165: 150128 | Y165: 155877 | Z165: 163730 | AA165: 170333 | AB165: 174528 | AC165: 178528 | AD165: 184116 | AE165: 190748 | AF165: 198811 | AG165: 204165 | AH165: 202992 | AI165: 193674 | AJ165: 186004 | AK165: 190532
A166: 70 | B166: 60540 | C166: 61742 | D166: =ROUND((D75+D76)/2, 0) -> 63063 | E166: 64085 | F166: 65100 | G166: 67252 | H166: 70015 | I166: 73300 | J166: 74358 | K166: 73301 | L166: 77716 | M166: 85346 | N166: 92485 | O166: 97247 | P166: 100106 | Q166: 101696 | R166: 104028 | S166: 108600 | T166: 113448 | U166: 121844 | V166: 127472 | W166: 130205 | X166: 140323 | Y166: 148018 | Z166: 154107 | AA166: 161511 | AB166: 167755 | AC166: 171998 | AD166: 176537 | AE166: 182486 | AF166: 189847 | AG166: 196925 | AH166: 202537 | AI166: 201410 | AJ166: 192199 | AK166: 184624
A167: 71 | B167: 55195 | C167: 57900 | D167: =ROUND((D76+D77)/2, 0) -> 59444 | E167: 60897 | F167: 61985 | G167: 63180 | H167: 64685 | I167: 68171 | J167: 71964 | K167: 72844 | L167: 71788 | M167: 75144 | N167: 82867 | O167: 89989 | P167: 94898 | Q167: 98031 | R167: 99574 | S167: 101766 | T167: 106151 | U167: 110969 | V167: 119341 | W167: 124814 | X167: 128609 | Y167: 138185 | Z167: 145862 | AA167: 152241 | AB167: 159116 | AC167: 164954 | AD167: 169424 | AE167: 174280 | AF167: 180717 | AG167: 187838 | AH167: 195124 | AI167: 200727 | AJ167: 199648 | AK167: 190553
A168: 72 | B168: 49240 | C168: 52602 | D168: =ROUND((D77+D78)/2, 0) -> 55407 | E168: 57246 | F168: 58808 | G168: 59890 | H168: 60372 | I168: 62243 | J168: 66357 | K168: 70633 | L168: 70677 | M168: 68989 | N168: 72648 | O168: 80421 | P168: 87551 | Q168: 92613 | R168: 94884 | S168: 97162 | T168: 99265 | U168: 103564 | V168: 108328 | W168: 116413 | X168: 122074 | Y168: 126827 | Z168: 135966 | AA168: 143556 | AB168: 150135 | AC168: 156437 | AD168: 162066 | AE168: 166612 | AF168: 171867 | AG168: 178518 | AH168: 185845 | AI168: 193100 | AJ168: 198687 | AK168: 197656
A169: 73 | B169: 45335 | C169: 46787 | D169: =ROUND((D78+D79)/2, 0) -> 50158 | E169: 53034 | F169: 55132 | G169: 56730 | H169: 56895 | I169: 57714 | J169: 59875 | K169: 64578 | L169: 69321 | M169: 67590 | N169: 66290 | O169: 70201 | P169: 78037 | Q169: 85186 | R169: 88210 | S169: 92134 | T169: 94546 | U169: 96572 | V169: 100807 | W169: 105631 | X169: 113373 | Y169: 119170 | Z169: 124845 | AA169: 133623 | AB169: 141471 | AC169: 147756 | AD169: 153709 | AE169: 158995 | AF169: 163700 | AG169: 169440 | AH169: 176301 | AI169: 183585 | AJ169: 190797 | AK169: 196360
A170: 74 | B170: 41215 | C170: 42621 | D170: =ROUND((D79+D80)/2, 0) -> 44482 | E170: 47839 | F170: 50765 | G170: 53039 | H170: 53598 | I170: 54073 | J170: 55155 | K170: 57583 | L170: 64793 | M170: 66090 | N170: 64628 | O170: 63666 | P170: 67829 | Q170: 75731 | R170: 82098 | S170: 85093 | T170: 89227 | U170: 91776 | V170: 93723 | W170: 97840 | X170: 102786 | Y170: 110047 | Z170: 116106 | AA170: 122807 | AB170: 131224 | AC170: 139100 | AD170: 145302 | AE170: 150844 | AF170: 155794 | AG170: 161008 | AH170: 166965 | AI170: 173775 | AJ170: 181003 | AK170: 188160
A171: 75 | B171: 35054 | C171: 38466 | D171: =ROUND((D80+D81)/2, 0) -> 40095 | E171: 42300 | F171: 45628 | G171: 48542 | H171: 49707 | I171: 50660 | J171: 51375 | K171: 52695 | L171: 58656 | M171: 61676 | N171: 62999 | O171: 61766 | P171: 61139 | Q171: 65543 | R171: 72190 | S171: 78927 | T171: 81822 | U171: 86159 | V171: 88823 | W171: 90574 | X171: 94720 | Y171: 99616 | Z171: 106576 | AA171: 112958 | AB171: 120018 | AC171: 128553 | AD171: 136612 | AE171: 142730 | AF171: 147700 | AG171: 152843 | AH171: 158242 | AI171: 164147 | AJ171: 170891 | AK171: 178048
A172: 76 | B172: 30353 | C172: 32642 | D172: =ROUND((D81+D82)/2, 0) -> 36312 | E172: 37728 | F172: 40227 | G172: 43474 | H172: 44896 | I172: 46363 | J172: 47428 | K172: 48799 | L172: 53539 | M172: 55834 | N172: 58699 | O172: 60025 | P172: 59024 | Q172: 58718 | R172: 61768 | S172: 69140 | T172: 75598 | U172: 78333 | V172: 82885 | W172: 85222 | X172: 87274 | Y172: 91272 | Z172: 96331 | AA172: 103008 | AB172: 109816 | AC172: 117021 | AD172: 125758 | AE172: 134000 | AF172: 139824 | AG172: 144459 | AH172: 149764 | AI172: 155106 | AJ172: 160942 | AK172: 167606
A173: 77 | B173: 28710 | C173: 28104 | D173: =ROUND((D82+D83)/2, 0) -> 31841 | E173: 34029 | F173: 35505 | G173: 38216 | H173: 39716 | I173: 41295 | J173: 42961 | K173: 44677 | L173: 49525 | M173: 50962 | N173: 53139 | O173: 55839 | P173: 57184 | Q173: 56408 | R173: 56876 | S173: 58735 | T173: 65903 | U173: 72027 | V173: 74666 | W173: 79368 | X173: 81554 | Y173: 83650 | Z173: 87756 | AA173: 92944 | AB173: 99680 | AC173: 106482 | AD173: 113872 | AE173: 122823 | AF173: 131132 | AG173: 136243 | AH173: 141053 | AI173: 146284 | AJ173: 151551 | AK173: 157305
A174: 78 | B174: 27457 | C174: 26421 | D174: =ROUND((D83+D84)/2, 0) -> 27925 | E174: 30191 | F174: 31721 | G174: 33379 | H174: 35063 | I174: 36849 | J174: 38715 | K174: 40686 | L174: 45939 | M174: 47142 | N174: 48503 | O174: 50550 | P174: 53112 | Q174: 54482 | R174: 55042 | S174: 53778 | T174: 55510 | U174: 62465 | V174: 68327 | W174: 71518 | X174: 75776 | Y174: 77552 | Z174: 79969 | AA174: 84145 | AB174: 89500 | AC174: 96150 | AD174: 102964 | AE174: 110644 | AF174: 119693 | AG174: 127248 | AH174: 132489 | AI174: 137218 | AJ174: 142356 | AK174: 147535
A175: 79
A176: 80
A177: 81
A178: 82
A179: 83
A180: 84
A181: 85
A182: 86
A183: 87
A184: 88
A185: 89
A186: 90
A187: 91
A188: 92
A189: 93
A190: 94
A191: 95
A192: 96
A193: 97
A194: 98
A195: 99

Sheet 3. Comp_ASFR
D1: * Computing order-specific ASFRs by mom's age for each year (mid-year pop)
D3: iyear | E3: 35
D4: year | E4: =1980+(E3) -> 2015 | S4: * This table is for the computation up to third birth or higher
S5: (Ignore missing cases on CEB)
E6: Birth order
A7: ID | B7: Year | C7: Cohort | D7: Mom's age | E7: 1 | F7: 2 | G7: 3 | H7: 4 | I7: 5 | J7: 6 | K7: 7 | L7: 8+ | M7: Missing | N7: Total | P7: CohortID | Q7: Id | R7: Year | S7: Cohort | T7: Mom's age | U7: 1 | V7: 2 | W7: 3+ | X7: Total
A8: =B8&D8 -> 201515 | B8: =E4 -> 2015 | C8: =B8-D8 -> 2000 | D8: 15 | E8: =VLOOKUP($B8&$D8, '1. Num_births'!$A$4:$M$1048576, MATCH(E$7, '1. Num_births'!$A$4:$M$4, 0),0)/VLOOKUP($D8,'2. Female_Pop'!$A$4:$CD$84, MATCH($B8, '2. Female_Pop'!$A$4:$CD$4,0),0) -> 0.0001638452743 | F8: =VLOOKUP($B8&$D8, '1. Num_births'!$A$4:$M$1048576, MATCH(F$7, '1. Num_births'!$A$4:$M$4, 0),0)/VLOOKUP($D8,'2. Female_Pop'!$A$4:$CD$84, MATCH($B8, '2. Female_Pop'!$A$4:$CD$4,0),0) -> 0 | G8: =VLOOKUP($B8&$D8, '1. Num_births'!$A$4:$M$1048576, MATCH(G$7, '1. Num_births'!$A$4:$M$4, 0),0)/VLOOKUP($D8,'2. Female_Pop'!$A$4:$CD$84, MATCH($B8, '2. Female_Pop'!$A$4:$CD$4,0),0) -> 0 | H8: =VLOOKUP($B8&$D8, '1. Num_births'!$A$4:$M$1048576, MATCH(H$7, '1. Num_births'!$A$4:$M$4, 0),0)/VLOOKUP($D8,'2. Female_Pop'!$A$4:$CD$84, MATCH($B8, '2. Female_Pop'!$A$4:$CD$4,0),0) -> 0 | I8: =VLOOKUP($B8&$D8, '1. Num_births'!$A$4:$M$1048576, MATCH(I$7, '1. Num_births'!$A$4:$M$4, 0),0)/VLOOKUP($D8,'2. Female_Pop'!$A$4:$CD$84, MATCH($B8, '2. Female_Pop'!$A$4:$CD$4,0),0) -> 0 | J8: =VLOOKUP($B8&$D8, '1. Num_births'!$A$4:$M$1048576, MATCH(J$7, '1. Num_births'!$A$4:$M$4, 0),0)/VLOOKUP($D8,'2. Female_Pop'!$A$4:$CD$84, MATCH($B8, '2. Female_Pop'!$A$4:$CD$4,0),0) -> 0 | K8: =VLOOKUP($B8&$D8, '1. Num_births'!$A$4:$M$1048576, MATCH(K$7, '1. Num_births'!$A$4:$M$4, 0),0)/VLOOKUP($D8,'2. Female_Pop'!$A$4:$CD$84, MATCH($B8, '2. Female_Pop'!$A$4:$CD$4,0),0) -> 0 | L8: =VLOOKUP($B8&$D8, '1. Num_births'!$A$4:$M$1048576, MATCH(L$7, '1. Num_births'!$A$4:$M$4, 0),0)/VLOOKUP($D8,'2. Female_Pop'!$A$4:$CD$84, MATCH($B8, '2. Female_Pop'!$A$4:$CD$4,0),0) -> 0 | M8: =VLOOKUP($B8&$D8, '1. Num_births'!$A$4:$M$1048576, MATCH(M$7, '1. Num_births'!$A$4:$M$4, 0),0)/VLOOKUP($D8,'2. Female_Pop'!$A$4:$CD$84, MATCH($B8, '2. Female_Pop'!$A$4:$CD$4,0),0) -> 0.0001743034833 | N8: =VLOOKUP($B8&$D8, '1. Num_births'!$A$4:$M$1048576, MATCH(N$7, '1. Num_births'!$A$4:$M$4, 0),0)/VLOOKUP($D8,'2. Female_Pop'!$A$4:$CD$84, MATCH($B8, '2. Female_Pop'!$A$4:$CD$4,0),0) -> 1.0458209e-05 | P8: =S8&T8 -> 200015 | Q8: =R8&T8 -> 201515 | R8: =B8 -> 2015 | S8: =R8-T8 -> 2000 | T8: 15 | U8: =VLOOKUP($B8&$D8, '1. Num_births'!$A$4:$M$1048576, MATCH(U$7, '1. Num_births'!$A$4:$M$4, 0),0)/VLOOKUP($D8,'2. Female_Pop'!$A$4:$CD$84, MATCH($B8, '2. Female_Pop'!$A$4:$CD$4,0),0) -> 0.0001638452743 | V8: =VLOOKUP($B8&$D8, '1. Num_births'!$A$4:$M$1048576, MATCH(V$7, '1. Num_births'!$A$4:$M$4, 0),0)/VLOOKUP($D8,'2. Female_Pop'!$A$4:$CD$84, MATCH($B8, '2. Female_Pop'!$A$4:$CD$4,0),0) -> 0 | W8: =SUM(G8:L8) -> 0 | X8: =SUM(U8:W8) -> 0.0001638452743
A9: =B9&D9 -> 201516 | B9: =B8 -> 2015 | C9: =B9-D9 -> 1999 | D9: 16 | E9: =VLOOKUP($B9&$D9, '1. Num_births'!$A$4:$M$1048576, MATCH(E$7, '1. Num_births'!$A$4:$M$4, 0),0)/VLOOKUP($D9,'2. Female_Pop'!$A$4:$CD$84, MATCH($B9, '2. Female_Pop'!$A$4:$CD$4,0),0) -> 0.0004516294586 | F9: =VLOOKUP($B9&$D9, '1. Num_births'!$A$4:$M$1048576, MATCH(F$7, '1. Num_births'!$A$4:$M$4, 0),0)/VLOOKUP($D9,'2. Female_Pop'!$A$4:$CD$84, MATCH($B9, '2. Female_Pop'!$A$4:$CD$4,0),0) -> 1.368574117e-05 | G9: =VLOOKUP($B9&$D9, '1. Num_births'!$A$4:$M$1048576, MATCH(G$7, '1. Num_births'!$A$4:$M$4, 0),0)/VLOOKUP($D9,'2. Female_Pop'!$A$4:$CD$84, MATCH($B9, '2. Female_Pop'!$A$4:$CD$4,0),0) -> 0 | H9: =VLOOKUP($B9&$D9, '1. Num_births'!$A$4:$M$1048576, MATCH(H$7, '1. Num_births'!$A$4:$M$4, 0),0)/VLOOKUP($D9,'2. Female_Pop'!$A$4:$CD$84, MATCH($B9, '2. Female_Pop'!$A$4:$CD$4,0),0) -> 0 | I9: =VLOOKUP($B9&$D9, '1. Num_births'!$A$4:$M$1048576, MATCH(I$7, '1. Num_births'!$A$4:$M$4, 0),0)/VLOOKUP($D9,'2. Female_Pop'!$A$4:$CD$84, MATCH($B9, '2. Female_Pop'!$A$4:$CD$4,0),0) -> 0 | J9: =VLOOKUP($B9&$D9, '1. Num_births'!$A$4:$M$1048576, MATCH(J$7, '1. Num_births'!$A$4:$M$4, 0),0)/VLOOKUP($D9,'2. Female_Pop'!$A$4:$CD$84, MATCH($B9, '2. Female_Pop'!$A$4:$CD$4,0),0) -> 0 | K9: =VLOOKUP($B9&$D9, '1. Num_births'!$A$4:$M$1048576, MATCH(K$7, '1. Num_births'!$A$4:$M$4, 0),0)/VLOOKUP($D9,'2. Female_Pop'!$A$4:$CD$84, MATCH($B9, '2. Female_Pop'!$A$4:$CD$4,0),0) -> 0 | L9: =VLOOKUP($B9&$D9, '1. Num_births'!$A$4:$M$1048576, MATCH(L$7, '1. Num_births'!$A$4:$M$4, 0),0)/VLOOKUP($D9,'2. Female_Pop'!$A$4:$CD$84, MATCH($B9, '2. Female_Pop'!$A$4:$CD$4,0),0) -> 0 | M9: =VLOOKUP($B9&$D9, '1. Num_births'!$A$4:$M$1048576, MATCH(M$7, '1. Num_births'!$A$4:$M$4, 0),0)/VLOOKUP($D9,'2. Female_Pop'!$A$4:$CD$84, MATCH($B9, '2. Female_Pop'!$A$4:$CD$4,0),0) -> 0.0004858438115 | N9: =VLOOKUP($B9&$D9, '1. Num_births'!$A$4:$M$1048576, MATCH(N$7, '1. Num_births'!$A$4:$M$4, 0),0)/VLOOKUP($D9,'2. Female_Pop'!$A$4:$CD$84, MATCH($B9, '2. Female_Pop'!$A$4:$CD$4,0),0) -> 2.052861175e-05 | P9: =S9&T9 -> 199916 | Q9: =R9&T9 -> 201516 | R9: =R8 -> 2015 | S9: =R9-T9 -> 1999 | T9: 16 | U9: =VLOOKUP($B9&$D9, '1. Num_births'!$A$4:$M$1048576, MATCH(U$7, '1. Num_births'!$A$4:$M$4, 0),0)/VLOOKUP($D9,'2. Female_Pop'!$A$4:$CD$84, MATCH($B9, '2. Female_Pop'!$A$4:$CD$4,0),0) -> 0.0004516294586 | V9: =VLOOKUP($B9&$D9, '1. Num_births'!$A$4:$M$1048576, MATCH(V$7, '1. Num_births'!$A$4:$M$4, 0),0)/VLOOKUP($D9,'2. Female_Pop'!$A$4:$CD$84, MATCH($B9, '2. Female_Pop'!$A$4:$CD$4,0),0) -> 1.368574117e-05 | W9: 0 | X9: =SUM(U9:W9) -> 0.0004653151997
A10: 201517 | B10: =B9 -> 2015 | C10: 1998 | D10: 17 | E10: =VLOOKUP($B10&$D10, '1. Num_births'!$A$4:$M$1048576, MATCH(E$7, '1. Num_births'!$A$4:$M$4, 0),0)/VLOOKUP($D10,'2. Female_Pop'!$A$4:$CD$84, MATCH($B10, '2. Female_Pop'!$A$4:$CD$4,0),0) -> 0.000884049879 | F10: =VLOOKUP($B10&$D10, '1. Num_births'!$A$4:$M$1048576, MATCH(F$7, '1. Num_births'!$A$4:$M$4, 0),0)/VLOOKUP($D10,'2. Female_Pop'!$A$4:$CD$84, MATCH($B10, '2. Female_Pop'!$A$4:$CD$4,0),0) -> 3.323495786e-05 | G10: =VLOOKUP($B10&$D10, '1. Num_births'!$A$4:$M$1048576, MATCH(G$7, '1. Num_births'!$A$4:$M$4, 0),0)/VLOOKUP($D10,'2. Female_Pop'!$A$4:$CD$84, MATCH($B10, '2. Female_Pop'!$A$4:$CD$4,0),0) -> 0 | H10: =VLOOKUP($B10&$D10, '1. Num_births'!$A$4:$M$1048576, MATCH(H$7, '1. Num_births'!$A$4:$M$4, 0),0)/VLOOKUP($D10,'2. Female_Pop'!$A$4:$CD$84, MATCH($B10, '2. Female_Pop'!$A$4:$CD$4,0),0) -> 0 | I10: =VLOOKUP($B10&$D10, '1. Num_births'!$A$4:$M$1048576, MATCH(I$7, '1. Num_births'!$A$4:$M$4, 0),0)/VLOOKUP($D10,'2. Female_Pop'!$A$4:$CD$84, MATCH($B10, '2. Female_Pop'!$A$4:$CD$4,0),0) -> 0 | J10: =VLOOKUP($B10&$D10, '1. Num_births'!$A$4:$M$1048576, MATCH(J$7, '1. Num_births'!$A$4:$M$4, 0),0)/VLOOKUP($D10,'2. Female_Pop'!$A$4:$CD$84, MATCH($B10, '2. Female_Pop'!$A$4:$CD$4,0),0) -> 0 | K10: =VLOOKUP($B10&$D10, '1. Num_births'!$A$4:$M$1048576, MATCH(K$7, '1. Num_births'!$A$4:$M$4, 0),0)/VLOOKUP($D10,'2. Female_Pop'!$A$4:$CD$84, MATCH($B10, '2. Female_Pop'!$A$4:$CD$4,0),0) -> 0 | L10: =VLOOKUP($B10&$D10, '1. Num_births'!$A$4:$M$1048576, MATCH(L$7, '1. Num_births'!$A$4:$M$4, 0),0)/VLOOKUP($D10,'2. Female_Pop'!$A$4:$CD$84, MATCH($B10, '2. Female_Pop'!$A$4:$CD$4,0),0) -> 0 | M10: =VLOOKUP($B10&$D10, '1. Num_births'!$A$4:$M$1048576, MATCH(M$7, '1. Num_births'!$A$4:$M$4, 0),0)/VLOOKUP($D10,'2. Female_Pop'!$A$4:$CD$84, MATCH($B10, '2. Female_Pop'!$A$4:$CD$4,0),0) -> 0.0009571667863 | N10: =VLOOKUP($B10&$D10, '1. Num_births'!$A$4:$M$1048576, MATCH(N$7, '1. Num_births'!$A$4:$M$4, 0),0)/VLOOKUP($D10,'2. Female_Pop'!$A$4:$CD$84, MATCH($B10, '2. Female_Pop'!$A$4:$CD$4,0),0) -> 3.988194943e-05 | P10: 199817 | Q10: 201517 | R10: =R9 -> 2015 | S10: 1998 | T10: 17 | U10: =VLOOKUP($B10&$D10, '1. Num_births'!$A$4:$M$1048576, MATCH(U$7, '1. Num_births'!$A$4:$M$4, 0),0)/VLOOKUP($D10,'2. Female_Pop'!$A$4:$CD$84, MATCH($B10, '2. Female_Pop'!$A$4:$CD$4,0),0) -> 0.000884049879 | V10: =VLOOKUP($B10&$D10, '1. Num_births'!$A$4:$M$1048576, MATCH(V$7, '1. Num_births'!$A$4:$M$4, 0),0)/VLOOKUP($D10,'2. Female_Pop'!$A$4:$CD$84, MATCH($B10, '2. Female_Pop'!$A$4:$CD$4,0),0) -> 3.323495786e-05 | W10: 0 | X10: 0.0009172848369
A11: 201518 | B11: 2015 | C11: 1997 | D11: 18 | E11: =VLOOKUP($B11&$D11, '1. Num_births'!$A$4:$M$1048576, MATCH(E$7, '1. Num_births'!$A$4:$M$4, 0),0)/VLOOKUP($D11,'2. Female_Pop'!$A$4:$CD$84, MATCH($B11, '2. Female_Pop'!$A$4:$CD$4,0),0) -> 0.001331763525 | F11: =VLOOKUP($B11&$D11, '1. Num_births'!$A$4:$M$1048576, MATCH(F$7, '1. Num_births'!$A$4:$M$4, 0),0)/VLOOKUP($D11,'2. Female_Pop'!$A$4:$CD$84, MATCH($B11, '2. Female_Pop'!$A$4:$CD$4,0),0) -> 0.0001222391641 | G11: =VLOOKUP($B11&$D11, '1. Num_births'!$A$4:$M$1048576, MATCH(G$7, '1. Num_births'!$A$4:$M$4, 0),0)/VLOOKUP($D11,'2. Female_Pop'!$A$4:$CD$84, MATCH($B11, '2. Female_Pop'!$A$4:$CD$4,0),0) -> 0 | H11: =VLOOKUP($B11&$D11, '1. Num_births'!$A$4:$M$1048576, MATCH(H$7, '1. Num_births'!$A$4:$M$4, 0),0)/VLOOKUP($D11,'2. Female_Pop'!$A$4:$CD$84, MATCH($B11, '2. Female_Pop'!$A$4:$CD$4,0),0) -> 0 | I11: =VLOOKUP($B11&$D11, '1. Num_births'!$A$4:$M$1048576, MATCH(I$7, '1. Num_births'!$A$4:$M$4, 0),0)/VLOOKUP($D11,'2. Female_Pop'!$A$4:$CD$84, MATCH($B11, '2. Female_Pop'!$A$4:$CD$4,0),0) -> 0 | J11: =VLOOKUP($B11&$D11, '1. Num_births'!$A$4:$M$1048576, MATCH(J$7, '1. Num_births'!$A$4:$M$4, 0),0)/VLOOKUP($D11,'2. Female_Pop'!$A$4:$CD$84, MATCH($B11, '2. Female_Pop'!$A$4:$CD$4,0),0) -> 0 | K11: =VLOOKUP($B11&$D11, '1. Num_births'!$A$4:$M$1048576, MATCH(K$7, '1. Num_births'!$A$4:$M$4, 0),0)/VLOOKUP($D11,'2. Female_Pop'!$A$4:$CD$84, MATCH($B11, '2. Female_Pop'!$A$4:$CD$4,0),0) -> 0 | L11: =VLOOKUP($B11&$D11, '1. Num_births'!$A$4:$M$1048576, MATCH(L$7, '1. Num_births'!$A$4:$M$4, 0),0)/VLOOKUP($D11,'2. Female_Pop'!$A$4:$CD$84, MATCH($B11, '2. Female_Pop'!$A$4:$CD$4,0),0) -> 0 | M11: =VLOOKUP($B11&$D11, '1. Num_births'!$A$4:$M$1048576, MATCH(M$7, '1. Num_births'!$A$4:$M$4, 0),0)/VLOOKUP($D11,'2. Female_Pop'!$A$4:$CD$84, MATCH($B11, '2. Female_Pop'!$A$4:$CD$4,0),0) -> 0.00147973725 | N11: =VLOOKUP($B11&$D11, '1. Num_births'!$A$4:$M$1048576, MATCH(N$7, '1. Num_births'!$A$4:$M$4, 0),0)/VLOOKUP($D11,'2. Female_Pop'!$A$4:$CD$84, MATCH($B11, '2. Female_Pop'!$A$4:$CD$4,0),0) -> 2.573456087e-05 | P11: 199718 | Q11: 201518 | R11: 2015 | S11: 1997 | T11: 18 | U11: =VLOOKUP($B11&$D11, '1. Num_births'!$A$4:$M$1048576, MATCH(U$7, '1. Num_births'!$A$4:$M$4, 0),0)/VLOOKUP($D11,'2. Female_Pop'!$A$4:$CD$84, MATCH($B11, '2. Female_Pop'!$A$4:$CD$4,0),0) -> 0.001331763525 | V11: =VLOOKUP($B11&$D11, '1. Num_births'!$A$4:$M$1048576, MATCH(V$7, '1. Num_births'!$A$4:$M$4, 0),0)/VLOOKUP($D11,'2. Female_Pop'!$A$4:$CD$84, MATCH($B11, '2. Female_Pop'!$A$4:$CD$4,0),0) -> 0.0001222391641 | W11: 0 | X11: 0.001454002689
A12: 201519 | B12: 2015 | C12: 1996 | D12: 19 | E12: =VLOOKUP($B12&$D12, '1. Num_births'!$A$4:$M$1048576, MATCH(E$7, '1. Num_births'!$A$4:$M$4, 0),0)/VLOOKUP($D12,'2. Female_Pop'!$A$4:$CD$84, MATCH($B12, '2. Female_Pop'!$A$4:$CD$4,0),0) -> 0.003573600262 | F12: =VLOOKUP($B12&$D12, '1. Num_births'!$A$4:$M$1048576, MATCH(F$7, '1. Num_births'!$A$4:$M$4, 0),0)/VLOOKUP($D12,'2. Female_Pop'!$A$4:$CD$84, MATCH($B12, '2. Female_Pop'!$A$4:$CD$4,0),0) -> 0.0003211874581 | G12: =VLOOKUP($B12&$D12, '1. Num_births'!$A$4:$M$1048576, MATCH(G$7, '1. Num_births'!$A$4:$M$4, 0),0)/VLOOKUP($D12,'2. Female_Pop'!$A$4:$CD$84, MATCH($B12, '2. Female_Pop'!$A$4:$CD$4,0),0) -> 1.870994902e-05 | H12: =VLOOKUP($B12&$D12, '1. Num_births'!$A$4:$M$1048576, MATCH(H$7, '1. Num_births'!$A$4:$M$4, 0),0)/VLOOKUP($D12,'2. Female_Pop'!$A$4:$CD$84, MATCH($B12, '2. Female_Pop'!$A$4:$CD$4,0),0) -> 0 | I12: =VLOOKUP($B12&$D12, '1. Num_births'!$A$4:$M$1048576, MATCH(I$7, '1. Num_births'!$A$4:$M$4, 0),0)/VLOOKUP($D12,'2. Female_Pop'!$A$4:$CD$84, MATCH($B12, '2. Female_Pop'!$A$4:$CD$4,0),0) -> 0 | J12: =VLOOKUP($B12&$D12, '1. Num_births'!$A$4:$M$1048576, MATCH(J$7, '1. Num_births'!$A$4:$M$4, 0),0)/VLOOKUP($D12,'2. Female_Pop'!$A$4:$CD$84, MATCH($B12, '2. Female_Pop'!$A$4:$CD$4,0),0) -> 0 | K12: =VLOOKUP($B12&$D12, '1. Num_births'!$A$4:$M$1048576, MATCH(K$7, '1. Num_births'!$A$4:$M$4, 0),0)/VLOOKUP($D12,'2. Female_Pop'!$A$4:$CD$84, MATCH($B12, '2. Female_Pop'!$A$4:$CD$4,0),0) -> 0 | L12: =VLOOKUP($B12&$D12, '1. Num_births'!$A$4:$M$1048576, MATCH(L$7, '1. Num_births'!$A$4:$M$4, 0),0)/VLOOKUP($D12,'2. Female_Pop'!$A$4:$CD$84, MATCH($B12, '2. Female_Pop'!$A$4:$CD$4,0),0) -> 0 | M12: =VLOOKUP($B12&$D12, '1. Num_births'!$A$4:$M$1048576, MATCH(M$7, '1. Num_births'!$A$4:$M$4, 0),0)/VLOOKUP($D12,'2. Female_Pop'!$A$4:$CD$84, MATCH($B12, '2. Female_Pop'!$A$4:$CD$4,0),0) -> 0.003963390866 | N12: =VLOOKUP($B12&$D12, '1. Num_births'!$A$4:$M$1048576, MATCH(N$7, '1. Num_births'!$A$4:$M$4, 0),0)/VLOOKUP($D12,'2. Female_Pop'!$A$4:$CD$84, MATCH($B12, '2. Female_Pop'!$A$4:$CD$4,0),0) -> 4.989319737e-05 | P12: 199619 | Q12: 201519 | R12: 2015 | S12: 1996 | T12: 19 | U12: =VLOOKUP($B12&$D12, '1. Num_births'!$A$4:$M$1048576, MATCH(U$7, '1. Num_births'!$A$4:$M$4, 0),0)/VLOOKUP($D12,'2. Female_Pop'!$A$4:$CD$84, MATCH($B12, '2. Female_Pop'!$A$4:$CD$4,0),0) -> 0.003573600262 | V12: =VLOOKUP($B12&$D12, '1. Num_births'!$A$4:$M$1048576, MATCH(V$7, '1. Num_births'!$A$4:$M$4, 0),0)/VLOOKUP($D12,'2. Female_Pop'!$A$4:$CD$84, MATCH($B12, '2. Female_Pop'!$A$4:$CD$4,0),0) -> 0.0003211874581 | W12: 1.870994902e-05 | X12: 0.003913497669
A13: 201520 | B13: 2015 | C13: 1995 | D13: 20 | E13: =VLOOKUP($B13&$D13, '1. Num_births'!$A$4:$M$1048576, MATCH(E$7, '1. Num_births'!$A$4:$M$4, 0),0)/VLOOKUP($D13,'2. Female_Pop'!$A$4:$CD$84, MATCH($B13, '2. Female_Pop'!$A$4:$CD$4,0),0) -> 0.005098161152 | F13: =VLOOKUP($B13&$D13, '1. Num_births'!$A$4:$M$1048576, MATCH(F$7, '1. Num_births'!$A$4:$M$4, 0),0)/VLOOKUP($D13,'2. Female_Pop'!$A$4:$CD$84, MATCH($B13, '2. Female_Pop'!$A$4:$CD$4,0),0) -> 0.0006988421386 | G13: =VLOOKUP($B13&$D13, '1. Num_births'!$A$4:$M$1048576, MATCH(G$7, '1. Num_births'!$A$4:$M$4, 0),0)/VLOOKUP($D13,'2. Female_Pop'!$A$4:$CD$84, MATCH($B13, '2. Female_Pop'!$A$4:$CD$4,0),0) -> 7.080779378e-05 | H13: =VLOOKUP($B13&$D13, '1. Num_births'!$A$4:$M$1048576, MATCH(H$7, '1. Num_births'!$A$4:$M$4, 0),0)/VLOOKUP($D13,'2. Female_Pop'!$A$4:$CD$84, MATCH($B13, '2. Female_Pop'!$A$4:$CD$4,0),0) -> 0 | I13: =VLOOKUP($B13&$D13, '1. Num_births'!$A$4:$M$1048576, MATCH(I$7, '1. Num_births'!$A$4:$M$4, 0),0)/VLOOKUP($D13,'2. Female_Pop'!$A$4:$CD$84, MATCH($B13, '2. Female_Pop'!$A$4:$CD$4,0),0) -> 0 | J13: =VLOOKUP($B13&$D13, '1. Num_births'!$A$4:$M$1048576, MATCH(J$7, '1. Num_births'!$A$4:$M$4, 0),0)/VLOOKUP($D13,'2. Female_Pop'!$A$4:$CD$84, MATCH($B13, '2. Female_Pop'!$A$4:$CD$4,0),0) -> 0 | K13: =VLOOKUP($B13&$D13, '1. Num_births'!$A$4:$M$1048576, MATCH(K$7, '1. Num_births'!$A$4:$M$4, 0),0)/VLOOKUP($D13,'2. Female_Pop'!$A$4:$CD$84, MATCH($B13, '2. Female_Pop'!$A$4:$CD$4,0),0) -> 0 | L13: =VLOOKUP($B13&$D13, '1. Num_births'!$A$4:$M$1048576, MATCH(L$7, '1. Num_births'!$A$4:$M$4, 0),0)/VLOOKUP($D13,'2. Female_Pop'!$A$4:$CD$84, MATCH($B13, '2. Female_Pop'!$A$4:$CD$4,0),0) -> 0 | M13: =VLOOKUP($B13&$D13, '1. Num_births'!$A$4:$M$1048576, MATCH(M$7, '1. Num_births'!$A$4:$M$4, 0),0)/VLOOKUP($D13,'2. Female_Pop'!$A$4:$CD$84, MATCH($B13, '2. Female_Pop'!$A$4:$CD$4,0),0) -> 0.00592322588 | N13: =VLOOKUP($B13&$D13, '1. Num_births'!$A$4:$M$1048576, MATCH(N$7, '1. Num_births'!$A$4:$M$4, 0),0)/VLOOKUP($D13,'2. Female_Pop'!$A$4:$CD$84, MATCH($B13, '2. Female_Pop'!$A$4:$CD$4,0),0) -> 5.541479513e-05 | P13: 199520 | Q13: 201520 | R13: 2015 | S13: 1995 | T13: 20 | U13: =VLOOKUP($B13&$D13, '1. Num_births'!$A$4:$M$1048576, MATCH(U$7, '1. Num_births'!$A$4:$M$4, 0),0)/VLOOKUP($D13,'2. Female_Pop'!$A$4:$CD$84, MATCH($B13, '2. Female_Pop'!$A$4:$CD$4,0),0) -> 0.005098161152 | V13: =VLOOKUP($B13&$D13, '1. Num_births'!$A$4:$M$1048576, MATCH(V$7, '1. Num_births'!$A$4:$M$4, 0),0)/VLOOKUP($D13,'2. Female_Pop'!$A$4:$CD$84, MATCH($B13, '2. Female_Pop'!$A$4:$CD$4,0),0) -> 0.0006988421386 | W13: 7.080779378e-05 | X13: 0.005867811085
A14: 201521 | B14: 2015 | C14: 1994 | D14: 21 | E14: =VLOOKUP($B14&$D14, '1. Num_births'!$A$4:$M$1048576, MATCH(E$7, '1. Num_births'!$A$4:$M$4, 0),0)/VLOOKUP($D14,'2. Female_Pop'!$A$4:$CD$84, MATCH($B14, '2. Female_Pop'!$A$4:$CD$4,0),0) -> 0.006691570272 | F14: =VLOOKUP($B14&$D14, '1. Num_births'!$A$4:$M$1048576, MATCH(F$7, '1. Num_births'!$A$4:$M$4, 0),0)/VLOOKUP($D14,'2. Female_Pop'!$A$4:$CD$84, MATCH($B14, '2. Female_Pop'!$A$4:$CD$4,0),0) -> 0.001644616175 | G14: =VLOOKUP($B14&$D14, '1. Num_births'!$A$4:$M$1048576, MATCH(G$7, '1. Num_births'!$A$4:$M$4, 0),0)/VLOOKUP($D14,'2. Female_Pop'!$A$4:$CD$84, MATCH($B14, '2. Female_Pop'!$A$4:$CD$4,0),0) -> 9.782103641e-05 | H14: =VLOOKUP($B14&$D14, '1. Num_births'!$A$4:$M$1048576, MATCH(H$7, '1. Num_births'!$A$4:$M$4, 0),0)/VLOOKUP($D14,'2. Female_Pop'!$A$4:$CD$84, MATCH($B14, '2. Female_Pop'!$A$4:$CD$4,0),0) -> 1.222762955e-05 | I14: =VLOOKUP($B14&$D14, '1. Num_births'!$A$4:$M$1048576, MATCH(I$7, '1. Num_births'!$A$4:$M$4, 0),0)/VLOOKUP($D14,'2. Female_Pop'!$A$4:$CD$84, MATCH($B14, '2. Female_Pop'!$A$4:$CD$4,0),0) -> 3.056907388e-06 | J14: =VLOOKUP($B14&$D14, '1. Num_births'!$A$4:$M$1048576, MATCH(J$7, '1. Num_births'!$A$4:$M$4, 0),0)/VLOOKUP($D14,'2. Female_Pop'!$A$4:$CD$84, MATCH($B14, '2. Female_Pop'!$A$4:$CD$4,0),0) -> 0 | K14: =VLOOKUP($B14&$D14, '1. Num_births'!$A$4:$M$1048576, MATCH(K$7, '1. Num_births'!$A$4:$M$4, 0),0)/VLOOKUP($D14,'2. Female_Pop'!$A$4:$CD$84, MATCH($B14, '2. Female_Pop'!$A$4:$CD$4,0),0) -> 0 | L14: =VLOOKUP($B14&$D14, '1. Num_births'!$A$4:$M$1048576, MATCH(L$7, '1. Num_births'!$A$4:$M$4, 0),0)/VLOOKUP($D14,'2. Female_Pop'!$A$4:$CD$84, MATCH($B14, '2. Female_Pop'!$A$4:$CD$4,0),0) -> 0 | M14: =VLOOKUP($B14&$D14, '1. Num_births'!$A$4:$M$1048576, MATCH(M$7, '1. Num_births'!$A$4:$M$4, 0),0)/VLOOKUP($D14,'2. Female_Pop'!$A$4:$CD$84, MATCH($B14, '2. Female_Pop'!$A$4:$CD$4,0),0) -> 0.008476804187 | N14: =VLOOKUP($B14&$D14, '1. Num_births'!$A$4:$M$1048576, MATCH(N$7, '1. Num_births'!$A$4:$M$4, 0),0)/VLOOKUP($D14,'2. Female_Pop'!$A$4:$CD$84, MATCH($B14, '2. Female_Pop'!$A$4:$CD$4,0),0) -> 2.751216649e-05 | P14: 199421 | Q14: 201521 | R14: 2015 | S14: 1994 | T14: 21 | U14: =VLOOKUP($B14&$D14, '1. Num_births'!$A$4:$M$1048576, MATCH(U$7, '1. Num_births'!$A$4:$M$4, 0),0)/VLOOKUP($D14,'2. Female_Pop'!$A$4:$CD$84, MATCH($B14, '2. Female_Pop'!$A$4:$CD$4,0),0) -> 0.006691570272 | V14: =VLOOKUP($B14&$D14, '1. Num_births'!$A$4:$M$1048576, MATCH(V$7, '1. Num_births'!$A$4:$M$4, 0),0)/VLOOKUP($D14,'2. Female_Pop'!$A$4:$CD$84, MATCH($B14, '2. Female_Pop'!$A$4:$CD$4,0),0) -> 0.001644616175 | W14: 0.0001131055734 | X14: 0.00844929202
A15: 201522 | B15: 2015 | C15: 1993 | D15: 22 | E15: =VLOOKUP($B15&$D15, '1. Num_births'!$A$4:$M$1048576, MATCH(E$7, '1. Num_births'!$A$4:$M$4, 0),0)/VLOOKUP($D15,'2. Female_Pop'!$A$4:$CD$84, MATCH($B15, '2. Female_Pop'!$A$4:$CD$4,0),0) -> 0.008511514154 | F15: =VLOOKUP($B15&$D15, '1. Num_births'!$A$4:$M$1048576, MATCH(F$7, '1. Num_births'!$A$4:$M$4, 0),0)/VLOOKUP($D15,'2. Female_Pop'!$A$4:$CD$84, MATCH($B15, '2. Female_Pop'!$A$4:$CD$4,0),0) -> 0.002923941206 | G15: =VLOOKUP($B15&$D15, '1. Num_births'!$A$4:$M$1048576, MATCH(G$7, '1. Num_births'!$A$4:$M$4, 0),0)/VLOOKUP($D15,'2. Female_Pop'!$A$4:$CD$84, MATCH($B15, '2. Female_Pop'!$A$4:$CD$4,0),0) -> 0.0002330677773 | H15: =VLOOKUP($B15&$D15, '1. Num_births'!$A$4:$M$1048576, MATCH(H$7, '1. Num_births'!$A$4:$M$4, 0),0)/VLOOKUP($D15,'2. Female_Pop'!$A$4:$CD$84, MATCH($B15, '2. Female_Pop'!$A$4:$CD$4,0),0) -> 1.816112551e-05 | I15: =VLOOKUP($B15&$D15, '1. Num_births'!$A$4:$M$1048576, MATCH(I$7, '1. Num_births'!$A$4:$M$4, 0),0)/VLOOKUP($D15,'2. Female_Pop'!$A$4:$CD$84, MATCH($B15, '2. Female_Pop'!$A$4:$CD$4,0),0) -> 3.026854251e-06 | J15: =VLOOKUP($B15&$D15, '1. Num_births'!$A$4:$M$1048576, MATCH(J$7, '1. Num_births'!$A$4:$M$4, 0),0)/VLOOKUP($D15,'2. Female_Pop'!$A$4:$CD$84, MATCH($B15, '2. Female_Pop'!$A$4:$CD$4,0),0) -> 0 | K15: =VLOOKUP($B15&$D15, '1. Num_births'!$A$4:$M$1048576, MATCH(K$7, '1. Num_births'!$A$4:$M$4, 0),0)/VLOOKUP($D15,'2. Female_Pop'!$A$4:$CD$84, MATCH($B15, '2. Female_Pop'!$A$4:$CD$4,0),0) -> 0 | L15: =VLOOKUP($B15&$D15, '1. Num_births'!$A$4:$M$1048576, MATCH(L$7, '1. Num_births'!$A$4:$M$4, 0),0)/VLOOKUP($D15,'2. Female_Pop'!$A$4:$CD$84, MATCH($B15, '2. Female_Pop'!$A$4:$CD$4,0),0) -> 0 | M15: =VLOOKUP($B15&$D15, '1. Num_births'!$A$4:$M$1048576, MATCH(M$7, '1. Num_births'!$A$4:$M$4, 0),0)/VLOOKUP($D15,'2. Female_Pop'!$A$4:$CD$84, MATCH($B15, '2. Female_Pop'!$A$4:$CD$4,0),0) -> 0.01175932876 | N15: =VLOOKUP($B15&$D15, '1. Num_births'!$A$4:$M$1048576, MATCH(N$7, '1. Num_births'!$A$4:$M$4, 0),0)/VLOOKUP($D15,'2. Female_Pop'!$A$4:$CD$84, MATCH($B15, '2. Female_Pop'!$A$4:$CD$4,0),0) -> 6.961764777e-05 | P15: 199322 | Q15: 201522 | R15: 2015 | S15: 1993 | T15: 22 | U15: =VLOOKUP($B15&$D15, '1. Num_births'!$A$4:$M$1048576, MATCH(U$7, '1. Num_births'!$A$4:$M$4, 0),0)/VLOOKUP($D15,'2. Female_Pop'!$A$4:$CD$84, MATCH($B15, '2. Female_Pop'!$A$4:$CD$4,0),0) -> 0.008511514154 | V15: =VLOOKUP($B15&$D15, '1. Num_births'!$A$4:$M$1048576, MATCH(V$7, '1. Num_births'!$A$4:$M$4, 0),0)/VLOOKUP($D15,'2. Female_Pop'!$A$4:$CD$84, MATCH($B15, '2. Female_Pop'!$A$4:$CD$4,0),0) -> 0.002923941206 | W15: 0.0002542557571 | X15: 0.01168971112
A16: 201523 | B16: 2015 | C16: 1992 | D16: 23 | E16: =VLOOKUP($B16&$D16, '1. Num_births'!$A$4:$M$1048576, MATCH(E$7, '1. Num_births'!$A$4:$M$4, 0),0)/VLOOKUP($D16,'2. Female_Pop'!$A$4:$CD$84, MATCH($B16, '2. Female_Pop'!$A$4:$CD$4,0),0) -> 0.01143972204 | F16: =VLOOKUP($B16&$D16, '1. Num_births'!$A$4:$M$1048576, MATCH(F$7, '1. Num_births'!$A$4:$M$4, 0),0)/VLOOKUP($D16,'2. Female_Pop'!$A$4:$CD$84, MATCH($B16, '2. Female_Pop'!$A$4:$CD$4,0),0) -> 0.00421034853 | G16: =VLOOKUP($B16&$D16, '1. Num_births'!$A$4:$M$1048576, MATCH(G$7, '1. Num_births'!$A$4:$M$4, 0),0)/VLOOKUP($D16,'2. Female_Pop'!$A$4:$CD$84, MATCH($B16, '2. Female_Pop'!$A$4:$CD$4,0),0) -> 0.0004584333643 | H16: =VLOOKUP($B16&$D16, '1. Num_births'!$A$4:$M$1048576, MATCH(H$7, '1. Num_births'!$A$4:$M$4, 0),0)/VLOOKUP($D16,'2. Female_Pop'!$A$4:$CD$84, MATCH($B16, '2. Female_Pop'!$A$4:$CD$4,0),0) -> 3.920811668e-05 | I16: =VLOOKUP($B16&$D16, '1. Num_births'!$A$4:$M$1048576, MATCH(I$7, '1. Num_births'!$A$4:$M$4, 0),0)/VLOOKUP($D16,'2. Female_Pop'!$A$4:$CD$84, MATCH($B16, '2. Female_Pop'!$A$4:$CD$4,0),0) -> 6.032017951e-06 | J16: =VLOOKUP($B16&$D16, '1. Num_births'!$A$4:$M$1048576, MATCH(J$7, '1. Num_births'!$A$4:$M$4, 0),0)/VLOOKUP($D16,'2. Female_Pop'!$A$4:$CD$84, MATCH($B16, '2. Female_Pop'!$A$4:$CD$4,0),0) -> 0 | K16: =VLOOKUP($B16&$D16, '1. Num_births'!$A$4:$M$1048576, MATCH(K$7, '1. Num_births'!$A$4:$M$4, 0),0)/VLOOKUP($D16,'2. Female_Pop'!$A$4:$CD$84, MATCH($B16, '2. Female_Pop'!$A$4:$CD$4,0),0) -> 0 | L16: =VLOOKUP($B16&$D16, '1. Num_births'!$A$4:$M$1048576, MATCH(L$7, '1. Num_births'!$A$4:$M$4, 0),0)/VLOOKUP($D16,'2. Female_Pop'!$A$4:$CD$84, MATCH($B16, '2. Female_Pop'!$A$4:$CD$4,0),0) -> 0 | M16: =VLOOKUP($B16&$D16, '1. Num_births'!$A$4:$M$1048576, MATCH(M$7, '1. Num_births'!$A$4:$M$4, 0),0)/VLOOKUP($D16,'2. Female_Pop'!$A$4:$CD$84, MATCH($B16, '2. Female_Pop'!$A$4:$CD$4,0),0) -> 0.01620200022 | N16: =VLOOKUP($B16&$D16, '1. Num_births'!$A$4:$M$1048576, MATCH(N$7, '1. Num_births'!$A$4:$M$4, 0),0)/VLOOKUP($D16,'2. Female_Pop'!$A$4:$CD$84, MATCH($B16, '2. Female_Pop'!$A$4:$CD$4,0),0) -> 4.825614361e-05 | P16: 199223 | Q16: 201523 | R16: 2015 | S16: 1992 | T16: 23 | U16: =VLOOKUP($B16&$D16, '1. Num_births'!$A$4:$M$1048576, MATCH(U$7, '1. Num_births'!$A$4:$M$4, 0),0)/VLOOKUP($D16,'2. Female_Pop'!$A$4:$CD$84, MATCH($B16, '2. Female_Pop'!$A$4:$CD$4,0),0) -> 0.01143972204 | V16: =VLOOKUP($B16&$D16, '1. Num_births'!$A$4:$M$1048576, MATCH(V$7, '1. Num_births'!$A$4:$M$4, 0),0)/VLOOKUP($D16,'2. Female_Pop'!$A$4:$CD$84, MATCH($B16, '2. Female_Pop'!$A$4:$CD$4,0),0) -> 0.00421034853 | W16: 0.0005036734989 | X16: 0.01615374407
A17: 201524 | B17: 2015 | C17: 1991 | D17: 24 | E17: =VLOOKUP($B17&$D17, '1. Num_births'!$A$4:$M$1048576, MATCH(E$7, '1. Num_births'!$A$4:$M$4, 0),0)/VLOOKUP($D17,'2. Female_Pop'!$A$4:$CD$84, MATCH($B17, '2. Female_Pop'!$A$4:$CD$4,0),0) -> 0.01412182506 | F17: =VLOOKUP($B17&$D17, '1. Num_births'!$A$4:$M$1048576, MATCH(F$7, '1. Num_births'!$A$4:$M$4, 0),0)/VLOOKUP($D17,'2. Female_Pop'!$A$4:$CD$84, MATCH($B17, '2. Female_Pop'!$A$4:$CD$4,0),0) -> 0.005379448776 | G17: =VLOOKUP($B17&$D17, '1. Num_births'!$A$4:$M$1048576, MATCH(G$7, '1. Num_births'!$A$4:$M$4, 0),0)/VLOOKUP($D17,'2. Female_Pop'!$A$4:$CD$84, MATCH($B17, '2. Female_Pop'!$A$4:$CD$4,0),0) -> 0.0006176175403 | H17: =VLOOKUP($B17&$D17, '1. Num_births'!$A$4:$M$1048576, MATCH(H$7, '1. Num_births'!$A$4:$M$4, 0),0)/VLOOKUP($D17,'2. Female_Pop'!$A$4:$CD$84, MATCH($B17, '2. Female_Pop'!$A$4:$CD$4,0),0) -> 4.632131553e-05 | I17: =VLOOKUP($B17&$D17, '1. Num_births'!$A$4:$M$1048576, MATCH(I$7, '1. Num_births'!$A$4:$M$4, 0),0)/VLOOKUP($D17,'2. Female_Pop'!$A$4:$CD$84, MATCH($B17, '2. Female_Pop'!$A$4:$CD$4,0),0) -> 6.176175403e-06 | J17: =VLOOKUP($B17&$D17, '1. Num_births'!$A$4:$M$1048576, MATCH(J$7, '1. Num_births'!$A$4:$M$4, 0),0)/VLOOKUP($D17,'2. Female_Pop'!$A$4:$CD$84, MATCH($B17, '2. Female_Pop'!$A$4:$CD$4,0),0) -> 0 | K17: =VLOOKUP($B17&$D17, '1. Num_births'!$A$4:$M$1048576, MATCH(K$7, '1. Num_births'!$A$4:$M$4, 0),0)/VLOOKUP($D17,'2. Female_Pop'!$A$4:$CD$84, MATCH($B17, '2. Female_Pop'!$A$4:$CD$4,0),0) -> 0 | L17: =VLOOKUP($B17&$D17, '1. Num_births'!$A$4:$M$1048576, MATCH(L$7, '1. Num_births'!$A$4:$M$4, 0),0)/VLOOKUP($D17,'2. Female_Pop'!$A$4:$CD$84, MATCH($B17, '2. Female_Pop'!$A$4:$CD$4,0),0) -> 0 | M17: =VLOOKUP($B17&$D17, '1. Num_births'!$A$4:$M$1048576, MATCH(M$7, '1. Num_births'!$A$4:$M$4, 0),0)/VLOOKUP($D17,'2. Female_Pop'!$A$4:$CD$84, MATCH($B17, '2. Female_Pop'!$A$4:$CD$4,0),0) -> 0.02025785532 | N17: =VLOOKUP($B17&$D17, '1. Num_births'!$A$4:$M$1048576, MATCH(N$7, '1. Num_births'!$A$4:$M$4, 0),0)/VLOOKUP($D17,'2. Female_Pop'!$A$4:$CD$84, MATCH($B17, '2. Female_Pop'!$A$4:$CD$4,0),0) -> 8.646645565e-05 | P17: 199124 | Q17: 201524 | R17: 2015 | S17: 1991 | T17: 24 | U17: =VLOOKUP($B17&$D17, '1. Num_births'!$A$4:$M$1048576, MATCH(U$7, '1. Num_births'!$A$4:$M$4, 0),0)/VLOOKUP($D17,'2. Female_Pop'!$A$4:$CD$84, MATCH($B17, '2. Female_Pop'!$A$4:$CD$4,0),0) -> 0.01412182506 | V17: =VLOOKUP($B17&$D17, '1. Num_births'!$A$4:$M$1048576, MATCH(V$7, '1. Num_births'!$A$4:$M$4, 0),0)/VLOOKUP($D17,'2. Female_Pop'!$A$4:$CD$84, MATCH($B17, '2. Female_Pop'!$A$4:$CD$4,0),0) -> 0.005379448776 | W17: 0.0006701150313 | X17: 0.02017138887
A18: 201525 | B18: 2015 | C18: 1990 | D18: 25 | E18: =VLOOKUP($B18&$D18, '1. Num_births'!$A$4:$M$1048576, MATCH(E$7, '1. Num_births'!$A$4:$M$4, 0),0)/VLOOKUP($D18,'2. Female_Pop'!$A$4:$CD$84, MATCH($B18, '2. Female_Pop'!$A$4:$CD$4,0),0) -> 0.01988286904 | F18: =VLOOKUP($B18&$D18, '1. Num_births'!$A$4:$M$1048576, MATCH(F$7, '1. Num_births'!$A$4:$M$4, 0),0)/VLOOKUP($D18,'2. Female_Pop'!$A$4:$CD$84, MATCH($B18, '2. Female_Pop'!$A$4:$CD$4,0),0) -> 0.007601051814 | G18: =VLOOKUP($B18&$D18, '1. Num_births'!$A$4:$M$1048576, MATCH(G$7, '1. Num_births'!$A$4:$M$4, 0),0)/VLOOKUP($D18,'2. Female_Pop'!$A$4:$CD$84, MATCH($B18, '2. Female_Pop'!$A$4:$CD$4,0),0) -> 0.0009137876498 | H18: =VLOOKUP($B18&$D18, '1. Num_births'!$A$4:$M$1048576, MATCH(H$7, '1. Num_births'!$A$4:$M$4, 0),0)/VLOOKUP($D18,'2. Female_Pop'!$A$4:$CD$84, MATCH($B18, '2. Female_Pop'!$A$4:$CD$4,0),0) -> 9.585185138e-05 | I18: =VLOOKUP($B18&$D18, '1. Num_births'!$A$4:$M$1048576, MATCH(I$7, '1. Num_births'!$A$4:$M$4, 0),0)/VLOOKUP($D18,'2. Female_Pop'!$A$4:$CD$84, MATCH($B18, '2. Female_Pop'!$A$4:$CD$4,0),0) -> 6.390123425e-06 | J18: =VLOOKUP($B18&$D18, '1. Num_births'!$A$4:$M$1048576, MATCH(J$7, '1. Num_births'!$A$4:$M$4, 0),0)/VLOOKUP($D18,'2. Female_Pop'!$A$4:$CD$84, MATCH($B18, '2. Female_Pop'!$A$4:$CD$4,0),0) -> 3.195061713e-06 | K18: =VLOOKUP($B18&$D18, '1. Num_births'!$A$4:$M$1048576, MATCH(K$7, '1. Num_births'!$A$4:$M$4, 0),0)/VLOOKUP($D18,'2. Female_Pop'!$A$4:$CD$84, MATCH($B18, '2. Female_Pop'!$A$4:$CD$4,0),0) -> 0 | L18: =VLOOKUP($B18&$D18, '1. Num_births'!$A$4:$M$1048576, MATCH(L$7, '1. Num_births'!$A$4:$M$4, 0),0)/VLOOKUP($D18,'2. Female_Pop'!$A$4:$CD$84, MATCH($B18, '2. Female_Pop'!$A$4:$CD$4,0),0) -> 0 | M18: =VLOOKUP($B18&$D18, '1. Num_births'!$A$4:$M$1048576, MATCH(M$7, '1. Num_births'!$A$4:$M$4, 0),0)/VLOOKUP($D18,'2. Female_Pop'!$A$4:$CD$84, MATCH($B18, '2. Female_Pop'!$A$4:$CD$4,0),0) -> 0.02860219245 | N18: =VLOOKUP($B18&$D18, '1. Num_births'!$A$4:$M$1048576, MATCH(N$7, '1. Num_births'!$A$4:$M$4, 0),0)/VLOOKUP($D18,'2. Female_Pop'!$A$4:$CD$84, MATCH($B18, '2. Female_Pop'!$A$4:$CD$4,0),0) -> 9.904691309e-05 | P18: 199025 | Q18: 201525 | R18: 2015 | S18: 1990 | T18: 25 | U18: =VLOOKUP($B18&$D18, '1. Num_births'!$A$4:$M$1048576, MATCH(U$7, '1. Num_births'!$A$4:$M$4, 0),0)/VLOOKUP($D18,'2. Female_Pop'!$A$4:$CD$84, MATCH($B18, '2. Female_Pop'!$A$4:$CD$4,0),0) -> 0.01988286904 | V18: =VLOOKUP($B18&$D18, '1. Num_births'!$A$4:$M$1048576, MATCH(V$7, '1. Num_births'!$A$4:$M$4, 0),0)/VLOOKUP($D18,'2. Female_Pop'!$A$4:$CD$84, MATCH($B18, '2. Female_Pop'!$A$4:$CD$4,0),0) -> 0.007601051814 | W18: 0.001019224686 | X18: 0.02850314554
A19: 201526 | B19: 2015 | C19: 1989 | D19: 26 | E19: =VLOOKUP($B19&$D19, '1. Num_births'!$A$4:$M$1048576, MATCH(E$7, '1. Num_births'!$A$4:$M$4, 0),0)/VLOOKUP($D19,'2. Female_Pop'!$A$4:$CD$84, MATCH($B19, '2. Female_Pop'!$A$4:$CD$4,0),0) -> 0.02784694394 | F19: =VLOOKUP($B19&$D19, '1. Num_births'!$A$4:$M$1048576, MATCH(F$7, '1. Num_births'!$A$4:$M$4, 0),0)/VLOOKUP($D19,'2. Female_Pop'!$A$4:$CD$84, MATCH($B19, '2. Female_Pop'!$A$4:$CD$4,0),0) -> 0.01047543088 | G19: =VLOOKUP($B19&$D19, '1. Num_births'!$A$4:$M$1048576, MATCH(G$7, '1. Num_births'!$A$4:$M$4, 0),0)/VLOOKUP($D19,'2. Female_Pop'!$A$4:$CD$84, MATCH($B19, '2. Female_Pop'!$A$4:$CD$4,0),0) -> 0.001591902372 | H19: =VLOOKUP($B19&$D19, '1. Num_births'!$A$4:$M$1048576, MATCH(H$7, '1. Num_births'!$A$4:$M$4, 0),0)/VLOOKUP($D19,'2. Female_Pop'!$A$4:$CD$84, MATCH($B19, '2. Female_Pop'!$A$4:$CD$4,0),0) -> 0.0001264443839 | I19: =VLOOKUP($B19&$D19, '1. Num_births'!$A$4:$M$1048576, MATCH(I$7, '1. Num_births'!$A$4:$M$4, 0),0)/VLOOKUP($D19,'2. Female_Pop'!$A$4:$CD$84, MATCH($B19, '2. Female_Pop'!$A$4:$CD$4,0),0) -> 1.621081845e-05 | J19: =VLOOKUP($B19&$D19, '1. Num_births'!$A$4:$M$1048576, MATCH(J$7, '1. Num_births'!$A$4:$M$4, 0),0)/VLOOKUP($D19,'2. Female_Pop'!$A$4:$CD$84, MATCH($B19, '2. Female_Pop'!$A$4:$CD$4,0),0) -> 9.726491071e-06 | K19: =VLOOKUP($B19&$D19, '1. Num_births'!$A$4:$M$1048576, MATCH(K$7, '1. Num_births'!$A$4:$M$4, 0),0)/VLOOKUP($D19,'2. Female_Pop'!$A$4:$CD$84, MATCH($B19, '2. Female_Pop'!$A$4:$CD$4,0),0) -> 0 | L19: =VLOOKUP($B19&$D19, '1. Num_births'!$A$4:$M$1048576, MATCH(L$7, '1. Num_births'!$A$4:$M$4, 0),0)/VLOOKUP($D19,'2. Female_Pop'!$A$4:$CD$84, MATCH($B19, '2. Female_Pop'!$A$4:$CD$4,0),0) -> 0 | M19: =VLOOKUP($B19&$D19, '1. Num_births'!$A$4:$M$1048576, MATCH(M$7, '1. Num_births'!$A$4:$M$4, 0),0)/VLOOKUP($D19,'2. Female_Pop'!$A$4:$CD$84, MATCH($B19, '2. Female_Pop'!$A$4:$CD$4,0),0) -> 0.0401639238 | N19: =VLOOKUP($B19&$D19, '1. Num_births'!$A$4:$M$1048576, MATCH(N$7, '1. Num_births'!$A$4:$M$4, 0),0)/VLOOKUP($D19,'2. Female_Pop'!$A$4:$CD$84, MATCH($B19, '2. Female_Pop'!$A$4:$CD$4,0),0) -> 9.726491071e-05 | P19: 198926 | Q19: 201526 | R19: 2015 | S19: 1989 | T19: 26 | U19: =VLOOKUP($B19&$D19, '1. Num_births'!$A$4:$M$1048576, MATCH(U$7, '1. Num_births'!$A$4:$M$4, 0),0)/VLOOKUP($D19,'2. Female_Pop'!$A$4:$CD$84, MATCH($B19, '2. Female_Pop'!$A$4:$CD$4,0),0) -> 0.02784694394 | V19: =VLOOKUP($B19&$D19, '1. Num_births'!$A$4:$M$1048576, MATCH(V$7, '1. Num_births'!$A$4:$M$4, 0),0)/VLOOKUP($D19,'2. Female_Pop'!$A$4:$CD$84, MATCH($B19, '2. Female_Pop'!$A$4:$CD$4,0),0) -> 0.01047543088 | W19: 0.001744284065 | X19: 0.04006665889
A20: 201527 | B20: 2015 | C20: 1988 | D20: 27 | E20: =VLOOKUP($B20&$D20, '1. Num_births'!$A$4:$M$1048576, MATCH(E$7, '1. Num_births'!$A$4:$M$4, 0),0)/VLOOKUP($D20,'2. Female_Pop'!$A$4:$CD$84, MATCH($B20, '2. Female_Pop'!$A$4:$CD$4,0),0) -> 0.03987443876 | F20: =VLOOKUP($B20&$D20, '1. Num_births'!$A$4:$M$1048576, MATCH(F$7, '1. Num_births'!$A$4:$M$4, 0),0)/VLOOKUP($D20,'2. Female_Pop'!$A$4:$CD$84, MATCH($B20, '2. Female_Pop'!$A$4:$CD$4,0),0) -> 0.01461641626 | G20: =VLOOKUP($B20&$D20, '1. Num_births'!$A$4:$M$1048576, MATCH(G$7, '1. Num_births'!$A$4:$M$4, 0),0)/VLOOKUP($D20,'2. Female_Pop'!$A$4:$CD$84, MATCH($B20, '2. Female_Pop'!$A$4:$CD$4,0),0) -> 0.002170434152 | H20: =VLOOKUP($B20&$D20, '1. Num_births'!$A$4:$M$1048576, MATCH(H$7, '1. Num_births'!$A$4:$M$4, 0),0)/VLOOKUP($D20,'2. Female_Pop'!$A$4:$CD$84, MATCH($B20, '2. Female_Pop'!$A$4:$CD$4,0),0) -> 0.0001781699677 | I20: =VLOOKUP($B20&$D20, '1. Num_births'!$A$4:$M$1048576, MATCH(I$7, '1. Num_births'!$A$4:$M$4, 0),0)/VLOOKUP($D20,'2. Female_Pop'!$A$4:$CD$84, MATCH($B20, '2. Female_Pop'!$A$4:$CD$4,0),0) -> 1.619726979e-05 | J20: =VLOOKUP($B20&$D20, '1. Num_births'!$A$4:$M$1048576, MATCH(J$7, '1. Num_births'!$A$4:$M$4, 0),0)/VLOOKUP($D20,'2. Female_Pop'!$A$4:$CD$84, MATCH($B20, '2. Female_Pop'!$A$4:$CD$4,0),0) -> 3.239453958e-06 | K20: =VLOOKUP($B20&$D20, '1. Num_births'!$A$4:$M$1048576, MATCH(K$7, '1. Num_births'!$A$4:$M$4, 0),0)/VLOOKUP($D20,'2. Female_Pop'!$A$4:$CD$84, MATCH($B20, '2. Female_Pop'!$A$4:$CD$4,0),0) -> 0 | L20: =VLOOKUP($B20&$D20, '1. Num_births'!$A$4:$M$1048576, MATCH(L$7, '1. Num_births'!$A$4:$M$4, 0),0)/VLOOKUP($D20,'2. Female_Pop'!$A$4:$CD$84, MATCH($B20, '2. Female_Pop'!$A$4:$CD$4,0),0) -> 0 | M20: =VLOOKUP($B20&$D20, '1. Num_births'!$A$4:$M$1048576, MATCH(M$7, '1. Num_births'!$A$4:$M$4, 0),0)/VLOOKUP($D20,'2. Female_Pop'!$A$4:$CD$84, MATCH($B20, '2. Female_Pop'!$A$4:$CD$4,0),0) -> 0.05700143184 | N20: =VLOOKUP($B20&$D20, '1. Num_births'!$A$4:$M$1048576, MATCH(N$7, '1. Num_births'!$A$4:$M$4, 0),0)/VLOOKUP($D20,'2. Female_Pop'!$A$4:$CD$84, MATCH($B20, '2. Female_Pop'!$A$4:$CD$4,0),0) -> 0.0001425359741 | P20: 198827 | Q20: 201527 | R20: 2015 | S20: 1988 | T20: 27 | U20: =VLOOKUP($B20&$D20, '1. Num_births'!$A$4:$M$1048576, MATCH(U$7, '1. Num_births'!$A$4:$M$4, 0),0)/VLOOKUP($D20,'2. Female_Pop'!$A$4:$CD$84, MATCH($B20, '2. Female_Pop'!$A$4:$CD$4,0),0) -> 0.03987443876 | V20: =VLOOKUP($B20&$D20, '1. Num_births'!$A$4:$M$1048576, MATCH(V$7, '1. Num_births'!$A$4:$M$4, 0),0)/VLOOKUP($D20,'2. Female_Pop'!$A$4:$CD$84, MATCH($B20, '2. Female_Pop'!$A$4:$CD$4,0),0) -> 0.01461641626 | W20: 0.002368040843 | X20: 0.05685889586
A21: 201528 | B21: 2015 | C21: 1987 | D21: 28 | E21: =VLOOKUP($B21&$D21, '1. Num_births'!$A$4:$M$1048576, MATCH(E$7, '1. Num_births'!$A$4:$M$4, 0),0)/VLOOKUP($D21,'2. Female_Pop'!$A$4:$CD$84, MATCH($B21, '2. Female_Pop'!$A$4:$CD$4,0),0) -> 0.05521875071 | F21: =VLOOKUP($B21&$D21, '1. Num_births'!$A$4:$M$1048576, MATCH(F$7, '1. Num_births'!$A$4:$M$4, 0),0)/VLOOKUP($D21,'2. Female_Pop'!$A$4:$CD$84, MATCH($B21, '2. Female_Pop'!$A$4:$CD$4,0),0) -> 0.02065772329 | G21: =VLOOKUP($B21&$D21, '1. Num_births'!$A$4:$M$1048576, MATCH(G$7, '1. Num_births'!$A$4:$M$4, 0),0)/VLOOKUP($D21,'2. Female_Pop'!$A$4:$CD$84, MATCH($B21, '2. Female_Pop'!$A$4:$CD$4,0),0) -> 0.002822694072 | H21: =VLOOKUP($B21&$D21, '1. Num_births'!$A$4:$M$1048576, MATCH(H$7, '1. Num_births'!$A$4:$M$4, 0),0)/VLOOKUP($D21,'2. Female_Pop'!$A$4:$CD$84, MATCH($B21, '2. Female_Pop'!$A$4:$CD$4,0),0) -> 0.0002521994704 | I21: =VLOOKUP($B21&$D21, '1. Num_births'!$A$4:$M$1048576, MATCH(I$7, '1. Num_births'!$A$4:$M$4, 0),0)/VLOOKUP($D21,'2. Female_Pop'!$A$4:$CD$84, MATCH($B21, '2. Female_Pop'!$A$4:$CD$4,0),0) -> 6.466653087e-05 | J21: =VLOOKUP($B21&$D21, '1. Num_births'!$A$4:$M$1048576, MATCH(J$7, '1. Num_births'!$A$4:$M$4, 0),0)/VLOOKUP($D21,'2. Female_Pop'!$A$4:$CD$84, MATCH($B21, '2. Female_Pop'!$A$4:$CD$4,0),0) -> 1.293330617e-05 | K21: =VLOOKUP($B21&$D21, '1. Num_births'!$A$4:$M$1048576, MATCH(K$7, '1. Num_births'!$A$4:$M$4, 0),0)/VLOOKUP($D21,'2. Female_Pop'!$A$4:$CD$84, MATCH($B21, '2. Female_Pop'!$A$4:$CD$4,0),0) -> 0 | L21: =VLOOKUP($B21&$D21, '1. Num_births'!$A$4:$M$1048576, MATCH(L$7, '1. Num_births'!$A$4:$M$4, 0),0)/VLOOKUP($D21,'2. Female_Pop'!$A$4:$CD$84, MATCH($B21, '2. Female_Pop'!$A$4:$CD$4,0),0) -> 0 | M21: =VLOOKUP($B21&$D21, '1. Num_births'!$A$4:$M$1048576, MATCH(M$7, '1. Num_births'!$A$4:$M$4, 0),0)/VLOOKUP($D21,'2. Female_Pop'!$A$4:$CD$84, MATCH($B21, '2. Female_Pop'!$A$4:$CD$4,0),0) -> 0.07919386703 | N21: =VLOOKUP($B21&$D21, '1. Num_births'!$A$4:$M$1048576, MATCH(N$7, '1. Num_births'!$A$4:$M$4, 0),0)/VLOOKUP($D21,'2. Female_Pop'!$A$4:$CD$84, MATCH($B21, '2. Female_Pop'!$A$4:$CD$4,0),0) -> 0.0001648996537 | P21: 198728 | Q21: 201528 | R21: 2015 | S21: 1987 | T21: 28 | U21: =VLOOKUP($B21&$D21, '1. Num_births'!$A$4:$M$1048576, MATCH(U$7, '1. Num_births'!$A$4:$M$4, 0),0)/VLOOKUP($D21,'2. Female_Pop'!$A$4:$CD$84, MATCH($B21, '2. Female_Pop'!$A$4:$CD$4,0),0) -> 0.05521875071 | V21: =VLOOKUP($B21&$D21, '1. Num_births'!$A$4:$M$1048576, MATCH(V$7, '1. Num_births'!$A$4:$M$4, 0),0)/VLOOKUP($D21,'2. Female_Pop'!$A$4:$CD$84, MATCH($B21, '2. Female_Pop'!$A$4:$CD$4,0),0) -> 0.02065772329 | W21: 0.00315249338 | X21: 0.07902896737
A22: 201529 | B22: 2015 | C22: 1986 | D22: 29 | E22: =VLOOKUP($B22&$D22, '1. Num_births'!$A$4:$M$1048576, MATCH(E$7, '1. Num_births'!$A$4:$M$4, 0),0)/VLOOKUP($D22,'2. Female_Pop'!$A$4:$CD$84, MATCH($B22, '2. Female_Pop'!$A$4:$CD$4,0),0) -> 0.06688571511 | F22: =VLOOKUP($B22&$D22, '1. Num_births'!$A$4:$M$1048576, MATCH(F$7, '1. Num_births'!$A$4:$M$4, 0),0)/VLOOKUP($D22,'2. Female_Pop'!$A$4:$CD$84, MATCH($B22, '2. Female_Pop'!$A$4:$CD$4,0),0) -> 0.02857362883 | G22: =VLOOKUP($B22&$D22, '1. Num_births'!$A$4:$M$1048576, MATCH(G$7, '1. Num_births'!$A$4:$M$4, 0),0)/VLOOKUP($D22,'2. Female_Pop'!$A$4:$CD$84, MATCH($B22, '2. Female_Pop'!$A$4:$CD$4,0),0) -> 0.003998061935 | H22: =VLOOKUP($B22&$D22, '1. Num_births'!$A$4:$M$1048576, MATCH(H$7, '1. Num_births'!$A$4:$M$4, 0),0)/VLOOKUP($D22,'2. Female_Pop'!$A$4:$CD$84, MATCH($B22, '2. Female_Pop'!$A$4:$CD$4,0),0) -> 0.0003786286583 | I22: =VLOOKUP($B22&$D22, '1. Num_births'!$A$4:$M$1048576, MATCH(I$7, '1. Num_births'!$A$4:$M$4, 0),0)/VLOOKUP($D22,'2. Female_Pop'!$A$4:$CD$84, MATCH($B22, '2. Female_Pop'!$A$4:$CD$4,0),0) -> 6.096563143e-05 | J22: =VLOOKUP($B22&$D22, '1. Num_births'!$A$4:$M$1048576, MATCH(J$7, '1. Num_births'!$A$4:$M$4, 0),0)/VLOOKUP($D22,'2. Female_Pop'!$A$4:$CD$84, MATCH($B22, '2. Female_Pop'!$A$4:$CD$4,0),0) -> 9.626152331e-06 | K22: =VLOOKUP($B22&$D22, '1. Num_births'!$A$4:$M$1048576, MATCH(K$7, '1. Num_births'!$A$4:$M$4, 0),0)/VLOOKUP($D22,'2. Female_Pop'!$A$4:$CD$84, MATCH($B22, '2. Female_Pop'!$A$4:$CD$4,0),0) -> 3.208717444e-06 | L22: =VLOOKUP($B22&$D22, '1. Num_births'!$A$4:$M$1048576, MATCH(L$7, '1. Num_births'!$A$4:$M$4, 0),0)/VLOOKUP($D22,'2. Female_Pop'!$A$4:$CD$84, MATCH($B22, '2. Female_Pop'!$A$4:$CD$4,0),0) -> 0 | M22: =VLOOKUP($B22&$D22, '1. Num_births'!$A$4:$M$1048576, MATCH(M$7, '1. Num_births'!$A$4:$M$4, 0),0)/VLOOKUP($D22,'2. Female_Pop'!$A$4:$CD$84, MATCH($B22, '2. Female_Pop'!$A$4:$CD$4,0),0) -> 0.1000895232 | N22: =VLOOKUP($B22&$D22, '1. Num_births'!$A$4:$M$1048576, MATCH(N$7, '1. Num_births'!$A$4:$M$4, 0),0)/VLOOKUP($D22,'2. Female_Pop'!$A$4:$CD$84, MATCH($B22, '2. Female_Pop'!$A$4:$CD$4,0),0) -> 0.0001796881768 | P22: 198629 | Q22: 201529 | R22: 2015 | S22: 1986 | T22: 29 | U22: =VLOOKUP($B22&$D22, '1. Num_births'!$A$4:$M$1048576, MATCH(U$7, '1. Num_births'!$A$4:$M$4, 0),0)/VLOOKUP($D22,'2. Female_Pop'!$A$4:$CD$84, MATCH($B22, '2. Female_Pop'!$A$4:$CD$4,0),0) -> 0.06688571511 | V22: =VLOOKUP($B22&$D22, '1. Num_births'!$A$4:$M$1048576, MATCH(V$7, '1. Num_births'!$A$4:$M$4, 0),0)/VLOOKUP($D22,'2. Female_Pop'!$A$4:$CD$84, MATCH($B22, '2. Female_Pop'!$A$4:$CD$4,0),0) -> 0.02857362883 | W22: 0.004450491094 | X22: 0.09990983504
A23: 201530 | B23: 2015 | C23: 1985 | D23: 30 | E23: =VLOOKUP($B23&$D23, '1. Num_births'!$A$4:$M$1048576, MATCH(E$7, '1. Num_births'!$A$4:$M$4, 0),0)/VLOOKUP($D23,'2. Female_Pop'!$A$4:$CD$84, MATCH($B23, '2. Female_Pop'!$A$4:$CD$4,0),0) -> 0.07131245258 | F23: =VLOOKUP($B23&$D23, '1. Num_births'!$A$4:$M$1048576, MATCH(F$7, '1. Num_births'!$A$4:$M$4, 0),0)/VLOOKUP($D23,'2. Female_Pop'!$A$4:$CD$84, MATCH($B23, '2. Female_Pop'!$A$4:$CD$4,0),0) -> 0.03674309867 | G23: =VLOOKUP($B23&$D23, '1. Num_births'!$A$4:$M$1048576, MATCH(G$7, '1. Num_births'!$A$4:$M$4, 0),0)/VLOOKUP($D23,'2. Female_Pop'!$A$4:$CD$84, MATCH($B23, '2. Female_Pop'!$A$4:$CD$4,0),0) -> 0.004960597006 | H23: =VLOOKUP($B23&$D23, '1. Num_births'!$A$4:$M$1048576, MATCH(H$7, '1. Num_births'!$A$4:$M$4, 0),0)/VLOOKUP($D23,'2. Female_Pop'!$A$4:$CD$84, MATCH($B23, '2. Female_Pop'!$A$4:$CD$4,0),0) -> 0.0004861508926 | I23: =VLOOKUP($B23&$D23, '1. Num_births'!$A$4:$M$1048576, MATCH(I$7, '1. Num_births'!$A$4:$M$4, 0),0)/VLOOKUP($D23,'2. Female_Pop'!$A$4:$CD$84, MATCH($B23, '2. Female_Pop'!$A$4:$CD$4,0),0) -> 6.193005001e-05 | J23: =VLOOKUP($B23&$D23, '1. Num_births'!$A$4:$M$1048576, MATCH(J$7, '1. Num_births'!$A$4:$M$4, 0),0)/VLOOKUP($D23,'2. Female_Pop'!$A$4:$CD$84, MATCH($B23, '2. Female_Pop'!$A$4:$CD$4,0),0) -> 1.8579015e-05 | K23: =VLOOKUP($B23&$D23, '1. Num_births'!$A$4:$M$1048576, MATCH(K$7, '1. Num_births'!$A$4:$M$4, 0),0)/VLOOKUP($D23,'2. Female_Pop'!$A$4:$CD$84, MATCH($B23, '2. Female_Pop'!$A$4:$CD$4,0),0) -> 6.193005001e-06 | L23: =VLOOKUP($B23&$D23, '1. Num_births'!$A$4:$M$1048576, MATCH(L$7, '1. Num_births'!$A$4:$M$4, 0),0)/VLOOKUP($D23,'2. Female_Pop'!$A$4:$CD$84, MATCH($B23, '2. Female_Pop'!$A$4:$CD$4,0),0) -> 0 | M23: =VLOOKUP($B23&$D23, '1. Num_births'!$A$4:$M$1048576, MATCH(M$7, '1. Num_births'!$A$4:$M$4, 0),0)/VLOOKUP($D23,'2. Female_Pop'!$A$4:$CD$84, MATCH($B23, '2. Female_Pop'!$A$4:$CD$4,0),0) -> 0.1138026599 | N23: =VLOOKUP($B23&$D23, '1. Num_births'!$A$4:$M$1048576, MATCH(N$7, '1. Num_births'!$A$4:$M$4, 0),0)/VLOOKUP($D23,'2. Female_Pop'!$A$4:$CD$84, MATCH($B23, '2. Female_Pop'!$A$4:$CD$4,0),0) -> 0.0002136586725 | P23: 198530 | Q23: 201530 | R23: 2015 | S23: 1985 | T23: 30 | U23: =VLOOKUP($B23&$D23, '1. Num_births'!$A$4:$M$1048576, MATCH(U$7, '1. Num_births'!$A$4:$M$4, 0),0)/VLOOKUP($D23,'2. Female_Pop'!$A$4:$CD$84, MATCH($B23, '2. Female_Pop'!$A$4:$CD$4,0),0) -> 0.07131245258 | V23: =VLOOKUP($B23&$D23, '1. Num_births'!$A$4:$M$1048576, MATCH(V$7, '1. Num_births'!$A$4:$M$4, 0),0)/VLOOKUP($D23,'2. Female_Pop'!$A$4:$CD$84, MATCH($B23, '2. Female_Pop'!$A$4:$CD$4,0),0) -> 0.03674309867 | W23: 0.005533449968 | X23: 0.1135890012
A24: 201531 | B24: 2015 | C24: 1984 | D24: 31 | E24: =VLOOKUP($B24&$D24, '1. Num_births'!$A$4:$M$1048576, MATCH(E$7, '1. Num_births'!$A$4:$M$4, 0),0)/VLOOKUP($D24,'2. Female_Pop'!$A$4:$CD$84, MATCH($B24, '2. Female_Pop'!$A$4:$CD$4,0),0) -> 0.07217748371 | F24: =VLOOKUP($B24&$D24, '1. Num_births'!$A$4:$M$1048576, MATCH(F$7, '1. Num_births'!$A$4:$M$4, 0),0)/VLOOKUP($D24,'2. Female_Pop'!$A$4:$CD$84, MATCH($B24, '2. Female_Pop'!$A$4:$CD$4,0),0) -> 0.04667508234 | G24: =VLOOKUP($B24&$D24, '1. Num_births'!$A$4:$M$1048576, MATCH(G$7, '1. Num_births'!$A$4:$M$4, 0),0)/VLOOKUP($D24,'2. Female_Pop'!$A$4:$CD$84, MATCH($B24, '2. Female_Pop'!$A$4:$CD$4,0),0) -> 0.007176540577 | H24: =VLOOKUP($B24&$D24, '1. Num_births'!$A$4:$M$1048576, MATCH(H$7, '1. Num_births'!$A$4:$M$4, 0),0)/VLOOKUP($D24,'2. Female_Pop'!$A$4:$CD$84, MATCH($B24, '2. Female_Pop'!$A$4:$CD$4,0),0) -> 0.0005687836446 | I24: =VLOOKUP($B24&$D24, '1. Num_births'!$A$4:$M$1048576, MATCH(I$7, '1. Num_births'!$A$4:$M$4, 0),0)/VLOOKUP($D24,'2. Female_Pop'!$A$4:$CD$84, MATCH($B24, '2. Female_Pop'!$A$4:$CD$4,0),0) -> 8.125480637e-05 | J24: =VLOOKUP($B24&$D24, '1. Num_births'!$A$4:$M$1048576, MATCH(J$7, '1. Num_births'!$A$4:$M$4, 0),0)/VLOOKUP($D24,'2. Female_Pop'!$A$4:$CD$84, MATCH($B24, '2. Female_Pop'!$A$4:$CD$4,0),0) -> 1.160782948e-05 | K24: =VLOOKUP($B24&$D24, '1. Num_births'!$A$4:$M$1048576, MATCH(K$7, '1. Num_births'!$A$4:$M$4, 0),0)/VLOOKUP($D24,'2. Female_Pop'!$A$4:$CD$84, MATCH($B24, '2. Female_Pop'!$A$4:$CD$4,0),0) -> 0 | L24: =VLOOKUP($B24&$D24, '1. Num_births'!$A$4:$M$1048576, MATCH(L$7, '1. Num_births'!$A$4:$M$4, 0),0)/VLOOKUP($D24,'2. Female_Pop'!$A$4:$CD$84, MATCH($B24, '2. Female_Pop'!$A$4:$CD$4,0),0) -> 0 | M24: =VLOOKUP($B24&$D24, '1. Num_births'!$A$4:$M$1048576, MATCH(M$7, '1. Num_births'!$A$4:$M$4, 0),0)/VLOOKUP($D24,'2. Female_Pop'!$A$4:$CD$84, MATCH($B24, '2. Female_Pop'!$A$4:$CD$4,0),0) -> 0.1269693408 | N24: =VLOOKUP($B24&$D24, '1. Num_births'!$A$4:$M$1048576, MATCH(N$7, '1. Num_births'!$A$4:$M$4, 0),0)/VLOOKUP($D24,'2. Female_Pop'!$A$4:$CD$84, MATCH($B24, '2. Female_Pop'!$A$4:$CD$4,0),0) -> 0.0002785879075 | P24: 198431 | Q24: 201531 | R24: 2015 | S24: 1984 | T24: 31 | U24: =VLOOKUP($B24&$D24, '1. Num_births'!$A$4:$M$1048576, MATCH(U$7, '1. Num_births'!$A$4:$M$4, 0),0)/VLOOKUP($D24,'2. Female_Pop'!$A$4:$CD$84, MATCH($B24, '2. Female_Pop'!$A$4:$CD$4,0),0) -> 0.07217748371 | V24: =VLOOKUP($B24&$D24, '1. Num_births'!$A$4:$M$1048576, MATCH(V$7, '1. Num_births'!$A$4:$M$4, 0),0)/VLOOKUP($D24,'2. Female_Pop'!$A$4:$CD$84, MATCH($B24, '2. Female_Pop'!$A$4:$CD$4,0),0) -> 0.04667508234 | W24: 0.007838186857 | X24: 0.1266907529
A25: 201532 | B25: 2015 | C25: 1983 | D25: 32 | E25: =VLOOKUP($B25&$D25, '1. Num_births'!$A$4:$M$1048576, MATCH(E$7, '1. Num_births'!$A$4:$M$4, 0),0)/VLOOKUP($D25,'2. Female_Pop'!$A$4:$CD$84, MATCH($B25, '2. Female_Pop'!$A$4:$CD$4,0),0) -> 0.06529682212 | F25: =VLOOKUP($B25&$D25, '1. Num_births'!$A$4:$M$1048576, MATCH(F$7, '1. Num_births'!$A$4:$M$4, 0),0)/VLOOKUP($D25,'2. Female_Pop'!$A$4:$CD$84, MATCH($B25, '2. Female_Pop'!$A$4:$CD$4,0),0) -> 0.05472367161 | G25: =VLOOKUP($B25&$D25, '1. Num_births'!$A$4:$M$1048576, MATCH(G$7, '1. Num_births'!$A$4:$M$4, 0),0)/VLOOKUP($D25,'2. Female_Pop'!$A$4:$CD$84, MATCH($B25, '2. Female_Pop'!$A$4:$CD$4,0),0) -> 0.008779948496 | H25: =VLOOKUP($B25&$D25, '1. Num_births'!$A$4:$M$1048576, MATCH(H$7, '1. Num_births'!$A$4:$M$4, 0),0)/VLOOKUP($D25,'2. Female_Pop'!$A$4:$CD$84, MATCH($B25, '2. Female_Pop'!$A$4:$CD$4,0),0) -> 0.0007523358816 | I25: =VLOOKUP($B25&$D25, '1. Num_births'!$A$4:$M$1048576, MATCH(I$7, '1. Num_births'!$A$4:$M$4, 0),0)/VLOOKUP($D25,'2. Female_Pop'!$A$4:$CD$84, MATCH($B25, '2. Female_Pop'!$A$4:$CD$4,0),0) -> 9.707559762e-05 | J25: =VLOOKUP($B25&$D25, '1. Num_births'!$A$4:$M$1048576, MATCH(J$7, '1. Num_births'!$A$4:$M$4, 0),0)/VLOOKUP($D25,'2. Female_Pop'!$A$4:$CD$84, MATCH($B25, '2. Female_Pop'!$A$4:$CD$4,0),0) -> 2.157235503e-05 | K25: =VLOOKUP($B25&$D25, '1. Num_births'!$A$4:$M$1048576, MATCH(K$7, '1. Num_births'!$A$4:$M$4, 0),0)/VLOOKUP($D25,'2. Female_Pop'!$A$4:$CD$84, MATCH($B25, '2. Female_Pop'!$A$4:$CD$4,0),0) -> 0 | L25: =VLOOKUP($B25&$D25, '1. Num_births'!$A$4:$M$1048576, MATCH(L$7, '1. Num_births'!$A$4:$M$4, 0),0)/VLOOKUP($D25,'2. Female_Pop'!$A$4:$CD$84, MATCH($B25, '2. Female_Pop'!$A$4:$CD$4,0),0) -> 2.696544378e-06 | M25: =VLOOKUP($B25&$D25, '1. Num_births'!$A$4:$M$1048576, MATCH(M$7, '1. Num_births'!$A$4:$M$4, 0),0)/VLOOKUP($D25,'2. Female_Pop'!$A$4:$CD$84, MATCH($B25, '2. Female_Pop'!$A$4:$CD$4,0),0) -> 0.1298898462 | N25: =VLOOKUP($B25&$D25, '1. Num_births'!$A$4:$M$1048576, MATCH(N$7, '1. Num_births'!$A$4:$M$4, 0),0)/VLOOKUP($D25,'2. Female_Pop'!$A$4:$CD$84, MATCH($B25, '2. Female_Pop'!$A$4:$CD$4,0),0) -> 0.0002157235503 | P25: 198332 | Q25: 201532 | R25: 2015 | S25: 1983 | T25: 32 | U25: =VLOOKUP($B25&$D25, '1. Num_births'!$A$4:$M$1048576, MATCH(U$7, '1. Num_births'!$A$4:$M$4, 0),0)/VLOOKUP($D25,'2. Female_Pop'!$A$4:$CD$84, MATCH($B25, '2. Female_Pop'!$A$4:$CD$4,0),0) -> 0.06529682212 | V25: =VLOOKUP($B25&$D25, '1. Num_births'!$A$4:$M$1048576, MATCH(V$7, '1. Num_births'!$A$4:$M$4, 0),0)/VLOOKUP($D25,'2. Female_Pop'!$A$4:$CD$84, MATCH($B25, '2. Female_Pop'!$A$4:$CD$4,0),0) -> 0.05472367161 | W25: 0.009653628875 | X25: 0.1296741226
A26: 201533 | B26: 2015 | C26: 1982 | D26: 33 | E26: =VLOOKUP($B26&$D26, '1. Num_births'!$A$4:$M$1048576, MATCH(E$7, '1. Num_births'!$A$4:$M$4, 0),0)/VLOOKUP($D26,'2. Female_Pop'!$A$4:$CD$84, MATCH($B26, '2. Female_Pop'!$A$4:$CD$4,0),0) -> 0.05390770574 | F26: =VLOOKUP($B26&$D26, '1. Num_births'!$A$4:$M$1048576, MATCH(F$7, '1. Num_births'!$A$4:$M$4, 0),0)/VLOOKUP($D26,'2. Female_Pop'!$A$4:$CD$84, MATCH($B26, '2. Female_Pop'!$A$4:$CD$4,0),0) -> 0.05427326777 | G26: =VLOOKUP($B26&$D26, '1. Num_births'!$A$4:$M$1048576, MATCH(G$7, '1. Num_births'!$A$4:$M$4, 0),0)/VLOOKUP($D26,'2. Female_Pop'!$A$4:$CD$84, MATCH($B26, '2. Female_Pop'!$A$4:$CD$4,0),0) -> 0.01071553689 | H26: =VLOOKUP($B26&$D26, '1. Num_births'!$A$4:$M$1048576, MATCH(H$7, '1. Num_births'!$A$4:$M$4, 0),0)/VLOOKUP($D26,'2. Female_Pop'!$A$4:$CD$84, MATCH($B26, '2. Female_Pop'!$A$4:$CD$4,0),0) -> 0.0009545230685 | I26: =VLOOKUP($B26&$D26, '1. Num_births'!$A$4:$M$1048576, MATCH(I$7, '1. Num_births'!$A$4:$M$4, 0),0)/VLOOKUP($D26,'2. Female_Pop'!$A$4:$CD$84, MATCH($B26, '2. Female_Pop'!$A$4:$CD$4,0),0) -> 0.0001218540087 | J26: =VLOOKUP($B26&$D26, '1. Num_births'!$A$4:$M$1048576, MATCH(J$7, '1. Num_births'!$A$4:$M$4, 0),0)/VLOOKUP($D26,'2. Female_Pop'!$A$4:$CD$84, MATCH($B26, '2. Female_Pop'!$A$4:$CD$4,0),0) -> 3.300212737e-05 | K26: =VLOOKUP($B26&$D26, '1. Num_births'!$A$4:$M$1048576, MATCH(K$7, '1. Num_births'!$A$4:$M$4, 0),0)/VLOOKUP($D26,'2. Female_Pop'!$A$4:$CD$84, MATCH($B26, '2. Female_Pop'!$A$4:$CD$4,0),0) -> 2.030900146e-05 | L26: =VLOOKUP($B26&$D26, '1. Num_births'!$A$4:$M$1048576, MATCH(L$7, '1. Num_births'!$A$4:$M$4, 0),0)/VLOOKUP($D26,'2. Female_Pop'!$A$4:$CD$84, MATCH($B26, '2. Female_Pop'!$A$4:$CD$4,0),0) -> 5.077250364e-06 | M26: =VLOOKUP($B26&$D26, '1. Num_births'!$A$4:$M$1048576, MATCH(M$7, '1. Num_births'!$A$4:$M$4, 0),0)/VLOOKUP($D26,'2. Female_Pop'!$A$4:$CD$84, MATCH($B26, '2. Female_Pop'!$A$4:$CD$4,0),0) -> 0.1202597521 | N26: =VLOOKUP($B26&$D26, '1. Num_births'!$A$4:$M$1048576, MATCH(N$7, '1. Num_births'!$A$4:$M$4, 0),0)/VLOOKUP($D26,'2. Female_Pop'!$A$4:$CD$84, MATCH($B26, '2. Female_Pop'!$A$4:$CD$4,0),0) -> 0.0002284762664 | P26: 198233 | Q26: 201533 | R26: 2015 | S26: 1982 | T26: 33 | U26: =VLOOKUP($B26&$D26, '1. Num_births'!$A$4:$M$1048576, MATCH(U$7, '1. Num_births'!$A$4:$M$4, 0),0)/VLOOKUP($D26,'2. Female_Pop'!$A$4:$CD$84, MATCH($B26, '2. Female_Pop'!$A$4:$CD$4,0),0) -> 0.05390770574 | V26: =VLOOKUP($B26&$D26, '1. Num_births'!$A$4:$M$1048576, MATCH(V$7, '1. Num_births'!$A$4:$M$4, 0),0)/VLOOKUP($D26,'2. Female_Pop'!$A$4:$CD$84, MATCH($B26, '2. Female_Pop'!$A$4:$CD$4,0),0) -> 0.05427326777 | W26: 0.01185030235 | X26: 0.1200312759
A27: 201534 | B27: 2015 | C27: 1981 | D27: 34 | E27: =VLOOKUP($B27&$D27, '1. Num_births'!$A$4:$M$1048576, MATCH(E$7, '1. Num_births'!$A$4:$M$4, 0),0)/VLOOKUP($D27,'2. Female_Pop'!$A$4:$CD$84, MATCH($B27, '2. Female_Pop'!$A$4:$CD$4,0),0) -> 0.04025299624 | F27: =VLOOKUP($B27&$D27, '1. Num_births'!$A$4:$M$1048576, MATCH(F$7, '1. Num_births'!$A$4:$M$4, 0),0)/VLOOKUP($D27,'2. Female_Pop'!$A$4:$CD$84, MATCH($B27, '2. Female_Pop'!$A$4:$CD$4,0),0) -> 0.04680282063 | G27: =VLOOKUP($B27&$D27, '1. Num_births'!$A$4:$M$1048576, MATCH(G$7, '1. Num_births'!$A$4:$M$4, 0),0)/VLOOKUP($D27,'2. Female_Pop'!$A$4:$CD$84, MATCH($B27, '2. Female_Pop'!$A$4:$CD$4,0),0) -> 0.01095180071 | H27: =VLOOKUP($B27&$D27, '1. Num_births'!$A$4:$M$1048576, MATCH(H$7, '1. Num_births'!$A$4:$M$4, 0),0)/VLOOKUP($D27,'2. Female_Pop'!$A$4:$CD$84, MATCH($B27, '2. Female_Pop'!$A$4:$CD$4,0),0) -> 0.001001010897 | I27: =VLOOKUP($B27&$D27, '1. Num_births'!$A$4:$M$1048576, MATCH(I$7, '1. Num_births'!$A$4:$M$4, 0),0)/VLOOKUP($D27,'2. Female_Pop'!$A$4:$CD$84, MATCH($B27, '2. Female_Pop'!$A$4:$CD$4,0),0) -> 0.0001458262789 | J27: =VLOOKUP($B27&$D27, '1. Num_births'!$A$4:$M$1048576, MATCH(J$7, '1. Num_births'!$A$4:$M$4, 0),0)/VLOOKUP($D27,'2. Female_Pop'!$A$4:$CD$84, MATCH($B27, '2. Female_Pop'!$A$4:$CD$4,0),0) -> 2.471631845e-05 | K27: =VLOOKUP($B27&$D27, '1. Num_births'!$A$4:$M$1048576, MATCH(K$7, '1. Num_births'!$A$4:$M$4, 0),0)/VLOOKUP($D27,'2. Female_Pop'!$A$4:$CD$84, MATCH($B27, '2. Female_Pop'!$A$4:$CD$4,0),0) -> 9.886527382e-06 | L27: =VLOOKUP($B27&$D27, '1. Num_births'!$A$4:$M$1048576, MATCH(L$7, '1. Num_births'!$A$4:$M$4, 0),0)/VLOOKUP($D27,'2. Female_Pop'!$A$4:$CD$84, MATCH($B27, '2. Female_Pop'!$A$4:$CD$4,0),0) -> 1.235815923e-05 | M27: =VLOOKUP($B27&$D27, '1. Num_births'!$A$4:$M$1048576, MATCH(M$7, '1. Num_births'!$A$4:$M$4, 0),0)/VLOOKUP($D27,'2. Female_Pop'!$A$4:$CD$84, MATCH($B27, '2. Female_Pop'!$A$4:$CD$4,0),0) -> 0.09937442998 | N27: =VLOOKUP($B27&$D27, '1. Num_births'!$A$4:$M$1048576, MATCH(N$7, '1. Num_births'!$A$4:$M$4, 0),0)/VLOOKUP($D27,'2. Female_Pop'!$A$4:$CD$84, MATCH($B27, '2. Female_Pop'!$A$4:$CD$4,0),0) -> 0.0001730142292 | P27: 198134 | Q27: 201534 | R27: 2015 | S27: 1981 | T27: 34 | U27: =VLOOKUP($B27&$D27, '1. Num_births'!$A$4:$M$1048576, MATCH(U$7, '1. Num_births'!$A$4:$M$4, 0),0)/VLOOKUP($D27,'2. Female_Pop'!$A$4:$CD$84, MATCH($B27, '2. Female_Pop'!$A$4:$CD$4,0),0) -> 0.04025299624 | V27: =VLOOKUP($B27&$D27, '1. Num_births'!$A$4:$M$1048576, MATCH(V$7, '1. Num_births'!$A$4:$M$4, 0),0)/VLOOKUP($D27,'2. Female_Pop'!$A$4:$CD$84, MATCH($B27, '2. Female_Pop'!$A$4:$CD$4,0),0) -> 0.04680282063 | W27: 0.01214559889 | X27: 0.09920141575
A28: 201535 | B28: 2015 | C28: 1980 | D28: 35 | E28: =VLOOKUP($B28&$D28, '1. Num_births'!$A$4:$M$1048576, MATCH(E$7, '1. Num_births'!$A$4:$M$4, 0),0)/VLOOKUP($D28,'2. Female_Pop'!$A$4:$CD$84, MATCH($B28, '2. Female_Pop'!$A$4:$CD$4,0),0) -> 0.03053231844 | F28: =VLOOKUP($B28&$D28, '1. Num_births'!$A$4:$M$1048576, MATCH(F$7, '1. Num_births'!$A$4:$M$4, 0),0)/VLOOKUP($D28,'2. Female_Pop'!$A$4:$CD$84, MATCH($B28, '2. Female_Pop'!$A$4:$CD$4,0),0) -> 0.03923430552 | G28: =VLOOKUP($B28&$D28, '1. Num_births'!$A$4:$M$1048576, MATCH(G$7, '1. Num_births'!$A$4:$M$4, 0),0)/VLOOKUP($D28,'2. Female_Pop'!$A$4:$CD$84, MATCH($B28, '2. Female_Pop'!$A$4:$CD$4,0),0) -> 0.01092521416 | H28: =VLOOKUP($B28&$D28, '1. Num_births'!$A$4:$M$1048576, MATCH(H$7, '1. Num_births'!$A$4:$M$4, 0),0)/VLOOKUP($D28,'2. Female_Pop'!$A$4:$CD$84, MATCH($B28, '2. Female_Pop'!$A$4:$CD$4,0),0) -> 0.001140502927 | I28: =VLOOKUP($B28&$D28, '1. Num_births'!$A$4:$M$1048576, MATCH(I$7, '1. Num_births'!$A$4:$M$4, 0),0)/VLOOKUP($D28,'2. Female_Pop'!$A$4:$CD$84, MATCH($B28, '2. Female_Pop'!$A$4:$CD$4,0),0) -> 0.0001783605898 | J28: =VLOOKUP($B28&$D28, '1. Num_births'!$A$4:$M$1048576, MATCH(J$7, '1. Num_births'!$A$4:$M$4, 0),0)/VLOOKUP($D28,'2. Female_Pop'!$A$4:$CD$84, MATCH($B28, '2. Female_Pop'!$A$4:$CD$4,0),0) -> 2.763333082e-05 | K28: =VLOOKUP($B28&$D28, '1. Num_births'!$A$4:$M$1048576, MATCH(K$7, '1. Num_births'!$A$4:$M$4, 0),0)/VLOOKUP($D28,'2. Female_Pop'!$A$4:$CD$84, MATCH($B28, '2. Female_Pop'!$A$4:$CD$4,0),0) -> 1.004848393e-05 | L28: =VLOOKUP($B28&$D28, '1. Num_births'!$A$4:$M$1048576, MATCH(L$7, '1. Num_births'!$A$4:$M$4, 0),0)/VLOOKUP($D28,'2. Female_Pop'!$A$4:$CD$84, MATCH($B28, '2. Female_Pop'!$A$4:$CD$4,0),0) -> 7.536362951e-06 | M28: =VLOOKUP($B28&$D28, '1. Num_births'!$A$4:$M$1048576, MATCH(M$7, '1. Num_births'!$A$4:$M$4, 0),0)/VLOOKUP($D28,'2. Female_Pop'!$A$4:$CD$84, MATCH($B28, '2. Female_Pop'!$A$4:$CD$4,0),0) -> 0.08222423192 | N28: =VLOOKUP($B28&$D28, '1. Num_births'!$A$4:$M$1048576, MATCH(N$7, '1. Num_births'!$A$4:$M$4, 0),0)/VLOOKUP($D28,'2. Female_Pop'!$A$4:$CD$84, MATCH($B28, '2. Female_Pop'!$A$4:$CD$4,0),0) -> 0.0001683121059 | P28: 198035 | Q28: 201535 | R28: 2015 | S28: 1980 | T28: 35 | U28: =VLOOKUP($B28&$D28, '1. Num_births'!$A$4:$M$1048576, MATCH(U$7, '1. Num_births'!$A$4:$M$4, 0),0)/VLOOKUP($D28,'2. Female_Pop'!$A$4:$CD$84, MATCH($B28, '2. Female_Pop'!$A$4:$CD$4,0),0) -> 0.03053231844 | V28: =VLOOKUP($B28&$D28, '1. Num_births'!$A$4:$M$1048576, MATCH(V$7, '1. Num_births'!$A$4:$M$4, 0),0)/VLOOKUP($D28,'2. Female_Pop'!$A$4:$CD$84, MATCH($B28, '2. Female_Pop'!$A$4:$CD$4,0),0) -> 0.03923430552 | W28: 0.01228929585 | X28: 0.08205591981
A29: 201536 | B29: 2015 | C29: 1979 | D29: 36 | E29: =VLOOKUP($B29&$D29, '1. Num_births'!$A$4:$M$1048576, MATCH(E$7, '1. Num_births'!$A$4:$M$4, 0),0)/VLOOKUP($D29,'2. Female_Pop'!$A$4:$CD$84, MATCH($B29, '2. Female_Pop'!$A$4:$CD$4,0),0) -> 0.02151676505 | F29: =VLOOKUP($B29&$D29, '1. Num_births'!$A$4:$M$1048576, MATCH(F$7, '1. Num_births'!$A$4:$M$4, 0),0)/VLOOKUP($D29,'2. Female_Pop'!$A$4:$CD$84, MATCH($B29, '2. Female_Pop'!$A$4:$CD$4,0),0) -> 0.02890452937 | G29: =VLOOKUP($B29&$D29, '1. Num_births'!$A$4:$M$1048576, MATCH(G$7, '1. Num_births'!$A$4:$M$4, 0),0)/VLOOKUP($D29,'2. Female_Pop'!$A$4:$CD$84, MATCH($B29, '2. Female_Pop'!$A$4:$CD$4,0),0) -> 0.009574395391 | H29: =VLOOKUP($B29&$D29, '1. Num_births'!$A$4:$M$1048576, MATCH(H$7, '1. Num_births'!$A$4:$M$4, 0),0)/VLOOKUP($D29,'2. Female_Pop'!$A$4:$CD$84, MATCH($B29, '2. Female_Pop'!$A$4:$CD$4,0),0) -> 0.00116953224 | I29: =VLOOKUP($B29&$D29, '1. Num_births'!$A$4:$M$1048576, MATCH(I$7, '1. Num_births'!$A$4:$M$4, 0),0)/VLOOKUP($D29,'2. Female_Pop'!$A$4:$CD$84, MATCH($B29, '2. Female_Pop'!$A$4:$CD$4,0),0) -> 0.0001655742272 | J29: =VLOOKUP($B29&$D29, '1. Num_births'!$A$4:$M$1048576, MATCH(J$7, '1. Num_births'!$A$4:$M$4, 0),0)/VLOOKUP($D29,'2. Female_Pop'!$A$4:$CD$84, MATCH($B29, '2. Female_Pop'!$A$4:$CD$4,0),0) -> 3.153794804e-05 | K29: =VLOOKUP($B29&$D29, '1. Num_births'!$A$4:$M$1048576, MATCH(K$7, '1. Num_births'!$A$4:$M$4, 0),0)/VLOOKUP($D29,'2. Female_Pop'!$A$4:$CD$84, MATCH($B29, '2. Female_Pop'!$A$4:$CD$4,0),0) -> 1.314081168e-05 | L29: =VLOOKUP($B29&$D29, '1. Num_births'!$A$4:$M$1048576, MATCH(L$7, '1. Num_births'!$A$4:$M$4, 0),0)/VLOOKUP($D29,'2. Female_Pop'!$A$4:$CD$84, MATCH($B29, '2. Female_Pop'!$A$4:$CD$4,0),0) -> 0 | M29: =VLOOKUP($B29&$D29, '1. Num_births'!$A$4:$M$1048576, MATCH(M$7, '1. Num_births'!$A$4:$M$4, 0),0)/VLOOKUP($D29,'2. Female_Pop'!$A$4:$CD$84, MATCH($B29, '2. Female_Pop'!$A$4:$CD$4,0),0) -> 0.06150162683 | N29: =VLOOKUP($B29&$D29, '1. Num_births'!$A$4:$M$1048576, MATCH(N$7, '1. Num_births'!$A$4:$M$4, 0),0)/VLOOKUP($D29,'2. Female_Pop'!$A$4:$CD$84, MATCH($B29, '2. Female_Pop'!$A$4:$CD$4,0),0) -> 0.0001261517921 | P29: 197936 | Q29: 201536 | R29: 2015 | S29: 1979 | T29: 36 | U29: =VLOOKUP($B29&$D29, '1. Num_births'!$A$4:$M$1048576, MATCH(U$7, '1. Num_births'!$A$4:$M$4, 0),0)/VLOOKUP($D29,'2. Female_Pop'!$A$4:$CD$84, MATCH($B29, '2. Female_Pop'!$A$4:$CD$4,0),0) -> 0.02151676505 | V29: =VLOOKUP($B29&$D29, '1. Num_births'!$A$4:$M$1048576, MATCH(V$7, '1. Num_births'!$A$4:$M$4, 0),0)/VLOOKUP($D29,'2. Female_Pop'!$A$4:$CD$84, MATCH($B29, '2. Female_Pop'!$A$4:$CD$4,0),0) -> 0.02890452937 | W29: 0.01095418062 | X29: 0.06137547504
A30: 201537 | B30: 2015 | C30: 1978 | D30: 37 | E30: =VLOOKUP($B30&$D30, '1. Num_births'!$A$4:$M$1048576, MATCH(E$7, '1. Num_births'!$A$4:$M$4, 0),0)/VLOOKUP($D30,'2. Female_Pop'!$A$4:$CD$84, MATCH($B30, '2. Female_Pop'!$A$4:$CD$4,0),0) -> 0.01499878403 | F30: =VLOOKUP($B30&$D30, '1. Num_births'!$A$4:$M$1048576, MATCH(F$7, '1. Num_births'!$A$4:$M$4, 0),0)/VLOOKUP($D30,'2. Female_Pop'!$A$4:$CD$84, MATCH($B30, '2. Female_Pop'!$A$4:$CD$4,0),0) -> 0.02045561983 | G30: =VLOOKUP($B30&$D30, '1. Num_births'!$A$4:$M$1048576, MATCH(G$7, '1. Num_births'!$A$4:$M$4, 0),0)/VLOOKUP($D30,'2. Female_Pop'!$A$4:$CD$84, MATCH($B30, '2. Female_Pop'!$A$4:$CD$4,0),0) -> 0.007681104374 | H30: =VLOOKUP($B30&$D30, '1. Num_births'!$A$4:$M$1048576, MATCH(H$7, '1. Num_births'!$A$4:$M$4, 0),0)/VLOOKUP($D30,'2. Female_Pop'!$A$4:$CD$84, MATCH($B30, '2. Female_Pop'!$A$4:$CD$4,0),0) -> 0.001155854554 | I30: =VLOOKUP($B30&$D30, '1. Num_births'!$A$4:$M$1048576, MATCH(I$7, '1. Num_births'!$A$4:$M$4, 0),0)/VLOOKUP($D30,'2. Female_Pop'!$A$4:$CD$84, MATCH($B30, '2. Female_Pop'!$A$4:$CD$4,0),0) -> 0.0001803461006 | J30: =VLOOKUP($B30&$D30, '1. Num_births'!$A$4:$M$1048576, MATCH(J$7, '1. Num_births'!$A$4:$M$4, 0),0)/VLOOKUP($D30,'2. Female_Pop'!$A$4:$CD$84, MATCH($B30, '2. Female_Pop'!$A$4:$CD$4,0),0) -> 2.732516675e-05 | K30: =VLOOKUP($B30&$D30, '1. Num_births'!$A$4:$M$1048576, MATCH(K$7, '1. Num_births'!$A$4:$M$4, 0),0)/VLOOKUP($D30,'2. Female_Pop'!$A$4:$CD$84, MATCH($B30, '2. Female_Pop'!$A$4:$CD$4,0),0) -> 1.366258338e-05 | L30: =VLOOKUP($B30&$D30, '1. Num_births'!$A$4:$M$1048576, MATCH(L$7, '1. Num_births'!$A$4:$M$4, 0),0)/VLOOKUP($D30,'2. Female_Pop'!$A$4:$CD$84, MATCH($B30, '2. Female_Pop'!$A$4:$CD$4,0),0) -> 0 | M30: =VLOOKUP($B30&$D30, '1. Num_births'!$A$4:$M$1048576, MATCH(M$7, '1. Num_births'!$A$4:$M$4, 0),0)/VLOOKUP($D30,'2. Female_Pop'!$A$4:$CD$84, MATCH($B30, '2. Female_Pop'!$A$4:$CD$4,0),0) -> 0.04460833472 | N30: =VLOOKUP($B30&$D30, '1. Num_births'!$A$4:$M$1048576, MATCH(N$7, '1. Num_births'!$A$4:$M$4, 0),0)/VLOOKUP($D30,'2. Female_Pop'!$A$4:$CD$84, MATCH($B30, '2. Female_Pop'!$A$4:$CD$4,0),0) -> 9.563808363e-05 | P30: 197837 | Q30: 201537 | R30: 2015 | S30: 1978 | T30: 37 | U30: =VLOOKUP($B30&$D30, '1. Num_births'!$A$4:$M$1048576, MATCH(U$7, '1. Num_births'!$A$4:$M$4, 0),0)/VLOOKUP($D30,'2. Female_Pop'!$A$4:$CD$84, MATCH($B30, '2. Female_Pop'!$A$4:$CD$4,0),0) -> 0.01499878403 | V30: =VLOOKUP($B30&$D30, '1. Num_births'!$A$4:$M$1048576, MATCH(V$7, '1. Num_births'!$A$4:$M$4, 0),0)/VLOOKUP($D30,'2. Female_Pop'!$A$4:$CD$84, MATCH($B30, '2. Female_Pop'!$A$4:$CD$4,0),0) -> 0.02045561983 | W30: 0.009058292778 | X30: 0.04451269664
A31: 201538 | B31: 2015 | C31: 1977 | D31: 38 | E31: =VLOOKUP($B31&$D31, '1. Num_births'!$A$4:$M$1048576, MATCH(E$7, '1. Num_births'!$A$4:$M$4, 0),0)/VLOOKUP($D31,'2. Female_Pop'!$A$4:$CD$84, MATCH($B31, '2. Female_Pop'!$A$4:$CD$4,0),0) -> 0.0107784071 | F31: =VLOOKUP($B31&$D31, '1. Num_births'!$A$4:$M$1048576, MATCH(F$7, '1. Num_births'!$A$4:$M$4, 0),0)/VLOOKUP($D31,'2. Female_Pop'!$A$4:$CD$84, MATCH($B31, '2. Female_Pop'!$A$4:$CD$4,0),0) -> 0.01417348233 | G31: =VLOOKUP($B31&$D31, '1. Num_births'!$A$4:$M$1048576, MATCH(G$7, '1. Num_births'!$A$4:$M$4, 0),0)/VLOOKUP($D31,'2. Female_Pop'!$A$4:$CD$84, MATCH($B31, '2. Female_Pop'!$A$4:$CD$4,0),0) -> 0.005866208887 | H31: =VLOOKUP($B31&$D31, '1. Num_births'!$A$4:$M$1048576, MATCH(H$7, '1. Num_births'!$A$4:$M$4, 0),0)/VLOOKUP($D31,'2. Female_Pop'!$A$4:$CD$84, MATCH($B31, '2. Female_Pop'!$A$4:$CD$4,0),0) -> 0.001057885759 | I31: =VLOOKUP($B31&$D31, '1. Num_births'!$A$4:$M$1048576, MATCH(I$7, '1. Num_births'!$A$4:$M$4, 0),0)/VLOOKUP($D31,'2. Female_Pop'!$A$4:$CD$84, MATCH($B31, '2. Female_Pop'!$A$4:$CD$4,0),0) -> 0.0001448784115 | J31: =VLOOKUP($B31&$D31, '1. Num_births'!$A$4:$M$1048576, MATCH(J$7, '1. Num_births'!$A$4:$M$4, 0),0)/VLOOKUP($D31,'2. Female_Pop'!$A$4:$CD$84, MATCH($B31, '2. Female_Pop'!$A$4:$CD$4,0),0) -> 4.92039888e-05 | K31: =VLOOKUP($B31&$D31, '1. Num_births'!$A$4:$M$1048576, MATCH(K$7, '1. Num_births'!$A$4:$M$4, 0),0)/VLOOKUP($D31,'2. Female_Pop'!$A$4:$CD$84, MATCH($B31, '2. Female_Pop'!$A$4:$CD$4,0),0) -> 1.366777467e-05 | L31: =VLOOKUP($B31&$D31, '1. Num_births'!$A$4:$M$1048576, MATCH(L$7, '1. Num_births'!$A$4:$M$4, 0),0)/VLOOKUP($D31,'2. Female_Pop'!$A$4:$CD$84, MATCH($B31, '2. Female_Pop'!$A$4:$CD$4,0),0) -> 8.200664801e-06 | M31: =VLOOKUP($B31&$D31, '1. Num_births'!$A$4:$M$1048576, MATCH(M$7, '1. Num_births'!$A$4:$M$4, 0),0)/VLOOKUP($D31,'2. Female_Pop'!$A$4:$CD$84, MATCH($B31, '2. Female_Pop'!$A$4:$CD$4,0),0) -> 0.03217667512 | N31: =VLOOKUP($B31&$D31, '1. Num_births'!$A$4:$M$1048576, MATCH(N$7, '1. Num_births'!$A$4:$M$4, 0),0)/VLOOKUP($D31,'2. Female_Pop'!$A$4:$CD$84, MATCH($B31, '2. Female_Pop'!$A$4:$CD$4,0),0) -> 8.474020294e-05 | P31: 197738 | Q31: 201538 | R31: 2015 | S31: 1977 | T31: 38 | U31: =VLOOKUP($B31&$D31, '1. Num_births'!$A$4:$M$1048576, MATCH(U$7, '1. Num_births'!$A$4:$M$4, 0),0)/VLOOKUP($D31,'2. Female_Pop'!$A$4:$CD$84, MATCH($B31, '2. Female_Pop'!$A$4:$CD$4,0),0) -> 0.0107784071 | V31: =VLOOKUP($B31&$D31, '1. Num_births'!$A$4:$M$1048576, MATCH(V$7, '1. Num_births'!$A$4:$M$4, 0),0)/VLOOKUP($D31,'2. Female_Pop'!$A$4:$CD$84, MATCH($B31, '2. Female_Pop'!$A$4:$CD$4,0),0) -> 0.01417348233 | W31: 0.007140045486 | X31: 0.03209193492
A32: 201539 | B32: 2015 | C32: 1976 | D32: 39 | E32: =VLOOKUP($B32&$D32, '1. Num_births'!$A$4:$M$1048576, MATCH(E$7, '1. Num_births'!$A$4:$M$4, 0),0)/VLOOKUP($D32,'2. Female_Pop'!$A$4:$CD$84, MATCH($B32, '2. Female_Pop'!$A$4:$CD$4,0),0) -> 0.007156255587 | F32: =VLOOKUP($B32&$D32, '1. Num_births'!$A$4:$M$1048576, MATCH(F$7, '1. Num_births'!$A$4:$M$4, 0),0)/VLOOKUP($D32,'2. Female_Pop'!$A$4:$CD$84, MATCH($B32, '2. Female_Pop'!$A$4:$CD$4,0),0) -> 0.008757207619 | G32: =VLOOKUP($B32&$D32, '1. Num_births'!$A$4:$M$1048576, MATCH(G$7, '1. Num_births'!$A$4:$M$4, 0),0)/VLOOKUP($D32,'2. Female_Pop'!$A$4:$CD$84, MATCH($B32, '2. Female_Pop'!$A$4:$CD$4,0),0) -> 0.004031730869 | H32: =VLOOKUP($B32&$D32, '1. Num_births'!$A$4:$M$1048576, MATCH(H$7, '1. Num_births'!$A$4:$M$4, 0),0)/VLOOKUP($D32,'2. Female_Pop'!$A$4:$CD$84, MATCH($B32, '2. Female_Pop'!$A$4:$CD$4,0),0) -> 0.0007737934825 | I32: =VLOOKUP($B32&$D32, '1. Num_births'!$A$4:$M$1048576, MATCH(I$7, '1. Num_births'!$A$4:$M$4, 0),0)/VLOOKUP($D32,'2. Female_Pop'!$A$4:$CD$84, MATCH($B32, '2. Female_Pop'!$A$4:$CD$4,0),0) -> 0.0001520904431 | J32: =VLOOKUP($B32&$D32, '1. Num_births'!$A$4:$M$1048576, MATCH(J$7, '1. Num_births'!$A$4:$M$4, 0),0)/VLOOKUP($D32,'2. Female_Pop'!$A$4:$CD$84, MATCH($B32, '2. Female_Pop'!$A$4:$CD$4,0),0) -> 3.201904066e-05 | K32: =VLOOKUP($B32&$D32, '1. Num_births'!$A$4:$M$1048576, MATCH(K$7, '1. Num_births'!$A$4:$M$4, 0),0)/VLOOKUP($D32,'2. Female_Pop'!$A$4:$CD$84, MATCH($B32, '2. Female_Pop'!$A$4:$CD$4,0),0) -> 8.004760164e-06 | L32: =VLOOKUP($B32&$D32, '1. Num_births'!$A$4:$M$1048576, MATCH(L$7, '1. Num_births'!$A$4:$M$4, 0),0)/VLOOKUP($D32,'2. Female_Pop'!$A$4:$CD$84, MATCH($B32, '2. Female_Pop'!$A$4:$CD$4,0),0) -> 0 | M32: =VLOOKUP($B32&$D32, '1. Num_births'!$A$4:$M$1048576, MATCH(M$7, '1. Num_births'!$A$4:$M$4, 0),0)/VLOOKUP($D32,'2. Female_Pop'!$A$4:$CD$84, MATCH($B32, '2. Female_Pop'!$A$4:$CD$4,0),0) -> 0.02095379386 | N32: =VLOOKUP($B32&$D32, '1. Num_births'!$A$4:$M$1048576, MATCH(N$7, '1. Num_births'!$A$4:$M$4, 0),0)/VLOOKUP($D32,'2. Female_Pop'!$A$4:$CD$84, MATCH($B32, '2. Female_Pop'!$A$4:$CD$4,0),0) -> 4.269205421e-05 | P32: 197639 | Q32: 201539 | R32: 2015 | S32: 1976 | T32: 39 | U32: =VLOOKUP($B32&$D32, '1. Num_births'!$A$4:$M$1048576, MATCH(U$7, '1. Num_births'!$A$4:$M$4, 0),0)/VLOOKUP($D32,'2. Female_Pop'!$A$4:$CD$84, MATCH($B32, '2. Female_Pop'!$A$4:$CD$4,0),0) -> 0.007156255587 | V32: =VLOOKUP($B32&$D32, '1. Num_births'!$A$4:$M$1048576, MATCH(V$7, '1. Num_births'!$A$4:$M$4, 0),0)/VLOOKUP($D32,'2. Female_Pop'!$A$4:$CD$84, MATCH($B32, '2. Female_Pop'!$A$4:$CD$4,0),0) -> 0.008757207619 | W32: 0.004997638596 | X32: 0.0209111018
A33: 201540 | B33: 2015 | C33: 1975 | D33: 40 | E33: =VLOOKUP($B33&$D33, '1. Num_births'!$A$4:$M$1048576, MATCH(E$7, '1. Num_births'!$A$4:$M$4, 0),0)/VLOOKUP($D33,'2. Female_Pop'!$A$4:$CD$84, MATCH($B33, '2. Female_Pop'!$A$4:$CD$4,0),0) -> 0.004724522978 | F33: =VLOOKUP($B33&$D33, '1. Num_births'!$A$4:$M$1048576, MATCH(F$7, '1. Num_births'!$A$4:$M$4, 0),0)/VLOOKUP($D33,'2. Female_Pop'!$A$4:$CD$84, MATCH($B33, '2. Female_Pop'!$A$4:$CD$4,0),0) -> 0.005357892271 | G33: =VLOOKUP($B33&$D33, '1. Num_births'!$A$4:$M$1048576, MATCH(G$7, '1. Num_births'!$A$4:$M$4, 0),0)/VLOOKUP($D33,'2. Female_Pop'!$A$4:$CD$84, MATCH($B33, '2. Female_Pop'!$A$4:$CD$4,0),0) -> 0.002775496332 | H33: =VLOOKUP($B33&$D33, '1. Num_births'!$A$4:$M$1048576, MATCH(H$7, '1. Num_births'!$A$4:$M$4, 0),0)/VLOOKUP($D33,'2. Female_Pop'!$A$4:$CD$84, MATCH($B33, '2. Female_Pop'!$A$4:$CD$4,0),0) -> 0.0005355317599 | I33: =VLOOKUP($B33&$D33, '1. Num_births'!$A$4:$M$1048576, MATCH(I$7, '1. Num_births'!$A$4:$M$4, 0),0)/VLOOKUP($D33,'2. Female_Pop'!$A$4:$CD$84, MATCH($B33, '2. Female_Pop'!$A$4:$CD$4,0),0) -> 0.0001158602365 | J33: =VLOOKUP($B33&$D33, '1. Num_births'!$A$4:$M$1048576, MATCH(J$7, '1. Num_births'!$A$4:$M$4, 0),0)/VLOOKUP($D33,'2. Female_Pop'!$A$4:$CD$84, MATCH($B33, '2. Female_Pop'!$A$4:$CD$4,0),0) -> 5.406811037e-05 | K33: =VLOOKUP($B33&$D33, '1. Num_births'!$A$4:$M$1048576, MATCH(K$7, '1. Num_births'!$A$4:$M$4, 0),0)/VLOOKUP($D33,'2. Female_Pop'!$A$4:$CD$84, MATCH($B33, '2. Female_Pop'!$A$4:$CD$4,0),0) -> 5.149343845e-06 | L33: =VLOOKUP($B33&$D33, '1. Num_births'!$A$4:$M$1048576, MATCH(L$7, '1. Num_births'!$A$4:$M$4, 0),0)/VLOOKUP($D33,'2. Female_Pop'!$A$4:$CD$84, MATCH($B33, '2. Female_Pop'!$A$4:$CD$4,0),0) -> 0 | M33: =VLOOKUP($B33&$D33, '1. Num_births'!$A$4:$M$1048576, MATCH(M$7, '1. Num_births'!$A$4:$M$4, 0),0)/VLOOKUP($D33,'2. Female_Pop'!$A$4:$CD$84, MATCH($B33, '2. Female_Pop'!$A$4:$CD$4,0),0) -> 0.01360714111 | N33: =VLOOKUP($B33&$D33, '1. Num_births'!$A$4:$M$1048576, MATCH(N$7, '1. Num_births'!$A$4:$M$4, 0),0)/VLOOKUP($D33,'2. Female_Pop'!$A$4:$CD$84, MATCH($B33, '2. Female_Pop'!$A$4:$CD$4,0),0) -> 3.862007884e-05 | P33: 197540 | Q33: 201540 | R33: 2015 | S33: 1975 | T33: 40 | U33: =VLOOKUP($B33&$D33, '1. Num_births'!$A$4:$M$1048576, MATCH(U$7, '1. Num_births'!$A$4:$M$4, 0),0)/VLOOKUP($D33,'2. Female_Pop'!$A$4:$CD$84, MATCH($B33, '2. Female_Pop'!$A$4:$CD$4,0),0) -> 0.004724522978 | V33: =VLOOKUP($B33&$D33, '1. Num_births'!$A$4:$M$1048576, MATCH(V$7, '1. Num_births'!$A$4:$M$4, 0),0)/VLOOKUP($D33,'2. Female_Pop'!$A$4:$CD$84, MATCH($B33, '2. Female_Pop'!$A$4:$CD$4,0),0) -> 0.005357892271 | W33: 0.003486105783 | X33: 0.01356852103
A34: 201541 | B34: 2015 | C34: 1974 | D34: 41 | E34: =VLOOKUP($B34&$D34, '1. Num_births'!$A$4:$M$1048576, MATCH(E$7, '1. Num_births'!$A$4:$M$4, 0),0)/VLOOKUP($D34,'2. Female_Pop'!$A$4:$CD$84, MATCH($B34, '2. Female_Pop'!$A$4:$CD$4,0),0) -> 0.00299086713 | F34: =VLOOKUP($B34&$D34, '1. Num_births'!$A$4:$M$1048576, MATCH(F$7, '1. Num_births'!$A$4:$M$4, 0),0)/VLOOKUP($D34,'2. Female_Pop'!$A$4:$CD$84, MATCH($B34, '2. Female_Pop'!$A$4:$CD$4,0),0) -> 0.003037715007 | G34: =VLOOKUP($B34&$D34, '1. Num_births'!$A$4:$M$1048576, MATCH(G$7, '1. Num_births'!$A$4:$M$4, 0),0)/VLOOKUP($D34,'2. Female_Pop'!$A$4:$CD$84, MATCH($B34, '2. Female_Pop'!$A$4:$CD$4,0),0) -> 0.001740768502 | H34: =VLOOKUP($B34&$D34, '1. Num_births'!$A$4:$M$1048576, MATCH(H$7, '1. Num_births'!$A$4:$M$4, 0),0)/VLOOKUP($D34,'2. Female_Pop'!$A$4:$CD$84, MATCH($B34, '2. Female_Pop'!$A$4:$CD$4,0),0) -> 0.0004240965757 | I34: =VLOOKUP($B34&$D34, '1. Num_births'!$A$4:$M$1048576, MATCH(I$7, '1. Num_births'!$A$4:$M$4, 0),0)/VLOOKUP($D34,'2. Female_Pop'!$A$4:$CD$84, MATCH($B34, '2. Female_Pop'!$A$4:$CD$4,0),0) -> 9.862711062e-05 | J34: =VLOOKUP($B34&$D34, '1. Num_births'!$A$4:$M$1048576, MATCH(J$7, '1. Num_births'!$A$4:$M$4, 0),0)/VLOOKUP($D34,'2. Female_Pop'!$A$4:$CD$84, MATCH($B34, '2. Female_Pop'!$A$4:$CD$4,0),0) -> 2.712245542e-05 | K34: =VLOOKUP($B34&$D34, '1. Num_births'!$A$4:$M$1048576, MATCH(K$7, '1. Num_births'!$A$4:$M$4, 0),0)/VLOOKUP($D34,'2. Female_Pop'!$A$4:$CD$84, MATCH($B34, '2. Female_Pop'!$A$4:$CD$4,0),0) -> 9.862711062e-06 | L34: =VLOOKUP($B34&$D34, '1. Num_births'!$A$4:$M$1048576, MATCH(L$7, '1. Num_births'!$A$4:$M$4, 0),0)/VLOOKUP($D34,'2. Female_Pop'!$A$4:$CD$84, MATCH($B34, '2. Female_Pop'!$A$4:$CD$4,0),0) -> 7.397033297e-06 | M34: =VLOOKUP($B34&$D34, '1. Num_births'!$A$4:$M$1048576, MATCH(M$7, '1. Num_births'!$A$4:$M$4, 0),0)/VLOOKUP($D34,'2. Female_Pop'!$A$4:$CD$84, MATCH($B34, '2. Female_Pop'!$A$4:$CD$4,0),0) -> 0.008366044658 | N34: =VLOOKUP($B34&$D34, '1. Num_births'!$A$4:$M$1048576, MATCH(N$7, '1. Num_births'!$A$4:$M$4, 0),0)/VLOOKUP($D34,'2. Female_Pop'!$A$4:$CD$84, MATCH($B34, '2. Female_Pop'!$A$4:$CD$4,0),0) -> 2.958813319e-05 | P34: 197441 | Q34: 201541 | R34: 2015 | S34: 1974 | T34: 41 | U34: =VLOOKUP($B34&$D34, '1. Num_births'!$A$4:$M$1048576, MATCH(U$7, '1. Num_births'!$A$4:$M$4, 0),0)/VLOOKUP($D34,'2. Female_Pop'!$A$4:$CD$84, MATCH($B34, '2. Female_Pop'!$A$4:$CD$4,0),0) -> 0.00299086713 | V34: =VLOOKUP($B34&$D34, '1. Num_births'!$A$4:$M$1048576, MATCH(V$7, '1. Num_births'!$A$4:$M$4, 0),0)/VLOOKUP($D34,'2. Female_Pop'!$A$4:$CD$84, MATCH($B34, '2. Female_Pop'!$A$4:$CD$4,0),0) -> 0.003037715007 | W34: 0.002307874389 | X34: =SUM(U34:W34) -> 0.008336456525
A35: 201542 | B35: 2015 | C35: 1973 | D35: 42 | E35: =VLOOKUP($B35&$D35, '1. Num_births'!$A$4:$M$1048576, MATCH(E$7, '1. Num_births'!$A$4:$M$4, 0),0)/VLOOKUP($D35,'2. Female_Pop'!$A$4:$CD$84, MATCH($B35, '2. Female_Pop'!$A$4:$CD$4,0),0) -> 0.001686428638 | F35: =VLOOKUP($B35&$D35, '1. Num_births'!$A$4:$M$1048576, MATCH(F$7, '1. Num_births'!$A$4:$M$4, 0),0)/VLOOKUP($D35,'2. Female_Pop'!$A$4:$CD$84, MATCH($B35, '2. Female_Pop'!$A$4:$CD$4,0),0) -> 0.001598667935 | G35: =VLOOKUP($B35&$D35, '1. Num_births'!$A$4:$M$1048576, MATCH(G$7, '1. Num_births'!$A$4:$M$4, 0),0)/VLOOKUP($D35,'2. Female_Pop'!$A$4:$CD$84, MATCH($B35, '2. Female_Pop'!$A$4:$CD$4,0),0) -> 0.0009535081748 | H35: =VLOOKUP($B35&$D35, '1. Num_births'!$A$4:$M$1048576, MATCH(H$7, '1. Num_births'!$A$4:$M$4, 0),0)/VLOOKUP($D35,'2. Female_Pop'!$A$4:$CD$84, MATCH($B35, '2. Female_Pop'!$A$4:$CD$4,0),0) -> 0.0002609101971 | I35: =VLOOKUP($B35&$D35, '1. Num_births'!$A$4:$M$1048576, MATCH(I$7, '1. Num_births'!$A$4:$M$4, 0),0)/VLOOKUP($D35,'2. Female_Pop'!$A$4:$CD$84, MATCH($B35, '2. Female_Pop'!$A$4:$CD$4,0),0) -> 6.404159383e-05 | J35: =VLOOKUP($B35&$D35, '1. Num_births'!$A$4:$M$1048576, MATCH(J$7, '1. Num_births'!$A$4:$M$4, 0),0)/VLOOKUP($D35,'2. Female_Pop'!$A$4:$CD$84, MATCH($B35, '2. Female_Pop'!$A$4:$CD$4,0),0) -> 1.897528706e-05 | K35: =VLOOKUP($B35&$D35, '1. Num_births'!$A$4:$M$1048576, MATCH(K$7, '1. Num_births'!$A$4:$M$4, 0),0)/VLOOKUP($D35,'2. Female_Pop'!$A$4:$CD$84, MATCH($B35, '2. Female_Pop'!$A$4:$CD$4,0),0) -> 7.115732648e-06 | L35: =VLOOKUP($B35&$D35, '1. Num_births'!$A$4:$M$1048576, MATCH(L$7, '1. Num_births'!$A$4:$M$4, 0),0)/VLOOKUP($D35,'2. Female_Pop'!$A$4:$CD$84, MATCH($B35, '2. Female_Pop'!$A$4:$CD$4,0),0) -> 0 | M35: =VLOOKUP($B35&$D35, '1. Num_births'!$A$4:$M$1048576, MATCH(M$7, '1. Num_births'!$A$4:$M$4, 0),0)/VLOOKUP($D35,'2. Female_Pop'!$A$4:$CD$84, MATCH($B35, '2. Female_Pop'!$A$4:$CD$4,0),0) -> 0.004620482399 | N35: =VLOOKUP($B35&$D35, '1. Num_births'!$A$4:$M$1048576, MATCH(N$7, '1. Num_births'!$A$4:$M$4, 0),0)/VLOOKUP($D35,'2. Female_Pop'!$A$4:$CD$84, MATCH($B35, '2. Female_Pop'!$A$4:$CD$4,0),0) -> 3.083484147e-05 | P35: 197342 | Q35: 201542 | R35: 2015 | S35: 1973 | T35: 42 | U35: =VLOOKUP($B35&$D35, '1. Num_births'!$A$4:$M$1048576, MATCH(U$7, '1. Num_births'!$A$4:$M$4, 0),0)/VLOOKUP($D35,'2. Female_Pop'!$A$4:$CD$84, MATCH($B35, '2. Female_Pop'!$A$4:$CD$4,0),0) -> 0.001686428638 | V35: =VLOOKUP($B35&$D35, '1. Num_births'!$A$4:$M$1048576, MATCH(V$7, '1. Num_births'!$A$4:$M$4, 0),0)/VLOOKUP($D35,'2. Female_Pop'!$A$4:$CD$84, MATCH($B35, '2. Female_Pop'!$A$4:$CD$4,0),0) -> 0.001598667935 | W35: 0.001304550985 | X35: 0.004589647558
A36: 201543 | B36: 2015 | C36: 1972 | D36: 43 | E36: =VLOOKUP($B36&$D36, '1. Num_births'!$A$4:$M$1048576, MATCH(E$7, '1. Num_births'!$A$4:$M$4, 0),0)/VLOOKUP($D36,'2. Female_Pop'!$A$4:$CD$84, MATCH($B36, '2. Female_Pop'!$A$4:$CD$4,0),0) -> 0.000873510167 | F36: =VLOOKUP($B36&$D36, '1. Num_births'!$A$4:$M$1048576, MATCH(F$7, '1. Num_births'!$A$4:$M$4, 0),0)/VLOOKUP($D36,'2. Female_Pop'!$A$4:$CD$84, MATCH($B36, '2. Female_Pop'!$A$4:$CD$4,0),0) -> 0.0007437579937 | G36: =VLOOKUP($B36&$D36, '1. Num_births'!$A$4:$M$1048576, MATCH(G$7, '1. Num_births'!$A$4:$M$4, 0),0)/VLOOKUP($D36,'2. Female_Pop'!$A$4:$CD$84, MATCH($B36, '2. Female_Pop'!$A$4:$CD$4,0),0) -> 0.0004935216593 | H36: =VLOOKUP($B36&$D36, '1. Num_births'!$A$4:$M$1048576, MATCH(H$7, '1. Num_births'!$A$4:$M$4, 0),0)/VLOOKUP($D36,'2. Female_Pop'!$A$4:$CD$84, MATCH($B36, '2. Female_Pop'!$A$4:$CD$4,0),0) -> 0.0001297521733 | I36: =VLOOKUP($B36&$D36, '1. Num_births'!$A$4:$M$1048576, MATCH(I$7, '1. Num_births'!$A$4:$M$4, 0),0)/VLOOKUP($D36,'2. Female_Pop'!$A$4:$CD$84, MATCH($B36, '2. Female_Pop'!$A$4:$CD$4,0),0) -> 4.634006191e-05 | J36: =VLOOKUP($B36&$D36, '1. Num_births'!$A$4:$M$1048576, MATCH(J$7, '1. Num_births'!$A$4:$M$4, 0),0)/VLOOKUP($D36,'2. Female_Pop'!$A$4:$CD$84, MATCH($B36, '2. Female_Pop'!$A$4:$CD$4,0),0) -> 4.634006191e-06 | K36: =VLOOKUP($B36&$D36, '1. Num_births'!$A$4:$M$1048576, MATCH(K$7, '1. Num_births'!$A$4:$M$4, 0),0)/VLOOKUP($D36,'2. Female_Pop'!$A$4:$CD$84, MATCH($B36, '2. Female_Pop'!$A$4:$CD$4,0),0) -> 9.268012382e-06 | L36: =VLOOKUP($B36&$D36, '1. Num_births'!$A$4:$M$1048576, MATCH(L$7, '1. Num_births'!$A$4:$M$4, 0),0)/VLOOKUP($D36,'2. Female_Pop'!$A$4:$CD$84, MATCH($B36, '2. Female_Pop'!$A$4:$CD$4,0),0) -> 2.317003096e-06 | M36: =VLOOKUP($B36&$D36, '1. Num_births'!$A$4:$M$1048576, MATCH(M$7, '1. Num_births'!$A$4:$M$4, 0),0)/VLOOKUP($D36,'2. Female_Pop'!$A$4:$CD$84, MATCH($B36, '2. Female_Pop'!$A$4:$CD$4,0),0) -> 0.002314686092 | N36: =VLOOKUP($B36&$D36, '1. Num_births'!$A$4:$M$1048576, MATCH(N$7, '1. Num_births'!$A$4:$M$4, 0),0)/VLOOKUP($D36,'2. Female_Pop'!$A$4:$CD$84, MATCH($B36, '2. Female_Pop'!$A$4:$CD$4,0),0) -> 1.158501548e-05 | P36: 197243 | Q36: 201543 | R36: 2015 | S36: 1972 | T36: 43 | U36: =VLOOKUP($B36&$D36, '1. Num_births'!$A$4:$M$1048576, MATCH(U$7, '1. Num_births'!$A$4:$M$4, 0),0)/VLOOKUP($D36,'2. Female_Pop'!$A$4:$CD$84, MATCH($B36, '2. Female_Pop'!$A$4:$CD$4,0),0) -> 0.000873510167 | V36: =VLOOKUP($B36&$D36, '1. Num_births'!$A$4:$M$1048576, MATCH(V$7, '1. Num_births'!$A$4:$M$4, 0),0)/VLOOKUP($D36,'2. Female_Pop'!$A$4:$CD$84, MATCH($B36, '2. Female_Pop'!$A$4:$CD$4,0),0) -> 0.0007437579937 | W36: 0.0006858329163 | X36: 0.002303101077
A37: 201544 | B37: 2015 | C37: 1971 | D37: 44 | E37: =VLOOKUP($B37&$D37, '1. Num_births'!$A$4:$M$1048576, MATCH(E$7, '1. Num_births'!$A$4:$M$4, 0),0)/VLOOKUP($D37,'2. Female_Pop'!$A$4:$CD$84, MATCH($B37, '2. Female_Pop'!$A$4:$CD$4,0),0) -> 0.0004122313626 | F37: =VLOOKUP($B37&$D37, '1. Num_births'!$A$4:$M$1048576, MATCH(F$7, '1. Num_births'!$A$4:$M$4, 0),0)/VLOOKUP($D37,'2. Female_Pop'!$A$4:$CD$84, MATCH($B37, '2. Female_Pop'!$A$4:$CD$4,0),0) -> 0.0003412359612 | G37: =VLOOKUP($B37&$D37, '1. Num_births'!$A$4:$M$1048576, MATCH(G$7, '1. Num_births'!$A$4:$M$4, 0),0)/VLOOKUP($D37,'2. Female_Pop'!$A$4:$CD$84, MATCH($B37, '2. Female_Pop'!$A$4:$CD$4,0),0) -> 0.0002771110826 | H37: =VLOOKUP($B37&$D37, '1. Num_births'!$A$4:$M$1048576, MATCH(H$7, '1. Num_births'!$A$4:$M$4, 0),0)/VLOOKUP($D37,'2. Female_Pop'!$A$4:$CD$84, MATCH($B37, '2. Female_Pop'!$A$4:$CD$4,0),0) -> 8.473644675e-05 | I37: =VLOOKUP($B37&$D37, '1. Num_births'!$A$4:$M$1048576, MATCH(I$7, '1. Num_births'!$A$4:$M$4, 0),0)/VLOOKUP($D37,'2. Female_Pop'!$A$4:$CD$84, MATCH($B37, '2. Female_Pop'!$A$4:$CD$4,0),0) -> 2.748209084e-05 | J37: =VLOOKUP($B37&$D37, '1. Num_births'!$A$4:$M$1048576, MATCH(J$7, '1. Num_births'!$A$4:$M$4, 0),0)/VLOOKUP($D37,'2. Female_Pop'!$A$4:$CD$84, MATCH($B37, '2. Female_Pop'!$A$4:$CD$4,0),0) -> 1.603121966e-05 | K37: =VLOOKUP($B37&$D37, '1. Num_births'!$A$4:$M$1048576, MATCH(K$7, '1. Num_births'!$A$4:$M$4, 0),0)/VLOOKUP($D37,'2. Female_Pop'!$A$4:$CD$84, MATCH($B37, '2. Female_Pop'!$A$4:$CD$4,0),0) -> 4.580348473e-06 | L37: =VLOOKUP($B37&$D37, '1. Num_births'!$A$4:$M$1048576, MATCH(L$7, '1. Num_births'!$A$4:$M$4, 0),0)/VLOOKUP($D37,'2. Female_Pop'!$A$4:$CD$84, MATCH($B37, '2. Female_Pop'!$A$4:$CD$4,0),0) -> 4.580348473e-06 | M37: =VLOOKUP($B37&$D37, '1. Num_births'!$A$4:$M$1048576, MATCH(M$7, '1. Num_births'!$A$4:$M$4, 0),0)/VLOOKUP($D37,'2. Female_Pop'!$A$4:$CD$84, MATCH($B37, '2. Female_Pop'!$A$4:$CD$4,0),0) -> 0.001174859383 | N37: =VLOOKUP($B37&$D37, '1. Num_births'!$A$4:$M$1048576, MATCH(N$7, '1. Num_births'!$A$4:$M$4, 0),0)/VLOOKUP($D37,'2. Female_Pop'!$A$4:$CD$84, MATCH($B37, '2. Female_Pop'!$A$4:$CD$4,0),0) -> 6.870522709e-06 | P37: 197144 | Q37: 201544 | R37: 2015 | S37: 1971 | T37: 44 | U37: =VLOOKUP($B37&$D37, '1. Num_births'!$A$4:$M$1048576, MATCH(U$7, '1. Num_births'!$A$4:$M$4, 0),0)/VLOOKUP($D37,'2. Female_Pop'!$A$4:$CD$84, MATCH($B37, '2. Female_Pop'!$A$4:$CD$4,0),0) -> 0.0004122313626 | V37: =VLOOKUP($B37&$D37, '1. Num_births'!$A$4:$M$1048576, MATCH(V$7, '1. Num_births'!$A$4:$M$4, 0),0)/VLOOKUP($D37,'2. Female_Pop'!$A$4:$CD$84, MATCH($B37, '2. Female_Pop'!$A$4:$CD$4,0),0) -> 0.0003412359612 | W37: 0.0004145215368 | X37: 0.001167988861
A38: 201545 | B38: 2015 | C38: 1970 | D38: 45 | E38: =VLOOKUP($B38&$D38, '1. Num_births'!$A$4:$M$1048576, MATCH(E$7, '1. Num_births'!$A$4:$M$4, 0),0)/VLOOKUP($D38,'2. Female_Pop'!$A$4:$CD$84, MATCH($B38, '2. Female_Pop'!$A$4:$CD$4,0),0) -> 0.000146113384 | F38: =VLOOKUP($B38&$D38, '1. Num_births'!$A$4:$M$1048576, MATCH(F$7, '1. Num_births'!$A$4:$M$4, 0),0)/VLOOKUP($D38,'2. Female_Pop'!$A$4:$CD$84, MATCH($B38, '2. Female_Pop'!$A$4:$CD$4,0),0) -> 0.0001415473407 | G38: =VLOOKUP($B38&$D38, '1. Num_births'!$A$4:$M$1048576, MATCH(G$7, '1. Num_births'!$A$4:$M$4, 0),0)/VLOOKUP($D38,'2. Female_Pop'!$A$4:$CD$84, MATCH($B38, '2. Female_Pop'!$A$4:$CD$4,0),0) -> 0.0001141510812 | H38: =VLOOKUP($B38&$D38, '1. Num_births'!$A$4:$M$1048576, MATCH(H$7, '1. Num_births'!$A$4:$M$4, 0),0)/VLOOKUP($D38,'2. Female_Pop'!$A$4:$CD$84, MATCH($B38, '2. Female_Pop'!$A$4:$CD$4,0),0) -> 6.164158387e-05 | I38: =VLOOKUP($B38&$D38, '1. Num_births'!$A$4:$M$1048576, MATCH(I$7, '1. Num_births'!$A$4:$M$4, 0),0)/VLOOKUP($D38,'2. Female_Pop'!$A$4:$CD$84, MATCH($B38, '2. Female_Pop'!$A$4:$CD$4,0),0) -> 1.8264173e-05 | J38: =VLOOKUP($B38&$D38, '1. Num_births'!$A$4:$M$1048576, MATCH(J$7, '1. Num_births'!$A$4:$M$4, 0),0)/VLOOKUP($D38,'2. Female_Pop'!$A$4:$CD$84, MATCH($B38, '2. Female_Pop'!$A$4:$CD$4,0),0) -> 2.283021625e-06 | K38: =VLOOKUP($B38&$D38, '1. Num_births'!$A$4:$M$1048576, MATCH(K$7, '1. Num_births'!$A$4:$M$4, 0),0)/VLOOKUP($D38,'2. Female_Pop'!$A$4:$CD$84, MATCH($B38, '2. Female_Pop'!$A$4:$CD$4,0),0) -> 2.283021625e-06 | L38: =VLOOKUP($B38&$D38, '1. Num_births'!$A$4:$M$1048576, MATCH(L$7, '1. Num_births'!$A$4:$M$4, 0),0)/VLOOKUP($D38,'2. Female_Pop'!$A$4:$CD$84, MATCH($B38, '2. Female_Pop'!$A$4:$CD$4,0),0) -> 4.56604325e-06 | M38: =VLOOKUP($B38&$D38, '1. Num_births'!$A$4:$M$1048576, MATCH(M$7, '1. Num_births'!$A$4:$M$4, 0),0)/VLOOKUP($D38,'2. Female_Pop'!$A$4:$CD$84, MATCH($B38, '2. Female_Pop'!$A$4:$CD$4,0),0) -> 0.0004908496493 | N38: =VLOOKUP($B38&$D38, '1. Num_births'!$A$4:$M$1048576, MATCH(N$7, '1. Num_births'!$A$4:$M$4, 0),0)/VLOOKUP($D38,'2. Female_Pop'!$A$4:$CD$84, MATCH($B38, '2. Female_Pop'!$A$4:$CD$4,0),0) -> 0 | P38: 197045 | Q38: 201545 | R38: 2015 | S38: 1970 | T38: 45 | U38: =VLOOKUP($B38&$D38, '1. Num_births'!$A$4:$M$1048576, MATCH(U$7, '1. Num_births'!$A$4:$M$4, 0),0)/VLOOKUP($D38,'2. Female_Pop'!$A$4:$CD$84, MATCH($B38, '2. Female_Pop'!$A$4:$CD$4,0),0) -> 0.000146113384 | V38: =VLOOKUP($B38&$D38, '1. Num_births'!$A$4:$M$1048576, MATCH(V$7, '1. Num_births'!$A$4:$M$4, 0),0)/VLOOKUP($D38,'2. Female_Pop'!$A$4:$CD$84, MATCH($B38, '2. Female_Pop'!$A$4:$CD$4,0),0) -> 0.0001415473407 | W38: 0.0002031889246 | X38: 0.0004908496493
A39: 201546 | B39: 2015 | C39: 1969 | D39: 46 | E39: =VLOOKUP($B39&$D39, '1. Num_births'!$A$4:$M$1048576, MATCH(E$7, '1. Num_births'!$A$4:$M$4, 0),0)/VLOOKUP($D39,'2. Female_Pop'!$A$4:$CD$84, MATCH($B39, '2. Female_Pop'!$A$4:$CD$4,0),0) -> 6.019229122e-05 | F39: =VLOOKUP($B39&$D39, '1. Num_births'!$A$4:$M$1048576, MATCH(F$7, '1. Num_births'!$A$4:$M$4, 0),0)/VLOOKUP($D39,'2. Female_Pop'!$A$4:$CD$84, MATCH($B39, '2. Female_Pop'!$A$4:$CD$4,0),0) -> 6.482246747e-05 | G39: =VLOOKUP($B39&$D39, '1. Num_births'!$A$4:$M$1048576, MATCH(G$7, '1. Num_births'!$A$4:$M$4, 0),0)/VLOOKUP($D39,'2. Female_Pop'!$A$4:$CD$84, MATCH($B39, '2. Female_Pop'!$A$4:$CD$4,0),0) -> 5.78772031e-05 | H39: =VLOOKUP($B39&$D39, '1. Num_births'!$A$4:$M$1048576, MATCH(H$7, '1. Num_births'!$A$4:$M$4, 0),0)/VLOOKUP($D39,'2. Female_Pop'!$A$4:$CD$84, MATCH($B39, '2. Female_Pop'!$A$4:$CD$4,0),0) -> 6.945264371e-06 | I39: =VLOOKUP($B39&$D39, '1. Num_births'!$A$4:$M$1048576, MATCH(I$7, '1. Num_births'!$A$4:$M$4, 0),0)/VLOOKUP($D39,'2. Female_Pop'!$A$4:$CD$84, MATCH($B39, '2. Female_Pop'!$A$4:$CD$4,0),0) -> 2.315088124e-06 | J39: =VLOOKUP($B39&$D39, '1. Num_births'!$A$4:$M$1048576, MATCH(J$7, '1. Num_births'!$A$4:$M$4, 0),0)/VLOOKUP($D39,'2. Female_Pop'!$A$4:$CD$84, MATCH($B39, '2. Female_Pop'!$A$4:$CD$4,0),0) -> 0 | K39: =VLOOKUP($B39&$D39, '1. Num_births'!$A$4:$M$1048576, MATCH(K$7, '1. Num_births'!$A$4:$M$4, 0),0)/VLOOKUP($D39,'2. Female_Pop'!$A$4:$CD$84, MATCH($B39, '2. Female_Pop'!$A$4:$CD$4,0),0) -> 2.315088124e-06 | L39: =VLOOKUP($B39&$D39, '1. Num_births'!$A$4:$M$1048576, MATCH(L$7, '1. Num_births'!$A$4:$M$4, 0),0)/VLOOKUP($D39,'2. Female_Pop'!$A$4:$CD$84, MATCH($B39, '2. Female_Pop'!$A$4:$CD$4,0),0) -> 0 | M39: =VLOOKUP($B39&$D39, '1. Num_births'!$A$4:$M$1048576, MATCH(M$7, '1. Num_births'!$A$4:$M$4, 0),0)/VLOOKUP($D39,'2. Female_Pop'!$A$4:$CD$84, MATCH($B39, '2. Female_Pop'!$A$4:$CD$4,0),0) -> 0.0001944674024 | N39: =VLOOKUP($B39&$D39, '1. Num_births'!$A$4:$M$1048576, MATCH(N$7, '1. Num_births'!$A$4:$M$4, 0),0)/VLOOKUP($D39,'2. Female_Pop'!$A$4:$CD$84, MATCH($B39, '2. Female_Pop'!$A$4:$CD$4,0),0) -> 0 | P39: 196946 | Q39: 201546 | R39: 2015 | S39: 1969 | T39: 46 | U39: =VLOOKUP($B39&$D39, '1. Num_births'!$A$4:$M$1048576, MATCH(U$7, '1. Num_births'!$A$4:$M$4, 0),0)/VLOOKUP($D39,'2. Female_Pop'!$A$4:$CD$84, MATCH($B39, '2. Female_Pop'!$A$4:$CD$4,0),0) -> 6.019229122e-05 | V39: =VLOOKUP($B39&$D39, '1. Num_births'!$A$4:$M$1048576, MATCH(V$7, '1. Num_births'!$A$4:$M$4, 0),0)/VLOOKUP($D39,'2. Female_Pop'!$A$4:$CD$84, MATCH($B39, '2. Female_Pop'!$A$4:$CD$4,0),0) -> 6.482246747e-05 | W39: 6.945264371e-05 | X39: 0.0001944674024
A40: 201547 | B40: 2015 | C40: 1968 | D40: 47 | E40: =VLOOKUP($B40&$D40, '1. Num_births'!$A$4:$M$1048576, MATCH(E$7, '1. Num_births'!$A$4:$M$4, 0),0)/VLOOKUP($D40,'2. Female_Pop'!$A$4:$CD$84, MATCH($B40, '2. Female_Pop'!$A$4:$CD$4,0),0) -> 9.589244703e-06 | F40: =VLOOKUP($B40&$D40, '1. Num_births'!$A$4:$M$1048576, MATCH(F$7, '1. Num_births'!$A$4:$M$4, 0),0)/VLOOKUP($D40,'2. Female_Pop'!$A$4:$CD$84, MATCH($B40, '2. Female_Pop'!$A$4:$CD$4,0),0) -> 1.198655588e-05 | G40: =VLOOKUP($B40&$D40, '1. Num_births'!$A$4:$M$1048576, MATCH(G$7, '1. Num_births'!$A$4:$M$4, 0),0)/VLOOKUP($D40,'2. Female_Pop'!$A$4:$CD$84, MATCH($B40, '2. Female_Pop'!$A$4:$CD$4,0),0) -> 7.191933527e-06 | H40: =VLOOKUP($B40&$D40, '1. Num_births'!$A$4:$M$1048576, MATCH(H$7, '1. Num_births'!$A$4:$M$4, 0),0)/VLOOKUP($D40,'2. Female_Pop'!$A$4:$CD$84, MATCH($B40, '2. Female_Pop'!$A$4:$CD$4,0),0) -> 7.191933527e-06 | I40: =VLOOKUP($B40&$D40, '1. Num_births'!$A$4:$M$1048576, MATCH(I$7, '1. Num_births'!$A$4:$M$4, 0),0)/VLOOKUP($D40,'2. Female_Pop'!$A$4:$CD$84, MATCH($B40, '2. Female_Pop'!$A$4:$CD$4,0),0) -> 2.397311176e-06 | J40: =VLOOKUP($B40&$D40, '1. Num_births'!$A$4:$M$1048576, MATCH(J$7, '1. Num_births'!$A$4:$M$4, 0),0)/VLOOKUP($D40,'2. Female_Pop'!$A$4:$CD$84, MATCH($B40, '2. Female_Pop'!$A$4:$CD$4,0),0) -> 2.397311176e-06 | K40: =VLOOKUP($B40&$D40, '1. Num_births'!$A$4:$M$1048576, MATCH(K$7, '1. Num_births'!$A$4:$M$4, 0),0)/VLOOKUP($D40,'2. Female_Pop'!$A$4:$CD$84, MATCH($B40, '2. Female_Pop'!$A$4:$CD$4,0),0) -> 0 | L40: =VLOOKUP($B40&$D40, '1. Num_births'!$A$4:$M$1048576, MATCH(L$7, '1. Num_births'!$A$4:$M$4, 0),0)/VLOOKUP($D40,'2. Female_Pop'!$A$4:$CD$84, MATCH($B40, '2. Female_Pop'!$A$4:$CD$4,0),0) -> 0 | M40: =VLOOKUP($B40&$D40, '1. Num_births'!$A$4:$M$1048576, MATCH(M$7, '1. Num_births'!$A$4:$M$4, 0),0)/VLOOKUP($D40,'2. Female_Pop'!$A$4:$CD$84, MATCH($B40, '2. Female_Pop'!$A$4:$CD$4,0),0) -> 4.075428999e-05 | N40: =VLOOKUP($B40&$D40, '1. Num_births'!$A$4:$M$1048576, MATCH(N$7, '1. Num_births'!$A$4:$M$4, 0),0)/VLOOKUP($D40,'2. Female_Pop'!$A$4:$CD$84, MATCH($B40, '2. Female_Pop'!$A$4:$CD$4,0),0) -> 0 | P40: 196847 | Q40: 201547 | R40: 2015 | S40: 1968 | T40: 47 | U40: =VLOOKUP($B40&$D40, '1. Num_births'!$A$4:$M$1048576, MATCH(U$7, '1. Num_births'!$A$4:$M$4, 0),0)/VLOOKUP($D40,'2. Female_Pop'!$A$4:$CD$84, MATCH($B40, '2. Female_Pop'!$A$4:$CD$4,0),0) -> 9.589244703e-06 | V40: =VLOOKUP($B40&$D40, '1. Num_births'!$A$4:$M$1048576, MATCH(V$7, '1. Num_births'!$A$4:$M$4, 0),0)/VLOOKUP($D40,'2. Female_Pop'!$A$4:$CD$84, MATCH($B40, '2. Female_Pop'!$A$4:$CD$4,0),0) -> 1.198655588e-05 | W40: 1.917848941e-05 | X40: 4.075428999e-05
A41: 201548 | B41: 2015 | C41: 1967 | D41: 48 | E41: =VLOOKUP($B41&$D41, '1. Num_births'!$A$4:$M$1048576, MATCH(E$7, '1. Num_births'!$A$4:$M$4, 0),0)/VLOOKUP($D41,'2. Female_Pop'!$A$4:$CD$84, MATCH($B41, '2. Female_Pop'!$A$4:$CD$4,0),0) -> 4.937552307e-06 | F41: =VLOOKUP($B41&$D41, '1. Num_births'!$A$4:$M$1048576, MATCH(F$7, '1. Num_births'!$A$4:$M$4, 0),0)/VLOOKUP($D41,'2. Female_Pop'!$A$4:$CD$84, MATCH($B41, '2. Female_Pop'!$A$4:$CD$4,0),0) -> 2.468776154e-06 | G41: =VLOOKUP($B41&$D41, '1. Num_births'!$A$4:$M$1048576, MATCH(G$7, '1. Num_births'!$A$4:$M$4, 0),0)/VLOOKUP($D41,'2. Female_Pop'!$A$4:$CD$84, MATCH($B41, '2. Female_Pop'!$A$4:$CD$4,0),0) -> 7.406328461e-06 | H41: =VLOOKUP($B41&$D41, '1. Num_births'!$A$4:$M$1048576, MATCH(H$7, '1. Num_births'!$A$4:$M$4, 0),0)/VLOOKUP($D41,'2. Female_Pop'!$A$4:$CD$84, MATCH($B41, '2. Female_Pop'!$A$4:$CD$4,0),0) -> 2.468776154e-06 | I41: =VLOOKUP($B41&$D41, '1. Num_births'!$A$4:$M$1048576, MATCH(I$7, '1. Num_births'!$A$4:$M$4, 0),0)/VLOOKUP($D41,'2. Female_Pop'!$A$4:$CD$84, MATCH($B41, '2. Female_Pop'!$A$4:$CD$4,0),0) -> 2.468776154e-06 | J41: =VLOOKUP($B41&$D41, '1. Num_births'!$A$4:$M$1048576, MATCH(J$7, '1. Num_births'!$A$4:$M$4, 0),0)/VLOOKUP($D41,'2. Female_Pop'!$A$4:$CD$84, MATCH($B41, '2. Female_Pop'!$A$4:$CD$4,0),0) -> 0 | K41: =VLOOKUP($B41&$D41, '1. Num_births'!$A$4:$M$1048576, MATCH(K$7, '1. Num_births'!$A$4:$M$4, 0),0)/VLOOKUP($D41,'2. Female_Pop'!$A$4:$CD$84, MATCH($B41, '2. Female_Pop'!$A$4:$CD$4,0),0) -> 0 | L41: =VLOOKUP($B41&$D41, '1. Num_births'!$A$4:$M$1048576, MATCH(L$7, '1. Num_births'!$A$4:$M$4, 0),0)/VLOOKUP($D41,'2. Female_Pop'!$A$4:$CD$84, MATCH($B41, '2. Female_Pop'!$A$4:$CD$4,0),0) -> 0 | M41: =VLOOKUP($B41&$D41, '1. Num_births'!$A$4:$M$1048576, MATCH(M$7, '1. Num_births'!$A$4:$M$4, 0),0)/VLOOKUP($D41,'2. Female_Pop'!$A$4:$CD$84, MATCH($B41, '2. Female_Pop'!$A$4:$CD$4,0),0) -> 1.975020923e-05 | N41: =VLOOKUP($B41&$D41, '1. Num_births'!$A$4:$M$1048576, MATCH(N$7, '1. Num_births'!$A$4:$M$4, 0),0)/VLOOKUP($D41,'2. Female_Pop'!$A$4:$CD$84, MATCH($B41, '2. Female_Pop'!$A$4:$CD$4,0),0) -> 0 | P41: 196748 | Q41: 201548 | R41: 2015 | S41: 1967 | T41: 48 | U41: =VLOOKUP($B41&$D41, '1. Num_births'!$A$4:$M$1048576, MATCH(U$7, '1. Num_births'!$A$4:$M$4, 0),0)/VLOOKUP($D41,'2. Female_Pop'!$A$4:$CD$84, MATCH($B41, '2. Female_Pop'!$A$4:$CD$4,0),0) -> 4.937552307e-06 | V41: =VLOOKUP($B41&$D41, '1. Num_births'!$A$4:$M$1048576, MATCH(V$7, '1. Num_births'!$A$4:$M$4, 0),0)/VLOOKUP($D41,'2. Female_Pop'!$A$4:$CD$84, MATCH($B41, '2. Female_Pop'!$A$4:$CD$4,0),0) -> 2.468776154e-06 | W41: 1.234388077e-05 | X41: 1.975020923e-05
A42: 201549 | B42: 2015 | C42: 1966 | D42: 49 | E42: =VLOOKUP($B42&$D42, '1. Num_births'!$A$4:$M$1048576, MATCH(E$7, '1. Num_births'!$A$4:$M$4, 0),0)/VLOOKUP($D42,'2. Female_Pop'!$A$4:$CD$84, MATCH($B42, '2. Female_Pop'!$A$4:$CD$4,0),0) -> 7.424070321e-06 | F42: =VLOOKUP($B42&$D42, '1. Num_births'!$A$4:$M$1048576, MATCH(F$7, '1. Num_births'!$A$4:$M$4, 0),0)/VLOOKUP($D42,'2. Female_Pop'!$A$4:$CD$84, MATCH($B42, '2. Female_Pop'!$A$4:$CD$4,0),0) -> 4.949380214e-06 | G42: =VLOOKUP($B42&$D42, '1. Num_births'!$A$4:$M$1048576, MATCH(G$7, '1. Num_births'!$A$4:$M$4, 0),0)/VLOOKUP($D42,'2. Female_Pop'!$A$4:$CD$84, MATCH($B42, '2. Female_Pop'!$A$4:$CD$4,0),0) -> 4.949380214e-06 | H42: =VLOOKUP($B42&$D42, '1. Num_births'!$A$4:$M$1048576, MATCH(H$7, '1. Num_births'!$A$4:$M$4, 0),0)/VLOOKUP($D42,'2. Female_Pop'!$A$4:$CD$84, MATCH($B42, '2. Female_Pop'!$A$4:$CD$4,0),0) -> 4.949380214e-06 | I42: =VLOOKUP($B42&$D42, '1. Num_births'!$A$4:$M$1048576, MATCH(I$7, '1. Num_births'!$A$4:$M$4, 0),0)/VLOOKUP($D42,'2. Female_Pop'!$A$4:$CD$84, MATCH($B42, '2. Female_Pop'!$A$4:$CD$4,0),0) -> 2.474690107e-06 | J42: =VLOOKUP($B42&$D42, '1. Num_births'!$A$4:$M$1048576, MATCH(J$7, '1. Num_births'!$A$4:$M$4, 0),0)/VLOOKUP($D42,'2. Female_Pop'!$A$4:$CD$84, MATCH($B42, '2. Female_Pop'!$A$4:$CD$4,0),0) -> 0 | K42: =VLOOKUP($B42&$D42, '1. Num_births'!$A$4:$M$1048576, MATCH(K$7, '1. Num_births'!$A$4:$M$4, 0),0)/VLOOKUP($D42,'2. Female_Pop'!$A$4:$CD$84, MATCH($B42, '2. Female_Pop'!$A$4:$CD$4,0),0) -> 0 | L42: =VLOOKUP($B42&$D42, '1. Num_births'!$A$4:$M$1048576, MATCH(L$7, '1. Num_births'!$A$4:$M$4, 0),0)/VLOOKUP($D42,'2. Female_Pop'!$A$4:$CD$84, MATCH($B42, '2. Female_Pop'!$A$4:$CD$4,0),0) -> 0 | M42: =VLOOKUP($B42&$D42, '1. Num_births'!$A$4:$M$1048576, MATCH(M$7, '1. Num_births'!$A$4:$M$4, 0),0)/VLOOKUP($D42,'2. Female_Pop'!$A$4:$CD$84, MATCH($B42, '2. Female_Pop'!$A$4:$CD$4,0),0) -> 2.722159118e-05 | N42: =VLOOKUP($B42&$D42, '1. Num_births'!$A$4:$M$1048576, MATCH(N$7, '1. Num_births'!$A$4:$M$4, 0),0)/VLOOKUP($D42,'2. Female_Pop'!$A$4:$CD$84, MATCH($B42, '2. Female_Pop'!$A$4:$CD$4,0),0) -> 2.474690107e-06 | P42: 196649 | Q42: 201549 | R42: 2015 | S42: 1966 | T42: 49 | U42: =VLOOKUP($B42&$D42, '1. Num_births'!$A$4:$M$1048576, MATCH(U$7, '1. Num_births'!$A$4:$M$4, 0),0)/VLOOKUP($D42,'2. Female_Pop'!$A$4:$CD$84, MATCH($B42, '2. Female_Pop'!$A$4:$CD$4,0),0) -> 7.424070321e-06 | V42: =VLOOKUP($B42&$D42, '1. Num_births'!$A$4:$M$1048576, MATCH(V$7, '1. Num_births'!$A$4:$M$4, 0),0)/VLOOKUP($D42,'2. Female_Pop'!$A$4:$CD$84, MATCH($B42, '2. Female_Pop'!$A$4:$CD$4,0),0) -> 4.949380214e-06 | W42: 1.237345053e-05 | X42: 2.474690107e-05
A43: 2015Total | B43: 2015 | C43: period | D43: Total | E43: =SUM(E8:E42) -> 0.6608222061 | F43: =SUM(F8:F42) -> 0.4593199246 | G43: 0.1000883967 | H43: 0.01172580996 | I43: 0.001892183975 | J43: 0.0004414289971 | K43: 0.0001386959233 | L43: 5.472940984e-05 | M43: 1.237347543 | N43: 0.002864167512 | P43: periodTotal | Q43: 2015Total | R43: 2015 | S43: period | T43: Total | U43: =SUM(U8:U42) -> 0.6608222061 | V43: =SUM(V8:V42) -> 0.4593199246 | W43: 0.1143412449 | X43: 1.234483376
A44: 2015MAC | B44: 2015 | C44: period | D44: MAC | E44: =SUMPRODUCT($D$8:$D$42+0.5, E8:E42)/SUM(E8:E42) -> 30.88819904 | F44: =SUMPRODUCT($D$8:$D$42+0.5, F8:F42)/SUM(F8:F42) -> 32.7404239 | G44: 34.33370697 | H44: 35.55633018 | I44: 36.24757961 | J44: 36.79640537 | K44: 37.74349073 | L44: 38.12749946 | M44: 31.90996285 | N44: 30.8268139 | P44: periodMAC | Q44: 2015MAC | R44: 2015 | S44: period | T44: MAC | U44: =SUMPRODUCT($D$8:$D$42+0.5, U8:U42)/SUM(U8:U42) -> 30.88819904 | V44: =SUMPRODUCT($D$8:$D$42+0.5, V8:V42)/SUM(V8:V42) -> 32.7404239 | W44: =SUMPRODUCT($D$8:$D$42+0.5, W8:W42)/SUM(W8:W42) -> 34.50621959 | X44: =SUMPRODUCT($D$8:$D$42+0.5, X8:X42)/SUM(X8:X42) -> 31.9124759
E48: Birth order | S48: * This table is for the computation up to third birth or higher
A49: Id | B49: Year | C49: Cohort | D49: Mom's age | E49: 1 | F49: 2 | G49: 3 | H49: 4 | I49: 5 | J49: 6 | K49: 7 | L49: 8+ | M49: Missing | N49: Total | P49: CohortID | Q49: Id | R49: Year | S49: Cohort | T49: Mom's age | U49: 1 | V49: 2 | W49: 3+ | X49: Total
A50: 198115 | B50: 1981 | C50: 1966 | D50: 15 | E50: 0.001427510018 | F50: 0.0002143701051 | G50: 4.872047844e-05 | H50: 2.436023922e-06 | I50: 0 | J50: 2.436023922e-06 | K50: 0 | L50: 0 | M50: 0 | N50: 0.00169547265 | P50: =S50&T50 -> 196615 | Q50: 198115 | R50: 1981 | S50: 1966 | T50: 15 | U50: 0.001427510018 | V50: 0.0002143701051 | W50: 5.359252628e-05 | X50: 0.00169547265
A51: 198116 | B51: 1981 | C51: 1965 | D51: 16 | E51: 0.004171867418 | F51: 0.0006590971094 | G51: 4.104267714e-05 | H51: 9.657100504e-06 | I51: 0 | J51: 0 | K51: 0 | L51: 0 | M51: 0 | N51: 0.004881664305 | P51: 196516 | Q51: 198116 | R51: 1981 | S51: 1965 | T51: 16 | U51: 0.004171867418 | V51: 0.0006590971094 | W51: 5.069977765e-05 | X51: 0.004881664305
A52: 198117 | B52: 1981 | C52: 1964 | D52: 17 | E52: 0.008023048287 | F52: 0.001084514314 | G52: 9.430559256e-05 | H52: 1.886111851e-05 | I52: 0 | J52: 0 | K52: 0 | L52: 0 | M52: 0 | N52: 0.009220729312 | P52: 196417 | Q52: 198117 | R52: 1981 | S52: 1964 | T52: 17 | U52: 0.008023048287 | V52: 0.001084514314 | W52: 0.0001131667111 | X52: 0.009220729312
A53: 198118 | B53: 1981 | C53: 1963 | D53: 18 | E53: 0.01763278536 | F53: 0.003158796076 | G53: 0.0002961371322 | H53: 2.066073015e-05 | I53: 0 | J53: 2.295636683e-06 | K53: 0 | L53: 0 | M53: 0 | N53: 0.02111067494 | P53: 196318 | Q53: 198118 | R53: 1981 | S53: 1963 | T53: 18 | U53: 0.01763278536 | V53: 0.003158796076 | W53: 0.000319093499 | X53: 0.02111067494
